Workbook

Sheet Instrucciones
B3: CALIFICACIÓN DE LAS COMPETENCIAS CLAVE Y DE LAS MATERIAS 2º_ESO
B6: INSTRUCCIONES 1. INCORPORAR LOS CRITERIOS DE CALIFICACIÓN DE LAS COMPETENCIAS CLAVE BOTÓN: "INCORPORAR LOS CRITERIOS DE CALIFICACIÓN DE LAS COMPETENCIAS CLAVE." Para introducir los criterios de calificación de las competencias clave hay que seleccionar una opción en cada uno de los siguientes campos: -Pesos de los criterios de evaluación en el cálculo de la calificación de los descriptores operativos. -Pesos de los descriptores operativos en el cálculo de la calificación de las competencias clave. Si se considera, se puede bloquear la información introducida pulsado en el botón "PROTEGIDA" e introduciendo una contaseña. En caso de querer desbloquear la página se debe pulsar en el botón "DESPROTEGIDA" e introducir la contraseña marcada. 2. INCORPORAR EL NOMBRE DE LOS ALUMNOS QUE COMPONEN EL GRUPO. BOTÓN: "INCORPORAR EL LISTADO DE ALUMNOS" Introducir el nombre de todos los alumnos que componen el grupo-clase. Marcar las materias de opción que cursa cada alumno. Pulsando sobre el botón "informe" en cada alumnno se visualiza de forma individualizada la composición de las calificaciones de las materias y de las competencias clave a partir de las notas de los criterios de evaluación. Además, se incorporan dos botones para facilitar el trabajo colaborativo a través de TEAMS o Onedrive. El procedimiento es el siguiente: 1º Se pulsa el botón superior de esta sección TEAMS/Onedrive; 2º Una vez guardado el archivo, se comparte con las citadas aplicaciones; 3º Los docentes incorporan las céntésimas de redondeo de su materia en la pestaña "Redondeo" y las notas de los criterios de evaluación en la pestaña correspondiente a su materia; 4º Se descarga el archivo y se pulsa en el segundo botón de esta sección TEAMS/Onedrive para normalizar su funcionamiento y poder visualizar toda la información que esta herramienta ofrece. 3. INCORPORAR LAS CALIFICACIONES DE LOS CRITERIOS DE EVALUACIÓN DE LAS MATERIAS CURSADAS POR EL ALUMNO. BOTÓN: "INCORPORAR LA CALIFICACIÓN POR MATERIAS DE LOS CRITERIOS DE EVALUACIÓN " Seleccionar la materia. En la pestaña de destino introducir los pesos (ponderaciones) de cada criterio de evaluación (es decir, los criterios de calificación de la materia) y las calificaciones de los criterios de evaluación para los alumnos que cursen la materia o, en su caso, la calificación de la materia. 4. OBSERVAR LAS NOTAS DE LAS COMPETENCIAS CLAVE DE LOS ALUMNOS. BOTÓN: "VISUALIZAR LAS NOTAS DE LAS COMPETENCIAS CLAVE" Permite observar las notas de las competencias clave de cada alumno en función de los criterios de calificación de las competencias clave introducidos. Además, desde la pantalla de destino se puede generar un documento para exportar las notas de las competencias clave a STILUS. Para ello, previamente es necesario introducir las centésimas de redondeo de las notas de las competencias clave en la celda creada al efecto. 5. OBSERVAR LAS NOTAS DE LAS MATERIAS DE LOS ALUMNOS. BOTÓN: "VISUALIZAR LAS NOTAS DE LAS MATERIAS" Permite observar las notas de las materias de cada alumno, en función de los criterios de calificación de la materia introducidos. Además, desde la pantalla de destino se puede generar un documento para exportar las notas de las materias a STILUS.

Sheet Criterios de calificacion CClav
D4: CRITERIOS DE CALIFICACIÓN DE LAS COMPETENCIAS CLAVE
D6: Pesos de los criterios de evaluación en el cálculo de la calificación de los descriptores operativos
E8: MEDIA SIMPLE. Se aplica un criterio común para el cálculo de la calificación de todos los descriptores. Todos los criterios de evaluación pesan (ponderan) los mismo en la calificación de los descriptores operativos.
E10: MEDIA PONDERADA POR CARGA HORARIA. Se aplica un criterio común para el cálculo de la calificación de todos los descriptores. El peso de los criterios de evaluación se determina en función de la carga horaria de la materia. (RECOMENDADO)
E12: LIBRE. Se aplica un criterio común para el cálculo de la calificación de todos los descriptores. El peso de cada criterio de evaluación en la calificación de los descriptores se determina por el centro.
E14: LIBRE DIFERENCIADO POR DESCRIPTORES. Se aplica un criterio diferenciado para el cálculo de la calificación de cada descriptor. El peso de cada criterio de evaluación en la calificación de cada descriptor se determina por el centro.
D16: Pesos de los descriptores operativos en el cálculo de la calificación de las competencias clave
E18: MEDIA PONDERADA. El peso de los descriptores operativos en el cálculo de la calificación de la competencia clave se determina en proporción al número de vinculaciones de cada descriptor operativo con los criterios de evaluación (RECOMENDADO)
E20: LIBRE. El peso (ponderación) de los descriptores operativos en el cálculo de la calificación de la competencia clave se determina por el centro.
I873: =#REF! ->  | L873: =#REF! ->  | O873: =#REF! ->  | R873: =#REF! ->  | U873: =#REF! ->  | X873: =#REF! ->  | AA873: =#REF! ->  | AD873: =#REF! ->  | AG873: =#REF! ->  | AJ873: =#REF! ->  | AM873: =#REF! ->  | AP873: =#REF! ->  | AS873: =#REF! ->  | AV873: =#REF! ->  | AY873: =#REF! ->  | BB873: =#REF! ->  | BE873: =#REF! ->  | BH873: =#REF! ->  | BK873: =#REF! ->  | BN873: =#REF! ->  | BQ873: =#REF! ->  | BT873: =#REF! ->  | BW873: =#REF! ->  | BZ873: =#REF! ->  | CC873: =#REF! ->  | CF873: =#REF! ->  | CI873: =#REF! ->  | CL873: =#REF! ->  | CO873: =#REF! ->  | CR873: =#REF! ->  | CU873: =#REF! ->  | CX873: =#REF! ->  | DA873: =#REF! ->  | DD873: =#REF! -> 
I885: =#REF! ->  | L885: =#REF! ->  | O885: =#REF! ->  | R885: =#REF! ->  | U885: =#REF! ->  | X885: =#REF! ->  | AA885: =#REF! ->  | AD885: =#REF! ->  | AG885: =#REF! ->  | AJ885: =#REF! ->  | AM885: =#REF! ->  | AP885: =#REF! ->  | AS885: =#REF! ->  | AV885: =#REF! ->  | AY885: =#REF! ->  | BB885: =#REF! ->  | BE885: =#REF! ->  | BH885: =#REF! ->  | BK885: =#REF! ->  | BN885: =#REF! ->  | BQ885: =#REF! ->  | BT885: =#REF! ->  | BW885: =#REF! ->  | BZ885: =#REF! ->  | CC885: =#REF! ->  | CF885: =#REF! ->  | CI885: =#REF! ->  | CL885: =#REF! ->  | CO885: =#REF! ->  | CR885: =#REF! ->  | CU885: =#REF! ->  | CX885: =#REF! ->  | DA885: =#REF! ->  | DD885: =#REF! -> 

Sheet Peso criterios carga horaria
F4: PESO TODOS
B5: Conocimiento de las Matemáticas | C5: Comp. Esp. 1 | D5: Criterio Evaluación 1.1 | F5: 2
D6: Criterio Evaluación 1.2 | F6: 2
D7: Criterio Evaluación 1.3 | F7: 2
C8: Comp. Esp. 2 | D8: Criterio Evaluación 2.1 | F8: 2
D9: Criterio Evaluación 2.2 | F9: 2
C10: Comp. Esp. 3 | D10: Criterio Evaluación 3.1 | F10: 2
D11: Criterio Evaluación 3.2 | F11: 2
C12: Comp. Esp. 4 | D12: Criterio Evaluación 4.1 | F12: 2
D13: Criterio Evaluación 4.2 | F13: 2
C14: Comp. Esp. 5 | D14: Criterio Evaluación 5.1 | F14: 2
D15: Criterio Evaluación 5.2 | F15: 2
D16: Criterio Evaluación 5.3 | F16: 2
B17: Conocimiento del Lenguaje | C17: Comp. Esp. 1 | D17: Criterio Evaluación 1.1 | F17: 2
D18: Criterio Evaluación 1.2 | F18: 2
C19: Comp. Esp. 2 | D19: Criterio Evaluación 2.1 | F19: 2
D20: Criterio Evaluación 2.2 | F20: 2
D21: Criterio Evaluación 2.3 | F21: 2
D22: Criterio Evaluación 2.4 | F22: 2
C23: Comp. Esp. 3 | D23: Criterio Evaluación 3.1 | F23: 2
D24: Criterio Evaluación 3.2 | F24: 2
C25: Comp. Esp. 4 | D25: Criterio Evaluación 4.1 | F25: 2
D26: Criterio Evaluación 4.2 | F26: 2
D27: Criterio Evaluación 4.3 | F27: 2
C28: Comp. Esp. 5 | D28: Criterio Evaluación 5.1 | F28: 2
D29: Criterio Evaluación 5.2 | F29: 2
C30: Comp. Esp. 6 | D30: Criterio Evaluación 6.1 | F30: 2
D31: Criterio Evaluación 6.7 | F31: 2
B32: Cultura Clásica | C32: Comp. Esp. 1 | D32: Criterio Evaluación 1.1 | F32: 3
D33: Criterio Evaluación 1.2 | F33: 3
D34: Criterio Evaluación 1.3 | F34: 3
C35: Comp. Esp. 2 | D35: Criterio Evaluación 2.1 | F35: 3
D36: Criterio Evaluación 2.2 | F36: 3
D37: Criterio Evaluación 2.3 | F37: 3
D38: Criterio Evaluación 2.4 | F38: 3
C39: Comp. Esp. 3 | D39: Criterio Evaluación 3.1 | F39: 3
D40: Criterio Evaluación 3.2 | F40: 3
D41: Criterio Evaluación 3.3 | F41: 3
D42: Criterio Evaluación 3.4 | F42: 3
C43: Comp. Esp. 4 | D43: Criterio Evaluación 4.1 | F43: 3
D44: Criterio Evaluación 4.2 | F44: 3
D45: Criterio Evaluación 4.3 | F45: 3
C46: Comp. Esp. 5 | D46: Criterio Evaluación 5.1 | F46: 3
D47: Criterio Evaluación 5.2 | F47: 3
D48: Criterio Evaluación 5.3 | F48: 3
D49: Criterio Evaluación 5.4 | F49: 3
B50: Educación Física | C50: Comp. Esp. 1 | D50: Criterio Evaluación 1.1 | F50: 2
D51: Criterio Evaluación 1.2 | F51: 2
D52: Criterio Evaluación 1.3 | F52: 2
D53: Criterio Evaluación 1.4 | F53: 2
D54: Criterio Evaluación 1.5 | F54: 2
D55: Criterio Evaluación 1.6 | F55: 2
D56: Criterio Evaluación 1.7 | F56: 2
D57: Criterio Evaluación 1.8 | F57: 2
D58: Criterio Evaluación 1.9 | F58: 2
C59: Comp. Esp. 2 | D59: Criterio Evaluación 2.1 | F59: 2
D60: Criterio Evaluación 2.2 | F60: 2
D61: Criterio Evaluación 2.3 | F61: 2
D62: Criterio Evaluación 2.4 | F62: 2
C63: Comp. Esp. 3 | D63: Criterio Evaluación 3.1 | F63: 2
D64: Criterio Evaluación 3.2 | F64: 2
D65: Criterio Evaluación 3.3 | F65: 2
C66: Comp. Esp. 4 | D66: Criterio Evaluación 4.1 | F66: 2
D67: Criterio Evaluación 4.2 | F67: 2
D68: Criterio Evaluación 4.3 | F68: 2
C69: Comp. Esp. 5 | D69: Criterio Evaluación 5.1 | F69: 2
D70: Criterio Evaluación 5.2 | F70: 2
B71: Física y Química | C71: Comp. Esp. 1 | D71: Criterio Evaluación 1.1 | F71: 3
D72: Criterio Evaluación 1.2 | F72: 3
D73: Criterio Evaluación 1.3 | F73: 3
C74: Comp. Esp. 2 | D74: Criterio Evaluación 2.1 | F74: 3
D75: Criterio Evaluación 2.2 | F75: 3
D76: Criterio Evaluación 2.3 | F76: 3
C77: Comp. Esp. 3 | D77: Criterio Evaluación 3.1 | F77: 3
D78: Criterio Evaluación 3.2 | F78: 3
D79: Criterio Evaluación 3.3 | F79: 3
C80: Comp. Esp. 4 | D80: Criterio Evaluación 4.1 | F80: 3
D81: Criterio Evaluación 4.2 | F81: 3
C82: Comp. Esp. 5 | D82: Criterio Evaluación 5.1 | F82: 3
D83: Criterio Evaluación 5.2 | F83: 3
C84: Comp. Esp. 6 | D84: Criterio Evaluación 6.1 | F84: 3
D85: Criterio Evaluación 6.2 | F85: 3
B86: Geografía e Historia | C86: Comp. Esp. 1 | D86: Criterio Evaluación 1.1 | F86: 3
D87: Criterio Evaluación 1.2 | F87: 3
C88: Comp. Esp. 2 | D88: Criterio Evaluación 2.1 | F88: 3
D89: Criterio Evaluación 2.2 | F89: 3
D90: Criterio Evaluación 2.3 | F90: 3
C91: Comp. Esp. 3 | D91: Criterio Evaluación 3.1 | F91: 3
D92: Criterio Evaluación 3.2 | F92: 3
C93: Comp. Esp. 4 | D93: Criterio Evaluación 4.1 | F93: 3
D94: Criterio Evaluación 4.2 | F94: 3
C95: Comp. Esp. 5 | D95: Criterio Evaluación 5.1 | F95: 3
C96: Comp. Esp. 6 | D96: Criterio Evaluación 6.1 | F96: 3
D97: Criterio Evaluación 6.2 | F97: 3
C98: Comp. Esp. 7 | D98: Criterio Evaluación 7.1 | F98: 3
D99: Criterio Evaluación 7.2 | F99: 3
D100: Criterio Evaluación 7.3 | F100: 3
C101: Comp. Esp. 8 | D101: Criterio Evaluación 8.1 | F101: 3
C102: Comp. Esp. 9 | D102: Criterio Evaluación 9.1 | F102: 3
D103: Criterio Evaluación 9.2 | F103: 3
B104: Lengua Castellana y Literatura | C104: Comp. Esp. 1 | D104: Criterio Evaluación 1.1 | F104: 4
D105: Criterio Evaluación 1.2 | F105: 4
C106: Comp. Esp. 2 | D106: Criterio Evaluación 2.1 | F106: 4
D107: Criterio Evaluación 2.2 | F107: 4
D108: Criterio Evaluación 2.3 | F108: 4
C109: Comp. Esp. 3 | D109: Criterio Evaluación 3.1 | F109: 4
D110: Criterio Evaluación 3.2 | F110: 4
C111: Comp. Esp. 4 | D111: Criterio Evaluación 4.1 | F111: 4
D112: Criterio Evaluación 4.2 | F112: 4
D113: Criterio Evaluación 4.3 | F113: 4
C114: Comp. Esp. 5 | D114: Criterio Evaluación 5.1 | F114: 4
D115: Criterio Evaluación 5.2 | F115: 4
D116: Criterio Evaluación 5.3 | F116: 4
C117: Comp. Esp. 6 | D117: Criterio Evaluación 6.1 | F117: 4
D118: Criterio Evaluación 6.2 | F118: 4
D119: Criterio Evaluación 6.3 | F119: 4
C120: Comp. Esp. 7 | D120: Criterio Evaluación 7.1 | F120: 4
D121: Criterio Evaluación 7.2 | F121: 4
C122: Comp. Esp. 8 | D122: Criterio Evaluación 8.1 | F122: 4
D123: Criterio Evaluación 8.2 | F123: 4
D124: Criterio Evaluación 8.3 | F124: 4
C125: Comp. Esp. 9 | D125: Criterio Evaluación 9.1 | F125: 4
D126: Criterio Evaluación 9.2 | F126: 4
D127: Criterio Evaluación 9.3 | F127: 4
D128: Criterio Evaluación 9.4 | F128: 4
C129: Comp. Esp. 10 | D129: Criterio Evaluación 10.1 | F129: 4
D130: Criterio Evaluación 10.2 | F130: 4
B131: Lengua Extranjera | C131: Comp. Esp. 1 | D131: Criterio Evaluación 1.1 | F131: 3
D132: Criterio Evaluación 1.2 | F132: 3
C133: Comp. Esp. 2 | D133: Criterio Evaluación 2.1 | F133: 3
D134: Criterio Evaluación 2.2 | F134: 3
D135: Criterio Evaluación 2.3 | F135: 3
D136: Criterio Evaluación 2.4 | F136: 3
D137: Criterio Evaluación 2.5 | F137: 3
C138: Comp. Esp. 3 | D138: Criterio Evaluación 3.1 | F138: 3
D139: Criterio Evaluación 3.2 | F139: 3
D140: Criterio Evaluación 3.3 | F140: 3
D141: Criterio Evaluación 3.4 | F141: 3
C142: Comp. Esp. 4 | D142: Criterio Evaluación 4.1 | F142: 3
D143: Criterio Evaluación 4.2 | F143: 3
D144: Criterio Evaluación 4.3 | F144: 3
C145: Comp. Esp. 5 | D145: Criterio Evaluación 5.1 | F145: 3
D146: Criterio Evaluación 5.2 | F146: 3
D147: Criterio Evaluación 5.3 | F147: 3
C148: Comp. Esp. 6 | D148: Criterio Evaluación 6.1 | F148: 3
D149: Criterio Evaluación 6.2 | F149: 3
D150: Criterio Evaluación 6.3 | F150: 3
B151: Lengua y Cultura China | C151: Comp. Esp. 1 | D151: Criterio Evaluación 1.1 | F151: 2
D152: Criterio Evaluación 1.2 | F152: 2
D153: Criterio Evaluación 1.3 | F153: 2
C154: Comp. Esp. 2 | D154: Criterio Evaluación 2.1 | F154: 2
D155: Criterio Evaluación 2.2 | F155: 2
D156: Criterio Evaluación 2.3 | F156: 2
D157: Criterio Evaluación 2.4 | F157: 2
D158: Criterio Evaluación 2.5 | F158: 2
D159: Criterio Evaluación 2.6 | F159: 2
C160: Comp. Esp. 3 | D160: Criterio Evaluación 3.1 | F160: 2
D161: Criterio Evaluación 3.2 | F161: 2
D162: Criterio Evaluación 3.3 | F162: 2
C163: Comp. Esp. 4 | D163: Criterio Evaluación 4.1 | F163: 2
D164: Criterio Evaluación 4.2 | F164: 2
D165: Criterio Evaluación 4.3 | F165: 2
D166: Criterio Evaluación 4.4 | F166: 2
C167: Comp. Esp. 5 | D167: Criterio Evaluación 5.1 | F167: 2
D168: Criterio Evaluación 5.2 | F168: 2
D169: Criterio Evaluación 5.3 | F169: 2
D170: Criterio Evaluación 5.4 | F170: 2
B171: Matemáticas | C171: Comp. Esp. 1 | D171: Criterio Evaluación 1.1 | F171: 4
D172: Criterio Evaluación 1.2 | F172: 4
D173: Criterio Evaluación 1.3 | F173: 4
C174: Comp. Esp. 2 | D174: Criterio Evaluación 2.1 | F174: 4
D175: Criterio Evaluación 2.2 | F175: 4
C176: Comp. Esp. 3 | D176: Criterio Evaluación 3.1 | F176: 4
D177: Criterio Evaluación 3.2 | F177: 4
D178: Criterio Evaluación 3.3 | F178: 4
C179: Comp. Esp. 4 | D179: Criterio Evaluación 4.1 | F179: 4
D180: Criterio Evaluación 4.2 | F180: 4
C181: Comp. Esp. 5 | D181: Criterio Evaluación 5.1 | F181: 4
D182: Criterio Evaluación 5.2 | F182: 4
C183: Comp. Esp. 6 | D183: Criterio Evaluación 6.1 | F183: 4
D184: Criterio Evaluación 6.2 | F184: 4
D185: Criterio Evaluación 6.3 | F185: 4
C186: Comp. Esp. 7 | D186: Criterio Evaluación 7.1 | F186: 4
D187: Criterio Evaluación 7.2 | F187: 4
C188: Comp. Esp. 8 | D188: Criterio Evaluación 8.1 | F188: 4
D189: Criterio Evaluación 8.2 | F189: 4
C190: Comp. Esp. 9 | D190: Criterio Evaluación 9.1 | F190: 4
D191: Criterio Evaluación 9.2 | F191: 4
C192: Comp. Esp. 10 | D192: Criterio Evaluación 10.1 | F192: 4
D193: Criterio Evaluación 10.2 | F193: 4
B194: Materia No Religión_VE | C194: Comp. Esp. 1 | D194: Criterio Evaluación 1.1 | F194: 2
C195: Comp. Esp. 2 | D195: Criterio Evaluación 2.1 | F195: 2
C196: Comp. Esp. 3 | D196: Criterio Evaluación 3.1 | F196: 2
C197: Comp. Esp. 4 | D197: Criterio Evaluación 4.1 | F197: 2
C198: Comp. Esp. 5 | D198: Criterio Evaluación 5.1 | F198: 2
C199: Comp. Esp. 6 | D199: Criterio Evaluación 6.1 | F199: 2
B200: Música | C200: Comp. Esp. 1 | D200: Criterio Evaluación 1.1 | F200: 3
D201: Criterio Evaluación 1.2 | F201: 3
D202: Criterio Evaluación 1.3 | F202: 3
D203: Criterio Evaluación 1.4 | F203: 3
... 446 more rows

Sheet Peso criterios libre
E4: PESO | F4: PORCENTAJE
A5: MATERIAS DE 2º ESO | B5: Conocimiento de las Matemáticas | C5: Comp. Esp. 1 | D5: Criterio Evaluación 1.1 | E5: 1 | F5: =E5/SUM($E$5:$E$324) -> 0.003125
D6: Criterio Evaluación 1.2 | E6: 1 | F6: 0.003125
D7: Criterio Evaluación 1.3 | E7: 1 | F7: 0.003125
C8: Comp. Esp. 2 | D8: Criterio Evaluación 2.1 | E8: 1 | F8: 0.003125
D9: Criterio Evaluación 2.2 | E9: 1 | F9: 0.003125
C10: Comp. Esp. 3 | D10: Criterio Evaluación 3.1 | E10: 1 | F10: 0.003125
D11: Criterio Evaluación 3.2 | E11: 1 | F11: 0.003125
C12: Comp. Esp. 4 | D12: Criterio Evaluación 4.1 | E12: 1 | F12: 0.003125
D13: Criterio Evaluación 4.2 | E13: 1 | F13: 0.003125
C14: Comp. Esp. 5 | D14: Criterio Evaluación 5.1 | E14: 1 | F14: 0.003125
D15: Criterio Evaluación 5.2 | E15: 1 | F15: 0.003125
D16: Criterio Evaluación 5.3 | E16: 1 | F16: 0.003125
B17: Conocimiento del Lenguaje | C17: Comp. Esp. 1 | D17: Criterio Evaluación 1.1 | E17: 1 | F17: 0.003125
D18: Criterio Evaluación 1.2 | E18: 1 | F18: 0.003125
C19: Comp. Esp. 2 | D19: Criterio Evaluación 2.1 | E19: 1 | F19: 0.003125
D20: Criterio Evaluación 2.2 | E20: 1 | F20: 0.003125
D21: Criterio Evaluación 2.3 | E21: 1 | F21: 0.003125
D22: Criterio Evaluación 2.4 | E22: 1 | F22: 0.003125
C23: Comp. Esp. 3 | D23: Criterio Evaluación 3.1 | E23: 1 | F23: 0.003125
D24: Criterio Evaluación 3.2 | E24: 1 | F24: 0.003125
C25: Comp. Esp. 4 | D25: Criterio Evaluación 4.1 | E25: 1 | F25: 0.003125
D26: Criterio Evaluación 4.2 | E26: 1 | F26: 0.003125
D27: Criterio Evaluación 4.3 | E27: 1 | F27: 0.003125
C28: Comp. Esp. 5 | D28: Criterio Evaluación 5.1 | E28: 1 | F28: 0.003125
D29: Criterio Evaluación 5.2 | E29: 1 | F29: 0.003125
C30: Comp. Esp. 6 | D30: Criterio Evaluación 6.1 | E30: 1 | F30: 0.003125
D31: Criterio Evaluación 6.2 | E31: 1 | F31: 0.003125
B32: Cultura Clásica | C32: Comp. Esp. 1 | D32: Criterio Evaluación 1.1 | E32: 1 | F32: 0.003125
D33: Criterio Evaluación 1.2 | E33: 1 | F33: 0.003125
D34: Criterio Evaluación 1.3 | E34: 1 | F34: 0.003125
C35: Comp. Esp. 2 | D35: Criterio Evaluación 2.1 | E35: 1 | F35: 0.003125
D36: Criterio Evaluación 2.2 | E36: 1 | F36: 0.003125
D37: Criterio Evaluación 2.3 | E37: 1 | F37: 0.003125
D38: Criterio Evaluación 2.4 | E38: 1 | F38: 0.003125
C39: Comp. Esp. 3 | D39: Criterio Evaluación 3.1 | E39: 1 | F39: 0.003125
D40: Criterio Evaluación 3.2 | E40: 1 | F40: 0.003125
D41: Criterio Evaluación 3.3 | E41: 1 | F41: 0.003125
D42: Criterio Evaluación 3.4 | E42: 1 | F42: 0.003125
C43: Comp. Esp. 4 | D43: Criterio Evaluación 4.1 | E43: 1 | F43: 0.003125
D44: Criterio Evaluación 4.2 | E44: 1 | F44: 0.003125
D45: Criterio Evaluación 4.3 | E45: 1 | F45: 0.003125
C46: Comp. Esp. 5 | D46: Criterio Evaluación 5.1 | E46: 1 | F46: 0.003125
D47: Criterio Evaluación 5.2 | E47: 1 | F47: 0.003125
D48: Criterio Evaluación 5.3 | E48: 1 | F48: 0.003125
D49: Criterio Evaluación 5.4 | E49: 1 | F49: 0.003125
B50: Educación Física | C50: Comp. Esp. 1 | D50: Criterio Evaluación 1.1 | E50: 1 | F50: 0.003125
D51: Criterio Evaluación 1.2 | E51: 1 | F51: 0.003125
D52: Criterio Evaluación 1.3 | E52: 1 | F52: 0.003125
D53: Criterio Evaluación 1.4 | E53: 1 | F53: 0.003125
D54: Criterio Evaluación 1.5 | E54: 1 | F54: 0.003125
D55: Criterio Evaluación 1.6 | E55: 1 | F55: 0.003125
D56: Criterio Evaluación 1.7 | E56: 1 | F56: 0.003125
D57: Criterio Evaluación 1.8 | E57: 1 | F57: 0.003125
D58: Criterio Evaluación 1.9 | E58: 1 | F58: 0.003125
C59: Comp. Esp. 2 | D59: Criterio Evaluación 2.1 | E59: 1 | F59: 0.003125
D60: Criterio Evaluación 2.2 | E60: 1 | F60: 0.003125
D61: Criterio Evaluación 2.3 | E61: 1 | F61: 0.003125
D62: Criterio Evaluación 2.4 | E62: 1 | F62: 0.003125
C63: Comp. Esp. 3 | D63: Criterio Evaluación 3.1 | E63: 1 | F63: 0.003125
D64: Criterio Evaluación 3.2 | E64: 1 | F64: 0.003125
D65: Criterio Evaluación 3.3 | E65: 1 | F65: 0.003125
C66: Comp. Esp. 4 | D66: Criterio Evaluación 4.1 | E66: 1 | F66: 0.003125
D67: Criterio Evaluación 4.2 | E67: 1 | F67: 0.003125
D68: Criterio Evaluación 4.3 | E68: 1 | F68: 0.003125
C69: Comp. Esp. 5 | D69: Criterio Evaluación 5.1 | E69: 1 | F69: =E69/SUM($E$5:$E$324) -> 0.003125
D70: Criterio Evaluación 5.2 | E70: 1 | F70: 0.003125
B71: Física y Química | C71: Comp. Esp. 1 | D71: Criterio Evaluación 1.1 | E71: 1 | F71: 0.003125
D72: Criterio Evaluación 1.2 | E72: 1 | F72: 0.003125
D73: Criterio Evaluación 1.3 | E73: 1 | F73: 0.003125
C74: Comp. Esp. 2 | D74: Criterio Evaluación 2.1 | E74: 1 | F74: 0.003125
D75: Criterio Evaluación 2.2 | E75: 1 | F75: 0.003125
D76: Criterio Evaluación 2.3 | E76: 1 | F76: 0.003125
C77: Comp. Esp. 3 | D77: Criterio Evaluación 3.1 | E77: 1 | F77: 0.003125
D78: Criterio Evaluación 3.2 | E78: 1 | F78: 0.003125
D79: Criterio Evaluación 3.3 | E79: 1 | F79: 0.003125
C80: Comp. Esp. 4 | D80: Criterio Evaluación 4.1 | E80: 1 | F80: 0.003125
D81: Criterio Evaluación 4.2 | E81: 1 | F81: 0.003125
C82: Comp. Esp. 5 | D82: Criterio Evaluación 5.1 | E82: 1 | F82: 0.003125
D83: Criterio Evaluación 5.2 | E83: 1 | F83: 0.003125
C84: Comp. Esp. 6 | D84: Criterio Evaluación 6.1 | E84: 1 | F84: 0.003125
D85: Criterio Evaluación 6.2 | E85: 1 | F85: 0.003125
B86: Geografía e Historia | C86: Comp. Esp. 1 | D86: Criterio Evaluación 1.1 | E86: 1 | F86: 0.003125
D87: Criterio Evaluación 1.2 | E87: 1 | F87: 0.003125
C88: Comp. Esp. 2 | D88: Criterio Evaluación 2.1 | E88: 1 | F88: 0.003125
D89: Criterio Evaluación 2.2 | E89: 1 | F89: 0.003125
D90: Criterio Evaluación 2.3 | E90: 1 | F90: 0.003125
C91: Comp. Esp. 3 | D91: Criterio Evaluación 3.1 | E91: 1 | F91: 0.003125
D92: Criterio Evaluación 3.2 | E92: 1 | F92: 0.003125
C93: Comp. Esp. 4 | D93: Criterio Evaluación 4.1 | E93: 1 | F93: 0.003125
D94: Criterio Evaluación 4.2 | E94: 1 | F94: 0.003125
C95: Comp. Esp. 5 | D95: Criterio Evaluación 5.1 | E95: 1 | F95: 0.003125
C96: Comp. Esp. 6 | D96: Criterio Evaluación 6.1 | E96: 1 | F96: 0.003125
D97: Criterio Evaluación 6.2 | E97: 1 | F97: 0.003125
C98: Comp. Esp. 7 | D98: Criterio Evaluación 7.1 | E98: 1 | F98: 0.003125
D99: Criterio Evaluación 7.2 | E99: 1 | F99: 0.003125
D100: Criterio Evaluación 7.3 | E100: 1 | F100: 0.003125
C101: Comp. Esp. 8 | D101: Criterio Evaluación 8.1 | E101: 1 | F101: 0.003125
C102: Comp. Esp. 9 | D102: Criterio Evaluación 9.1 | E102: 1 | F102: 0.003125
D103: Criterio Evaluación 9.2 | E103: 1 | F103: 0.003125
B104: Lengua Castellana y Literatura | C104: Comp. Esp. 1 | D104: Criterio Evaluación 1.1 | E104: 1 | F104: 0.003125
D105: Criterio Evaluación 1.2 | E105: 1 | F105: 0.003125
C106: Comp. Esp. 2 | D106: Criterio Evaluación 2.1 | E106: 1 | F106: 0.003125
D107: Criterio Evaluación 2.2 | E107: 1 | F107: 0.003125
D108: Criterio Evaluación 2.3 | E108: 1 | F108: 0.003125
C109: Comp. Esp. 3 | D109: Criterio Evaluación 3.1 | E109: 1 | F109: 0.003125
D110: Criterio Evaluación 3.2 | E110: 1 | F110: 0.003125
C111: Comp. Esp. 4 | D111: Criterio Evaluación 4.1 | E111: 1 | F111: 0.003125
D112: Criterio Evaluación 4.2 | E112: 1 | F112: 0.003125
D113: Criterio Evaluación 4.3 | E113: 1 | F113: 0.003125
C114: Comp. Esp. 5 | D114: Criterio Evaluación 5.1 | E114: 1 | F114: 0.003125
D115: Criterio Evaluación 5.2 | E115: 1 | F115: 0.003125
D116: Criterio Evaluación 5.3 | E116: 1 | F116: 0.003125
C117: Comp. Esp. 6 | D117: Criterio Evaluación 6.1 | E117: 1 | F117: 0.003125
D118: Criterio Evaluación 6.2 | E118: 1 | F118: 0.003125
D119: Criterio Evaluación 6.3 | E119: 1 | F119: 0.003125
C120: Comp. Esp. 7 | D120: Criterio Evaluación 7.1 | E120: 1 | F120: 0.003125
D121: Criterio Evaluación 7.2 | E121: 1 | F121: 0.003125
C122: Comp. Esp. 8 | D122: Criterio Evaluación 8.1 | E122: 1 | F122: 0.003125
D123: Criterio Evaluación 8.2 | E123: 1 | F123: 0.003125
D124: Criterio Evaluación 8.3 | E124: 1 | F124: 0.003125
C125: Comp. Esp. 9 | D125: Criterio Evaluación 9.1 | E125: 1 | F125: 0.003125
D126: Criterio Evaluación 9.2 | E126: 1 | F126: 0.003125
D127: Criterio Evaluación 9.3 | E127: 1 | F127: 0.003125
D128: Criterio Evaluación 9.4 | E128: 1 | F128: 0.003125
C129: Comp. Esp. 10 | D129: Criterio Evaluación 10.1 | E129: 1 | F129: 0.003125
D130: Criterio Evaluación 10.2 | E130: 1 | F130: 0.003125
B131: Lengua Extranjera | C131: Comp. Esp. 1 | D131: Criterio Evaluación 1.1 | E131: 1 | F131: 0.003125
D132: Criterio Evaluación 1.2 | E132: 1 | F132: 0.003125
C133: Comp. Esp. 2 | D133: Criterio Evaluación 2.1 | E133: 1 | F133: =E133/SUM($E$5:$E$324) -> 0.003125
D134: Criterio Evaluación 2.2 | E134: 1 | F134: 0.003125
D135: Criterio Evaluación 2.3 | E135: 1 | F135: 0.003125
D136: Criterio Evaluación 2.4 | E136: 1 | F136: 0.003125
D137: Criterio Evaluación 2.5 | E137: 1 | F137: 0.003125
C138: Comp. Esp. 3 | D138: Criterio Evaluación 3.1 | E138: 1 | F138: 0.003125
D139: Criterio Evaluación 3.2 | E139: 1 | F139: 0.003125
D140: Criterio Evaluación 3.3 | E140: 1 | F140: 0.003125
D141: Criterio Evaluación 3.4 | E141: 1 | F141: 0.003125
C142: Comp. Esp. 4 | D142: Criterio Evaluación 4.1 | E142: 1 | F142: 0.003125
D143: Criterio Evaluación 4.2 | E143: 1 | F143: 0.003125
D144: Criterio Evaluación 4.3 | E144: 1 | F144: 0.003125
C145: Comp. Esp. 5 | D145: Criterio Evaluación 5.1 | E145: 1 | F145: 0.003125
D146: Criterio Evaluación 5.2 | E146: 1 | F146: 0.003125
D147: Criterio Evaluación 5.3 | E147: 1 | F147: 0.003125
C148: Comp. Esp. 6 | D148: Criterio Evaluación 6.1 | E148: 1 | F148: 0.003125
D149: Criterio Evaluación 6.2 | E149: 1 | F149: 0.003125
D150: Criterio Evaluación 6.3 | E150: 1 | F150: 0.003125
B151: Lengua y Cultura China | C151: Comp. Esp. 1 | D151: Criterio Evaluación 1.1 | E151: 1 | F151: 0.003125
D152: Criterio Evaluación 1.2 | E152: 1 | F152: 0.003125
D153: Criterio Evaluación 1.3 | E153: 1 | F153: 0.003125
C154: Comp. Esp. 2 | D154: Criterio Evaluación 2.1 | E154: 1 | F154: 0.003125
D155: Criterio Evaluación 2.2 | E155: 1 | F155: 0.003125
D156: Criterio Evaluación 2.3 | E156: 1 | F156: 0.003125
D157: Criterio Evaluación 2.4 | E157: 1 | F157: 0.003125
D158: Criterio Evaluación 2.5 | E158: 1 | F158: 0.003125
D159: Criterio Evaluación 2.6 | E159: 1 | F159: 0.003125
C160: Comp. Esp. 3 | D160: Criterio Evaluación 3.1 | E160: 1 | F160: 0.003125
D161: Criterio Evaluación 3.2 | E161: 1 | F161: 0.003125
D162: Criterio Evaluación 3.3 | E162: 1 | F162: 0.003125
C163: Comp. Esp. 4 | D163: Criterio Evaluación 4.1 | E163: 1 | F163: 0.003125
D164: Criterio Evaluación 4.2 | E164: 1 | F164: 0.003125
D165: Criterio Evaluación 4.3 | E165: 1 | F165: 0.003125
D166: Criterio Evaluación 4.4 | E166: 1 | F166: 0.003125
C167: Comp. Esp. 5 | D167: Criterio Evaluación 5.1 | E167: 1 | F167: 0.003125
D168: Criterio Evaluación 5.2 | E168: 1 | F168: 0.003125
D169: Criterio Evaluación 5.3 | E169: 1 | F169: 0.003125
D170: Criterio Evaluación 5.4 | E170: 1 | F170: 0.003125
B171: Matemáticas | C171: Comp. Esp. 1 | D171: Criterio Evaluación 1.1 | E171: 1 | F171: 0.003125
D172: Criterio Evaluación 1.2 | E172: 1 | F172: 0.003125
D173: Criterio Evaluación 1.3 | E173: 1 | F173: 0.003125
C174: Comp. Esp. 2 | D174: Criterio Evaluación 2.1 | E174: 1 | F174: 0.003125
D175: Criterio Evaluación 2.2 | E175: 1 | F175: 0.003125
C176: Comp. Esp. 3 | D176: Criterio Evaluación 3.1 | E176: 1 | F176: 0.003125
D177: Criterio Evaluación 3.2 | E177: 1 | F177: 0.003125
D178: Criterio Evaluación 3.3 | E178: 1 | F178: 0.003125
C179: Comp. Esp. 4 | D179: Criterio Evaluación 4.1 | E179: 1 | F179: 0.003125
D180: Criterio Evaluación 4.2 | E180: 1 | F180: 0.003125
C181: Comp. Esp. 5 | D181: Criterio Evaluación 5.1 | E181: 1 | F181: 0.003125
D182: Criterio Evaluación 5.2 | E182: 1 | F182: 0.003125
C183: Comp. Esp. 6 | D183: Criterio Evaluación 6.1 | E183: 1 | F183: 0.003125
D184: Criterio Evaluación 6.2 | E184: 1 | F184: 0.003125
D185: Criterio Evaluación 6.3 | E185: 1 | F185: 0.003125
C186: Comp. Esp. 7 | D186: Criterio Evaluación 7.1 | E186: 1 | F186: 0.003125
D187: Criterio Evaluación 7.2 | E187: 1 | F187: 0.003125
C188: Comp. Esp. 8 | D188: Criterio Evaluación 8.1 | E188: 1 | F188: 0.003125
D189: Criterio Evaluación 8.2 | E189: 1 | F189: 0.003125
C190: Comp. Esp. 9 | D190: Criterio Evaluación 9.1 | E190: 1 | F190: 0.003125
D191: Criterio Evaluación 9.2 | E191: 1 | F191: 0.003125
C192: Comp. Esp. 10 | D192: Criterio Evaluación 10.1 | E192: 1 | F192: 0.003125
D193: Criterio Evaluación 10.2 | E193: 1 | F193: 0.003125
B194: Materia No Religión | C194: Comp. Esp. 1 | D194: Criterio Evaluación 1.1 | E194: 1 | F194: 0.003125
C195: Comp. Esp. 2 | D195: Criterio Evaluación 2.1 | E195: 1 | F195: 0.003125
C196: Comp. Esp. 3 | D196: Criterio Evaluación 3.1 | E196: 1 | F196: 0.003125
C197: Comp. Esp. 4 | D197: Criterio Evaluación 4.1 | E197: 1 | F197: =E197/SUM($E$5:$E$324) -> 0.003125
C198: Comp. Esp. 5 | D198: Criterio Evaluación 5.1 | E198: 1 | F198: 0.003125
C199: Comp. Esp. 6 | D199: Criterio Evaluación 6.1 | E199: 1 | F199: 0.003125
B200: Música | C200: Comp. Esp. 1 | D200: Criterio Evaluación 1.1 | E200: 1 | F200: 0.003125
D201: Criterio Evaluación 1.2 | E201: 1 | F201: 0.003125
D202: Criterio Evaluación 1.3 | E202: 1 | F202: 0.003125
D203: Criterio Evaluación 1.4 | E203: 1 | F203: 0.003125
... 447 more rows

Sheet Peso descrip. libre
E2: Competencia en Comunicación Lingüística | Y2: Competencia Plurilingüe | AK2: Competencia Matemática y Competencia en Ciencia, Tecnología e Ingeniería | BE2: Competencia Digital | BY2: Competencia Personal, Social y de Aprender a Aprender | CS2: Competencia Ciudadana | DI2: Competencia Emprendedora | DU2: Competencia en Conciencia y Expresión Culturales
E3: CCL 1 | I3: CCL 2 | M3: CCL 3 | Q3: CCL 4 | U3: CCL 5 | Y3: CP 1 | AC3: CP 2 | AG3: CP 3 | AK3: STEM 1 | AO3: STEM 2 | AS3: STEM 3 | AW3: STEM 4 | BA3: STEM 5 | BE3: CD 1 | BI3: CD 2 | BM3: CD 3 | BQ3: CD 4 | BU3: CD 5 | BY3: CPSAA 1 | CC3: CPSAA 2 | CG3: CPSAA 3 | CK3: CPSAA 4 | CO3: CPSAA 5 | CS3: CC 1 | CW3: CC 2 | DA3: CC 3 | DE3: CC 4 | DI3: CE 1 | DM3: CE 2 | DQ3: CE 3 | DU3: CCEC 1 | DY3: CCEC 2 | EC3: CCEC 3 | EG3: CCEC 4
B4: NO | C4: PESO DESCRIPTORES | E4: 1 | I4: 1 | M4: 1 | Q4: 1 | U4: 1 | Y4: 1 | AC4: 1 | AG4: 1 | AK4: 1 | AO4: 1 | AS4: 1 | AW4: 1 | BA4: 1 | BE4: 1 | BI4: 1 | BM4: 1 | BQ4: 1 | BU4: 1 | BY4: 1 | CC4: 1 | CG4: 1 | CK4: 1 | CO4: 1 | CS4: 1 | CW4: 1 | DA4: 1 | DE4: 1 | DI4: 1 | DM4: 1 | DQ4: 1 | DU4: 1 | DY4: 1 | EC4: 1 | EG4: 1
C5: PORCENTAJES | E5: =E4/SUM($E4:$U4) -> 0.2 | I5: =I4/SUM($E4:$U4) -> 0.2 | M5: =M4/SUM($E4:$U4) -> 0.2 | Q5: =Q4/SUM($E4:$U4) -> 0.2 | U5: =U4/SUM($E4:$U4) -> 0.2 | Y5: =Y4/SUM($Y4:$AG4) -> 0.3333333333 | AC5: =AC4/SUM($Y4:$AG4) -> 0.3333333333 | AG5: 0.3333333333 | AK5: =AK4/SUM($AK4:$BA4) -> 0.2 | AO5: =AO4/SUM($AK4:$BA4) -> 0.2 | AS5: 0.2 | AW5: 0.2 | BA5: 0.2 | BE5: =BE4/SUM($BE4:$BU4) -> 0.2 | BI5: =BI4/SUM($BE4:$BU4) -> 0.2 | BM5: 0.2 | BQ5: 0.2 | BU5: 0.2 | BY5: =BY4/SUM($BY4:$CO4) -> 0.2 | CC5: =CC4/SUM($BY4:$CO4) -> 0.2 | CG5: 0.2 | CK5: 0.2 | CO5: 0.2 | CS5: =CS4/SUM($CS4:$DE4) -> 0.25 | CW5: =CW4/SUM($CS4:$DE4) -> 0.25 | DA5: 0.25 | DE5: 0.25 | DI5: =DI4/SUM($DI4:$DQ4) -> 0.3333333333 | DM5: =DM4/SUM($DI4:$DQ4) -> 0.3333333333 | DQ5: 0.3333333333 | DU5: =DU4/SUM($DU4:$EG4) -> 0.25 | DY5: =DY4/SUM($DU4:$EG4) -> 0.25 | EC5: 0.25 | EG5: 0.25

Sheet Peso descrip. vinculaciones
E2: Competencia en Comunicación Lingüística | Y2: Competencia Plurilingüe | AK2: Competencia Matemática y Competencia en Ciencia, Tecnología e Ingeniería | BE2: Competencia Digital | BY2: Competencia Personal, Social y de Aprender a Aprender | CS2: Competencia Ciudadana | DI2: Competencia Emprendedora | DU2: Competencia en Conciencia y Expresión Culturales
E3: CCL 1 | I3: CCL 2 | M3: CCL 3 | Q3: CCL 4 | U3: CCL 5 | Y3: CP 1 | AC3: CP 2 | AG3: CP 3 | AK3: STEM 1 | AO3: STEM 2 | AS3: STEM 3 | AW3: STEM 4 | BA3: STEM 5 | BE3: CD 1 | BI3: CD 2 | BM3: CD 3 | BQ3: CD 4 | BU3: CD 5 | BY3: CPSAA 1 | CC3: CPSAA 2 | CG3: CPSAA 3 | CK3: CPSAA 4 | CO3: CPSAA 5 | CS3: CC 1 | CW3: CC 2 | DA3: CC 3 | DE3: CC 4 | DI3: CE 1 | DM3: CE 2 | DQ3: CE 3 | DU3: CCEC 1 | DY3: CCEC 2 | EC3: CCEC 3 | EG3: CCEC 4
B4: NO | C4: PESO DESCRIPTORES | E4: 0.3645833333 | I4: 0.2118055556 | M4: 0.1736111111 | Q4: 0.07638888889 | U4: 0.1736111111 | Y4: 0.2928571429 | AC4: 0.4285714286 | AG4: 0.2785714286 | AK4: 0.4210526316 | AO4: 0.1695906433 | AS4: 0.1111111111 | AW4: 0.1578947368 | BA4: 0.1403508772 | BE4: 0.2487046632 | BI4: 0.3419689119 | BM4: 0.3212435233 | BQ4: 0.0829015544 | BU4: 0.00518134715 | BY4: 0.2398190045 | CC4: 0.05429864253 | CG4: 0.257918552 | CK4: 0.2036199095 | CO4: 0.2443438914 | CS4: 0.2875 | CW4: 0.2375 | DA4: 0.35625 | DE4: 0.11875 | DI4: 0.3448275862 | DM4: 0.1264367816 | DQ4: 0.5287356322 | DU4: 0.3251533742 | DY4: 0.3006134969 | EC4: 0.245398773 | EG4: 0.1288343558
C5: PORCENTAJES | E5: =E4/SUM($E4:$U4) -> 0.3645833333 | I5: =I4/SUM($E4:$U4) -> 0.2118055556 | M5: =M4/SUM($E4:$U4) -> 0.1736111111 | Q5: =Q4/SUM($E4:$U4) -> 0.07638888889 | U5: =U4/SUM($E4:$U4) -> 0.1736111111 | Y5: =Y4/SUM($Y4:$AG4) -> 0.2928571429 | AC5: =AC4/SUM($Y4:$AG4) -> 0.4285714286 | AG5: 0.2785714286 | AK5: =AK4/SUM($AK4:$BA4) -> 0.4210526316 | AO5: =AO4/SUM($AK4:$BA4) -> 0.1695906433 | AS5: 0.1111111111 | AW5: 0.1578947368 | BA5: 0.1403508772 | BE5: =BE4/SUM($BE4:$BU4) -> 0.2487046632 | BI5: =BI4/SUM($BE4:$BU4) -> 0.3419689119 | BM5: 0.3212435233 | BQ5: 0.0829015544 | BU5: 0.00518134715 | BY5: =BY4/SUM($BY4:$CO4) -> 0.2398190045 | CC5: =CC4/SUM($BY4:$CO4) -> 0.05429864253 | CG5: 0.257918552 | CK5: 0.2036199095 | CO5: 0.2443438914 | CS5: =CS4/SUM($CS4:$DE4) -> 0.2875 | CW5: =CW4/SUM($CS4:$DE4) -> 0.2375 | DA5: 0.35625 | DE5: 0.11875 | DI5: =DI4/SUM($DI4:$DQ4) -> 0.3448275862 | DM5: =DM4/SUM($DI4:$DQ4) -> 0.1264367816 | DQ5: 0.5287356322 | DU5: =DU4/SUM($DU4:$EG4) -> 0.3251533742 | DY5: =DY4/SUM($DU4:$EG4) -> 0.3006134969 | EC5: 0.245398773 | EG5: 0.1288343558

Sheet Alumnos
A1: FALSE
C3: LISTADO DE ALUMNOS | F3: MATERAS DE 2º ESO | P3: MATERIAS PENDIENTES DE 1ºESO
C4: Informe | D4: Grupo 2º _____ | E4: ID Matrícula | F4: CMAT | G4: CLEN | H4: LLCh | I4: 2ª LEX | N4: No Rel | O4: REL | P4: ByG | Q4: EF | R4: EPVA | S4: GeH | T4: LCyL | U4: LEx | V4: MAT | W4: TyD | X4: CMAT | Y4: CLEN | Z4: LLCh | AA4: 2ª LEX | AF4: No Rel | AG4: REL | AI4: TEAMS / Onedrive
I5: ALE | J5: FRA | K5: ING | L5: ITA | M5: POR | AA5: ALE | AB5: FRA | AC5: ING | AD5: ITA | AE5: POR
D6: Nombre_Alumno_1 | E6: 000000000_1 | F6: x | N6: x | P6: x | X6: x | AF6: x
C7: 2 | D7: Nombre_Alumno_2 | E7: 000000000_2 | G7: x | O7: x | Q7: x | Y7: x | AG7: x
C8: 3 | D8: Nombre_Alumno_3 | E8: 000000000_3 | H8: x | N8: x | R8: x | Z8: x | AF8: x
C9: 4 | D9: Nombre_Alumno_4 | E9: 000000000_4 | I9: x | O9: x | S9: x | AA9: x | AG9: x
D10: Nombre_Alumno_5 | E10: 000000000_5 | J10: x | N10: x | T10: x | AB10: x | AF10: x
C11: 6 | D11: Nombre_Alumno_6 | E11: 000000000_6 | K11: x | O11: x | U11: x | AC11: x | AG11: x
C12: 7 | D12: Nombre_Alumno_7 | E12: 000000000_7 | L12: x | N12: x | V12: x | AD12: x | AF12: x
C13: 8 | D13: Nombre_Alumno_8 | E13: 000000000_8 | M13: x | O13: x | W13: x | AE13: x | AG13: x
C14: 9
C15: 10
C16: 11
C17: 12
C18: 13
C19: 14
C20: 15
C21: 16
C22: 17
C23: 18
C24: 19
C25: 20
C26: 21
C27: 22
C28: 23
C29: 24
C30: 25
C31: 26
C32: 27
C33: 28
C34: 29
C35: 30
C36: 31
C37: 32
C38: 33
C39: 34
C40: 35
D41: TOTAL MATRICULADOS | F41: =COUNTA(F6:F40) -> 1 | G41: 1 | H41: 1 | I41: 1 | J41: 1 | K41: 1 | L41: 1 | M41: 1 | N41: 4 | O41: 4 | P41: 1 | Q41: 1 | R41: 1 | S41: 1 | T41: 1 | U41: 1 | V41: 1 | W41: 1 | X41: 1 | Y41: 1 | Z41: 1 | AA41: 1 | AB41: 1 | AC41: 1 | AD41: 1 | AE41: 1 | AF41: 4 | AG41: 4

Sheet Redondeo
AO2: EXPORTACIÓN NOTAS COMPETENCIAS A STILUS
C3: CALIFICACIONES DE MATERIAS | AO3: 1º_Introduce para cada materia las centésimas a partir de las que se realizará un redondeo al alza (valor entre 1 y 100):
C4: CENTÉSIMAS REONDEO
C5: 90 | D5: 90 | E5: 90 | F5: 90 | G5: 90 | H5: 90 | I5: 90 | J5: 90 | K5: 90 | L5: 90 | M5: 90 | N5: 90 | O5: 90 | P5: 90 | Q5: 90 | R5: 90 | S5: 90 | T5: 90 | U5: 90 | V5: 90 | W5: 90 | X5: 90 | Y5: 90 | Z5: 90 | AA5: 90 | AB5: 90 | AC5: 90 | AD5: 90 | AE5: 90 | AF5: 90 | AG5: 90 | AH5: 90 | AI5: 90 | AJ5: 90 | AK5: 90 | AL5: 90 | AO5: Ejemplo: si se marca 85, desde el 4,85 (inclusive) se redondeará a 5, Si se marca 100, el 4,99 e inferiores se redondearán a 4
C6: 2º ESO | U6: 1º ESO PENDIENTES
B7: =TRANSPOSE('Calificación materias'!B5:AK41) -> 0 | C7: Educación Física | D7: Física y Química | E7: Geografía e Historia | F7: Lengua Castellana y L. | G7: Lengua Extranjera | H7: Matemáticas | I7: Música | J7: Cultura Clásica | K7: CMAT | L7: CLEN | M7: Lengua y Cultura China | N7: 2ª Lengua Extranjera_ALE | O7: 2ª Lengua Extranjera_FRA | P7: 2ª Lengua Extranjera_ING | Q7: 2ª Lengua Extranjera_ITA | R7: 2ª Lengua Extranjera_POR | S7: Materia no religión | T7: Religión | U7: Biología y Geología | V7: Educación Física | W7: EPVA | X7: Geografía e Historia | Y7: Lengua Castellana y L. | Z7: Lengua Extranjera | AA7: Matemáticas | AB7: Tecnología y Dig. | AC7: CMAT | AD7: CLEN | AE7: Lengua y Cultura China | AF7: 2ª Lengua Extranjera_ALE | AG7: 2ª Lengua Extranjera_FRA | AH7: 2ª Lengua Extranjera_ING | AI7: 2ª Lengua Extranjera_ITA | AJ7: 2ª Lengua Extranjera_POR | AK7: Materia no religión | AL7: Religión | AO7: 2º_Pulsa el siguiente botón:
B8: Nombre_Alumno_1
B9: Nombre_Alumno_2
B10: Nombre_Alumno_3
B11: Nombre_Alumno_4
B12: Nombre_Alumno_5
B13: Nombre_Alumno_6
B14: Nombre_Alumno_7
B15: Nombre_Alumno_8

Sheet Materias
C1: MATERIAS DE 2º ESO
C13: MATERIAS PENDIENTES DE 1º ESO

Sheet 2LEX
C2: MATERIAS DE 2º ESO

Sheet 2LEX (1)
C2: MATERIAS PENDIENTES DE 1º ESO

Sheet Calif. de crit.
E2: =IF(Alumnos!D6="","",Alumnos!D6) -> Nombre_Alumno_1 | F2: =IF(Alumnos!D7="","",Alumnos!D7) -> Nombre_Alumno_2 | G2: =IF(Alumnos!D8="","",Alumnos!D8) -> Nombre_Alumno_3 | H2: =IF(Alumnos!D9="","",Alumnos!D9) -> Nombre_Alumno_4 | I2: =IF(Alumnos!D10="","",Alumnos!D10) -> Nombre_Alumno_5 | J2: =IF(Alumnos!D11="","",Alumnos!D11) -> Nombre_Alumno_6 | K2: =IF(Alumnos!D12="","",Alumnos!D12) -> Nombre_Alumno_7 | L2: =IF(Alumnos!D13="","",Alumnos!D13) -> Nombre_Alumno_8 | M2: =IF(Alumnos!D14="","",Alumnos!D14) ->  | N2: =IF(Alumnos!D15="","",Alumnos!D15) ->  | O2: =IF(Alumnos!D16="","",Alumnos!D16) ->  | P2: =IF(Alumnos!D17="","",Alumnos!D17) ->  | Q2: =IF(Alumnos!D18="","",Alumnos!D18) ->  | R2: =IF(Alumnos!D19="","",Alumnos!D19) ->  | S2: =IF(Alumnos!D20="","",Alumnos!D20) ->  | T2: =IF(Alumnos!D21="","",Alumnos!D21) ->  | U2: =IF(Alumnos!D22="","",Alumnos!D22) ->  | V2: =IF(Alumnos!D23="","",Alumnos!D23) ->  | W2: =IF(Alumnos!D24="","",Alumnos!D24) ->  | X2: =IF(Alumnos!D25="","",Alumnos!D25) ->  | Y2: =IF(Alumnos!D26="","",Alumnos!D26) ->  | Z2: =IF(Alumnos!D27="","",Alumnos!D27) ->  | AA2: =IF(Alumnos!D28="","",Alumnos!D28) ->  | AB2: =IF(Alumnos!D29="","",Alumnos!D29) ->  | AC2: =IF(Alumnos!D30="","",Alumnos!D30) ->  | AD2: =IF(Alumnos!D31="","",Alumnos!D31) ->  | AE2: =IF(Alumnos!D32="","",Alumnos!D32) ->  | AF2: =IF(Alumnos!D33="","",Alumnos!D33) ->  | AG2: =IF(Alumnos!D34="","",Alumnos!D34) ->  | AH2: =IF(Alumnos!D35="","",Alumnos!D35) ->  | AI2: =IF(Alumnos!D36="","",Alumnos!D36) ->  | AJ2: =IF(Alumnos!D37="","",Alumnos!D37) ->  | AK2: =IF(Alumnos!D38="","",Alumnos!D38) ->  | AL2: =IF(Alumnos!D39="","",Alumnos!D39) ->  | AM2: =IF(Alumnos!D40="","",Alumnos!D40) -> 
B3: Conocimiento de las Matemáticas | C3: Comp. Esp. 1 | D3: Criterio Evaluación 1.1 | E3: =IF('Conocimiento Matematicas'!H4="","",'Conocimiento Matematicas'!H4) ->  | F3: =IF('Conocimiento Matematicas'!I4="","",'Conocimiento Matematicas'!I4) ->  | G3: =IF('Conocimiento Matematicas'!J4="","",'Conocimiento Matematicas'!J4) ->  | H3: =IF('Conocimiento Matematicas'!K4="","",'Conocimiento Matematicas'!K4) ->  | I3: =IF('Conocimiento Matematicas'!L4="","",'Conocimiento Matematicas'!L4) ->  | J3: =IF('Conocimiento Matematicas'!M4="","",'Conocimiento Matematicas'!M4) ->  | K3: =IF('Conocimiento Matematicas'!N4="","",'Conocimiento Matematicas'!N4) ->  | L3: =IF('Conocimiento Matematicas'!O4="","",'Conocimiento Matematicas'!O4) ->  | M3: =IF('Conocimiento Matematicas'!P4="","",'Conocimiento Matematicas'!P4) ->  | N3: =IF('Conocimiento Matematicas'!Q4="","",'Conocimiento Matematicas'!Q4) ->  | O3: =IF('Conocimiento Matematicas'!R4="","",'Conocimiento Matematicas'!R4) ->  | P3: =IF('Conocimiento Matematicas'!S4="","",'Conocimiento Matematicas'!S4) ->  | Q3: =IF('Conocimiento Matematicas'!T4="","",'Conocimiento Matematicas'!T4) ->  | R3: =IF('Conocimiento Matematicas'!U4="","",'Conocimiento Matematicas'!U4) ->  | S3: =IF('Conocimiento Matematicas'!V4="","",'Conocimiento Matematicas'!V4) ->  | T3: =IF('Conocimiento Matematicas'!W4="","",'Conocimiento Matematicas'!W4) ->  | U3: =IF('Conocimiento Matematicas'!X4="","",'Conocimiento Matematicas'!X4) ->  | V3: =IF('Conocimiento Matematicas'!Y4="","",'Conocimiento Matematicas'!Y4) ->  | W3: =IF('Conocimiento Matematicas'!Z4="","",'Conocimiento Matematicas'!Z4) ->  | X3: =IF('Conocimiento Matematicas'!AA4="","",'Conocimiento Matematicas'!AA4) ->  | Y3: =IF('Conocimiento Matematicas'!AB4="","",'Conocimiento Matematicas'!AB4) ->  | Z3: =IF('Conocimiento Matematicas'!AC4="","",'Conocimiento Matematicas'!AC4) ->  | AA3: =IF('Conocimiento Matematicas'!AD4="","",'Conocimiento Matematicas'!AD4) ->  | AB3: =IF('Conocimiento Matematicas'!AE4="","",'Conocimiento Matematicas'!AE4) ->  | AC3: =IF('Conocimiento Matematicas'!AF4="","",'Conocimiento Matematicas'!AF4) ->  | AD3: =IF('Conocimiento Matematicas'!AG4="","",'Conocimiento Matematicas'!AG4) ->  | AE3: =IF('Conocimiento Matematicas'!AH4="","",'Conocimiento Matematicas'!AH4) ->  | AF3: =IF('Conocimiento Matematicas'!AI4="","",'Conocimiento Matematicas'!AI4) ->  | AG3: =IF('Conocimiento Matematicas'!AJ4="","",'Conocimiento Matematicas'!AJ4) ->  | AH3: =IF('Conocimiento Matematicas'!AK4="","",'Conocimiento Matematicas'!AK4) ->  | AI3: =IF('Conocimiento Matematicas'!AL4="","",'Conocimiento Matematicas'!AL4) ->  | AJ3: =IF('Conocimiento Matematicas'!AM4="","",'Conocimiento Matematicas'!AM4) ->  | AK3: =IF('Conocimiento Matematicas'!AN4="","",'Conocimiento Matematicas'!AN4) ->  | AL3: =IF('Conocimiento Matematicas'!AO4="","",'Conocimiento Matematicas'!AO4) ->  | AM3: =IF('Conocimiento Matematicas'!AP4="","",'Conocimiento Matematicas'!AP4) -> 
D4: Criterio Evaluación 1.2 | E4: =IF('Conocimiento Matematicas'!H5="","",'Conocimiento Matematicas'!H5) ->  | F4: =IF('Conocimiento Matematicas'!I5="","",'Conocimiento Matematicas'!I5) ->  | G4: =IF('Conocimiento Matematicas'!J5="","",'Conocimiento Matematicas'!J5) ->  | H4: =IF('Conocimiento Matematicas'!K5="","",'Conocimiento Matematicas'!K5) ->  | I4: =IF('Conocimiento Matematicas'!L5="","",'Conocimiento Matematicas'!L5) ->  | J4: =IF('Conocimiento Matematicas'!M5="","",'Conocimiento Matematicas'!M5) ->  | K4: =IF('Conocimiento Matematicas'!N5="","",'Conocimiento Matematicas'!N5) ->  | L4: =IF('Conocimiento Matematicas'!O5="","",'Conocimiento Matematicas'!O5) ->  | M4: =IF('Conocimiento Matematicas'!P5="","",'Conocimiento Matematicas'!P5) ->  | N4: =IF('Conocimiento Matematicas'!Q5="","",'Conocimiento Matematicas'!Q5) ->  | O4: =IF('Conocimiento Matematicas'!R5="","",'Conocimiento Matematicas'!R5) ->  | P4: =IF('Conocimiento Matematicas'!S5="","",'Conocimiento Matematicas'!S5) ->  | Q4: =IF('Conocimiento Matematicas'!T5="","",'Conocimiento Matematicas'!T5) ->  | R4: =IF('Conocimiento Matematicas'!U5="","",'Conocimiento Matematicas'!U5) ->  | S4: =IF('Conocimiento Matematicas'!V5="","",'Conocimiento Matematicas'!V5) ->  | T4: =IF('Conocimiento Matematicas'!W5="","",'Conocimiento Matematicas'!W5) ->  | U4: =IF('Conocimiento Matematicas'!X5="","",'Conocimiento Matematicas'!X5) ->  | V4: =IF('Conocimiento Matematicas'!Y5="","",'Conocimiento Matematicas'!Y5) ->  | W4: =IF('Conocimiento Matematicas'!Z5="","",'Conocimiento Matematicas'!Z5) ->  | X4: =IF('Conocimiento Matematicas'!AA5="","",'Conocimiento Matematicas'!AA5) ->  | Y4: =IF('Conocimiento Matematicas'!AB5="","",'Conocimiento Matematicas'!AB5) ->  | Z4: =IF('Conocimiento Matematicas'!AC5="","",'Conocimiento Matematicas'!AC5) ->  | AA4: =IF('Conocimiento Matematicas'!AD5="","",'Conocimiento Matematicas'!AD5) ->  | AB4: =IF('Conocimiento Matematicas'!AE5="","",'Conocimiento Matematicas'!AE5) ->  | AC4: =IF('Conocimiento Matematicas'!AF5="","",'Conocimiento Matematicas'!AF5) ->  | AD4: =IF('Conocimiento Matematicas'!AG5="","",'Conocimiento Matematicas'!AG5) ->  | AE4: =IF('Conocimiento Matematicas'!AH5="","",'Conocimiento Matematicas'!AH5) ->  | AF4: =IF('Conocimiento Matematicas'!AI5="","",'Conocimiento Matematicas'!AI5) ->  | AG4: =IF('Conocimiento Matematicas'!AJ5="","",'Conocimiento Matematicas'!AJ5) ->  | AH4: =IF('Conocimiento Matematicas'!AK5="","",'Conocimiento Matematicas'!AK5) ->  | AI4: =IF('Conocimiento Matematicas'!AL5="","",'Conocimiento Matematicas'!AL5) ->  | AJ4: =IF('Conocimiento Matematicas'!AM5="","",'Conocimiento Matematicas'!AM5) ->  | AK4: =IF('Conocimiento Matematicas'!AN5="","",'Conocimiento Matematicas'!AN5) ->  | AL4: =IF('Conocimiento Matematicas'!AO5="","",'Conocimiento Matematicas'!AO5) ->  | AM4: =IF('Conocimiento Matematicas'!AP5="","",'Conocimiento Matematicas'!AP5) -> 
D5: Criterio Evaluación 1.3 | E5: =IF('Conocimiento Matematicas'!H6="","",'Conocimiento Matematicas'!H6) ->  | F5: =IF('Conocimiento Matematicas'!I6="","",'Conocimiento Matematicas'!I6) ->  | G5: =IF('Conocimiento Matematicas'!J6="","",'Conocimiento Matematicas'!J6) ->  | H5: =IF('Conocimiento Matematicas'!K6="","",'Conocimiento Matematicas'!K6) ->  | I5: =IF('Conocimiento Matematicas'!L6="","",'Conocimiento Matematicas'!L6) ->  | J5: =IF('Conocimiento Matematicas'!M6="","",'Conocimiento Matematicas'!M6) ->  | K5: =IF('Conocimiento Matematicas'!N6="","",'Conocimiento Matematicas'!N6) ->  | L5: =IF('Conocimiento Matematicas'!O6="","",'Conocimiento Matematicas'!O6) ->  | M5: =IF('Conocimiento Matematicas'!P6="","",'Conocimiento Matematicas'!P6) ->  | N5: =IF('Conocimiento Matematicas'!Q6="","",'Conocimiento Matematicas'!Q6) ->  | O5: =IF('Conocimiento Matematicas'!R6="","",'Conocimiento Matematicas'!R6) ->  | P5: =IF('Conocimiento Matematicas'!S6="","",'Conocimiento Matematicas'!S6) ->  | Q5: =IF('Conocimiento Matematicas'!T6="","",'Conocimiento Matematicas'!T6) ->  | R5: =IF('Conocimiento Matematicas'!U6="","",'Conocimiento Matematicas'!U6) ->  | S5: =IF('Conocimiento Matematicas'!V6="","",'Conocimiento Matematicas'!V6) ->  | T5: =IF('Conocimiento Matematicas'!W6="","",'Conocimiento Matematicas'!W6) ->  | U5: =IF('Conocimiento Matematicas'!X6="","",'Conocimiento Matematicas'!X6) ->  | V5: =IF('Conocimiento Matematicas'!Y6="","",'Conocimiento Matematicas'!Y6) ->  | W5: =IF('Conocimiento Matematicas'!Z6="","",'Conocimiento Matematicas'!Z6) ->  | X5: =IF('Conocimiento Matematicas'!AA6="","",'Conocimiento Matematicas'!AA6) ->  | Y5: =IF('Conocimiento Matematicas'!AB6="","",'Conocimiento Matematicas'!AB6) ->  | Z5: =IF('Conocimiento Matematicas'!AC6="","",'Conocimiento Matematicas'!AC6) ->  | AA5: =IF('Conocimiento Matematicas'!AD6="","",'Conocimiento Matematicas'!AD6) ->  | AB5: =IF('Conocimiento Matematicas'!AE6="","",'Conocimiento Matematicas'!AE6) ->  | AC5: =IF('Conocimiento Matematicas'!AF6="","",'Conocimiento Matematicas'!AF6) ->  | AD5: =IF('Conocimiento Matematicas'!AG6="","",'Conocimiento Matematicas'!AG6) ->  | AE5: =IF('Conocimiento Matematicas'!AH6="","",'Conocimiento Matematicas'!AH6) ->  | AF5: =IF('Conocimiento Matematicas'!AI6="","",'Conocimiento Matematicas'!AI6) ->  | AG5: =IF('Conocimiento Matematicas'!AJ6="","",'Conocimiento Matematicas'!AJ6) ->  | AH5: =IF('Conocimiento Matematicas'!AK6="","",'Conocimiento Matematicas'!AK6) ->  | AI5: =IF('Conocimiento Matematicas'!AL6="","",'Conocimiento Matematicas'!AL6) ->  | AJ5: =IF('Conocimiento Matematicas'!AM6="","",'Conocimiento Matematicas'!AM6) ->  | AK5: =IF('Conocimiento Matematicas'!AN6="","",'Conocimiento Matematicas'!AN6) ->  | AL5: =IF('Conocimiento Matematicas'!AO6="","",'Conocimiento Matematicas'!AO6) ->  | AM5: =IF('Conocimiento Matematicas'!AP6="","",'Conocimiento Matematicas'!AP6) -> 
C6: Comp. Esp. 2 | D6: Criterio Evaluación 2.1 | E6: =IF('Conocimiento Matematicas'!H7="","",'Conocimiento Matematicas'!H7) ->  | F6: =IF('Conocimiento Matematicas'!I7="","",'Conocimiento Matematicas'!I7) ->  | G6: =IF('Conocimiento Matematicas'!J7="","",'Conocimiento Matematicas'!J7) ->  | H6: =IF('Conocimiento Matematicas'!K7="","",'Conocimiento Matematicas'!K7) ->  | I6: =IF('Conocimiento Matematicas'!L7="","",'Conocimiento Matematicas'!L7) ->  | J6: =IF('Conocimiento Matematicas'!M7="","",'Conocimiento Matematicas'!M7) ->  | K6: =IF('Conocimiento Matematicas'!N7="","",'Conocimiento Matematicas'!N7) ->  | L6: =IF('Conocimiento Matematicas'!O7="","",'Conocimiento Matematicas'!O7) ->  | M6: =IF('Conocimiento Matematicas'!P7="","",'Conocimiento Matematicas'!P7) ->  | N6: =IF('Conocimiento Matematicas'!Q7="","",'Conocimiento Matematicas'!Q7) ->  | O6: =IF('Conocimiento Matematicas'!R7="","",'Conocimiento Matematicas'!R7) ->  | P6: =IF('Conocimiento Matematicas'!S7="","",'Conocimiento Matematicas'!S7) ->  | Q6: =IF('Conocimiento Matematicas'!T7="","",'Conocimiento Matematicas'!T7) ->  | R6: =IF('Conocimiento Matematicas'!U7="","",'Conocimiento Matematicas'!U7) ->  | S6: =IF('Conocimiento Matematicas'!V7="","",'Conocimiento Matematicas'!V7) ->  | T6: =IF('Conocimiento Matematicas'!W7="","",'Conocimiento Matematicas'!W7) ->  | U6: =IF('Conocimiento Matematicas'!X7="","",'Conocimiento Matematicas'!X7) ->  | V6: =IF('Conocimiento Matematicas'!Y7="","",'Conocimiento Matematicas'!Y7) ->  | W6: =IF('Conocimiento Matematicas'!Z7="","",'Conocimiento Matematicas'!Z7) ->  | X6: =IF('Conocimiento Matematicas'!AA7="","",'Conocimiento Matematicas'!AA7) ->  | Y6: =IF('Conocimiento Matematicas'!AB7="","",'Conocimiento Matematicas'!AB7) ->  | Z6: =IF('Conocimiento Matematicas'!AC7="","",'Conocimiento Matematicas'!AC7) ->  | AA6: =IF('Conocimiento Matematicas'!AD7="","",'Conocimiento Matematicas'!AD7) ->  | AB6: =IF('Conocimiento Matematicas'!AE7="","",'Conocimiento Matematicas'!AE7) ->  | AC6: =IF('Conocimiento Matematicas'!AF7="","",'Conocimiento Matematicas'!AF7) ->  | AD6: =IF('Conocimiento Matematicas'!AG7="","",'Conocimiento Matematicas'!AG7) ->  | AE6: =IF('Conocimiento Matematicas'!AH7="","",'Conocimiento Matematicas'!AH7) ->  | AF6: =IF('Conocimiento Matematicas'!AI7="","",'Conocimiento Matematicas'!AI7) ->  | AG6: =IF('Conocimiento Matematicas'!AJ7="","",'Conocimiento Matematicas'!AJ7) ->  | AH6: =IF('Conocimiento Matematicas'!AK7="","",'Conocimiento Matematicas'!AK7) ->  | AI6: =IF('Conocimiento Matematicas'!AL7="","",'Conocimiento Matematicas'!AL7) ->  | AJ6: =IF('Conocimiento Matematicas'!AM7="","",'Conocimiento Matematicas'!AM7) ->  | AK6: =IF('Conocimiento Matematicas'!AN7="","",'Conocimiento Matematicas'!AN7) ->  | AL6: =IF('Conocimiento Matematicas'!AO7="","",'Conocimiento Matematicas'!AO7) ->  | AM6: =IF('Conocimiento Matematicas'!AP7="","",'Conocimiento Matematicas'!AP7) -> 
D7: Criterio Evaluación 2.2 | E7: =IF('Conocimiento Matematicas'!H8="","",'Conocimiento Matematicas'!H8) ->  | F7: =IF('Conocimiento Matematicas'!I8="","",'Conocimiento Matematicas'!I8) ->  | G7: =IF('Conocimiento Matematicas'!J8="","",'Conocimiento Matematicas'!J8) ->  | H7: =IF('Conocimiento Matematicas'!K8="","",'Conocimiento Matematicas'!K8) ->  | I7: =IF('Conocimiento Matematicas'!L8="","",'Conocimiento Matematicas'!L8) ->  | J7: =IF('Conocimiento Matematicas'!M8="","",'Conocimiento Matematicas'!M8) ->  | K7: =IF('Conocimiento Matematicas'!N8="","",'Conocimiento Matematicas'!N8) ->  | L7: =IF('Conocimiento Matematicas'!O8="","",'Conocimiento Matematicas'!O8) ->  | M7: =IF('Conocimiento Matematicas'!P8="","",'Conocimiento Matematicas'!P8) ->  | N7: =IF('Conocimiento Matematicas'!Q8="","",'Conocimiento Matematicas'!Q8) ->  | O7: =IF('Conocimiento Matematicas'!R8="","",'Conocimiento Matematicas'!R8) ->  | P7: =IF('Conocimiento Matematicas'!S8="","",'Conocimiento Matematicas'!S8) ->  | Q7: =IF('Conocimiento Matematicas'!T8="","",'Conocimiento Matematicas'!T8) ->  | R7: =IF('Conocimiento Matematicas'!U8="","",'Conocimiento Matematicas'!U8) ->  | S7: =IF('Conocimiento Matematicas'!V8="","",'Conocimiento Matematicas'!V8) ->  | T7: =IF('Conocimiento Matematicas'!W8="","",'Conocimiento Matematicas'!W8) ->  | U7: =IF('Conocimiento Matematicas'!X8="","",'Conocimiento Matematicas'!X8) ->  | V7: =IF('Conocimiento Matematicas'!Y8="","",'Conocimiento Matematicas'!Y8) ->  | W7: =IF('Conocimiento Matematicas'!Z8="","",'Conocimiento Matematicas'!Z8) ->  | X7: =IF('Conocimiento Matematicas'!AA8="","",'Conocimiento Matematicas'!AA8) ->  | Y7: =IF('Conocimiento Matematicas'!AB8="","",'Conocimiento Matematicas'!AB8) ->  | Z7: =IF('Conocimiento Matematicas'!AC8="","",'Conocimiento Matematicas'!AC8) ->  | AA7: =IF('Conocimiento Matematicas'!AD8="","",'Conocimiento Matematicas'!AD8) ->  | AB7: =IF('Conocimiento Matematicas'!AE8="","",'Conocimiento Matematicas'!AE8) ->  | AC7: =IF('Conocimiento Matematicas'!AF8="","",'Conocimiento Matematicas'!AF8) ->  | AD7: =IF('Conocimiento Matematicas'!AG8="","",'Conocimiento Matematicas'!AG8) ->  | AE7: =IF('Conocimiento Matematicas'!AH8="","",'Conocimiento Matematicas'!AH8) ->  | AF7: =IF('Conocimiento Matematicas'!AI8="","",'Conocimiento Matematicas'!AI8) ->  | AG7: =IF('Conocimiento Matematicas'!AJ8="","",'Conocimiento Matematicas'!AJ8) ->  | AH7: =IF('Conocimiento Matematicas'!AK8="","",'Conocimiento Matematicas'!AK8) ->  | AI7: =IF('Conocimiento Matematicas'!AL8="","",'Conocimiento Matematicas'!AL8) ->  | AJ7: =IF('Conocimiento Matematicas'!AM8="","",'Conocimiento Matematicas'!AM8) ->  | AK7: =IF('Conocimiento Matematicas'!AN8="","",'Conocimiento Matematicas'!AN8) ->  | AL7: =IF('Conocimiento Matematicas'!AO8="","",'Conocimiento Matematicas'!AO8) ->  | AM7: =IF('Conocimiento Matematicas'!AP8="","",'Conocimiento Matematicas'!AP8) -> 
C8: Comp. Esp. 3 | D8: Criterio Evaluación 3.1 | E8: =IF('Conocimiento Matematicas'!H9="","",'Conocimiento Matematicas'!H9) ->  | F8: =IF('Conocimiento Matematicas'!I9="","",'Conocimiento Matematicas'!I9) ->  | G8: =IF('Conocimiento Matematicas'!J9="","",'Conocimiento Matematicas'!J9) ->  | H8: =IF('Conocimiento Matematicas'!K9="","",'Conocimiento Matematicas'!K9) ->  | I8: =IF('Conocimiento Matematicas'!L9="","",'Conocimiento Matematicas'!L9) ->  | J8: =IF('Conocimiento Matematicas'!M9="","",'Conocimiento Matematicas'!M9) ->  | K8: =IF('Conocimiento Matematicas'!N9="","",'Conocimiento Matematicas'!N9) ->  | L8: =IF('Conocimiento Matematicas'!O9="","",'Conocimiento Matematicas'!O9) ->  | M8: =IF('Conocimiento Matematicas'!P9="","",'Conocimiento Matematicas'!P9) ->  | N8: =IF('Conocimiento Matematicas'!Q9="","",'Conocimiento Matematicas'!Q9) ->  | O8: =IF('Conocimiento Matematicas'!R9="","",'Conocimiento Matematicas'!R9) ->  | P8: =IF('Conocimiento Matematicas'!S9="","",'Conocimiento Matematicas'!S9) ->  | Q8: =IF('Conocimiento Matematicas'!T9="","",'Conocimiento Matematicas'!T9) ->  | R8: =IF('Conocimiento Matematicas'!U9="","",'Conocimiento Matematicas'!U9) ->  | S8: =IF('Conocimiento Matematicas'!V9="","",'Conocimiento Matematicas'!V9) ->  | T8: =IF('Conocimiento Matematicas'!W9="","",'Conocimiento Matematicas'!W9) ->  | U8: =IF('Conocimiento Matematicas'!X9="","",'Conocimiento Matematicas'!X9) ->  | V8: =IF('Conocimiento Matematicas'!Y9="","",'Conocimiento Matematicas'!Y9) ->  | W8: =IF('Conocimiento Matematicas'!Z9="","",'Conocimiento Matematicas'!Z9) ->  | X8: =IF('Conocimiento Matematicas'!AA9="","",'Conocimiento Matematicas'!AA9) ->  | Y8: =IF('Conocimiento Matematicas'!AB9="","",'Conocimiento Matematicas'!AB9) ->  | Z8: =IF('Conocimiento Matematicas'!AC9="","",'Conocimiento Matematicas'!AC9) ->  | AA8: =IF('Conocimiento Matematicas'!AD9="","",'Conocimiento Matematicas'!AD9) ->  | AB8: =IF('Conocimiento Matematicas'!AE9="","",'Conocimiento Matematicas'!AE9) ->  | AC8: =IF('Conocimiento Matematicas'!AF9="","",'Conocimiento Matematicas'!AF9) ->  | AD8: =IF('Conocimiento Matematicas'!AG9="","",'Conocimiento Matematicas'!AG9) ->  | AE8: =IF('Conocimiento Matematicas'!AH9="","",'Conocimiento Matematicas'!AH9) ->  | AF8: =IF('Conocimiento Matematicas'!AI9="","",'Conocimiento Matematicas'!AI9) ->  | AG8: =IF('Conocimiento Matematicas'!AJ9="","",'Conocimiento Matematicas'!AJ9) ->  | AH8: =IF('Conocimiento Matematicas'!AK9="","",'Conocimiento Matematicas'!AK9) ->  | AI8: =IF('Conocimiento Matematicas'!AL9="","",'Conocimiento Matematicas'!AL9) ->  | AJ8: =IF('Conocimiento Matematicas'!AM9="","",'Conocimiento Matematicas'!AM9) ->  | AK8: =IF('Conocimiento Matematicas'!AN9="","",'Conocimiento Matematicas'!AN9) ->  | AL8: =IF('Conocimiento Matematicas'!AO9="","",'Conocimiento Matematicas'!AO9) ->  | AM8: =IF('Conocimiento Matematicas'!AP9="","",'Conocimiento Matematicas'!AP9) -> 
D9: Criterio Evaluación 3.2 | E9: =IF('Conocimiento Matematicas'!H10="","",'Conocimiento Matematicas'!H10) ->  | F9: =IF('Conocimiento Matematicas'!I10="","",'Conocimiento Matematicas'!I10) ->  | G9: =IF('Conocimiento Matematicas'!J10="","",'Conocimiento Matematicas'!J10) ->  | H9: =IF('Conocimiento Matematicas'!K10="","",'Conocimiento Matematicas'!K10) ->  | I9: =IF('Conocimiento Matematicas'!L10="","",'Conocimiento Matematicas'!L10) ->  | J9: =IF('Conocimiento Matematicas'!M10="","",'Conocimiento Matematicas'!M10) ->  | K9: =IF('Conocimiento Matematicas'!N10="","",'Conocimiento Matematicas'!N10) ->  | L9: =IF('Conocimiento Matematicas'!O10="","",'Conocimiento Matematicas'!O10) ->  | M9: =IF('Conocimiento Matematicas'!P10="","",'Conocimiento Matematicas'!P10) ->  | N9: =IF('Conocimiento Matematicas'!Q10="","",'Conocimiento Matematicas'!Q10) ->  | O9: =IF('Conocimiento Matematicas'!R10="","",'Conocimiento Matematicas'!R10) ->  | P9: =IF('Conocimiento Matematicas'!S10="","",'Conocimiento Matematicas'!S10) ->  | Q9: =IF('Conocimiento Matematicas'!T10="","",'Conocimiento Matematicas'!T10) ->  | R9: =IF('Conocimiento Matematicas'!U10="","",'Conocimiento Matematicas'!U10) ->  | S9: =IF('Conocimiento Matematicas'!V10="","",'Conocimiento Matematicas'!V10) ->  | T9: =IF('Conocimiento Matematicas'!W10="","",'Conocimiento Matematicas'!W10) ->  | U9: =IF('Conocimiento Matematicas'!X10="","",'Conocimiento Matematicas'!X10) ->  | V9: =IF('Conocimiento Matematicas'!Y10="","",'Conocimiento Matematicas'!Y10) ->  | W9: =IF('Conocimiento Matematicas'!Z10="","",'Conocimiento Matematicas'!Z10) ->  | X9: =IF('Conocimiento Matematicas'!AA10="","",'Conocimiento Matematicas'!AA10) ->  | Y9: =IF('Conocimiento Matematicas'!AB10="","",'Conocimiento Matematicas'!AB10) ->  | Z9: =IF('Conocimiento Matematicas'!AC10="","",'Conocimiento Matematicas'!AC10) ->  | AA9: =IF('Conocimiento Matematicas'!AD10="","",'Conocimiento Matematicas'!AD10) ->  | AB9: =IF('Conocimiento Matematicas'!AE10="","",'Conocimiento Matematicas'!AE10) ->  | AC9: =IF('Conocimiento Matematicas'!AF10="","",'Conocimiento Matematicas'!AF10) ->  | AD9: =IF('Conocimiento Matematicas'!AG10="","",'Conocimiento Matematicas'!AG10) ->  | AE9: =IF('Conocimiento Matematicas'!AH10="","",'Conocimiento Matematicas'!AH10) ->  | AF9: =IF('Conocimiento Matematicas'!AI10="","",'Conocimiento Matematicas'!AI10) ->  | AG9: =IF('Conocimiento Matematicas'!AJ10="","",'Conocimiento Matematicas'!AJ10) ->  | AH9: =IF('Conocimiento Matematicas'!AK10="","",'Conocimiento Matematicas'!AK10) ->  | AI9: =IF('Conocimiento Matematicas'!AL10="","",'Conocimiento Matematicas'!AL10) ->  | AJ9: =IF('Conocimiento Matematicas'!AM10="","",'Conocimiento Matematicas'!AM10) ->  | AK9: =IF('Conocimiento Matematicas'!AN10="","",'Conocimiento Matematicas'!AN10) ->  | AL9: =IF('Conocimiento Matematicas'!AO10="","",'Conocimiento Matematicas'!AO10) ->  | AM9: =IF('Conocimiento Matematicas'!AP10="","",'Conocimiento Matematicas'!AP10) -> 
C10: Comp. Esp. 4 | D10: Criterio Evaluación 4.1 | E10: =IF('Conocimiento Matematicas'!H11="","",'Conocimiento Matematicas'!H11) ->  | F10: =IF('Conocimiento Matematicas'!I11="","",'Conocimiento Matematicas'!I11) ->  | G10: =IF('Conocimiento Matematicas'!J11="","",'Conocimiento Matematicas'!J11) ->  | H10: =IF('Conocimiento Matematicas'!K11="","",'Conocimiento Matematicas'!K11) ->  | I10: =IF('Conocimiento Matematicas'!L11="","",'Conocimiento Matematicas'!L11) ->  | J10: =IF('Conocimiento Matematicas'!M11="","",'Conocimiento Matematicas'!M11) ->  | K10: =IF('Conocimiento Matematicas'!N11="","",'Conocimiento Matematicas'!N11) ->  | L10: =IF('Conocimiento Matematicas'!O11="","",'Conocimiento Matematicas'!O11) ->  | M10: =IF('Conocimiento Matematicas'!P11="","",'Conocimiento Matematicas'!P11) ->  | N10: =IF('Conocimiento Matematicas'!Q11="","",'Conocimiento Matematicas'!Q11) ->  | O10: =IF('Conocimiento Matematicas'!R11="","",'Conocimiento Matematicas'!R11) ->  | P10: =IF('Conocimiento Matematicas'!S11="","",'Conocimiento Matematicas'!S11) ->  | Q10: =IF('Conocimiento Matematicas'!T11="","",'Conocimiento Matematicas'!T11) ->  | R10: =IF('Conocimiento Matematicas'!U11="","",'Conocimiento Matematicas'!U11) ->  | S10: =IF('Conocimiento Matematicas'!V11="","",'Conocimiento Matematicas'!V11) ->  | T10: =IF('Conocimiento Matematicas'!W11="","",'Conocimiento Matematicas'!W11) ->  | U10: =IF('Conocimiento Matematicas'!X11="","",'Conocimiento Matematicas'!X11) ->  | V10: =IF('Conocimiento Matematicas'!Y11="","",'Conocimiento Matematicas'!Y11) ->  | W10: =IF('Conocimiento Matematicas'!Z11="","",'Conocimiento Matematicas'!Z11) ->  | X10: =IF('Conocimiento Matematicas'!AA11="","",'Conocimiento Matematicas'!AA11) ->  | Y10: =IF('Conocimiento Matematicas'!AB11="","",'Conocimiento Matematicas'!AB11) ->  | Z10: =IF('Conocimiento Matematicas'!AC11="","",'Conocimiento Matematicas'!AC11) ->  | AA10: =IF('Conocimiento Matematicas'!AD11="","",'Conocimiento Matematicas'!AD11) ->  | AB10: =IF('Conocimiento Matematicas'!AE11="","",'Conocimiento Matematicas'!AE11) ->  | AC10: =IF('Conocimiento Matematicas'!AF11="","",'Conocimiento Matematicas'!AF11) ->  | AD10: =IF('Conocimiento Matematicas'!AG11="","",'Conocimiento Matematicas'!AG11) ->  | AE10: =IF('Conocimiento Matematicas'!AH11="","",'Conocimiento Matematicas'!AH11) ->  | AF10: =IF('Conocimiento Matematicas'!AI11="","",'Conocimiento Matematicas'!AI11) ->  | AG10: =IF('Conocimiento Matematicas'!AJ11="","",'Conocimiento Matematicas'!AJ11) ->  | AH10: =IF('Conocimiento Matematicas'!AK11="","",'Conocimiento Matematicas'!AK11) ->  | AI10: =IF('Conocimiento Matematicas'!AL11="","",'Conocimiento Matematicas'!AL11) ->  | AJ10: =IF('Conocimiento Matematicas'!AM11="","",'Conocimiento Matematicas'!AM11) ->  | AK10: =IF('Conocimiento Matematicas'!AN11="","",'Conocimiento Matematicas'!AN11) ->  | AL10: =IF('Conocimiento Matematicas'!AO11="","",'Conocimiento Matematicas'!AO11) ->  | AM10: =IF('Conocimiento Matematicas'!AP11="","",'Conocimiento Matematicas'!AP11) -> 
D11: Criterio Evaluación 4.2 | E11: =IF('Conocimiento Matematicas'!H12="","",'Conocimiento Matematicas'!H12) ->  | F11: =IF('Conocimiento Matematicas'!I12="","",'Conocimiento Matematicas'!I12) ->  | G11: =IF('Conocimiento Matematicas'!J12="","",'Conocimiento Matematicas'!J12) ->  | H11: =IF('Conocimiento Matematicas'!K12="","",'Conocimiento Matematicas'!K12) ->  | I11: =IF('Conocimiento Matematicas'!L12="","",'Conocimiento Matematicas'!L12) ->  | J11: =IF('Conocimiento Matematicas'!M12="","",'Conocimiento Matematicas'!M12) ->  | K11: =IF('Conocimiento Matematicas'!N12="","",'Conocimiento Matematicas'!N12) ->  | L11: =IF('Conocimiento Matematicas'!O12="","",'Conocimiento Matematicas'!O12) ->  | M11: =IF('Conocimiento Matematicas'!P12="","",'Conocimiento Matematicas'!P12) ->  | N11: =IF('Conocimiento Matematicas'!Q12="","",'Conocimiento Matematicas'!Q12) ->  | O11: =IF('Conocimiento Matematicas'!R12="","",'Conocimiento Matematicas'!R12) ->  | P11: =IF('Conocimiento Matematicas'!S12="","",'Conocimiento Matematicas'!S12) ->  | Q11: =IF('Conocimiento Matematicas'!T12="","",'Conocimiento Matematicas'!T12) ->  | R11: =IF('Conocimiento Matematicas'!U12="","",'Conocimiento Matematicas'!U12) ->  | S11: =IF('Conocimiento Matematicas'!V12="","",'Conocimiento Matematicas'!V12) ->  | T11: =IF('Conocimiento Matematicas'!W12="","",'Conocimiento Matematicas'!W12) ->  | U11: =IF('Conocimiento Matematicas'!X12="","",'Conocimiento Matematicas'!X12) ->  | V11: =IF('Conocimiento Matematicas'!Y12="","",'Conocimiento Matematicas'!Y12) ->  | W11: =IF('Conocimiento Matematicas'!Z12="","",'Conocimiento Matematicas'!Z12) ->  | X11: =IF('Conocimiento Matematicas'!AA12="","",'Conocimiento Matematicas'!AA12) ->  | Y11: =IF('Conocimiento Matematicas'!AB12="","",'Conocimiento Matematicas'!AB12) ->  | Z11: =IF('Conocimiento Matematicas'!AC12="","",'Conocimiento Matematicas'!AC12) ->  | AA11: =IF('Conocimiento Matematicas'!AD12="","",'Conocimiento Matematicas'!AD12) ->  | AB11: =IF('Conocimiento Matematicas'!AE12="","",'Conocimiento Matematicas'!AE12) ->  | AC11: =IF('Conocimiento Matematicas'!AF12="","",'Conocimiento Matematicas'!AF12) ->  | AD11: =IF('Conocimiento Matematicas'!AG12="","",'Conocimiento Matematicas'!AG12) ->  | AE11: =IF('Conocimiento Matematicas'!AH12="","",'Conocimiento Matematicas'!AH12) ->  | AF11: =IF('Conocimiento Matematicas'!AI12="","",'Conocimiento Matematicas'!AI12) ->  | AG11: =IF('Conocimiento Matematicas'!AJ12="","",'Conocimiento Matematicas'!AJ12) ->  | AH11: =IF('Conocimiento Matematicas'!AK12="","",'Conocimiento Matematicas'!AK12) ->  | AI11: =IF('Conocimiento Matematicas'!AL12="","",'Conocimiento Matematicas'!AL12) ->  | AJ11: =IF('Conocimiento Matematicas'!AM12="","",'Conocimiento Matematicas'!AM12) ->  | AK11: =IF('Conocimiento Matematicas'!AN12="","",'Conocimiento Matematicas'!AN12) ->  | AL11: =IF('Conocimiento Matematicas'!AO12="","",'Conocimiento Matematicas'!AO12) ->  | AM11: =IF('Conocimiento Matematicas'!AP12="","",'Conocimiento Matematicas'!AP12) -> 
C12: Comp. Esp. 5 | D12: Criterio Evaluación 5.1 | E12: =IF('Conocimiento Matematicas'!H13="","",'Conocimiento Matematicas'!H13) ->  | F12: =IF('Conocimiento Matematicas'!I13="","",'Conocimiento Matematicas'!I13) ->  | G12: =IF('Conocimiento Matematicas'!J13="","",'Conocimiento Matematicas'!J13) ->  | H12: =IF('Conocimiento Matematicas'!K13="","",'Conocimiento Matematicas'!K13) ->  | I12: =IF('Conocimiento Matematicas'!L13="","",'Conocimiento Matematicas'!L13) ->  | J12: =IF('Conocimiento Matematicas'!M13="","",'Conocimiento Matematicas'!M13) ->  | K12: =IF('Conocimiento Matematicas'!N13="","",'Conocimiento Matematicas'!N13) ->  | L12: =IF('Conocimiento Matematicas'!O13="","",'Conocimiento Matematicas'!O13) ->  | M12: =IF('Conocimiento Matematicas'!P13="","",'Conocimiento Matematicas'!P13) ->  | N12: =IF('Conocimiento Matematicas'!Q13="","",'Conocimiento Matematicas'!Q13) ->  | O12: =IF('Conocimiento Matematicas'!R13="","",'Conocimiento Matematicas'!R13) ->  | P12: =IF('Conocimiento Matematicas'!S13="","",'Conocimiento Matematicas'!S13) ->  | Q12: =IF('Conocimiento Matematicas'!T13="","",'Conocimiento Matematicas'!T13) ->  | R12: =IF('Conocimiento Matematicas'!U13="","",'Conocimiento Matematicas'!U13) ->  | S12: =IF('Conocimiento Matematicas'!V13="","",'Conocimiento Matematicas'!V13) ->  | T12: =IF('Conocimiento Matematicas'!W13="","",'Conocimiento Matematicas'!W13) ->  | U12: =IF('Conocimiento Matematicas'!X13="","",'Conocimiento Matematicas'!X13) ->  | V12: =IF('Conocimiento Matematicas'!Y13="","",'Conocimiento Matematicas'!Y13) ->  | W12: =IF('Conocimiento Matematicas'!Z13="","",'Conocimiento Matematicas'!Z13) ->  | X12: =IF('Conocimiento Matematicas'!AA13="","",'Conocimiento Matematicas'!AA13) ->  | Y12: =IF('Conocimiento Matematicas'!AB13="","",'Conocimiento Matematicas'!AB13) ->  | Z12: =IF('Conocimiento Matematicas'!AC13="","",'Conocimiento Matematicas'!AC13) ->  | AA12: =IF('Conocimiento Matematicas'!AD13="","",'Conocimiento Matematicas'!AD13) ->  | AB12: =IF('Conocimiento Matematicas'!AE13="","",'Conocimiento Matematicas'!AE13) ->  | AC12: =IF('Conocimiento Matematicas'!AF13="","",'Conocimiento Matematicas'!AF13) ->  | AD12: =IF('Conocimiento Matematicas'!AG13="","",'Conocimiento Matematicas'!AG13) ->  | AE12: =IF('Conocimiento Matematicas'!AH13="","",'Conocimiento Matematicas'!AH13) ->  | AF12: =IF('Conocimiento Matematicas'!AI13="","",'Conocimiento Matematicas'!AI13) ->  | AG12: =IF('Conocimiento Matematicas'!AJ13="","",'Conocimiento Matematicas'!AJ13) ->  | AH12: =IF('Conocimiento Matematicas'!AK13="","",'Conocimiento Matematicas'!AK13) ->  | AI12: =IF('Conocimiento Matematicas'!AL13="","",'Conocimiento Matematicas'!AL13) ->  | AJ12: =IF('Conocimiento Matematicas'!AM13="","",'Conocimiento Matematicas'!AM13) ->  | AK12: =IF('Conocimiento Matematicas'!AN13="","",'Conocimiento Matematicas'!AN13) ->  | AL12: =IF('Conocimiento Matematicas'!AO13="","",'Conocimiento Matematicas'!AO13) ->  | AM12: =IF('Conocimiento Matematicas'!AP13="","",'Conocimiento Matematicas'!AP13) -> 
D13: Criterio Evaluación 5.2 | E13: =IF('Conocimiento Matematicas'!H14="","",'Conocimiento Matematicas'!H14) ->  | F13: =IF('Conocimiento Matematicas'!I14="","",'Conocimiento Matematicas'!I14) ->  | G13: =IF('Conocimiento Matematicas'!J14="","",'Conocimiento Matematicas'!J14) ->  | H13: =IF('Conocimiento Matematicas'!K14="","",'Conocimiento Matematicas'!K14) ->  | I13: =IF('Conocimiento Matematicas'!L14="","",'Conocimiento Matematicas'!L14) ->  | J13: =IF('Conocimiento Matematicas'!M14="","",'Conocimiento Matematicas'!M14) ->  | K13: =IF('Conocimiento Matematicas'!N14="","",'Conocimiento Matematicas'!N14) ->  | L13: =IF('Conocimiento Matematicas'!O14="","",'Conocimiento Matematicas'!O14) ->  | M13: =IF('Conocimiento Matematicas'!P14="","",'Conocimiento Matematicas'!P14) ->  | N13: =IF('Conocimiento Matematicas'!Q14="","",'Conocimiento Matematicas'!Q14) ->  | O13: =IF('Conocimiento Matematicas'!R14="","",'Conocimiento Matematicas'!R14) ->  | P13: =IF('Conocimiento Matematicas'!S14="","",'Conocimiento Matematicas'!S14) ->  | Q13: =IF('Conocimiento Matematicas'!T14="","",'Conocimiento Matematicas'!T14) ->  | R13: =IF('Conocimiento Matematicas'!U14="","",'Conocimiento Matematicas'!U14) ->  | S13: =IF('Conocimiento Matematicas'!V14="","",'Conocimiento Matematicas'!V14) ->  | T13: =IF('Conocimiento Matematicas'!W14="","",'Conocimiento Matematicas'!W14) ->  | U13: =IF('Conocimiento Matematicas'!X14="","",'Conocimiento Matematicas'!X14) ->  | V13: =IF('Conocimiento Matematicas'!Y14="","",'Conocimiento Matematicas'!Y14) ->  | W13: =IF('Conocimiento Matematicas'!Z14="","",'Conocimiento Matematicas'!Z14) ->  | X13: =IF('Conocimiento Matematicas'!AA14="","",'Conocimiento Matematicas'!AA14) ->  | Y13: =IF('Conocimiento Matematicas'!AB14="","",'Conocimiento Matematicas'!AB14) ->  | Z13: =IF('Conocimiento Matematicas'!AC14="","",'Conocimiento Matematicas'!AC14) ->  | AA13: =IF('Conocimiento Matematicas'!AD14="","",'Conocimiento Matematicas'!AD14) ->  | AB13: =IF('Conocimiento Matematicas'!AE14="","",'Conocimiento Matematicas'!AE14) ->  | AC13: =IF('Conocimiento Matematicas'!AF14="","",'Conocimiento Matematicas'!AF14) ->  | AD13: =IF('Conocimiento Matematicas'!AG14="","",'Conocimiento Matematicas'!AG14) ->  | AE13: =IF('Conocimiento Matematicas'!AH14="","",'Conocimiento Matematicas'!AH14) ->  | AF13: =IF('Conocimiento Matematicas'!AI14="","",'Conocimiento Matematicas'!AI14) ->  | AG13: =IF('Conocimiento Matematicas'!AJ14="","",'Conocimiento Matematicas'!AJ14) ->  | AH13: =IF('Conocimiento Matematicas'!AK14="","",'Conocimiento Matematicas'!AK14) ->  | AI13: =IF('Conocimiento Matematicas'!AL14="","",'Conocimiento Matematicas'!AL14) ->  | AJ13: =IF('Conocimiento Matematicas'!AM14="","",'Conocimiento Matematicas'!AM14) ->  | AK13: =IF('Conocimiento Matematicas'!AN14="","",'Conocimiento Matematicas'!AN14) ->  | AL13: =IF('Conocimiento Matematicas'!AO14="","",'Conocimiento Matematicas'!AO14) ->  | AM13: =IF('Conocimiento Matematicas'!AP14="","",'Conocimiento Matematicas'!AP14) -> 
D14: Criterio Evaluación 5.3 | E14: =IF('Conocimiento Matematicas'!H15="","",'Conocimiento Matematicas'!H15) ->  | F14: =IF('Conocimiento Matematicas'!I15="","",'Conocimiento Matematicas'!I15) ->  | G14: =IF('Conocimiento Matematicas'!J15="","",'Conocimiento Matematicas'!J15) ->  | H14: =IF('Conocimiento Matematicas'!K15="","",'Conocimiento Matematicas'!K15) ->  | I14: =IF('Conocimiento Matematicas'!L15="","",'Conocimiento Matematicas'!L15) ->  | J14: =IF('Conocimiento Matematicas'!M15="","",'Conocimiento Matematicas'!M15) ->  | K14: =IF('Conocimiento Matematicas'!N15="","",'Conocimiento Matematicas'!N15) ->  | L14: =IF('Conocimiento Matematicas'!O15="","",'Conocimiento Matematicas'!O15) ->  | M14: =IF('Conocimiento Matematicas'!P15="","",'Conocimiento Matematicas'!P15) ->  | N14: =IF('Conocimiento Matematicas'!Q15="","",'Conocimiento Matematicas'!Q15) ->  | O14: =IF('Conocimiento Matematicas'!R15="","",'Conocimiento Matematicas'!R15) ->  | P14: =IF('Conocimiento Matematicas'!S15="","",'Conocimiento Matematicas'!S15) ->  | Q14: =IF('Conocimiento Matematicas'!T15="","",'Conocimiento Matematicas'!T15) ->  | R14: =IF('Conocimiento Matematicas'!U15="","",'Conocimiento Matematicas'!U15) ->  | S14: =IF('Conocimiento Matematicas'!V15="","",'Conocimiento Matematicas'!V15) ->  | T14: =IF('Conocimiento Matematicas'!W15="","",'Conocimiento Matematicas'!W15) ->  | U14: =IF('Conocimiento Matematicas'!X15="","",'Conocimiento Matematicas'!X15) ->  | V14: =IF('Conocimiento Matematicas'!Y15="","",'Conocimiento Matematicas'!Y15) ->  | W14: =IF('Conocimiento Matematicas'!Z15="","",'Conocimiento Matematicas'!Z15) ->  | X14: =IF('Conocimiento Matematicas'!AA15="","",'Conocimiento Matematicas'!AA15) ->  | Y14: =IF('Conocimiento Matematicas'!AB15="","",'Conocimiento Matematicas'!AB15) ->  | Z14: =IF('Conocimiento Matematicas'!AC15="","",'Conocimiento Matematicas'!AC15) ->  | AA14: =IF('Conocimiento Matematicas'!AD15="","",'Conocimiento Matematicas'!AD15) ->  | AB14: =IF('Conocimiento Matematicas'!AE15="","",'Conocimiento Matematicas'!AE15) ->  | AC14: =IF('Conocimiento Matematicas'!AF15="","",'Conocimiento Matematicas'!AF15) ->  | AD14: =IF('Conocimiento Matematicas'!AG15="","",'Conocimiento Matematicas'!AG15) ->  | AE14: =IF('Conocimiento Matematicas'!AH15="","",'Conocimiento Matematicas'!AH15) ->  | AF14: =IF('Conocimiento Matematicas'!AI15="","",'Conocimiento Matematicas'!AI15) ->  | AG14: =IF('Conocimiento Matematicas'!AJ15="","",'Conocimiento Matematicas'!AJ15) ->  | AH14: =IF('Conocimiento Matematicas'!AK15="","",'Conocimiento Matematicas'!AK15) ->  | AI14: =IF('Conocimiento Matematicas'!AL15="","",'Conocimiento Matematicas'!AL15) ->  | AJ14: =IF('Conocimiento Matematicas'!AM15="","",'Conocimiento Matematicas'!AM15) ->  | AK14: =IF('Conocimiento Matematicas'!AN15="","",'Conocimiento Matematicas'!AN15) ->  | AL14: =IF('Conocimiento Matematicas'!AO15="","",'Conocimiento Matematicas'!AO15) ->  | AM14: =IF('Conocimiento Matematicas'!AP15="","",'Conocimiento Matematicas'!AP15) -> 
B15: Conocimiento del Lenguaje | C15: Comp. Esp. 1 | D15: Criterio Evaluación 1.1 | E15: =IF('Conocimiento del Lenguaje'!H4="","",'Conocimiento del Lenguaje'!H4) ->  | F15: =IF('Conocimiento del Lenguaje'!I4="","",'Conocimiento del Lenguaje'!I4) ->  | G15: =IF('Conocimiento del Lenguaje'!J4="","",'Conocimiento del Lenguaje'!J4) ->  | H15: =IF('Conocimiento del Lenguaje'!K4="","",'Conocimiento del Lenguaje'!K4) ->  | I15: =IF('Conocimiento del Lenguaje'!L4="","",'Conocimiento del Lenguaje'!L4) ->  | J15: =IF('Conocimiento del Lenguaje'!M4="","",'Conocimiento del Lenguaje'!M4) ->  | K15: =IF('Conocimiento del Lenguaje'!N4="","",'Conocimiento del Lenguaje'!N4) ->  | L15: =IF('Conocimiento del Lenguaje'!O4="","",'Conocimiento del Lenguaje'!O4) ->  | M15: =IF('Conocimiento del Lenguaje'!P4="","",'Conocimiento del Lenguaje'!P4) ->  | N15: =IF('Conocimiento del Lenguaje'!Q4="","",'Conocimiento del Lenguaje'!Q4) ->  | O15: =IF('Conocimiento del Lenguaje'!R4="","",'Conocimiento del Lenguaje'!R4) ->  | P15: =IF('Conocimiento del Lenguaje'!S4="","",'Conocimiento del Lenguaje'!S4) ->  | Q15: =IF('Conocimiento del Lenguaje'!T4="","",'Conocimiento del Lenguaje'!T4) ->  | R15: =IF('Conocimiento del Lenguaje'!U4="","",'Conocimiento del Lenguaje'!U4) ->  | S15: =IF('Conocimiento del Lenguaje'!V4="","",'Conocimiento del Lenguaje'!V4) ->  | T15: =IF('Conocimiento del Lenguaje'!W4="","",'Conocimiento del Lenguaje'!W4) ->  | U15: =IF('Conocimiento del Lenguaje'!X4="","",'Conocimiento del Lenguaje'!X4) ->  | V15: =IF('Conocimiento del Lenguaje'!Y4="","",'Conocimiento del Lenguaje'!Y4) ->  | W15: =IF('Conocimiento del Lenguaje'!Z4="","",'Conocimiento del Lenguaje'!Z4) ->  | X15: =IF('Conocimiento del Lenguaje'!AA4="","",'Conocimiento del Lenguaje'!AA4) ->  | Y15: =IF('Conocimiento del Lenguaje'!AB4="","",'Conocimiento del Lenguaje'!AB4) ->  | Z15: =IF('Conocimiento del Lenguaje'!AC4="","",'Conocimiento del Lenguaje'!AC4) ->  | AA15: =IF('Conocimiento del Lenguaje'!AD4="","",'Conocimiento del Lenguaje'!AD4) ->  | AB15: =IF('Conocimiento del Lenguaje'!AE4="","",'Conocimiento del Lenguaje'!AE4) ->  | AC15: =IF('Conocimiento del Lenguaje'!AF4="","",'Conocimiento del Lenguaje'!AF4) ->  | AD15: =IF('Conocimiento del Lenguaje'!AG4="","",'Conocimiento del Lenguaje'!AG4) ->  | AE15: =IF('Conocimiento del Lenguaje'!AH4="","",'Conocimiento del Lenguaje'!AH4) ->  | AF15: =IF('Conocimiento del Lenguaje'!AI4="","",'Conocimiento del Lenguaje'!AI4) ->  | AG15: =IF('Conocimiento del Lenguaje'!AJ4="","",'Conocimiento del Lenguaje'!AJ4) ->  | AH15: =IF('Conocimiento del Lenguaje'!AK4="","",'Conocimiento del Lenguaje'!AK4) ->  | AI15: =IF('Conocimiento del Lenguaje'!AL4="","",'Conocimiento del Lenguaje'!AL4) ->  | AJ15: =IF('Conocimiento del Lenguaje'!AM4="","",'Conocimiento del Lenguaje'!AM4) ->  | AK15: =IF('Conocimiento del Lenguaje'!AN4="","",'Conocimiento del Lenguaje'!AN4) ->  | AL15: =IF('Conocimiento del Lenguaje'!AO4="","",'Conocimiento del Lenguaje'!AO4) ->  | AM15: =IF('Conocimiento del Lenguaje'!AP4="","",'Conocimiento del Lenguaje'!AP4) -> 
D16: Criterio Evaluación 1.2 | E16: =IF('Conocimiento del Lenguaje'!H5="","",'Conocimiento del Lenguaje'!H5) ->  | F16: =IF('Conocimiento del Lenguaje'!I5="","",'Conocimiento del Lenguaje'!I5) ->  | G16: =IF('Conocimiento del Lenguaje'!J5="","",'Conocimiento del Lenguaje'!J5) ->  | H16: =IF('Conocimiento del Lenguaje'!K5="","",'Conocimiento del Lenguaje'!K5) ->  | I16: =IF('Conocimiento del Lenguaje'!L5="","",'Conocimiento del Lenguaje'!L5) ->  | J16: =IF('Conocimiento del Lenguaje'!M5="","",'Conocimiento del Lenguaje'!M5) ->  | K16: =IF('Conocimiento del Lenguaje'!N5="","",'Conocimiento del Lenguaje'!N5) ->  | L16: =IF('Conocimiento del Lenguaje'!O5="","",'Conocimiento del Lenguaje'!O5) ->  | M16: =IF('Conocimiento del Lenguaje'!P5="","",'Conocimiento del Lenguaje'!P5) ->  | N16: =IF('Conocimiento del Lenguaje'!Q5="","",'Conocimiento del Lenguaje'!Q5) ->  | O16: =IF('Conocimiento del Lenguaje'!R5="","",'Conocimiento del Lenguaje'!R5) ->  | P16: =IF('Conocimiento del Lenguaje'!S5="","",'Conocimiento del Lenguaje'!S5) ->  | Q16: =IF('Conocimiento del Lenguaje'!T5="","",'Conocimiento del Lenguaje'!T5) ->  | R16: =IF('Conocimiento del Lenguaje'!U5="","",'Conocimiento del Lenguaje'!U5) ->  | S16: =IF('Conocimiento del Lenguaje'!V5="","",'Conocimiento del Lenguaje'!V5) ->  | T16: =IF('Conocimiento del Lenguaje'!W5="","",'Conocimiento del Lenguaje'!W5) ->  | U16: =IF('Conocimiento del Lenguaje'!X5="","",'Conocimiento del Lenguaje'!X5) ->  | V16: =IF('Conocimiento del Lenguaje'!Y5="","",'Conocimiento del Lenguaje'!Y5) ->  | W16: =IF('Conocimiento del Lenguaje'!Z5="","",'Conocimiento del Lenguaje'!Z5) ->  | X16: =IF('Conocimiento del Lenguaje'!AA5="","",'Conocimiento del Lenguaje'!AA5) ->  | Y16: =IF('Conocimiento del Lenguaje'!AB5="","",'Conocimiento del Lenguaje'!AB5) ->  | Z16: =IF('Conocimiento del Lenguaje'!AC5="","",'Conocimiento del Lenguaje'!AC5) ->  | AA16: =IF('Conocimiento del Lenguaje'!AD5="","",'Conocimiento del Lenguaje'!AD5) ->  | AB16: =IF('Conocimiento del Lenguaje'!AE5="","",'Conocimiento del Lenguaje'!AE5) ->  | AC16: =IF('Conocimiento del Lenguaje'!AF5="","",'Conocimiento del Lenguaje'!AF5) ->  | AD16: =IF('Conocimiento del Lenguaje'!AG5="","",'Conocimiento del Lenguaje'!AG5) ->  | AE16: =IF('Conocimiento del Lenguaje'!AH5="","",'Conocimiento del Lenguaje'!AH5) ->  | AF16: =IF('Conocimiento del Lenguaje'!AI5="","",'Conocimiento del Lenguaje'!AI5) ->  | AG16: =IF('Conocimiento del Lenguaje'!AJ5="","",'Conocimiento del Lenguaje'!AJ5) ->  | AH16: =IF('Conocimiento del Lenguaje'!AK5="","",'Conocimiento del Lenguaje'!AK5) ->  | AI16: =IF('Conocimiento del Lenguaje'!AL5="","",'Conocimiento del Lenguaje'!AL5) ->  | AJ16: =IF('Conocimiento del Lenguaje'!AM5="","",'Conocimiento del Lenguaje'!AM5) ->  | AK16: =IF('Conocimiento del Lenguaje'!AN5="","",'Conocimiento del Lenguaje'!AN5) ->  | AL16: =IF('Conocimiento del Lenguaje'!AO5="","",'Conocimiento del Lenguaje'!AO5) ->  | AM16: =IF('Conocimiento del Lenguaje'!AP5="","",'Conocimiento del Lenguaje'!AP5) -> 
C17: Comp. Esp. 2 | D17: Criterio Evaluación 2.1 | E17: =IF('Conocimiento del Lenguaje'!H6="","",'Conocimiento del Lenguaje'!H6) ->  | F17: =IF('Conocimiento del Lenguaje'!I6="","",'Conocimiento del Lenguaje'!I6) ->  | G17: =IF('Conocimiento del Lenguaje'!J6="","",'Conocimiento del Lenguaje'!J6) ->  | H17: =IF('Conocimiento del Lenguaje'!K6="","",'Conocimiento del Lenguaje'!K6) ->  | I17: =IF('Conocimiento del Lenguaje'!L6="","",'Conocimiento del Lenguaje'!L6) ->  | J17: =IF('Conocimiento del Lenguaje'!M6="","",'Conocimiento del Lenguaje'!M6) ->  | K17: =IF('Conocimiento del Lenguaje'!N6="","",'Conocimiento del Lenguaje'!N6) ->  | L17: =IF('Conocimiento del Lenguaje'!O6="","",'Conocimiento del Lenguaje'!O6) ->  | M17: =IF('Conocimiento del Lenguaje'!P6="","",'Conocimiento del Lenguaje'!P6) ->  | N17: =IF('Conocimiento del Lenguaje'!Q6="","",'Conocimiento del Lenguaje'!Q6) ->  | O17: =IF('Conocimiento del Lenguaje'!R6="","",'Conocimiento del Lenguaje'!R6) ->  | P17: =IF('Conocimiento del Lenguaje'!S6="","",'Conocimiento del Lenguaje'!S6) ->  | Q17: =IF('Conocimiento del Lenguaje'!T6="","",'Conocimiento del Lenguaje'!T6) ->  | R17: =IF('Conocimiento del Lenguaje'!U6="","",'Conocimiento del Lenguaje'!U6) ->  | S17: =IF('Conocimiento del Lenguaje'!V6="","",'Conocimiento del Lenguaje'!V6) ->  | T17: =IF('Conocimiento del Lenguaje'!W6="","",'Conocimiento del Lenguaje'!W6) ->  | U17: =IF('Conocimiento del Lenguaje'!X6="","",'Conocimiento del Lenguaje'!X6) ->  | V17: =IF('Conocimiento del Lenguaje'!Y6="","",'Conocimiento del Lenguaje'!Y6) ->  | W17: =IF('Conocimiento del Lenguaje'!Z6="","",'Conocimiento del Lenguaje'!Z6) ->  | X17: =IF('Conocimiento del Lenguaje'!AA6="","",'Conocimiento del Lenguaje'!AA6) ->  | Y17: =IF('Conocimiento del Lenguaje'!AB6="","",'Conocimiento del Lenguaje'!AB6) ->  | Z17: =IF('Conocimiento del Lenguaje'!AC6="","",'Conocimiento del Lenguaje'!AC6) ->  | AA17: =IF('Conocimiento del Lenguaje'!AD6="","",'Conocimiento del Lenguaje'!AD6) ->  | AB17: =IF('Conocimiento del Lenguaje'!AE6="","",'Conocimiento del Lenguaje'!AE6) ->  | AC17: =IF('Conocimiento del Lenguaje'!AF6="","",'Conocimiento del Lenguaje'!AF6) ->  | AD17: =IF('Conocimiento del Lenguaje'!AG6="","",'Conocimiento del Lenguaje'!AG6) ->  | AE17: =IF('Conocimiento del Lenguaje'!AH6="","",'Conocimiento del Lenguaje'!AH6) ->  | AF17: =IF('Conocimiento del Lenguaje'!AI6="","",'Conocimiento del Lenguaje'!AI6) ->  | AG17: =IF('Conocimiento del Lenguaje'!AJ6="","",'Conocimiento del Lenguaje'!AJ6) ->  | AH17: =IF('Conocimiento del Lenguaje'!AK6="","",'Conocimiento del Lenguaje'!AK6) ->  | AI17: =IF('Conocimiento del Lenguaje'!AL6="","",'Conocimiento del Lenguaje'!AL6) ->  | AJ17: =IF('Conocimiento del Lenguaje'!AM6="","",'Conocimiento del Lenguaje'!AM6) ->  | AK17: =IF('Conocimiento del Lenguaje'!AN6="","",'Conocimiento del Lenguaje'!AN6) ->  | AL17: =IF('Conocimiento del Lenguaje'!AO6="","",'Conocimiento del Lenguaje'!AO6) ->  | AM17: =IF('Conocimiento del Lenguaje'!AP6="","",'Conocimiento del Lenguaje'!AP6) -> 
D18: Criterio Evaluación 2.2 | E18: =IF('Conocimiento del Lenguaje'!H7="","",'Conocimiento del Lenguaje'!H7) ->  | F18: =IF('Conocimiento del Lenguaje'!I7="","",'Conocimiento del Lenguaje'!I7) ->  | G18: =IF('Conocimiento del Lenguaje'!J7="","",'Conocimiento del Lenguaje'!J7) ->  | H18: =IF('Conocimiento del Lenguaje'!K7="","",'Conocimiento del Lenguaje'!K7) ->  | I18: =IF('Conocimiento del Lenguaje'!L7="","",'Conocimiento del Lenguaje'!L7) ->  | J18: =IF('Conocimiento del Lenguaje'!M7="","",'Conocimiento del Lenguaje'!M7) ->  | K18: =IF('Conocimiento del Lenguaje'!N7="","",'Conocimiento del Lenguaje'!N7) ->  | L18: =IF('Conocimiento del Lenguaje'!O7="","",'Conocimiento del Lenguaje'!O7) ->  | M18: =IF('Conocimiento del Lenguaje'!P7="","",'Conocimiento del Lenguaje'!P7) ->  | N18: =IF('Conocimiento del Lenguaje'!Q7="","",'Conocimiento del Lenguaje'!Q7) ->  | O18: =IF('Conocimiento del Lenguaje'!R7="","",'Conocimiento del Lenguaje'!R7) ->  | P18: =IF('Conocimiento del Lenguaje'!S7="","",'Conocimiento del Lenguaje'!S7) ->  | Q18: =IF('Conocimiento del Lenguaje'!T7="","",'Conocimiento del Lenguaje'!T7) ->  | R18: =IF('Conocimiento del Lenguaje'!U7="","",'Conocimiento del Lenguaje'!U7) ->  | S18: =IF('Conocimiento del Lenguaje'!V7="","",'Conocimiento del Lenguaje'!V7) ->  | T18: =IF('Conocimiento del Lenguaje'!W7="","",'Conocimiento del Lenguaje'!W7) ->  | U18: =IF('Conocimiento del Lenguaje'!X7="","",'Conocimiento del Lenguaje'!X7) ->  | V18: =IF('Conocimiento del Lenguaje'!Y7="","",'Conocimiento del Lenguaje'!Y7) ->  | W18: =IF('Conocimiento del Lenguaje'!Z7="","",'Conocimiento del Lenguaje'!Z7) ->  | X18: =IF('Conocimiento del Lenguaje'!AA7="","",'Conocimiento del Lenguaje'!AA7) ->  | Y18: =IF('Conocimiento del Lenguaje'!AB7="","",'Conocimiento del Lenguaje'!AB7) ->  | Z18: =IF('Conocimiento del Lenguaje'!AC7="","",'Conocimiento del Lenguaje'!AC7) ->  | AA18: =IF('Conocimiento del Lenguaje'!AD7="","",'Conocimiento del Lenguaje'!AD7) ->  | AB18: =IF('Conocimiento del Lenguaje'!AE7="","",'Conocimiento del Lenguaje'!AE7) ->  | AC18: =IF('Conocimiento del Lenguaje'!AF7="","",'Conocimiento del Lenguaje'!AF7) ->  | AD18: =IF('Conocimiento del Lenguaje'!AG7="","",'Conocimiento del Lenguaje'!AG7) ->  | AE18: =IF('Conocimiento del Lenguaje'!AH7="","",'Conocimiento del Lenguaje'!AH7) ->  | AF18: =IF('Conocimiento del Lenguaje'!AI7="","",'Conocimiento del Lenguaje'!AI7) ->  | AG18: =IF('Conocimiento del Lenguaje'!AJ7="","",'Conocimiento del Lenguaje'!AJ7) ->  | AH18: =IF('Conocimiento del Lenguaje'!AK7="","",'Conocimiento del Lenguaje'!AK7) ->  | AI18: =IF('Conocimiento del Lenguaje'!AL7="","",'Conocimiento del Lenguaje'!AL7) ->  | AJ18: =IF('Conocimiento del Lenguaje'!AM7="","",'Conocimiento del Lenguaje'!AM7) ->  | AK18: =IF('Conocimiento del Lenguaje'!AN7="","",'Conocimiento del Lenguaje'!AN7) ->  | AL18: =IF('Conocimiento del Lenguaje'!AO7="","",'Conocimiento del Lenguaje'!AO7) ->  | AM18: =IF('Conocimiento del Lenguaje'!AP7="","",'Conocimiento del Lenguaje'!AP7) -> 
D19: Criterio Evaluación 2.3 | E19: =IF('Conocimiento del Lenguaje'!H8="","",'Conocimiento del Lenguaje'!H8) ->  | F19: =IF('Conocimiento del Lenguaje'!I8="","",'Conocimiento del Lenguaje'!I8) ->  | G19: =IF('Conocimiento del Lenguaje'!J8="","",'Conocimiento del Lenguaje'!J8) ->  | H19: =IF('Conocimiento del Lenguaje'!K8="","",'Conocimiento del Lenguaje'!K8) ->  | I19: =IF('Conocimiento del Lenguaje'!L8="","",'Conocimiento del Lenguaje'!L8) ->  | J19: =IF('Conocimiento del Lenguaje'!M8="","",'Conocimiento del Lenguaje'!M8) ->  | K19: =IF('Conocimiento del Lenguaje'!N8="","",'Conocimiento del Lenguaje'!N8) ->  | L19: =IF('Conocimiento del Lenguaje'!O8="","",'Conocimiento del Lenguaje'!O8) ->  | M19: =IF('Conocimiento del Lenguaje'!P8="","",'Conocimiento del Lenguaje'!P8) ->  | N19: =IF('Conocimiento del Lenguaje'!Q8="","",'Conocimiento del Lenguaje'!Q8) ->  | O19: =IF('Conocimiento del Lenguaje'!R8="","",'Conocimiento del Lenguaje'!R8) ->  | P19: =IF('Conocimiento del Lenguaje'!S8="","",'Conocimiento del Lenguaje'!S8) ->  | Q19: =IF('Conocimiento del Lenguaje'!T8="","",'Conocimiento del Lenguaje'!T8) ->  | R19: =IF('Conocimiento del Lenguaje'!U8="","",'Conocimiento del Lenguaje'!U8) ->  | S19: =IF('Conocimiento del Lenguaje'!V8="","",'Conocimiento del Lenguaje'!V8) ->  | T19: =IF('Conocimiento del Lenguaje'!W8="","",'Conocimiento del Lenguaje'!W8) ->  | U19: =IF('Conocimiento del Lenguaje'!X8="","",'Conocimiento del Lenguaje'!X8) ->  | V19: =IF('Conocimiento del Lenguaje'!Y8="","",'Conocimiento del Lenguaje'!Y8) ->  | W19: =IF('Conocimiento del Lenguaje'!Z8="","",'Conocimiento del Lenguaje'!Z8) ->  | X19: =IF('Conocimiento del Lenguaje'!AA8="","",'Conocimiento del Lenguaje'!AA8) ->  | Y19: =IF('Conocimiento del Lenguaje'!AB8="","",'Conocimiento del Lenguaje'!AB8) ->  | Z19: =IF('Conocimiento del Lenguaje'!AC8="","",'Conocimiento del Lenguaje'!AC8) ->  | AA19: =IF('Conocimiento del Lenguaje'!AD8="","",'Conocimiento del Lenguaje'!AD8) ->  | AB19: =IF('Conocimiento del Lenguaje'!AE8="","",'Conocimiento del Lenguaje'!AE8) ->  | AC19: =IF('Conocimiento del Lenguaje'!AF8="","",'Conocimiento del Lenguaje'!AF8) ->  | AD19: =IF('Conocimiento del Lenguaje'!AG8="","",'Conocimiento del Lenguaje'!AG8) ->  | AE19: =IF('Conocimiento del Lenguaje'!AH8="","",'Conocimiento del Lenguaje'!AH8) ->  | AF19: =IF('Conocimiento del Lenguaje'!AI8="","",'Conocimiento del Lenguaje'!AI8) ->  | AG19: =IF('Conocimiento del Lenguaje'!AJ8="","",'Conocimiento del Lenguaje'!AJ8) ->  | AH19: =IF('Conocimiento del Lenguaje'!AK8="","",'Conocimiento del Lenguaje'!AK8) ->  | AI19: =IF('Conocimiento del Lenguaje'!AL8="","",'Conocimiento del Lenguaje'!AL8) ->  | AJ19: =IF('Conocimiento del Lenguaje'!AM8="","",'Conocimiento del Lenguaje'!AM8) ->  | AK19: =IF('Conocimiento del Lenguaje'!AN8="","",'Conocimiento del Lenguaje'!AN8) ->  | AL19: =IF('Conocimiento del Lenguaje'!AO8="","",'Conocimiento del Lenguaje'!AO8) ->  | AM19: =IF('Conocimiento del Lenguaje'!AP8="","",'Conocimiento del Lenguaje'!AP8) -> 
D20: Criterio Evaluación 2.4 | E20: =IF('Conocimiento del Lenguaje'!H9="","",'Conocimiento del Lenguaje'!H9) ->  | F20: =IF('Conocimiento del Lenguaje'!I9="","",'Conocimiento del Lenguaje'!I9) ->  | G20: =IF('Conocimiento del Lenguaje'!J9="","",'Conocimiento del Lenguaje'!J9) ->  | H20: =IF('Conocimiento del Lenguaje'!K9="","",'Conocimiento del Lenguaje'!K9) ->  | I20: =IF('Conocimiento del Lenguaje'!L9="","",'Conocimiento del Lenguaje'!L9) ->  | J20: =IF('Conocimiento del Lenguaje'!M9="","",'Conocimiento del Lenguaje'!M9) ->  | K20: =IF('Conocimiento del Lenguaje'!N9="","",'Conocimiento del Lenguaje'!N9) ->  | L20: =IF('Conocimiento del Lenguaje'!O9="","",'Conocimiento del Lenguaje'!O9) ->  | M20: =IF('Conocimiento del Lenguaje'!P9="","",'Conocimiento del Lenguaje'!P9) ->  | N20: =IF('Conocimiento del Lenguaje'!Q9="","",'Conocimiento del Lenguaje'!Q9) ->  | O20: =IF('Conocimiento del Lenguaje'!R9="","",'Conocimiento del Lenguaje'!R9) ->  | P20: =IF('Conocimiento del Lenguaje'!S9="","",'Conocimiento del Lenguaje'!S9) ->  | Q20: =IF('Conocimiento del Lenguaje'!T9="","",'Conocimiento del Lenguaje'!T9) ->  | R20: =IF('Conocimiento del Lenguaje'!U9="","",'Conocimiento del Lenguaje'!U9) ->  | S20: =IF('Conocimiento del Lenguaje'!V9="","",'Conocimiento del Lenguaje'!V9) ->  | T20: =IF('Conocimiento del Lenguaje'!W9="","",'Conocimiento del Lenguaje'!W9) ->  | U20: =IF('Conocimiento del Lenguaje'!X9="","",'Conocimiento del Lenguaje'!X9) ->  | V20: =IF('Conocimiento del Lenguaje'!Y9="","",'Conocimiento del Lenguaje'!Y9) ->  | W20: =IF('Conocimiento del Lenguaje'!Z9="","",'Conocimiento del Lenguaje'!Z9) ->  | X20: =IF('Conocimiento del Lenguaje'!AA9="","",'Conocimiento del Lenguaje'!AA9) ->  | Y20: =IF('Conocimiento del Lenguaje'!AB9="","",'Conocimiento del Lenguaje'!AB9) ->  | Z20: =IF('Conocimiento del Lenguaje'!AC9="","",'Conocimiento del Lenguaje'!AC9) ->  | AA20: =IF('Conocimiento del Lenguaje'!AD9="","",'Conocimiento del Lenguaje'!AD9) ->  | AB20: =IF('Conocimiento del Lenguaje'!AE9="","",'Conocimiento del Lenguaje'!AE9) ->  | AC20: =IF('Conocimiento del Lenguaje'!AF9="","",'Conocimiento del Lenguaje'!AF9) ->  | AD20: =IF('Conocimiento del Lenguaje'!AG9="","",'Conocimiento del Lenguaje'!AG9) ->  | AE20: =IF('Conocimiento del Lenguaje'!AH9="","",'Conocimiento del Lenguaje'!AH9) ->  | AF20: =IF('Conocimiento del Lenguaje'!AI9="","",'Conocimiento del Lenguaje'!AI9) ->  | AG20: =IF('Conocimiento del Lenguaje'!AJ9="","",'Conocimiento del Lenguaje'!AJ9) ->  | AH20: =IF('Conocimiento del Lenguaje'!AK9="","",'Conocimiento del Lenguaje'!AK9) ->  | AI20: =IF('Conocimiento del Lenguaje'!AL9="","",'Conocimiento del Lenguaje'!AL9) ->  | AJ20: =IF('Conocimiento del Lenguaje'!AM9="","",'Conocimiento del Lenguaje'!AM9) ->  | AK20: =IF('Conocimiento del Lenguaje'!AN9="","",'Conocimiento del Lenguaje'!AN9) ->  | AL20: =IF('Conocimiento del Lenguaje'!AO9="","",'Conocimiento del Lenguaje'!AO9) ->  | AM20: =IF('Conocimiento del Lenguaje'!AP9="","",'Conocimiento del Lenguaje'!AP9) -> 
C21: Comp. Esp. 3 | D21: Criterio Evaluación 3.1 | E21: =IF('Conocimiento del Lenguaje'!H10="","",'Conocimiento del Lenguaje'!H10) ->  | F21: =IF('Conocimiento del Lenguaje'!I10="","",'Conocimiento del Lenguaje'!I10) ->  | G21: =IF('Conocimiento del Lenguaje'!J10="","",'Conocimiento del Lenguaje'!J10) ->  | H21: =IF('Conocimiento del Lenguaje'!K10="","",'Conocimiento del Lenguaje'!K10) ->  | I21: =IF('Conocimiento del Lenguaje'!L10="","",'Conocimiento del Lenguaje'!L10) ->  | J21: =IF('Conocimiento del Lenguaje'!M10="","",'Conocimiento del Lenguaje'!M10) ->  | K21: =IF('Conocimiento del Lenguaje'!N10="","",'Conocimiento del Lenguaje'!N10) ->  | L21: =IF('Conocimiento del Lenguaje'!O10="","",'Conocimiento del Lenguaje'!O10) ->  | M21: =IF('Conocimiento del Lenguaje'!P10="","",'Conocimiento del Lenguaje'!P10) ->  | N21: =IF('Conocimiento del Lenguaje'!Q10="","",'Conocimiento del Lenguaje'!Q10) ->  | O21: =IF('Conocimiento del Lenguaje'!R10="","",'Conocimiento del Lenguaje'!R10) ->  | P21: =IF('Conocimiento del Lenguaje'!S10="","",'Conocimiento del Lenguaje'!S10) ->  | Q21: =IF('Conocimiento del Lenguaje'!T10="","",'Conocimiento del Lenguaje'!T10) ->  | R21: =IF('Conocimiento del Lenguaje'!U10="","",'Conocimiento del Lenguaje'!U10) ->  | S21: =IF('Conocimiento del Lenguaje'!V10="","",'Conocimiento del Lenguaje'!V10) ->  | T21: =IF('Conocimiento del Lenguaje'!W10="","",'Conocimiento del Lenguaje'!W10) ->  | U21: =IF('Conocimiento del Lenguaje'!X10="","",'Conocimiento del Lenguaje'!X10) ->  | V21: =IF('Conocimiento del Lenguaje'!Y10="","",'Conocimiento del Lenguaje'!Y10) ->  | W21: =IF('Conocimiento del Lenguaje'!Z10="","",'Conocimiento del Lenguaje'!Z10) ->  | X21: =IF('Conocimiento del Lenguaje'!AA10="","",'Conocimiento del Lenguaje'!AA10) ->  | Y21: =IF('Conocimiento del Lenguaje'!AB10="","",'Conocimiento del Lenguaje'!AB10) ->  | Z21: =IF('Conocimiento del Lenguaje'!AC10="","",'Conocimiento del Lenguaje'!AC10) ->  | AA21: =IF('Conocimiento del Lenguaje'!AD10="","",'Conocimiento del Lenguaje'!AD10) ->  | AB21: =IF('Conocimiento del Lenguaje'!AE10="","",'Conocimiento del Lenguaje'!AE10) ->  | AC21: =IF('Conocimiento del Lenguaje'!AF10="","",'Conocimiento del Lenguaje'!AF10) ->  | AD21: =IF('Conocimiento del Lenguaje'!AG10="","",'Conocimiento del Lenguaje'!AG10) ->  | AE21: =IF('Conocimiento del Lenguaje'!AH10="","",'Conocimiento del Lenguaje'!AH10) ->  | AF21: =IF('Conocimiento del Lenguaje'!AI10="","",'Conocimiento del Lenguaje'!AI10) ->  | AG21: =IF('Conocimiento del Lenguaje'!AJ10="","",'Conocimiento del Lenguaje'!AJ10) ->  | AH21: =IF('Conocimiento del Lenguaje'!AK10="","",'Conocimiento del Lenguaje'!AK10) ->  | AI21: =IF('Conocimiento del Lenguaje'!AL10="","",'Conocimiento del Lenguaje'!AL10) ->  | AJ21: =IF('Conocimiento del Lenguaje'!AM10="","",'Conocimiento del Lenguaje'!AM10) ->  | AK21: =IF('Conocimiento del Lenguaje'!AN10="","",'Conocimiento del Lenguaje'!AN10) ->  | AL21: =IF('Conocimiento del Lenguaje'!AO10="","",'Conocimiento del Lenguaje'!AO10) ->  | AM21: =IF('Conocimiento del Lenguaje'!AP10="","",'Conocimiento del Lenguaje'!AP10) -> 
D22: Criterio Evaluación 3.2 | E22: =IF('Conocimiento del Lenguaje'!H11="","",'Conocimiento del Lenguaje'!H11) ->  | F22: =IF('Conocimiento del Lenguaje'!I11="","",'Conocimiento del Lenguaje'!I11) ->  | G22: =IF('Conocimiento del Lenguaje'!J11="","",'Conocimiento del Lenguaje'!J11) ->  | H22: =IF('Conocimiento del Lenguaje'!K11="","",'Conocimiento del Lenguaje'!K11) ->  | I22: =IF('Conocimiento del Lenguaje'!L11="","",'Conocimiento del Lenguaje'!L11) ->  | J22: =IF('Conocimiento del Lenguaje'!M11="","",'Conocimiento del Lenguaje'!M11) ->  | K22: =IF('Conocimiento del Lenguaje'!N11="","",'Conocimiento del Lenguaje'!N11) ->  | L22: =IF('Conocimiento del Lenguaje'!O11="","",'Conocimiento del Lenguaje'!O11) ->  | M22: =IF('Conocimiento del Lenguaje'!P11="","",'Conocimiento del Lenguaje'!P11) ->  | N22: =IF('Conocimiento del Lenguaje'!Q11="","",'Conocimiento del Lenguaje'!Q11) ->  | O22: =IF('Conocimiento del Lenguaje'!R11="","",'Conocimiento del Lenguaje'!R11) ->  | P22: =IF('Conocimiento del Lenguaje'!S11="","",'Conocimiento del Lenguaje'!S11) ->  | Q22: =IF('Conocimiento del Lenguaje'!T11="","",'Conocimiento del Lenguaje'!T11) ->  | R22: =IF('Conocimiento del Lenguaje'!U11="","",'Conocimiento del Lenguaje'!U11) ->  | S22: =IF('Conocimiento del Lenguaje'!V11="","",'Conocimiento del Lenguaje'!V11) ->  | T22: =IF('Conocimiento del Lenguaje'!W11="","",'Conocimiento del Lenguaje'!W11) ->  | U22: =IF('Conocimiento del Lenguaje'!X11="","",'Conocimiento del Lenguaje'!X11) ->  | V22: =IF('Conocimiento del Lenguaje'!Y11="","",'Conocimiento del Lenguaje'!Y11) ->  | W22: =IF('Conocimiento del Lenguaje'!Z11="","",'Conocimiento del Lenguaje'!Z11) ->  | X22: =IF('Conocimiento del Lenguaje'!AA11="","",'Conocimiento del Lenguaje'!AA11) ->  | Y22: =IF('Conocimiento del Lenguaje'!AB11="","",'Conocimiento del Lenguaje'!AB11) ->  | Z22: =IF('Conocimiento del Lenguaje'!AC11="","",'Conocimiento del Lenguaje'!AC11) ->  | AA22: =IF('Conocimiento del Lenguaje'!AD11="","",'Conocimiento del Lenguaje'!AD11) ->  | AB22: =IF('Conocimiento del Lenguaje'!AE11="","",'Conocimiento del Lenguaje'!AE11) ->  | AC22: =IF('Conocimiento del Lenguaje'!AF11="","",'Conocimiento del Lenguaje'!AF11) ->  | AD22: =IF('Conocimiento del Lenguaje'!AG11="","",'Conocimiento del Lenguaje'!AG11) ->  | AE22: =IF('Conocimiento del Lenguaje'!AH11="","",'Conocimiento del Lenguaje'!AH11) ->  | AF22: =IF('Conocimiento del Lenguaje'!AI11="","",'Conocimiento del Lenguaje'!AI11) ->  | AG22: =IF('Conocimiento del Lenguaje'!AJ11="","",'Conocimiento del Lenguaje'!AJ11) ->  | AH22: =IF('Conocimiento del Lenguaje'!AK11="","",'Conocimiento del Lenguaje'!AK11) ->  | AI22: =IF('Conocimiento del Lenguaje'!AL11="","",'Conocimiento del Lenguaje'!AL11) ->  | AJ22: =IF('Conocimiento del Lenguaje'!AM11="","",'Conocimiento del Lenguaje'!AM11) ->  | AK22: =IF('Conocimiento del Lenguaje'!AN11="","",'Conocimiento del Lenguaje'!AN11) ->  | AL22: =IF('Conocimiento del Lenguaje'!AO11="","",'Conocimiento del Lenguaje'!AO11) ->  | AM22: =IF('Conocimiento del Lenguaje'!AP11="","",'Conocimiento del Lenguaje'!AP11) -> 
C23: Comp. Esp. 4 | D23: Criterio Evaluación 4.1 | E23: =IF('Conocimiento del Lenguaje'!H12="","",'Conocimiento del Lenguaje'!H12) ->  | F23: =IF('Conocimiento del Lenguaje'!I12="","",'Conocimiento del Lenguaje'!I12) ->  | G23: =IF('Conocimiento del Lenguaje'!J12="","",'Conocimiento del Lenguaje'!J12) ->  | H23: =IF('Conocimiento del Lenguaje'!K12="","",'Conocimiento del Lenguaje'!K12) ->  | I23: =IF('Conocimiento del Lenguaje'!L12="","",'Conocimiento del Lenguaje'!L12) ->  | J23: =IF('Conocimiento del Lenguaje'!M12="","",'Conocimiento del Lenguaje'!M12) ->  | K23: =IF('Conocimiento del Lenguaje'!N12="","",'Conocimiento del Lenguaje'!N12) ->  | L23: =IF('Conocimiento del Lenguaje'!O12="","",'Conocimiento del Lenguaje'!O12) ->  | M23: =IF('Conocimiento del Lenguaje'!P12="","",'Conocimiento del Lenguaje'!P12) ->  | N23: =IF('Conocimiento del Lenguaje'!Q12="","",'Conocimiento del Lenguaje'!Q12) ->  | O23: =IF('Conocimiento del Lenguaje'!R12="","",'Conocimiento del Lenguaje'!R12) ->  | P23: =IF('Conocimiento del Lenguaje'!S12="","",'Conocimiento del Lenguaje'!S12) ->  | Q23: =IF('Conocimiento del Lenguaje'!T12="","",'Conocimiento del Lenguaje'!T12) ->  | R23: =IF('Conocimiento del Lenguaje'!U12="","",'Conocimiento del Lenguaje'!U12) ->  | S23: =IF('Conocimiento del Lenguaje'!V12="","",'Conocimiento del Lenguaje'!V12) ->  | T23: =IF('Conocimiento del Lenguaje'!W12="","",'Conocimiento del Lenguaje'!W12) ->  | U23: =IF('Conocimiento del Lenguaje'!X12="","",'Conocimiento del Lenguaje'!X12) ->  | V23: =IF('Conocimiento del Lenguaje'!Y12="","",'Conocimiento del Lenguaje'!Y12) ->  | W23: =IF('Conocimiento del Lenguaje'!Z12="","",'Conocimiento del Lenguaje'!Z12) ->  | X23: =IF('Conocimiento del Lenguaje'!AA12="","",'Conocimiento del Lenguaje'!AA12) ->  | Y23: =IF('Conocimiento del Lenguaje'!AB12="","",'Conocimiento del Lenguaje'!AB12) ->  | Z23: =IF('Conocimiento del Lenguaje'!AC12="","",'Conocimiento del Lenguaje'!AC12) ->  | AA23: =IF('Conocimiento del Lenguaje'!AD12="","",'Conocimiento del Lenguaje'!AD12) ->  | AB23: =IF('Conocimiento del Lenguaje'!AE12="","",'Conocimiento del Lenguaje'!AE12) ->  | AC23: =IF('Conocimiento del Lenguaje'!AF12="","",'Conocimiento del Lenguaje'!AF12) ->  | AD23: =IF('Conocimiento del Lenguaje'!AG12="","",'Conocimiento del Lenguaje'!AG12) ->  | AE23: =IF('Conocimiento del Lenguaje'!AH12="","",'Conocimiento del Lenguaje'!AH12) ->  | AF23: =IF('Conocimiento del Lenguaje'!AI12="","",'Conocimiento del Lenguaje'!AI12) ->  | AG23: =IF('Conocimiento del Lenguaje'!AJ12="","",'Conocimiento del Lenguaje'!AJ12) ->  | AH23: =IF('Conocimiento del Lenguaje'!AK12="","",'Conocimiento del Lenguaje'!AK12) ->  | AI23: =IF('Conocimiento del Lenguaje'!AL12="","",'Conocimiento del Lenguaje'!AL12) ->  | AJ23: =IF('Conocimiento del Lenguaje'!AM12="","",'Conocimiento del Lenguaje'!AM12) ->  | AK23: =IF('Conocimiento del Lenguaje'!AN12="","",'Conocimiento del Lenguaje'!AN12) ->  | AL23: =IF('Conocimiento del Lenguaje'!AO12="","",'Conocimiento del Lenguaje'!AO12) ->  | AM23: =IF('Conocimiento del Lenguaje'!AP12="","",'Conocimiento del Lenguaje'!AP12) -> 
D24: Criterio Evaluación 4.2 | E24: =IF('Conocimiento del Lenguaje'!H13="","",'Conocimiento del Lenguaje'!H13) ->  | F24: =IF('Conocimiento del Lenguaje'!I13="","",'Conocimiento del Lenguaje'!I13) ->  | G24: =IF('Conocimiento del Lenguaje'!J13="","",'Conocimiento del Lenguaje'!J13) ->  | H24: =IF('Conocimiento del Lenguaje'!K13="","",'Conocimiento del Lenguaje'!K13) ->  | I24: =IF('Conocimiento del Lenguaje'!L13="","",'Conocimiento del Lenguaje'!L13) ->  | J24: =IF('Conocimiento del Lenguaje'!M13="","",'Conocimiento del Lenguaje'!M13) ->  | K24: =IF('Conocimiento del Lenguaje'!N13="","",'Conocimiento del Lenguaje'!N13) ->  | L24: =IF('Conocimiento del Lenguaje'!O13="","",'Conocimiento del Lenguaje'!O13) ->  | M24: =IF('Conocimiento del Lenguaje'!P13="","",'Conocimiento del Lenguaje'!P13) ->  | N24: =IF('Conocimiento del Lenguaje'!Q13="","",'Conocimiento del Lenguaje'!Q13) ->  | O24: =IF('Conocimiento del Lenguaje'!R13="","",'Conocimiento del Lenguaje'!R13) ->  | P24: =IF('Conocimiento del Lenguaje'!S13="","",'Conocimiento del Lenguaje'!S13) ->  | Q24: =IF('Conocimiento del Lenguaje'!T13="","",'Conocimiento del Lenguaje'!T13) ->  | R24: =IF('Conocimiento del Lenguaje'!U13="","",'Conocimiento del Lenguaje'!U13) ->  | S24: =IF('Conocimiento del Lenguaje'!V13="","",'Conocimiento del Lenguaje'!V13) ->  | T24: =IF('Conocimiento del Lenguaje'!W13="","",'Conocimiento del Lenguaje'!W13) ->  | U24: =IF('Conocimiento del Lenguaje'!X13="","",'Conocimiento del Lenguaje'!X13) ->  | V24: =IF('Conocimiento del Lenguaje'!Y13="","",'Conocimiento del Lenguaje'!Y13) ->  | W24: =IF('Conocimiento del Lenguaje'!Z13="","",'Conocimiento del Lenguaje'!Z13) ->  | X24: =IF('Conocimiento del Lenguaje'!AA13="","",'Conocimiento del Lenguaje'!AA13) ->  | Y24: =IF('Conocimiento del Lenguaje'!AB13="","",'Conocimiento del Lenguaje'!AB13) ->  | Z24: =IF('Conocimiento del Lenguaje'!AC13="","",'Conocimiento del Lenguaje'!AC13) ->  | AA24: =IF('Conocimiento del Lenguaje'!AD13="","",'Conocimiento del Lenguaje'!AD13) ->  | AB24: =IF('Conocimiento del Lenguaje'!AE13="","",'Conocimiento del Lenguaje'!AE13) ->  | AC24: =IF('Conocimiento del Lenguaje'!AF13="","",'Conocimiento del Lenguaje'!AF13) ->  | AD24: =IF('Conocimiento del Lenguaje'!AG13="","",'Conocimiento del Lenguaje'!AG13) ->  | AE24: =IF('Conocimiento del Lenguaje'!AH13="","",'Conocimiento del Lenguaje'!AH13) ->  | AF24: =IF('Conocimiento del Lenguaje'!AI13="","",'Conocimiento del Lenguaje'!AI13) ->  | AG24: =IF('Conocimiento del Lenguaje'!AJ13="","",'Conocimiento del Lenguaje'!AJ13) ->  | AH24: =IF('Conocimiento del Lenguaje'!AK13="","",'Conocimiento del Lenguaje'!AK13) ->  | AI24: =IF('Conocimiento del Lenguaje'!AL13="","",'Conocimiento del Lenguaje'!AL13) ->  | AJ24: =IF('Conocimiento del Lenguaje'!AM13="","",'Conocimiento del Lenguaje'!AM13) ->  | AK24: =IF('Conocimiento del Lenguaje'!AN13="","",'Conocimiento del Lenguaje'!AN13) ->  | AL24: =IF('Conocimiento del Lenguaje'!AO13="","",'Conocimiento del Lenguaje'!AO13) ->  | AM24: =IF('Conocimiento del Lenguaje'!AP13="","",'Conocimiento del Lenguaje'!AP13) -> 
D25: Criterio Evaluación 4.3 | E25: =IF('Conocimiento del Lenguaje'!H14="","",'Conocimiento del Lenguaje'!H14) ->  | F25: =IF('Conocimiento del Lenguaje'!I14="","",'Conocimiento del Lenguaje'!I14) ->  | G25: =IF('Conocimiento del Lenguaje'!J14="","",'Conocimiento del Lenguaje'!J14) ->  | H25: =IF('Conocimiento del Lenguaje'!K14="","",'Conocimiento del Lenguaje'!K14) ->  | I25: =IF('Conocimiento del Lenguaje'!L14="","",'Conocimiento del Lenguaje'!L14) ->  | J25: =IF('Conocimiento del Lenguaje'!M14="","",'Conocimiento del Lenguaje'!M14) ->  | K25: =IF('Conocimiento del Lenguaje'!N14="","",'Conocimiento del Lenguaje'!N14) ->  | L25: =IF('Conocimiento del Lenguaje'!O14="","",'Conocimiento del Lenguaje'!O14) ->  | M25: =IF('Conocimiento del Lenguaje'!P14="","",'Conocimiento del Lenguaje'!P14) ->  | N25: =IF('Conocimiento del Lenguaje'!Q14="","",'Conocimiento del Lenguaje'!Q14) ->  | O25: =IF('Conocimiento del Lenguaje'!R14="","",'Conocimiento del Lenguaje'!R14) ->  | P25: =IF('Conocimiento del Lenguaje'!S14="","",'Conocimiento del Lenguaje'!S14) ->  | Q25: =IF('Conocimiento del Lenguaje'!T14="","",'Conocimiento del Lenguaje'!T14) ->  | R25: =IF('Conocimiento del Lenguaje'!U14="","",'Conocimiento del Lenguaje'!U14) ->  | S25: =IF('Conocimiento del Lenguaje'!V14="","",'Conocimiento del Lenguaje'!V14) ->  | T25: =IF('Conocimiento del Lenguaje'!W14="","",'Conocimiento del Lenguaje'!W14) ->  | U25: =IF('Conocimiento del Lenguaje'!X14="","",'Conocimiento del Lenguaje'!X14) ->  | V25: =IF('Conocimiento del Lenguaje'!Y14="","",'Conocimiento del Lenguaje'!Y14) ->  | W25: =IF('Conocimiento del Lenguaje'!Z14="","",'Conocimiento del Lenguaje'!Z14) ->  | X25: =IF('Conocimiento del Lenguaje'!AA14="","",'Conocimiento del Lenguaje'!AA14) ->  | Y25: =IF('Conocimiento del Lenguaje'!AB14="","",'Conocimiento del Lenguaje'!AB14) ->  | Z25: =IF('Conocimiento del Lenguaje'!AC14="","",'Conocimiento del Lenguaje'!AC14) ->  | AA25: =IF('Conocimiento del Lenguaje'!AD14="","",'Conocimiento del Lenguaje'!AD14) ->  | AB25: =IF('Conocimiento del Lenguaje'!AE14="","",'Conocimiento del Lenguaje'!AE14) ->  | AC25: =IF('Conocimiento del Lenguaje'!AF14="","",'Conocimiento del Lenguaje'!AF14) ->  | AD25: =IF('Conocimiento del Lenguaje'!AG14="","",'Conocimiento del Lenguaje'!AG14) ->  | AE25: =IF('Conocimiento del Lenguaje'!AH14="","",'Conocimiento del Lenguaje'!AH14) ->  | AF25: =IF('Conocimiento del Lenguaje'!AI14="","",'Conocimiento del Lenguaje'!AI14) ->  | AG25: =IF('Conocimiento del Lenguaje'!AJ14="","",'Conocimiento del Lenguaje'!AJ14) ->  | AH25: =IF('Conocimiento del Lenguaje'!AK14="","",'Conocimiento del Lenguaje'!AK14) ->  | AI25: =IF('Conocimiento del Lenguaje'!AL14="","",'Conocimiento del Lenguaje'!AL14) ->  | AJ25: =IF('Conocimiento del Lenguaje'!AM14="","",'Conocimiento del Lenguaje'!AM14) ->  | AK25: =IF('Conocimiento del Lenguaje'!AN14="","",'Conocimiento del Lenguaje'!AN14) ->  | AL25: =IF('Conocimiento del Lenguaje'!AO14="","",'Conocimiento del Lenguaje'!AO14) ->  | AM25: =IF('Conocimiento del Lenguaje'!AP14="","",'Conocimiento del Lenguaje'!AP14) -> 
C26: Comp. Esp. 5 | D26: Criterio Evaluación 5.1 | E26: =IF('Conocimiento del Lenguaje'!H15="","",'Conocimiento del Lenguaje'!H15) ->  | F26: =IF('Conocimiento del Lenguaje'!I15="","",'Conocimiento del Lenguaje'!I15) ->  | G26: =IF('Conocimiento del Lenguaje'!J15="","",'Conocimiento del Lenguaje'!J15) ->  | H26: =IF('Conocimiento del Lenguaje'!K15="","",'Conocimiento del Lenguaje'!K15) ->  | I26: =IF('Conocimiento del Lenguaje'!L15="","",'Conocimiento del Lenguaje'!L15) ->  | J26: =IF('Conocimiento del Lenguaje'!M15="","",'Conocimiento del Lenguaje'!M15) ->  | K26: =IF('Conocimiento del Lenguaje'!N15="","",'Conocimiento del Lenguaje'!N15) ->  | L26: =IF('Conocimiento del Lenguaje'!O15="","",'Conocimiento del Lenguaje'!O15) ->  | M26: =IF('Conocimiento del Lenguaje'!P15="","",'Conocimiento del Lenguaje'!P15) ->  | N26: =IF('Conocimiento del Lenguaje'!Q15="","",'Conocimiento del Lenguaje'!Q15) ->  | O26: =IF('Conocimiento del Lenguaje'!R15="","",'Conocimiento del Lenguaje'!R15) ->  | P26: =IF('Conocimiento del Lenguaje'!S15="","",'Conocimiento del Lenguaje'!S15) ->  | Q26: =IF('Conocimiento del Lenguaje'!T15="","",'Conocimiento del Lenguaje'!T15) ->  | R26: =IF('Conocimiento del Lenguaje'!U15="","",'Conocimiento del Lenguaje'!U15) ->  | S26: =IF('Conocimiento del Lenguaje'!V15="","",'Conocimiento del Lenguaje'!V15) ->  | T26: =IF('Conocimiento del Lenguaje'!W15="","",'Conocimiento del Lenguaje'!W15) ->  | U26: =IF('Conocimiento del Lenguaje'!X15="","",'Conocimiento del Lenguaje'!X15) ->  | V26: =IF('Conocimiento del Lenguaje'!Y15="","",'Conocimiento del Lenguaje'!Y15) ->  | W26: =IF('Conocimiento del Lenguaje'!Z15="","",'Conocimiento del Lenguaje'!Z15) ->  | X26: =IF('Conocimiento del Lenguaje'!AA15="","",'Conocimiento del Lenguaje'!AA15) ->  | Y26: =IF('Conocimiento del Lenguaje'!AB15="","",'Conocimiento del Lenguaje'!AB15) ->  | Z26: =IF('Conocimiento del Lenguaje'!AC15="","",'Conocimiento del Lenguaje'!AC15) ->  | AA26: =IF('Conocimiento del Lenguaje'!AD15="","",'Conocimiento del Lenguaje'!AD15) ->  | AB26: =IF('Conocimiento del Lenguaje'!AE15="","",'Conocimiento del Lenguaje'!AE15) ->  | AC26: =IF('Conocimiento del Lenguaje'!AF15="","",'Conocimiento del Lenguaje'!AF15) ->  | AD26: =IF('Conocimiento del Lenguaje'!AG15="","",'Conocimiento del Lenguaje'!AG15) ->  | AE26: =IF('Conocimiento del Lenguaje'!AH15="","",'Conocimiento del Lenguaje'!AH15) ->  | AF26: =IF('Conocimiento del Lenguaje'!AI15="","",'Conocimiento del Lenguaje'!AI15) ->  | AG26: =IF('Conocimiento del Lenguaje'!AJ15="","",'Conocimiento del Lenguaje'!AJ15) ->  | AH26: =IF('Conocimiento del Lenguaje'!AK15="","",'Conocimiento del Lenguaje'!AK15) ->  | AI26: =IF('Conocimiento del Lenguaje'!AL15="","",'Conocimiento del Lenguaje'!AL15) ->  | AJ26: =IF('Conocimiento del Lenguaje'!AM15="","",'Conocimiento del Lenguaje'!AM15) ->  | AK26: =IF('Conocimiento del Lenguaje'!AN15="","",'Conocimiento del Lenguaje'!AN15) ->  | AL26: =IF('Conocimiento del Lenguaje'!AO15="","",'Conocimiento del Lenguaje'!AO15) ->  | AM26: =IF('Conocimiento del Lenguaje'!AP15="","",'Conocimiento del Lenguaje'!AP15) -> 
D27: Criterio Evaluación 5.2 | E27: =IF('Conocimiento del Lenguaje'!H16="","",'Conocimiento del Lenguaje'!H16) ->  | F27: =IF('Conocimiento del Lenguaje'!I16="","",'Conocimiento del Lenguaje'!I16) ->  | G27: =IF('Conocimiento del Lenguaje'!J16="","",'Conocimiento del Lenguaje'!J16) ->  | H27: =IF('Conocimiento del Lenguaje'!K16="","",'Conocimiento del Lenguaje'!K16) ->  | I27: =IF('Conocimiento del Lenguaje'!L16="","",'Conocimiento del Lenguaje'!L16) ->  | J27: =IF('Conocimiento del Lenguaje'!M16="","",'Conocimiento del Lenguaje'!M16) ->  | K27: =IF('Conocimiento del Lenguaje'!N16="","",'Conocimiento del Lenguaje'!N16) ->  | L27: =IF('Conocimiento del Lenguaje'!O16="","",'Conocimiento del Lenguaje'!O16) ->  | M27: =IF('Conocimiento del Lenguaje'!P16="","",'Conocimiento del Lenguaje'!P16) ->  | N27: =IF('Conocimiento del Lenguaje'!Q16="","",'Conocimiento del Lenguaje'!Q16) ->  | O27: =IF('Conocimiento del Lenguaje'!R16="","",'Conocimiento del Lenguaje'!R16) ->  | P27: =IF('Conocimiento del Lenguaje'!S16="","",'Conocimiento del Lenguaje'!S16) ->  | Q27: =IF('Conocimiento del Lenguaje'!T16="","",'Conocimiento del Lenguaje'!T16) ->  | R27: =IF('Conocimiento del Lenguaje'!U16="","",'Conocimiento del Lenguaje'!U16) ->  | S27: =IF('Conocimiento del Lenguaje'!V16="","",'Conocimiento del Lenguaje'!V16) ->  | T27: =IF('Conocimiento del Lenguaje'!W16="","",'Conocimiento del Lenguaje'!W16) ->  | U27: =IF('Conocimiento del Lenguaje'!X16="","",'Conocimiento del Lenguaje'!X16) ->  | V27: =IF('Conocimiento del Lenguaje'!Y16="","",'Conocimiento del Lenguaje'!Y16) ->  | W27: =IF('Conocimiento del Lenguaje'!Z16="","",'Conocimiento del Lenguaje'!Z16) ->  | X27: =IF('Conocimiento del Lenguaje'!AA16="","",'Conocimiento del Lenguaje'!AA16) ->  | Y27: =IF('Conocimiento del Lenguaje'!AB16="","",'Conocimiento del Lenguaje'!AB16) ->  | Z27: =IF('Conocimiento del Lenguaje'!AC16="","",'Conocimiento del Lenguaje'!AC16) ->  | AA27: =IF('Conocimiento del Lenguaje'!AD16="","",'Conocimiento del Lenguaje'!AD16) ->  | AB27: =IF('Conocimiento del Lenguaje'!AE16="","",'Conocimiento del Lenguaje'!AE16) ->  | AC27: =IF('Conocimiento del Lenguaje'!AF16="","",'Conocimiento del Lenguaje'!AF16) ->  | AD27: =IF('Conocimiento del Lenguaje'!AG16="","",'Conocimiento del Lenguaje'!AG16) ->  | AE27: =IF('Conocimiento del Lenguaje'!AH16="","",'Conocimiento del Lenguaje'!AH16) ->  | AF27: =IF('Conocimiento del Lenguaje'!AI16="","",'Conocimiento del Lenguaje'!AI16) ->  | AG27: =IF('Conocimiento del Lenguaje'!AJ16="","",'Conocimiento del Lenguaje'!AJ16) ->  | AH27: =IF('Conocimiento del Lenguaje'!AK16="","",'Conocimiento del Lenguaje'!AK16) ->  | AI27: =IF('Conocimiento del Lenguaje'!AL16="","",'Conocimiento del Lenguaje'!AL16) ->  | AJ27: =IF('Conocimiento del Lenguaje'!AM16="","",'Conocimiento del Lenguaje'!AM16) ->  | AK27: =IF('Conocimiento del Lenguaje'!AN16="","",'Conocimiento del Lenguaje'!AN16) ->  | AL27: =IF('Conocimiento del Lenguaje'!AO16="","",'Conocimiento del Lenguaje'!AO16) ->  | AM27: =IF('Conocimiento del Lenguaje'!AP16="","",'Conocimiento del Lenguaje'!AP16) -> 
C28: Comp. Esp. 6 | D28: Criterio Evaluación 6.1 | E28: =IF('Conocimiento del Lenguaje'!H17="","",'Conocimiento del Lenguaje'!H17) ->  | F28: =IF('Conocimiento del Lenguaje'!I17="","",'Conocimiento del Lenguaje'!I17) ->  | G28: =IF('Conocimiento del Lenguaje'!J17="","",'Conocimiento del Lenguaje'!J17) ->  | H28: =IF('Conocimiento del Lenguaje'!K17="","",'Conocimiento del Lenguaje'!K17) ->  | I28: =IF('Conocimiento del Lenguaje'!L17="","",'Conocimiento del Lenguaje'!L17) ->  | J28: =IF('Conocimiento del Lenguaje'!M17="","",'Conocimiento del Lenguaje'!M17) ->  | K28: =IF('Conocimiento del Lenguaje'!N17="","",'Conocimiento del Lenguaje'!N17) ->  | L28: =IF('Conocimiento del Lenguaje'!O17="","",'Conocimiento del Lenguaje'!O17) ->  | M28: =IF('Conocimiento del Lenguaje'!P17="","",'Conocimiento del Lenguaje'!P17) ->  | N28: =IF('Conocimiento del Lenguaje'!Q17="","",'Conocimiento del Lenguaje'!Q17) ->  | O28: =IF('Conocimiento del Lenguaje'!R17="","",'Conocimiento del Lenguaje'!R17) ->  | P28: =IF('Conocimiento del Lenguaje'!S17="","",'Conocimiento del Lenguaje'!S17) ->  | Q28: =IF('Conocimiento del Lenguaje'!T17="","",'Conocimiento del Lenguaje'!T17) ->  | R28: =IF('Conocimiento del Lenguaje'!U17="","",'Conocimiento del Lenguaje'!U17) ->  | S28: =IF('Conocimiento del Lenguaje'!V17="","",'Conocimiento del Lenguaje'!V17) ->  | T28: =IF('Conocimiento del Lenguaje'!W17="","",'Conocimiento del Lenguaje'!W17) ->  | U28: =IF('Conocimiento del Lenguaje'!X17="","",'Conocimiento del Lenguaje'!X17) ->  | V28: =IF('Conocimiento del Lenguaje'!Y17="","",'Conocimiento del Lenguaje'!Y17) ->  | W28: =IF('Conocimiento del Lenguaje'!Z17="","",'Conocimiento del Lenguaje'!Z17) ->  | X28: =IF('Conocimiento del Lenguaje'!AA17="","",'Conocimiento del Lenguaje'!AA17) ->  | Y28: =IF('Conocimiento del Lenguaje'!AB17="","",'Conocimiento del Lenguaje'!AB17) ->  | Z28: =IF('Conocimiento del Lenguaje'!AC17="","",'Conocimiento del Lenguaje'!AC17) ->  | AA28: =IF('Conocimiento del Lenguaje'!AD17="","",'Conocimiento del Lenguaje'!AD17) ->  | AB28: =IF('Conocimiento del Lenguaje'!AE17="","",'Conocimiento del Lenguaje'!AE17) ->  | AC28: =IF('Conocimiento del Lenguaje'!AF17="","",'Conocimiento del Lenguaje'!AF17) ->  | AD28: =IF('Conocimiento del Lenguaje'!AG17="","",'Conocimiento del Lenguaje'!AG17) ->  | AE28: =IF('Conocimiento del Lenguaje'!AH17="","",'Conocimiento del Lenguaje'!AH17) ->  | AF28: =IF('Conocimiento del Lenguaje'!AI17="","",'Conocimiento del Lenguaje'!AI17) ->  | AG28: =IF('Conocimiento del Lenguaje'!AJ17="","",'Conocimiento del Lenguaje'!AJ17) ->  | AH28: =IF('Conocimiento del Lenguaje'!AK17="","",'Conocimiento del Lenguaje'!AK17) ->  | AI28: =IF('Conocimiento del Lenguaje'!AL17="","",'Conocimiento del Lenguaje'!AL17) ->  | AJ28: =IF('Conocimiento del Lenguaje'!AM17="","",'Conocimiento del Lenguaje'!AM17) ->  | AK28: =IF('Conocimiento del Lenguaje'!AN17="","",'Conocimiento del Lenguaje'!AN17) ->  | AL28: =IF('Conocimiento del Lenguaje'!AO17="","",'Conocimiento del Lenguaje'!AO17) ->  | AM28: =IF('Conocimiento del Lenguaje'!AP17="","",'Conocimiento del Lenguaje'!AP17) -> 
D29: Criterio Evaluación 6.7 | E29: =IF('Conocimiento del Lenguaje'!H18="","",'Conocimiento del Lenguaje'!H18) ->  | F29: =IF('Conocimiento del Lenguaje'!I18="","",'Conocimiento del Lenguaje'!I18) ->  | G29: =IF('Conocimiento del Lenguaje'!J18="","",'Conocimiento del Lenguaje'!J18) ->  | H29: =IF('Conocimiento del Lenguaje'!K18="","",'Conocimiento del Lenguaje'!K18) ->  | I29: =IF('Conocimiento del Lenguaje'!L18="","",'Conocimiento del Lenguaje'!L18) ->  | J29: =IF('Conocimiento del Lenguaje'!M18="","",'Conocimiento del Lenguaje'!M18) ->  | K29: =IF('Conocimiento del Lenguaje'!N18="","",'Conocimiento del Lenguaje'!N18) ->  | L29: =IF('Conocimiento del Lenguaje'!O18="","",'Conocimiento del Lenguaje'!O18) ->  | M29: =IF('Conocimiento del Lenguaje'!P18="","",'Conocimiento del Lenguaje'!P18) ->  | N29: =IF('Conocimiento del Lenguaje'!Q18="","",'Conocimiento del Lenguaje'!Q18) ->  | O29: =IF('Conocimiento del Lenguaje'!R18="","",'Conocimiento del Lenguaje'!R18) ->  | P29: =IF('Conocimiento del Lenguaje'!S18="","",'Conocimiento del Lenguaje'!S18) ->  | Q29: =IF('Conocimiento del Lenguaje'!T18="","",'Conocimiento del Lenguaje'!T18) ->  | R29: =IF('Conocimiento del Lenguaje'!U18="","",'Conocimiento del Lenguaje'!U18) ->  | S29: =IF('Conocimiento del Lenguaje'!V18="","",'Conocimiento del Lenguaje'!V18) ->  | T29: =IF('Conocimiento del Lenguaje'!W18="","",'Conocimiento del Lenguaje'!W18) ->  | U29: =IF('Conocimiento del Lenguaje'!X18="","",'Conocimiento del Lenguaje'!X18) ->  | V29: =IF('Conocimiento del Lenguaje'!Y18="","",'Conocimiento del Lenguaje'!Y18) ->  | W29: =IF('Conocimiento del Lenguaje'!Z18="","",'Conocimiento del Lenguaje'!Z18) ->  | X29: =IF('Conocimiento del Lenguaje'!AA18="","",'Conocimiento del Lenguaje'!AA18) ->  | Y29: =IF('Conocimiento del Lenguaje'!AB18="","",'Conocimiento del Lenguaje'!AB18) ->  | Z29: =IF('Conocimiento del Lenguaje'!AC18="","",'Conocimiento del Lenguaje'!AC18) ->  | AA29: =IF('Conocimiento del Lenguaje'!AD18="","",'Conocimiento del Lenguaje'!AD18) ->  | AB29: =IF('Conocimiento del Lenguaje'!AE18="","",'Conocimiento del Lenguaje'!AE18) ->  | AC29: =IF('Conocimiento del Lenguaje'!AF18="","",'Conocimiento del Lenguaje'!AF18) ->  | AD29: =IF('Conocimiento del Lenguaje'!AG18="","",'Conocimiento del Lenguaje'!AG18) ->  | AE29: =IF('Conocimiento del Lenguaje'!AH18="","",'Conocimiento del Lenguaje'!AH18) ->  | AF29: =IF('Conocimiento del Lenguaje'!AI18="","",'Conocimiento del Lenguaje'!AI18) ->  | AG29: =IF('Conocimiento del Lenguaje'!AJ18="","",'Conocimiento del Lenguaje'!AJ18) ->  | AH29: =IF('Conocimiento del Lenguaje'!AK18="","",'Conocimiento del Lenguaje'!AK18) ->  | AI29: =IF('Conocimiento del Lenguaje'!AL18="","",'Conocimiento del Lenguaje'!AL18) ->  | AJ29: =IF('Conocimiento del Lenguaje'!AM18="","",'Conocimiento del Lenguaje'!AM18) ->  | AK29: =IF('Conocimiento del Lenguaje'!AN18="","",'Conocimiento del Lenguaje'!AN18) ->  | AL29: =IF('Conocimiento del Lenguaje'!AO18="","",'Conocimiento del Lenguaje'!AO18) ->  | AM29: =IF('Conocimiento del Lenguaje'!AP18="","",'Conocimiento del Lenguaje'!AP18) -> 
B30: Cultura Clásica | C30: Comp. Esp. 1 | D30: Criterio Evaluación 1.1 | E30: =IF('Cultura Clasica'!H4="","",'Cultura Clasica'!H4) ->  | F30: =IF('Cultura Clasica'!I4="","",'Cultura Clasica'!I4) ->  | G30: =IF('Cultura Clasica'!J4="","",'Cultura Clasica'!J4) ->  | H30: =IF('Cultura Clasica'!K4="","",'Cultura Clasica'!K4) ->  | I30: =IF('Cultura Clasica'!L4="","",'Cultura Clasica'!L4) ->  | J30: =IF('Cultura Clasica'!M4="","",'Cultura Clasica'!M4) ->  | K30: =IF('Cultura Clasica'!N4="","",'Cultura Clasica'!N4) ->  | L30: =IF('Cultura Clasica'!O4="","",'Cultura Clasica'!O4) ->  | M30: =IF('Cultura Clasica'!P4="","",'Cultura Clasica'!P4) ->  | N30: =IF('Cultura Clasica'!Q4="","",'Cultura Clasica'!Q4) ->  | O30: =IF('Cultura Clasica'!R4="","",'Cultura Clasica'!R4) ->  | P30: =IF('Cultura Clasica'!S4="","",'Cultura Clasica'!S4) ->  | Q30: =IF('Cultura Clasica'!T4="","",'Cultura Clasica'!T4) ->  | R30: =IF('Cultura Clasica'!U4="","",'Cultura Clasica'!U4) ->  | S30: =IF('Cultura Clasica'!V4="","",'Cultura Clasica'!V4) ->  | T30: =IF('Cultura Clasica'!W4="","",'Cultura Clasica'!W4) ->  | U30: =IF('Cultura Clasica'!X4="","",'Cultura Clasica'!X4) ->  | V30: =IF('Cultura Clasica'!Y4="","",'Cultura Clasica'!Y4) ->  | W30: =IF('Cultura Clasica'!Z4="","",'Cultura Clasica'!Z4) ->  | X30: =IF('Cultura Clasica'!AA4="","",'Cultura Clasica'!AA4) ->  | Y30: =IF('Cultura Clasica'!AB4="","",'Cultura Clasica'!AB4) ->  | Z30: =IF('Cultura Clasica'!AC4="","",'Cultura Clasica'!AC4) ->  | AA30: =IF('Cultura Clasica'!AD4="","",'Cultura Clasica'!AD4) ->  | AB30: =IF('Cultura Clasica'!AE4="","",'Cultura Clasica'!AE4) ->  | AC30: =IF('Cultura Clasica'!AF4="","",'Cultura Clasica'!AF4) ->  | AD30: =IF('Cultura Clasica'!AG4="","",'Cultura Clasica'!AG4) ->  | AE30: =IF('Cultura Clasica'!AH4="","",'Cultura Clasica'!AH4) ->  | AF30: =IF('Cultura Clasica'!AI4="","",'Cultura Clasica'!AI4) ->  | AG30: =IF('Cultura Clasica'!AJ4="","",'Cultura Clasica'!AJ4) ->  | AH30: =IF('Cultura Clasica'!AK4="","",'Cultura Clasica'!AK4) ->  | AI30: =IF('Cultura Clasica'!AL4="","",'Cultura Clasica'!AL4) ->  | AJ30: =IF('Cultura Clasica'!AM4="","",'Cultura Clasica'!AM4) ->  | AK30: =IF('Cultura Clasica'!AN4="","",'Cultura Clasica'!AN4) ->  | AL30: =IF('Cultura Clasica'!AO4="","",'Cultura Clasica'!AO4) ->  | AM30: =IF('Cultura Clasica'!AP4="","",'Cultura Clasica'!AP4) -> 
D31: Criterio Evaluación 1.2 | E31: =IF('Cultura Clasica'!H5="","",'Cultura Clasica'!H5) ->  | F31: =IF('Cultura Clasica'!I5="","",'Cultura Clasica'!I5) ->  | G31: =IF('Cultura Clasica'!J5="","",'Cultura Clasica'!J5) ->  | H31: =IF('Cultura Clasica'!K5="","",'Cultura Clasica'!K5) ->  | I31: =IF('Cultura Clasica'!L5="","",'Cultura Clasica'!L5) ->  | J31: =IF('Cultura Clasica'!M5="","",'Cultura Clasica'!M5) ->  | K31: =IF('Cultura Clasica'!N5="","",'Cultura Clasica'!N5) ->  | L31: =IF('Cultura Clasica'!O5="","",'Cultura Clasica'!O5) ->  | M31: =IF('Cultura Clasica'!P5="","",'Cultura Clasica'!P5) ->  | N31: =IF('Cultura Clasica'!Q5="","",'Cultura Clasica'!Q5) ->  | O31: =IF('Cultura Clasica'!R5="","",'Cultura Clasica'!R5) ->  | P31: =IF('Cultura Clasica'!S5="","",'Cultura Clasica'!S5) ->  | Q31: =IF('Cultura Clasica'!T5="","",'Cultura Clasica'!T5) ->  | R31: =IF('Cultura Clasica'!U5="","",'Cultura Clasica'!U5) ->  | S31: =IF('Cultura Clasica'!V5="","",'Cultura Clasica'!V5) ->  | T31: =IF('Cultura Clasica'!W5="","",'Cultura Clasica'!W5) ->  | U31: =IF('Cultura Clasica'!X5="","",'Cultura Clasica'!X5) ->  | V31: =IF('Cultura Clasica'!Y5="","",'Cultura Clasica'!Y5) ->  | W31: =IF('Cultura Clasica'!Z5="","",'Cultura Clasica'!Z5) ->  | X31: =IF('Cultura Clasica'!AA5="","",'Cultura Clasica'!AA5) ->  | Y31: =IF('Cultura Clasica'!AB5="","",'Cultura Clasica'!AB5) ->  | Z31: =IF('Cultura Clasica'!AC5="","",'Cultura Clasica'!AC5) ->  | AA31: =IF('Cultura Clasica'!AD5="","",'Cultura Clasica'!AD5) ->  | AB31: =IF('Cultura Clasica'!AE5="","",'Cultura Clasica'!AE5) ->  | AC31: =IF('Cultura Clasica'!AF5="","",'Cultura Clasica'!AF5) ->  | AD31: =IF('Cultura Clasica'!AG5="","",'Cultura Clasica'!AG5) ->  | AE31: =IF('Cultura Clasica'!AH5="","",'Cultura Clasica'!AH5) ->  | AF31: =IF('Cultura Clasica'!AI5="","",'Cultura Clasica'!AI5) ->  | AG31: =IF('Cultura Clasica'!AJ5="","",'Cultura Clasica'!AJ5) ->  | AH31: =IF('Cultura Clasica'!AK5="","",'Cultura Clasica'!AK5) ->  | AI31: =IF('Cultura Clasica'!AL5="","",'Cultura Clasica'!AL5) ->  | AJ31: =IF('Cultura Clasica'!AM5="","",'Cultura Clasica'!AM5) ->  | AK31: =IF('Cultura Clasica'!AN5="","",'Cultura Clasica'!AN5) ->  | AL31: =IF('Cultura Clasica'!AO5="","",'Cultura Clasica'!AO5) ->  | AM31: =IF('Cultura Clasica'!AP5="","",'Cultura Clasica'!AP5) -> 
D32: Criterio Evaluación 1.3 | E32: =IF('Cultura Clasica'!H6="","",'Cultura Clasica'!H6) ->  | F32: =IF('Cultura Clasica'!I6="","",'Cultura Clasica'!I6) ->  | G32: =IF('Cultura Clasica'!J6="","",'Cultura Clasica'!J6) ->  | H32: =IF('Cultura Clasica'!K6="","",'Cultura Clasica'!K6) ->  | I32: =IF('Cultura Clasica'!L6="","",'Cultura Clasica'!L6) ->  | J32: =IF('Cultura Clasica'!M6="","",'Cultura Clasica'!M6) ->  | K32: =IF('Cultura Clasica'!N6="","",'Cultura Clasica'!N6) ->  | L32: =IF('Cultura Clasica'!O6="","",'Cultura Clasica'!O6) ->  | M32: =IF('Cultura Clasica'!P6="","",'Cultura Clasica'!P6) ->  | N32: =IF('Cultura Clasica'!Q6="","",'Cultura Clasica'!Q6) ->  | O32: =IF('Cultura Clasica'!R6="","",'Cultura Clasica'!R6) ->  | P32: =IF('Cultura Clasica'!S6="","",'Cultura Clasica'!S6) ->  | Q32: =IF('Cultura Clasica'!T6="","",'Cultura Clasica'!T6) ->  | R32: =IF('Cultura Clasica'!U6="","",'Cultura Clasica'!U6) ->  | S32: =IF('Cultura Clasica'!V6="","",'Cultura Clasica'!V6) ->  | T32: =IF('Cultura Clasica'!W6="","",'Cultura Clasica'!W6) ->  | U32: =IF('Cultura Clasica'!X6="","",'Cultura Clasica'!X6) ->  | V32: =IF('Cultura Clasica'!Y6="","",'Cultura Clasica'!Y6) ->  | W32: =IF('Cultura Clasica'!Z6="","",'Cultura Clasica'!Z6) ->  | X32: =IF('Cultura Clasica'!AA6="","",'Cultura Clasica'!AA6) ->  | Y32: =IF('Cultura Clasica'!AB6="","",'Cultura Clasica'!AB6) ->  | Z32: =IF('Cultura Clasica'!AC6="","",'Cultura Clasica'!AC6) ->  | AA32: =IF('Cultura Clasica'!AD6="","",'Cultura Clasica'!AD6) ->  | AB32: =IF('Cultura Clasica'!AE6="","",'Cultura Clasica'!AE6) ->  | AC32: =IF('Cultura Clasica'!AF6="","",'Cultura Clasica'!AF6) ->  | AD32: =IF('Cultura Clasica'!AG6="","",'Cultura Clasica'!AG6) ->  | AE32: =IF('Cultura Clasica'!AH6="","",'Cultura Clasica'!AH6) ->  | AF32: =IF('Cultura Clasica'!AI6="","",'Cultura Clasica'!AI6) ->  | AG32: =IF('Cultura Clasica'!AJ6="","",'Cultura Clasica'!AJ6) ->  | AH32: =IF('Cultura Clasica'!AK6="","",'Cultura Clasica'!AK6) ->  | AI32: =IF('Cultura Clasica'!AL6="","",'Cultura Clasica'!AL6) ->  | AJ32: =IF('Cultura Clasica'!AM6="","",'Cultura Clasica'!AM6) ->  | AK32: =IF('Cultura Clasica'!AN6="","",'Cultura Clasica'!AN6) ->  | AL32: =IF('Cultura Clasica'!AO6="","",'Cultura Clasica'!AO6) ->  | AM32: =IF('Cultura Clasica'!AP6="","",'Cultura Clasica'!AP6) -> 
C33: Comp. Esp. 2 | D33: Criterio Evaluación 2.1 | E33: =IF('Cultura Clasica'!H7="","",'Cultura Clasica'!H7) ->  | F33: =IF('Cultura Clasica'!I7="","",'Cultura Clasica'!I7) ->  | G33: =IF('Cultura Clasica'!J7="","",'Cultura Clasica'!J7) ->  | H33: =IF('Cultura Clasica'!K7="","",'Cultura Clasica'!K7) ->  | I33: =IF('Cultura Clasica'!L7="","",'Cultura Clasica'!L7) ->  | J33: =IF('Cultura Clasica'!M7="","",'Cultura Clasica'!M7) ->  | K33: =IF('Cultura Clasica'!N7="","",'Cultura Clasica'!N7) ->  | L33: =IF('Cultura Clasica'!O7="","",'Cultura Clasica'!O7) ->  | M33: =IF('Cultura Clasica'!P7="","",'Cultura Clasica'!P7) ->  | N33: =IF('Cultura Clasica'!Q7="","",'Cultura Clasica'!Q7) ->  | O33: =IF('Cultura Clasica'!R7="","",'Cultura Clasica'!R7) ->  | P33: =IF('Cultura Clasica'!S7="","",'Cultura Clasica'!S7) ->  | Q33: =IF('Cultura Clasica'!T7="","",'Cultura Clasica'!T7) ->  | R33: =IF('Cultura Clasica'!U7="","",'Cultura Clasica'!U7) ->  | S33: =IF('Cultura Clasica'!V7="","",'Cultura Clasica'!V7) ->  | T33: =IF('Cultura Clasica'!W7="","",'Cultura Clasica'!W7) ->  | U33: =IF('Cultura Clasica'!X7="","",'Cultura Clasica'!X7) ->  | V33: =IF('Cultura Clasica'!Y7="","",'Cultura Clasica'!Y7) ->  | W33: =IF('Cultura Clasica'!Z7="","",'Cultura Clasica'!Z7) ->  | X33: =IF('Cultura Clasica'!AA7="","",'Cultura Clasica'!AA7) ->  | Y33: =IF('Cultura Clasica'!AB7="","",'Cultura Clasica'!AB7) ->  | Z33: =IF('Cultura Clasica'!AC7="","",'Cultura Clasica'!AC7) ->  | AA33: =IF('Cultura Clasica'!AD7="","",'Cultura Clasica'!AD7) ->  | AB33: =IF('Cultura Clasica'!AE7="","",'Cultura Clasica'!AE7) ->  | AC33: =IF('Cultura Clasica'!AF7="","",'Cultura Clasica'!AF7) ->  | AD33: =IF('Cultura Clasica'!AG7="","",'Cultura Clasica'!AG7) ->  | AE33: =IF('Cultura Clasica'!AH7="","",'Cultura Clasica'!AH7) ->  | AF33: =IF('Cultura Clasica'!AI7="","",'Cultura Clasica'!AI7) ->  | AG33: =IF('Cultura Clasica'!AJ7="","",'Cultura Clasica'!AJ7) ->  | AH33: =IF('Cultura Clasica'!AK7="","",'Cultura Clasica'!AK7) ->  | AI33: =IF('Cultura Clasica'!AL7="","",'Cultura Clasica'!AL7) ->  | AJ33: =IF('Cultura Clasica'!AM7="","",'Cultura Clasica'!AM7) ->  | AK33: =IF('Cultura Clasica'!AN7="","",'Cultura Clasica'!AN7) ->  | AL33: =IF('Cultura Clasica'!AO7="","",'Cultura Clasica'!AO7) ->  | AM33: =IF('Cultura Clasica'!AP7="","",'Cultura Clasica'!AP7) -> 
D34: Criterio Evaluación 2.2 | E34: =IF('Cultura Clasica'!H8="","",'Cultura Clasica'!H8) ->  | F34: =IF('Cultura Clasica'!I8="","",'Cultura Clasica'!I8) ->  | G34: =IF('Cultura Clasica'!J8="","",'Cultura Clasica'!J8) ->  | H34: =IF('Cultura Clasica'!K8="","",'Cultura Clasica'!K8) ->  | I34: =IF('Cultura Clasica'!L8="","",'Cultura Clasica'!L8) ->  | J34: =IF('Cultura Clasica'!M8="","",'Cultura Clasica'!M8) ->  | K34: =IF('Cultura Clasica'!N8="","",'Cultura Clasica'!N8) ->  | L34: =IF('Cultura Clasica'!O8="","",'Cultura Clasica'!O8) ->  | M34: =IF('Cultura Clasica'!P8="","",'Cultura Clasica'!P8) ->  | N34: =IF('Cultura Clasica'!Q8="","",'Cultura Clasica'!Q8) ->  | O34: =IF('Cultura Clasica'!R8="","",'Cultura Clasica'!R8) ->  | P34: =IF('Cultura Clasica'!S8="","",'Cultura Clasica'!S8) ->  | Q34: =IF('Cultura Clasica'!T8="","",'Cultura Clasica'!T8) ->  | R34: =IF('Cultura Clasica'!U8="","",'Cultura Clasica'!U8) ->  | S34: =IF('Cultura Clasica'!V8="","",'Cultura Clasica'!V8) ->  | T34: =IF('Cultura Clasica'!W8="","",'Cultura Clasica'!W8) ->  | U34: =IF('Cultura Clasica'!X8="","",'Cultura Clasica'!X8) ->  | V34: =IF('Cultura Clasica'!Y8="","",'Cultura Clasica'!Y8) ->  | W34: =IF('Cultura Clasica'!Z8="","",'Cultura Clasica'!Z8) ->  | X34: =IF('Cultura Clasica'!AA8="","",'Cultura Clasica'!AA8) ->  | Y34: =IF('Cultura Clasica'!AB8="","",'Cultura Clasica'!AB8) ->  | Z34: =IF('Cultura Clasica'!AC8="","",'Cultura Clasica'!AC8) ->  | AA34: =IF('Cultura Clasica'!AD8="","",'Cultura Clasica'!AD8) ->  | AB34: =IF('Cultura Clasica'!AE8="","",'Cultura Clasica'!AE8) ->  | AC34: =IF('Cultura Clasica'!AF8="","",'Cultura Clasica'!AF8) ->  | AD34: =IF('Cultura Clasica'!AG8="","",'Cultura Clasica'!AG8) ->  | AE34: =IF('Cultura Clasica'!AH8="","",'Cultura Clasica'!AH8) ->  | AF34: =IF('Cultura Clasica'!AI8="","",'Cultura Clasica'!AI8) ->  | AG34: =IF('Cultura Clasica'!AJ8="","",'Cultura Clasica'!AJ8) ->  | AH34: =IF('Cultura Clasica'!AK8="","",'Cultura Clasica'!AK8) ->  | AI34: =IF('Cultura Clasica'!AL8="","",'Cultura Clasica'!AL8) ->  | AJ34: =IF('Cultura Clasica'!AM8="","",'Cultura Clasica'!AM8) ->  | AK34: =IF('Cultura Clasica'!AN8="","",'Cultura Clasica'!AN8) ->  | AL34: =IF('Cultura Clasica'!AO8="","",'Cultura Clasica'!AO8) ->  | AM34: =IF('Cultura Clasica'!AP8="","",'Cultura Clasica'!AP8) -> 
D35: Criterio Evaluación 2.3 | E35: =IF('Cultura Clasica'!H9="","",'Cultura Clasica'!H9) ->  | F35: =IF('Cultura Clasica'!I9="","",'Cultura Clasica'!I9) ->  | G35: =IF('Cultura Clasica'!J9="","",'Cultura Clasica'!J9) ->  | H35: =IF('Cultura Clasica'!K9="","",'Cultura Clasica'!K9) ->  | I35: =IF('Cultura Clasica'!L9="","",'Cultura Clasica'!L9) ->  | J35: =IF('Cultura Clasica'!M9="","",'Cultura Clasica'!M9) ->  | K35: =IF('Cultura Clasica'!N9="","",'Cultura Clasica'!N9) ->  | L35: =IF('Cultura Clasica'!O9="","",'Cultura Clasica'!O9) ->  | M35: =IF('Cultura Clasica'!P9="","",'Cultura Clasica'!P9) ->  | N35: =IF('Cultura Clasica'!Q9="","",'Cultura Clasica'!Q9) ->  | O35: =IF('Cultura Clasica'!R9="","",'Cultura Clasica'!R9) ->  | P35: =IF('Cultura Clasica'!S9="","",'Cultura Clasica'!S9) ->  | Q35: =IF('Cultura Clasica'!T9="","",'Cultura Clasica'!T9) ->  | R35: =IF('Cultura Clasica'!U9="","",'Cultura Clasica'!U9) ->  | S35: =IF('Cultura Clasica'!V9="","",'Cultura Clasica'!V9) ->  | T35: =IF('Cultura Clasica'!W9="","",'Cultura Clasica'!W9) ->  | U35: =IF('Cultura Clasica'!X9="","",'Cultura Clasica'!X9) ->  | V35: =IF('Cultura Clasica'!Y9="","",'Cultura Clasica'!Y9) ->  | W35: =IF('Cultura Clasica'!Z9="","",'Cultura Clasica'!Z9) ->  | X35: =IF('Cultura Clasica'!AA9="","",'Cultura Clasica'!AA9) ->  | Y35: =IF('Cultura Clasica'!AB9="","",'Cultura Clasica'!AB9) ->  | Z35: =IF('Cultura Clasica'!AC9="","",'Cultura Clasica'!AC9) ->  | AA35: =IF('Cultura Clasica'!AD9="","",'Cultura Clasica'!AD9) ->  | AB35: =IF('Cultura Clasica'!AE9="","",'Cultura Clasica'!AE9) ->  | AC35: =IF('Cultura Clasica'!AF9="","",'Cultura Clasica'!AF9) ->  | AD35: =IF('Cultura Clasica'!AG9="","",'Cultura Clasica'!AG9) ->  | AE35: =IF('Cultura Clasica'!AH9="","",'Cultura Clasica'!AH9) ->  | AF35: =IF('Cultura Clasica'!AI9="","",'Cultura Clasica'!AI9) ->  | AG35: =IF('Cultura Clasica'!AJ9="","",'Cultura Clasica'!AJ9) ->  | AH35: =IF('Cultura Clasica'!AK9="","",'Cultura Clasica'!AK9) ->  | AI35: =IF('Cultura Clasica'!AL9="","",'Cultura Clasica'!AL9) ->  | AJ35: =IF('Cultura Clasica'!AM9="","",'Cultura Clasica'!AM9) ->  | AK35: =IF('Cultura Clasica'!AN9="","",'Cultura Clasica'!AN9) ->  | AL35: =IF('Cultura Clasica'!AO9="","",'Cultura Clasica'!AO9) ->  | AM35: =IF('Cultura Clasica'!AP9="","",'Cultura Clasica'!AP9) -> 
D36: Criterio Evaluación 2.4 | E36: =IF('Cultura Clasica'!H10="","",'Cultura Clasica'!H10) ->  | F36: =IF('Cultura Clasica'!I10="","",'Cultura Clasica'!I10) ->  | G36: =IF('Cultura Clasica'!J10="","",'Cultura Clasica'!J10) ->  | H36: =IF('Cultura Clasica'!K10="","",'Cultura Clasica'!K10) ->  | I36: =IF('Cultura Clasica'!L10="","",'Cultura Clasica'!L10) ->  | J36: =IF('Cultura Clasica'!M10="","",'Cultura Clasica'!M10) ->  | K36: =IF('Cultura Clasica'!N10="","",'Cultura Clasica'!N10) ->  | L36: =IF('Cultura Clasica'!O10="","",'Cultura Clasica'!O10) ->  | M36: =IF('Cultura Clasica'!P10="","",'Cultura Clasica'!P10) ->  | N36: =IF('Cultura Clasica'!Q10="","",'Cultura Clasica'!Q10) ->  | O36: =IF('Cultura Clasica'!R10="","",'Cultura Clasica'!R10) ->  | P36: =IF('Cultura Clasica'!S10="","",'Cultura Clasica'!S10) ->  | Q36: =IF('Cultura Clasica'!T10="","",'Cultura Clasica'!T10) ->  | R36: =IF('Cultura Clasica'!U10="","",'Cultura Clasica'!U10) ->  | S36: =IF('Cultura Clasica'!V10="","",'Cultura Clasica'!V10) ->  | T36: =IF('Cultura Clasica'!W10="","",'Cultura Clasica'!W10) ->  | U36: =IF('Cultura Clasica'!X10="","",'Cultura Clasica'!X10) ->  | V36: =IF('Cultura Clasica'!Y10="","",'Cultura Clasica'!Y10) ->  | W36: =IF('Cultura Clasica'!Z10="","",'Cultura Clasica'!Z10) ->  | X36: =IF('Cultura Clasica'!AA10="","",'Cultura Clasica'!AA10) ->  | Y36: =IF('Cultura Clasica'!AB10="","",'Cultura Clasica'!AB10) ->  | Z36: =IF('Cultura Clasica'!AC10="","",'Cultura Clasica'!AC10) ->  | AA36: =IF('Cultura Clasica'!AD10="","",'Cultura Clasica'!AD10) ->  | AB36: =IF('Cultura Clasica'!AE10="","",'Cultura Clasica'!AE10) ->  | AC36: =IF('Cultura Clasica'!AF10="","",'Cultura Clasica'!AF10) ->  | AD36: =IF('Cultura Clasica'!AG10="","",'Cultura Clasica'!AG10) ->  | AE36: =IF('Cultura Clasica'!AH10="","",'Cultura Clasica'!AH10) ->  | AF36: =IF('Cultura Clasica'!AI10="","",'Cultura Clasica'!AI10) ->  | AG36: =IF('Cultura Clasica'!AJ10="","",'Cultura Clasica'!AJ10) ->  | AH36: =IF('Cultura Clasica'!AK10="","",'Cultura Clasica'!AK10) ->  | AI36: =IF('Cultura Clasica'!AL10="","",'Cultura Clasica'!AL10) ->  | AJ36: =IF('Cultura Clasica'!AM10="","",'Cultura Clasica'!AM10) ->  | AK36: =IF('Cultura Clasica'!AN10="","",'Cultura Clasica'!AN10) ->  | AL36: =IF('Cultura Clasica'!AO10="","",'Cultura Clasica'!AO10) ->  | AM36: =IF('Cultura Clasica'!AP10="","",'Cultura Clasica'!AP10) -> 
C37: Comp. Esp. 3 | D37: Criterio Evaluación 3.1 | E37: =IF('Cultura Clasica'!H11="","",'Cultura Clasica'!H11) ->  | F37: =IF('Cultura Clasica'!I11="","",'Cultura Clasica'!I11) ->  | G37: =IF('Cultura Clasica'!J11="","",'Cultura Clasica'!J11) ->  | H37: =IF('Cultura Clasica'!K11="","",'Cultura Clasica'!K11) ->  | I37: =IF('Cultura Clasica'!L11="","",'Cultura Clasica'!L11) ->  | J37: =IF('Cultura Clasica'!M11="","",'Cultura Clasica'!M11) ->  | K37: =IF('Cultura Clasica'!N11="","",'Cultura Clasica'!N11) ->  | L37: =IF('Cultura Clasica'!O11="","",'Cultura Clasica'!O11) ->  | M37: =IF('Cultura Clasica'!P11="","",'Cultura Clasica'!P11) ->  | N37: =IF('Cultura Clasica'!Q11="","",'Cultura Clasica'!Q11) ->  | O37: =IF('Cultura Clasica'!R11="","",'Cultura Clasica'!R11) ->  | P37: =IF('Cultura Clasica'!S11="","",'Cultura Clasica'!S11) ->  | Q37: =IF('Cultura Clasica'!T11="","",'Cultura Clasica'!T11) ->  | R37: =IF('Cultura Clasica'!U11="","",'Cultura Clasica'!U11) ->  | S37: =IF('Cultura Clasica'!V11="","",'Cultura Clasica'!V11) ->  | T37: =IF('Cultura Clasica'!W11="","",'Cultura Clasica'!W11) ->  | U37: =IF('Cultura Clasica'!X11="","",'Cultura Clasica'!X11) ->  | V37: =IF('Cultura Clasica'!Y11="","",'Cultura Clasica'!Y11) ->  | W37: =IF('Cultura Clasica'!Z11="","",'Cultura Clasica'!Z11) ->  | X37: =IF('Cultura Clasica'!AA11="","",'Cultura Clasica'!AA11) ->  | Y37: =IF('Cultura Clasica'!AB11="","",'Cultura Clasica'!AB11) ->  | Z37: =IF('Cultura Clasica'!AC11="","",'Cultura Clasica'!AC11) ->  | AA37: =IF('Cultura Clasica'!AD11="","",'Cultura Clasica'!AD11) ->  | AB37: =IF('Cultura Clasica'!AE11="","",'Cultura Clasica'!AE11) ->  | AC37: =IF('Cultura Clasica'!AF11="","",'Cultura Clasica'!AF11) ->  | AD37: =IF('Cultura Clasica'!AG11="","",'Cultura Clasica'!AG11) ->  | AE37: =IF('Cultura Clasica'!AH11="","",'Cultura Clasica'!AH11) ->  | AF37: =IF('Cultura Clasica'!AI11="","",'Cultura Clasica'!AI11) ->  | AG37: =IF('Cultura Clasica'!AJ11="","",'Cultura Clasica'!AJ11) ->  | AH37: =IF('Cultura Clasica'!AK11="","",'Cultura Clasica'!AK11) ->  | AI37: =IF('Cultura Clasica'!AL11="","",'Cultura Clasica'!AL11) ->  | AJ37: =IF('Cultura Clasica'!AM11="","",'Cultura Clasica'!AM11) ->  | AK37: =IF('Cultura Clasica'!AN11="","",'Cultura Clasica'!AN11) ->  | AL37: =IF('Cultura Clasica'!AO11="","",'Cultura Clasica'!AO11) ->  | AM37: =IF('Cultura Clasica'!AP11="","",'Cultura Clasica'!AP11) -> 
D38: Criterio Evaluación 3.2 | E38: =IF('Cultura Clasica'!H12="","",'Cultura Clasica'!H12) ->  | F38: =IF('Cultura Clasica'!I12="","",'Cultura Clasica'!I12) ->  | G38: =IF('Cultura Clasica'!J12="","",'Cultura Clasica'!J12) ->  | H38: =IF('Cultura Clasica'!K12="","",'Cultura Clasica'!K12) ->  | I38: =IF('Cultura Clasica'!L12="","",'Cultura Clasica'!L12) ->  | J38: =IF('Cultura Clasica'!M12="","",'Cultura Clasica'!M12) ->  | K38: =IF('Cultura Clasica'!N12="","",'Cultura Clasica'!N12) ->  | L38: =IF('Cultura Clasica'!O12="","",'Cultura Clasica'!O12) ->  | M38: =IF('Cultura Clasica'!P12="","",'Cultura Clasica'!P12) ->  | N38: =IF('Cultura Clasica'!Q12="","",'Cultura Clasica'!Q12) ->  | O38: =IF('Cultura Clasica'!R12="","",'Cultura Clasica'!R12) ->  | P38: =IF('Cultura Clasica'!S12="","",'Cultura Clasica'!S12) ->  | Q38: =IF('Cultura Clasica'!T12="","",'Cultura Clasica'!T12) ->  | R38: =IF('Cultura Clasica'!U12="","",'Cultura Clasica'!U12) ->  | S38: =IF('Cultura Clasica'!V12="","",'Cultura Clasica'!V12) ->  | T38: =IF('Cultura Clasica'!W12="","",'Cultura Clasica'!W12) ->  | U38: =IF('Cultura Clasica'!X12="","",'Cultura Clasica'!X12) ->  | V38: =IF('Cultura Clasica'!Y12="","",'Cultura Clasica'!Y12) ->  | W38: =IF('Cultura Clasica'!Z12="","",'Cultura Clasica'!Z12) ->  | X38: =IF('Cultura Clasica'!AA12="","",'Cultura Clasica'!AA12) ->  | Y38: =IF('Cultura Clasica'!AB12="","",'Cultura Clasica'!AB12) ->  | Z38: =IF('Cultura Clasica'!AC12="","",'Cultura Clasica'!AC12) ->  | AA38: =IF('Cultura Clasica'!AD12="","",'Cultura Clasica'!AD12) ->  | AB38: =IF('Cultura Clasica'!AE12="","",'Cultura Clasica'!AE12) ->  | AC38: =IF('Cultura Clasica'!AF12="","",'Cultura Clasica'!AF12) ->  | AD38: =IF('Cultura Clasica'!AG12="","",'Cultura Clasica'!AG12) ->  | AE38: =IF('Cultura Clasica'!AH12="","",'Cultura Clasica'!AH12) ->  | AF38: =IF('Cultura Clasica'!AI12="","",'Cultura Clasica'!AI12) ->  | AG38: =IF('Cultura Clasica'!AJ12="","",'Cultura Clasica'!AJ12) ->  | AH38: =IF('Cultura Clasica'!AK12="","",'Cultura Clasica'!AK12) ->  | AI38: =IF('Cultura Clasica'!AL12="","",'Cultura Clasica'!AL12) ->  | AJ38: =IF('Cultura Clasica'!AM12="","",'Cultura Clasica'!AM12) ->  | AK38: =IF('Cultura Clasica'!AN12="","",'Cultura Clasica'!AN12) ->  | AL38: =IF('Cultura Clasica'!AO12="","",'Cultura Clasica'!AO12) ->  | AM38: =IF('Cultura Clasica'!AP12="","",'Cultura Clasica'!AP12) -> 
D39: Criterio Evaluación 3.3 | E39: =IF('Cultura Clasica'!H13="","",'Cultura Clasica'!H13) ->  | F39: =IF('Cultura Clasica'!I13="","",'Cultura Clasica'!I13) ->  | G39: =IF('Cultura Clasica'!J13="","",'Cultura Clasica'!J13) ->  | H39: =IF('Cultura Clasica'!K13="","",'Cultura Clasica'!K13) ->  | I39: =IF('Cultura Clasica'!L13="","",'Cultura Clasica'!L13) ->  | J39: =IF('Cultura Clasica'!M13="","",'Cultura Clasica'!M13) ->  | K39: =IF('Cultura Clasica'!N13="","",'Cultura Clasica'!N13) ->  | L39: =IF('Cultura Clasica'!O13="","",'Cultura Clasica'!O13) ->  | M39: =IF('Cultura Clasica'!P13="","",'Cultura Clasica'!P13) ->  | N39: =IF('Cultura Clasica'!Q13="","",'Cultura Clasica'!Q13) ->  | O39: =IF('Cultura Clasica'!R13="","",'Cultura Clasica'!R13) ->  | P39: =IF('Cultura Clasica'!S13="","",'Cultura Clasica'!S13) ->  | Q39: =IF('Cultura Clasica'!T13="","",'Cultura Clasica'!T13) ->  | R39: =IF('Cultura Clasica'!U13="","",'Cultura Clasica'!U13) ->  | S39: =IF('Cultura Clasica'!V13="","",'Cultura Clasica'!V13) ->  | T39: =IF('Cultura Clasica'!W13="","",'Cultura Clasica'!W13) ->  | U39: =IF('Cultura Clasica'!X13="","",'Cultura Clasica'!X13) ->  | V39: =IF('Cultura Clasica'!Y13="","",'Cultura Clasica'!Y13) ->  | W39: =IF('Cultura Clasica'!Z13="","",'Cultura Clasica'!Z13) ->  | X39: =IF('Cultura Clasica'!AA13="","",'Cultura Clasica'!AA13) ->  | Y39: =IF('Cultura Clasica'!AB13="","",'Cultura Clasica'!AB13) ->  | Z39: =IF('Cultura Clasica'!AC13="","",'Cultura Clasica'!AC13) ->  | AA39: =IF('Cultura Clasica'!AD13="","",'Cultura Clasica'!AD13) ->  | AB39: =IF('Cultura Clasica'!AE13="","",'Cultura Clasica'!AE13) ->  | AC39: =IF('Cultura Clasica'!AF13="","",'Cultura Clasica'!AF13) ->  | AD39: =IF('Cultura Clasica'!AG13="","",'Cultura Clasica'!AG13) ->  | AE39: =IF('Cultura Clasica'!AH13="","",'Cultura Clasica'!AH13) ->  | AF39: =IF('Cultura Clasica'!AI13="","",'Cultura Clasica'!AI13) ->  | AG39: =IF('Cultura Clasica'!AJ13="","",'Cultura Clasica'!AJ13) ->  | AH39: =IF('Cultura Clasica'!AK13="","",'Cultura Clasica'!AK13) ->  | AI39: =IF('Cultura Clasica'!AL13="","",'Cultura Clasica'!AL13) ->  | AJ39: =IF('Cultura Clasica'!AM13="","",'Cultura Clasica'!AM13) ->  | AK39: =IF('Cultura Clasica'!AN13="","",'Cultura Clasica'!AN13) ->  | AL39: =IF('Cultura Clasica'!AO13="","",'Cultura Clasica'!AO13) ->  | AM39: =IF('Cultura Clasica'!AP13="","",'Cultura Clasica'!AP13) -> 
D40: Criterio Evaluación 3.4 | E40: =IF('Cultura Clasica'!H14="","",'Cultura Clasica'!H14) ->  | F40: =IF('Cultura Clasica'!I14="","",'Cultura Clasica'!I14) ->  | G40: =IF('Cultura Clasica'!J14="","",'Cultura Clasica'!J14) ->  | H40: =IF('Cultura Clasica'!K14="","",'Cultura Clasica'!K14) ->  | I40: =IF('Cultura Clasica'!L14="","",'Cultura Clasica'!L14) ->  | J40: =IF('Cultura Clasica'!M14="","",'Cultura Clasica'!M14) ->  | K40: =IF('Cultura Clasica'!N14="","",'Cultura Clasica'!N14) ->  | L40: =IF('Cultura Clasica'!O14="","",'Cultura Clasica'!O14) ->  | M40: =IF('Cultura Clasica'!P14="","",'Cultura Clasica'!P14) ->  | N40: =IF('Cultura Clasica'!Q14="","",'Cultura Clasica'!Q14) ->  | O40: =IF('Cultura Clasica'!R14="","",'Cultura Clasica'!R14) ->  | P40: =IF('Cultura Clasica'!S14="","",'Cultura Clasica'!S14) ->  | Q40: =IF('Cultura Clasica'!T14="","",'Cultura Clasica'!T14) ->  | R40: =IF('Cultura Clasica'!U14="","",'Cultura Clasica'!U14) ->  | S40: =IF('Cultura Clasica'!V14="","",'Cultura Clasica'!V14) ->  | T40: =IF('Cultura Clasica'!W14="","",'Cultura Clasica'!W14) ->  | U40: =IF('Cultura Clasica'!X14="","",'Cultura Clasica'!X14) ->  | V40: =IF('Cultura Clasica'!Y14="","",'Cultura Clasica'!Y14) ->  | W40: =IF('Cultura Clasica'!Z14="","",'Cultura Clasica'!Z14) ->  | X40: =IF('Cultura Clasica'!AA14="","",'Cultura Clasica'!AA14) ->  | Y40: =IF('Cultura Clasica'!AB14="","",'Cultura Clasica'!AB14) ->  | Z40: =IF('Cultura Clasica'!AC14="","",'Cultura Clasica'!AC14) ->  | AA40: =IF('Cultura Clasica'!AD14="","",'Cultura Clasica'!AD14) ->  | AB40: =IF('Cultura Clasica'!AE14="","",'Cultura Clasica'!AE14) ->  | AC40: =IF('Cultura Clasica'!AF14="","",'Cultura Clasica'!AF14) ->  | AD40: =IF('Cultura Clasica'!AG14="","",'Cultura Clasica'!AG14) ->  | AE40: =IF('Cultura Clasica'!AH14="","",'Cultura Clasica'!AH14) ->  | AF40: =IF('Cultura Clasica'!AI14="","",'Cultura Clasica'!AI14) ->  | AG40: =IF('Cultura Clasica'!AJ14="","",'Cultura Clasica'!AJ14) ->  | AH40: =IF('Cultura Clasica'!AK14="","",'Cultura Clasica'!AK14) ->  | AI40: =IF('Cultura Clasica'!AL14="","",'Cultura Clasica'!AL14) ->  | AJ40: =IF('Cultura Clasica'!AM14="","",'Cultura Clasica'!AM14) ->  | AK40: =IF('Cultura Clasica'!AN14="","",'Cultura Clasica'!AN14) ->  | AL40: =IF('Cultura Clasica'!AO14="","",'Cultura Clasica'!AO14) ->  | AM40: =IF('Cultura Clasica'!AP14="","",'Cultura Clasica'!AP14) -> 
C41: Comp. Esp. 4 | D41: Criterio Evaluación 4.1 | E41: =IF('Cultura Clasica'!H15="","",'Cultura Clasica'!H15) ->  | F41: =IF('Cultura Clasica'!I15="","",'Cultura Clasica'!I15) ->  | G41: =IF('Cultura Clasica'!J15="","",'Cultura Clasica'!J15) ->  | H41: =IF('Cultura Clasica'!K15="","",'Cultura Clasica'!K15) ->  | I41: =IF('Cultura Clasica'!L15="","",'Cultura Clasica'!L15) ->  | J41: =IF('Cultura Clasica'!M15="","",'Cultura Clasica'!M15) ->  | K41: =IF('Cultura Clasica'!N15="","",'Cultura Clasica'!N15) ->  | L41: =IF('Cultura Clasica'!O15="","",'Cultura Clasica'!O15) ->  | M41: =IF('Cultura Clasica'!P15="","",'Cultura Clasica'!P15) ->  | N41: =IF('Cultura Clasica'!Q15="","",'Cultura Clasica'!Q15) ->  | O41: =IF('Cultura Clasica'!R15="","",'Cultura Clasica'!R15) ->  | P41: =IF('Cultura Clasica'!S15="","",'Cultura Clasica'!S15) ->  | Q41: =IF('Cultura Clasica'!T15="","",'Cultura Clasica'!T15) ->  | R41: =IF('Cultura Clasica'!U15="","",'Cultura Clasica'!U15) ->  | S41: =IF('Cultura Clasica'!V15="","",'Cultura Clasica'!V15) ->  | T41: =IF('Cultura Clasica'!W15="","",'Cultura Clasica'!W15) ->  | U41: =IF('Cultura Clasica'!X15="","",'Cultura Clasica'!X15) ->  | V41: =IF('Cultura Clasica'!Y15="","",'Cultura Clasica'!Y15) ->  | W41: =IF('Cultura Clasica'!Z15="","",'Cultura Clasica'!Z15) ->  | X41: =IF('Cultura Clasica'!AA15="","",'Cultura Clasica'!AA15) ->  | Y41: =IF('Cultura Clasica'!AB15="","",'Cultura Clasica'!AB15) ->  | Z41: =IF('Cultura Clasica'!AC15="","",'Cultura Clasica'!AC15) ->  | AA41: =IF('Cultura Clasica'!AD15="","",'Cultura Clasica'!AD15) ->  | AB41: =IF('Cultura Clasica'!AE15="","",'Cultura Clasica'!AE15) ->  | AC41: =IF('Cultura Clasica'!AF15="","",'Cultura Clasica'!AF15) ->  | AD41: =IF('Cultura Clasica'!AG15="","",'Cultura Clasica'!AG15) ->  | AE41: =IF('Cultura Clasica'!AH15="","",'Cultura Clasica'!AH15) ->  | AF41: =IF('Cultura Clasica'!AI15="","",'Cultura Clasica'!AI15) ->  | AG41: =IF('Cultura Clasica'!AJ15="","",'Cultura Clasica'!AJ15) ->  | AH41: =IF('Cultura Clasica'!AK15="","",'Cultura Clasica'!AK15) ->  | AI41: =IF('Cultura Clasica'!AL15="","",'Cultura Clasica'!AL15) ->  | AJ41: =IF('Cultura Clasica'!AM15="","",'Cultura Clasica'!AM15) ->  | AK41: =IF('Cultura Clasica'!AN15="","",'Cultura Clasica'!AN15) ->  | AL41: =IF('Cultura Clasica'!AO15="","",'Cultura Clasica'!AO15) ->  | AM41: =IF('Cultura Clasica'!AP15="","",'Cultura Clasica'!AP15) -> 
D42: Criterio Evaluación 4.2 | E42: =IF('Cultura Clasica'!H16="","",'Cultura Clasica'!H16) ->  | F42: =IF('Cultura Clasica'!I16="","",'Cultura Clasica'!I16) ->  | G42: =IF('Cultura Clasica'!J16="","",'Cultura Clasica'!J16) ->  | H42: =IF('Cultura Clasica'!K16="","",'Cultura Clasica'!K16) ->  | I42: =IF('Cultura Clasica'!L16="","",'Cultura Clasica'!L16) ->  | J42: =IF('Cultura Clasica'!M16="","",'Cultura Clasica'!M16) ->  | K42: =IF('Cultura Clasica'!N16="","",'Cultura Clasica'!N16) ->  | L42: =IF('Cultura Clasica'!O16="","",'Cultura Clasica'!O16) ->  | M42: =IF('Cultura Clasica'!P16="","",'Cultura Clasica'!P16) ->  | N42: =IF('Cultura Clasica'!Q16="","",'Cultura Clasica'!Q16) ->  | O42: =IF('Cultura Clasica'!R16="","",'Cultura Clasica'!R16) ->  | P42: =IF('Cultura Clasica'!S16="","",'Cultura Clasica'!S16) ->  | Q42: =IF('Cultura Clasica'!T16="","",'Cultura Clasica'!T16) ->  | R42: =IF('Cultura Clasica'!U16="","",'Cultura Clasica'!U16) ->  | S42: =IF('Cultura Clasica'!V16="","",'Cultura Clasica'!V16) ->  | T42: =IF('Cultura Clasica'!W16="","",'Cultura Clasica'!W16) ->  | U42: =IF('Cultura Clasica'!X16="","",'Cultura Clasica'!X16) ->  | V42: =IF('Cultura Clasica'!Y16="","",'Cultura Clasica'!Y16) ->  | W42: =IF('Cultura Clasica'!Z16="","",'Cultura Clasica'!Z16) ->  | X42: =IF('Cultura Clasica'!AA16="","",'Cultura Clasica'!AA16) ->  | Y42: =IF('Cultura Clasica'!AB16="","",'Cultura Clasica'!AB16) ->  | Z42: =IF('Cultura Clasica'!AC16="","",'Cultura Clasica'!AC16) ->  | AA42: =IF('Cultura Clasica'!AD16="","",'Cultura Clasica'!AD16) ->  | AB42: =IF('Cultura Clasica'!AE16="","",'Cultura Clasica'!AE16) ->  | AC42: =IF('Cultura Clasica'!AF16="","",'Cultura Clasica'!AF16) ->  | AD42: =IF('Cultura Clasica'!AG16="","",'Cultura Clasica'!AG16) ->  | AE42: =IF('Cultura Clasica'!AH16="","",'Cultura Clasica'!AH16) ->  | AF42: =IF('Cultura Clasica'!AI16="","",'Cultura Clasica'!AI16) ->  | AG42: =IF('Cultura Clasica'!AJ16="","",'Cultura Clasica'!AJ16) ->  | AH42: =IF('Cultura Clasica'!AK16="","",'Cultura Clasica'!AK16) ->  | AI42: =IF('Cultura Clasica'!AL16="","",'Cultura Clasica'!AL16) ->  | AJ42: =IF('Cultura Clasica'!AM16="","",'Cultura Clasica'!AM16) ->  | AK42: =IF('Cultura Clasica'!AN16="","",'Cultura Clasica'!AN16) ->  | AL42: =IF('Cultura Clasica'!AO16="","",'Cultura Clasica'!AO16) ->  | AM42: =IF('Cultura Clasica'!AP16="","",'Cultura Clasica'!AP16) -> 
D43: Criterio Evaluación 4.3 | E43: =IF('Cultura Clasica'!H17="","",'Cultura Clasica'!H17) ->  | F43: =IF('Cultura Clasica'!I17="","",'Cultura Clasica'!I17) ->  | G43: =IF('Cultura Clasica'!J17="","",'Cultura Clasica'!J17) ->  | H43: =IF('Cultura Clasica'!K17="","",'Cultura Clasica'!K17) ->  | I43: =IF('Cultura Clasica'!L17="","",'Cultura Clasica'!L17) ->  | J43: =IF('Cultura Clasica'!M17="","",'Cultura Clasica'!M17) ->  | K43: =IF('Cultura Clasica'!N17="","",'Cultura Clasica'!N17) ->  | L43: =IF('Cultura Clasica'!O17="","",'Cultura Clasica'!O17) ->  | M43: =IF('Cultura Clasica'!P17="","",'Cultura Clasica'!P17) ->  | N43: =IF('Cultura Clasica'!Q17="","",'Cultura Clasica'!Q17) ->  | O43: =IF('Cultura Clasica'!R17="","",'Cultura Clasica'!R17) ->  | P43: =IF('Cultura Clasica'!S17="","",'Cultura Clasica'!S17) ->  | Q43: =IF('Cultura Clasica'!T17="","",'Cultura Clasica'!T17) ->  | R43: =IF('Cultura Clasica'!U17="","",'Cultura Clasica'!U17) ->  | S43: =IF('Cultura Clasica'!V17="","",'Cultura Clasica'!V17) ->  | T43: =IF('Cultura Clasica'!W17="","",'Cultura Clasica'!W17) ->  | U43: =IF('Cultura Clasica'!X17="","",'Cultura Clasica'!X17) ->  | V43: =IF('Cultura Clasica'!Y17="","",'Cultura Clasica'!Y17) ->  | W43: =IF('Cultura Clasica'!Z17="","",'Cultura Clasica'!Z17) ->  | X43: =IF('Cultura Clasica'!AA17="","",'Cultura Clasica'!AA17) ->  | Y43: =IF('Cultura Clasica'!AB17="","",'Cultura Clasica'!AB17) ->  | Z43: =IF('Cultura Clasica'!AC17="","",'Cultura Clasica'!AC17) ->  | AA43: =IF('Cultura Clasica'!AD17="","",'Cultura Clasica'!AD17) ->  | AB43: =IF('Cultura Clasica'!AE17="","",'Cultura Clasica'!AE17) ->  | AC43: =IF('Cultura Clasica'!AF17="","",'Cultura Clasica'!AF17) ->  | AD43: =IF('Cultura Clasica'!AG17="","",'Cultura Clasica'!AG17) ->  | AE43: =IF('Cultura Clasica'!AH17="","",'Cultura Clasica'!AH17) ->  | AF43: =IF('Cultura Clasica'!AI17="","",'Cultura Clasica'!AI17) ->  | AG43: =IF('Cultura Clasica'!AJ17="","",'Cultura Clasica'!AJ17) ->  | AH43: =IF('Cultura Clasica'!AK17="","",'Cultura Clasica'!AK17) ->  | AI43: =IF('Cultura Clasica'!AL17="","",'Cultura Clasica'!AL17) ->  | AJ43: =IF('Cultura Clasica'!AM17="","",'Cultura Clasica'!AM17) ->  | AK43: =IF('Cultura Clasica'!AN17="","",'Cultura Clasica'!AN17) ->  | AL43: =IF('Cultura Clasica'!AO17="","",'Cultura Clasica'!AO17) ->  | AM43: =IF('Cultura Clasica'!AP17="","",'Cultura Clasica'!AP17) -> 
C44: Comp. Esp. 5 | D44: Criterio Evaluación 5.1 | E44: =IF('Cultura Clasica'!H18="","",'Cultura Clasica'!H18) ->  | F44: =IF('Cultura Clasica'!I18="","",'Cultura Clasica'!I18) ->  | G44: =IF('Cultura Clasica'!J18="","",'Cultura Clasica'!J18) ->  | H44: =IF('Cultura Clasica'!K18="","",'Cultura Clasica'!K18) ->  | I44: =IF('Cultura Clasica'!L18="","",'Cultura Clasica'!L18) ->  | J44: =IF('Cultura Clasica'!M18="","",'Cultura Clasica'!M18) ->  | K44: =IF('Cultura Clasica'!N18="","",'Cultura Clasica'!N18) ->  | L44: =IF('Cultura Clasica'!O18="","",'Cultura Clasica'!O18) ->  | M44: =IF('Cultura Clasica'!P18="","",'Cultura Clasica'!P18) ->  | N44: =IF('Cultura Clasica'!Q18="","",'Cultura Clasica'!Q18) ->  | O44: =IF('Cultura Clasica'!R18="","",'Cultura Clasica'!R18) ->  | P44: =IF('Cultura Clasica'!S18="","",'Cultura Clasica'!S18) ->  | Q44: =IF('Cultura Clasica'!T18="","",'Cultura Clasica'!T18) ->  | R44: =IF('Cultura Clasica'!U18="","",'Cultura Clasica'!U18) ->  | S44: =IF('Cultura Clasica'!V18="","",'Cultura Clasica'!V18) ->  | T44: =IF('Cultura Clasica'!W18="","",'Cultura Clasica'!W18) ->  | U44: =IF('Cultura Clasica'!X18="","",'Cultura Clasica'!X18) ->  | V44: =IF('Cultura Clasica'!Y18="","",'Cultura Clasica'!Y18) ->  | W44: =IF('Cultura Clasica'!Z18="","",'Cultura Clasica'!Z18) ->  | X44: =IF('Cultura Clasica'!AA18="","",'Cultura Clasica'!AA18) ->  | Y44: =IF('Cultura Clasica'!AB18="","",'Cultura Clasica'!AB18) ->  | Z44: =IF('Cultura Clasica'!AC18="","",'Cultura Clasica'!AC18) ->  | AA44: =IF('Cultura Clasica'!AD18="","",'Cultura Clasica'!AD18) ->  | AB44: =IF('Cultura Clasica'!AE18="","",'Cultura Clasica'!AE18) ->  | AC44: =IF('Cultura Clasica'!AF18="","",'Cultura Clasica'!AF18) ->  | AD44: =IF('Cultura Clasica'!AG18="","",'Cultura Clasica'!AG18) ->  | AE44: =IF('Cultura Clasica'!AH18="","",'Cultura Clasica'!AH18) ->  | AF44: =IF('Cultura Clasica'!AI18="","",'Cultura Clasica'!AI18) ->  | AG44: =IF('Cultura Clasica'!AJ18="","",'Cultura Clasica'!AJ18) ->  | AH44: =IF('Cultura Clasica'!AK18="","",'Cultura Clasica'!AK18) ->  | AI44: =IF('Cultura Clasica'!AL18="","",'Cultura Clasica'!AL18) ->  | AJ44: =IF('Cultura Clasica'!AM18="","",'Cultura Clasica'!AM18) ->  | AK44: =IF('Cultura Clasica'!AN18="","",'Cultura Clasica'!AN18) ->  | AL44: =IF('Cultura Clasica'!AO18="","",'Cultura Clasica'!AO18) ->  | AM44: =IF('Cultura Clasica'!AP18="","",'Cultura Clasica'!AP18) -> 
D45: Criterio Evaluación 5.2 | E45: =IF('Cultura Clasica'!H19="","",'Cultura Clasica'!H19) ->  | F45: =IF('Cultura Clasica'!I19="","",'Cultura Clasica'!I19) ->  | G45: =IF('Cultura Clasica'!J19="","",'Cultura Clasica'!J19) ->  | H45: =IF('Cultura Clasica'!K19="","",'Cultura Clasica'!K19) ->  | I45: =IF('Cultura Clasica'!L19="","",'Cultura Clasica'!L19) ->  | J45: =IF('Cultura Clasica'!M19="","",'Cultura Clasica'!M19) ->  | K45: =IF('Cultura Clasica'!N19="","",'Cultura Clasica'!N19) ->  | L45: =IF('Cultura Clasica'!O19="","",'Cultura Clasica'!O19) ->  | M45: =IF('Cultura Clasica'!P19="","",'Cultura Clasica'!P19) ->  | N45: =IF('Cultura Clasica'!Q19="","",'Cultura Clasica'!Q19) ->  | O45: =IF('Cultura Clasica'!R19="","",'Cultura Clasica'!R19) ->  | P45: =IF('Cultura Clasica'!S19="","",'Cultura Clasica'!S19) ->  | Q45: =IF('Cultura Clasica'!T19="","",'Cultura Clasica'!T19) ->  | R45: =IF('Cultura Clasica'!U19="","",'Cultura Clasica'!U19) ->  | S45: =IF('Cultura Clasica'!V19="","",'Cultura Clasica'!V19) ->  | T45: =IF('Cultura Clasica'!W19="","",'Cultura Clasica'!W19) ->  | U45: =IF('Cultura Clasica'!X19="","",'Cultura Clasica'!X19) ->  | V45: =IF('Cultura Clasica'!Y19="","",'Cultura Clasica'!Y19) ->  | W45: =IF('Cultura Clasica'!Z19="","",'Cultura Clasica'!Z19) ->  | X45: =IF('Cultura Clasica'!AA19="","",'Cultura Clasica'!AA19) ->  | Y45: =IF('Cultura Clasica'!AB19="","",'Cultura Clasica'!AB19) ->  | Z45: =IF('Cultura Clasica'!AC19="","",'Cultura Clasica'!AC19) ->  | AA45: =IF('Cultura Clasica'!AD19="","",'Cultura Clasica'!AD19) ->  | AB45: =IF('Cultura Clasica'!AE19="","",'Cultura Clasica'!AE19) ->  | AC45: =IF('Cultura Clasica'!AF19="","",'Cultura Clasica'!AF19) ->  | AD45: =IF('Cultura Clasica'!AG19="","",'Cultura Clasica'!AG19) ->  | AE45: =IF('Cultura Clasica'!AH19="","",'Cultura Clasica'!AH19) ->  | AF45: =IF('Cultura Clasica'!AI19="","",'Cultura Clasica'!AI19) ->  | AG45: =IF('Cultura Clasica'!AJ19="","",'Cultura Clasica'!AJ19) ->  | AH45: =IF('Cultura Clasica'!AK19="","",'Cultura Clasica'!AK19) ->  | AI45: =IF('Cultura Clasica'!AL19="","",'Cultura Clasica'!AL19) ->  | AJ45: =IF('Cultura Clasica'!AM19="","",'Cultura Clasica'!AM19) ->  | AK45: =IF('Cultura Clasica'!AN19="","",'Cultura Clasica'!AN19) ->  | AL45: =IF('Cultura Clasica'!AO19="","",'Cultura Clasica'!AO19) ->  | AM45: =IF('Cultura Clasica'!AP19="","",'Cultura Clasica'!AP19) -> 
D46: Criterio Evaluación 5.3 | E46: =IF('Cultura Clasica'!H20="","",'Cultura Clasica'!H20) ->  | F46: =IF('Cultura Clasica'!I20="","",'Cultura Clasica'!I20) ->  | G46: =IF('Cultura Clasica'!J20="","",'Cultura Clasica'!J20) ->  | H46: =IF('Cultura Clasica'!K20="","",'Cultura Clasica'!K20) ->  | I46: =IF('Cultura Clasica'!L20="","",'Cultura Clasica'!L20) ->  | J46: =IF('Cultura Clasica'!M20="","",'Cultura Clasica'!M20) ->  | K46: =IF('Cultura Clasica'!N20="","",'Cultura Clasica'!N20) ->  | L46: =IF('Cultura Clasica'!O20="","",'Cultura Clasica'!O20) ->  | M46: =IF('Cultura Clasica'!P20="","",'Cultura Clasica'!P20) ->  | N46: =IF('Cultura Clasica'!Q20="","",'Cultura Clasica'!Q20) ->  | O46: =IF('Cultura Clasica'!R20="","",'Cultura Clasica'!R20) ->  | P46: =IF('Cultura Clasica'!S20="","",'Cultura Clasica'!S20) ->  | Q46: =IF('Cultura Clasica'!T20="","",'Cultura Clasica'!T20) ->  | R46: =IF('Cultura Clasica'!U20="","",'Cultura Clasica'!U20) ->  | S46: =IF('Cultura Clasica'!V20="","",'Cultura Clasica'!V20) ->  | T46: =IF('Cultura Clasica'!W20="","",'Cultura Clasica'!W20) ->  | U46: =IF('Cultura Clasica'!X20="","",'Cultura Clasica'!X20) ->  | V46: =IF('Cultura Clasica'!Y20="","",'Cultura Clasica'!Y20) ->  | W46: =IF('Cultura Clasica'!Z20="","",'Cultura Clasica'!Z20) ->  | X46: =IF('Cultura Clasica'!AA20="","",'Cultura Clasica'!AA20) ->  | Y46: =IF('Cultura Clasica'!AB20="","",'Cultura Clasica'!AB20) ->  | Z46: =IF('Cultura Clasica'!AC20="","",'Cultura Clasica'!AC20) ->  | AA46: =IF('Cultura Clasica'!AD20="","",'Cultura Clasica'!AD20) ->  | AB46: =IF('Cultura Clasica'!AE20="","",'Cultura Clasica'!AE20) ->  | AC46: =IF('Cultura Clasica'!AF20="","",'Cultura Clasica'!AF20) ->  | AD46: =IF('Cultura Clasica'!AG20="","",'Cultura Clasica'!AG20) ->  | AE46: =IF('Cultura Clasica'!AH20="","",'Cultura Clasica'!AH20) ->  | AF46: =IF('Cultura Clasica'!AI20="","",'Cultura Clasica'!AI20) ->  | AG46: =IF('Cultura Clasica'!AJ20="","",'Cultura Clasica'!AJ20) ->  | AH46: =IF('Cultura Clasica'!AK20="","",'Cultura Clasica'!AK20) ->  | AI46: =IF('Cultura Clasica'!AL20="","",'Cultura Clasica'!AL20) ->  | AJ46: =IF('Cultura Clasica'!AM20="","",'Cultura Clasica'!AM20) ->  | AK46: =IF('Cultura Clasica'!AN20="","",'Cultura Clasica'!AN20) ->  | AL46: =IF('Cultura Clasica'!AO20="","",'Cultura Clasica'!AO20) ->  | AM46: =IF('Cultura Clasica'!AP20="","",'Cultura Clasica'!AP20) -> 
D47: Criterio Evaluación 5.4 | E47: =IF('Cultura Clasica'!H21="","",'Cultura Clasica'!H21) ->  | F47: =IF('Cultura Clasica'!I21="","",'Cultura Clasica'!I21) ->  | G47: =IF('Cultura Clasica'!J21="","",'Cultura Clasica'!J21) ->  | H47: =IF('Cultura Clasica'!K21="","",'Cultura Clasica'!K21) ->  | I47: =IF('Cultura Clasica'!L21="","",'Cultura Clasica'!L21) ->  | J47: =IF('Cultura Clasica'!M21="","",'Cultura Clasica'!M21) ->  | K47: =IF('Cultura Clasica'!N21="","",'Cultura Clasica'!N21) ->  | L47: =IF('Cultura Clasica'!O21="","",'Cultura Clasica'!O21) ->  | M47: =IF('Cultura Clasica'!P21="","",'Cultura Clasica'!P21) ->  | N47: =IF('Cultura Clasica'!Q21="","",'Cultura Clasica'!Q21) ->  | O47: =IF('Cultura Clasica'!R21="","",'Cultura Clasica'!R21) ->  | P47: =IF('Cultura Clasica'!S21="","",'Cultura Clasica'!S21) ->  | Q47: =IF('Cultura Clasica'!T21="","",'Cultura Clasica'!T21) ->  | R47: =IF('Cultura Clasica'!U21="","",'Cultura Clasica'!U21) ->  | S47: =IF('Cultura Clasica'!V21="","",'Cultura Clasica'!V21) ->  | T47: =IF('Cultura Clasica'!W21="","",'Cultura Clasica'!W21) ->  | U47: =IF('Cultura Clasica'!X21="","",'Cultura Clasica'!X21) ->  | V47: =IF('Cultura Clasica'!Y21="","",'Cultura Clasica'!Y21) ->  | W47: =IF('Cultura Clasica'!Z21="","",'Cultura Clasica'!Z21) ->  | X47: =IF('Cultura Clasica'!AA21="","",'Cultura Clasica'!AA21) ->  | Y47: =IF('Cultura Clasica'!AB21="","",'Cultura Clasica'!AB21) ->  | Z47: =IF('Cultura Clasica'!AC21="","",'Cultura Clasica'!AC21) ->  | AA47: =IF('Cultura Clasica'!AD21="","",'Cultura Clasica'!AD21) ->  | AB47: =IF('Cultura Clasica'!AE21="","",'Cultura Clasica'!AE21) ->  | AC47: =IF('Cultura Clasica'!AF21="","",'Cultura Clasica'!AF21) ->  | AD47: =IF('Cultura Clasica'!AG21="","",'Cultura Clasica'!AG21) ->  | AE47: =IF('Cultura Clasica'!AH21="","",'Cultura Clasica'!AH21) ->  | AF47: =IF('Cultura Clasica'!AI21="","",'Cultura Clasica'!AI21) ->  | AG47: =IF('Cultura Clasica'!AJ21="","",'Cultura Clasica'!AJ21) ->  | AH47: =IF('Cultura Clasica'!AK21="","",'Cultura Clasica'!AK21) ->  | AI47: =IF('Cultura Clasica'!AL21="","",'Cultura Clasica'!AL21) ->  | AJ47: =IF('Cultura Clasica'!AM21="","",'Cultura Clasica'!AM21) ->  | AK47: =IF('Cultura Clasica'!AN21="","",'Cultura Clasica'!AN21) ->  | AL47: =IF('Cultura Clasica'!AO21="","",'Cultura Clasica'!AO21) ->  | AM47: =IF('Cultura Clasica'!AP21="","",'Cultura Clasica'!AP21) -> 
B48: Educación Física | C48: Comp. Esp. 1 | D48: Criterio Evaluación 1.1 | E48: =IF('Educacion Fisica'!H4="","",'Educacion Fisica'!H4) ->  | F48: =IF('Educacion Fisica'!I4="","",'Educacion Fisica'!I4) ->  | G48: =IF('Educacion Fisica'!J4="","",'Educacion Fisica'!J4) ->  | H48: =IF('Educacion Fisica'!K4="","",'Educacion Fisica'!K4) ->  | I48: =IF('Educacion Fisica'!L4="","",'Educacion Fisica'!L4) ->  | J48: =IF('Educacion Fisica'!M4="","",'Educacion Fisica'!M4) ->  | K48: =IF('Educacion Fisica'!N4="","",'Educacion Fisica'!N4) ->  | L48: =IF('Educacion Fisica'!O4="","",'Educacion Fisica'!O4) ->  | M48: =IF('Educacion Fisica'!P4="","",'Educacion Fisica'!P4) ->  | N48: =IF('Educacion Fisica'!Q4="","",'Educacion Fisica'!Q4) ->  | O48: =IF('Educacion Fisica'!R4="","",'Educacion Fisica'!R4) ->  | P48: =IF('Educacion Fisica'!S4="","",'Educacion Fisica'!S4) ->  | Q48: =IF('Educacion Fisica'!T4="","",'Educacion Fisica'!T4) ->  | R48: =IF('Educacion Fisica'!U4="","",'Educacion Fisica'!U4) ->  | S48: =IF('Educacion Fisica'!V4="","",'Educacion Fisica'!V4) ->  | T48: =IF('Educacion Fisica'!W4="","",'Educacion Fisica'!W4) ->  | U48: =IF('Educacion Fisica'!X4="","",'Educacion Fisica'!X4) ->  | V48: =IF('Educacion Fisica'!Y4="","",'Educacion Fisica'!Y4) ->  | W48: =IF('Educacion Fisica'!Z4="","",'Educacion Fisica'!Z4) ->  | X48: =IF('Educacion Fisica'!AA4="","",'Educacion Fisica'!AA4) ->  | Y48: =IF('Educacion Fisica'!AB4="","",'Educacion Fisica'!AB4) ->  | Z48: =IF('Educacion Fisica'!AC4="","",'Educacion Fisica'!AC4) ->  | AA48: =IF('Educacion Fisica'!AD4="","",'Educacion Fisica'!AD4) ->  | AB48: =IF('Educacion Fisica'!AE4="","",'Educacion Fisica'!AE4) ->  | AC48: =IF('Educacion Fisica'!AF4="","",'Educacion Fisica'!AF4) ->  | AD48: =IF('Educacion Fisica'!AG4="","",'Educacion Fisica'!AG4) ->  | AE48: =IF('Educacion Fisica'!AH4="","",'Educacion Fisica'!AH4) ->  | AF48: =IF('Educacion Fisica'!AI4="","",'Educacion Fisica'!AI4) ->  | AG48: =IF('Educacion Fisica'!AJ4="","",'Educacion Fisica'!AJ4) ->  | AH48: =IF('Educacion Fisica'!AK4="","",'Educacion Fisica'!AK4) ->  | AI48: =IF('Educacion Fisica'!AL4="","",'Educacion Fisica'!AL4) ->  | AJ48: =IF('Educacion Fisica'!AM4="","",'Educacion Fisica'!AM4) ->  | AK48: =IF('Educacion Fisica'!AN4="","",'Educacion Fisica'!AN4) ->  | AL48: =IF('Educacion Fisica'!AO4="","",'Educacion Fisica'!AO4) ->  | AM48: =IF('Educacion Fisica'!AP4="","",'Educacion Fisica'!AP4) -> 
D49: Criterio Evaluación 1.2 | E49: =IF('Educacion Fisica'!H5="","",'Educacion Fisica'!H5) ->  | F49: =IF('Educacion Fisica'!I5="","",'Educacion Fisica'!I5) ->  | G49: =IF('Educacion Fisica'!J5="","",'Educacion Fisica'!J5) ->  | H49: =IF('Educacion Fisica'!K5="","",'Educacion Fisica'!K5) ->  | I49: =IF('Educacion Fisica'!L5="","",'Educacion Fisica'!L5) ->  | J49: =IF('Educacion Fisica'!M5="","",'Educacion Fisica'!M5) ->  | K49: =IF('Educacion Fisica'!N5="","",'Educacion Fisica'!N5) ->  | L49: =IF('Educacion Fisica'!O5="","",'Educacion Fisica'!O5) ->  | M49: =IF('Educacion Fisica'!P5="","",'Educacion Fisica'!P5) ->  | N49: =IF('Educacion Fisica'!Q5="","",'Educacion Fisica'!Q5) ->  | O49: =IF('Educacion Fisica'!R5="","",'Educacion Fisica'!R5) ->  | P49: =IF('Educacion Fisica'!S5="","",'Educacion Fisica'!S5) ->  | Q49: =IF('Educacion Fisica'!T5="","",'Educacion Fisica'!T5) ->  | R49: =IF('Educacion Fisica'!U5="","",'Educacion Fisica'!U5) ->  | S49: =IF('Educacion Fisica'!V5="","",'Educacion Fisica'!V5) ->  | T49: =IF('Educacion Fisica'!W5="","",'Educacion Fisica'!W5) ->  | U49: =IF('Educacion Fisica'!X5="","",'Educacion Fisica'!X5) ->  | V49: =IF('Educacion Fisica'!Y5="","",'Educacion Fisica'!Y5) ->  | W49: =IF('Educacion Fisica'!Z5="","",'Educacion Fisica'!Z5) ->  | X49: =IF('Educacion Fisica'!AA5="","",'Educacion Fisica'!AA5) ->  | Y49: =IF('Educacion Fisica'!AB5="","",'Educacion Fisica'!AB5) ->  | Z49: =IF('Educacion Fisica'!AC5="","",'Educacion Fisica'!AC5) ->  | AA49: =IF('Educacion Fisica'!AD5="","",'Educacion Fisica'!AD5) ->  | AB49: =IF('Educacion Fisica'!AE5="","",'Educacion Fisica'!AE5) ->  | AC49: =IF('Educacion Fisica'!AF5="","",'Educacion Fisica'!AF5) ->  | AD49: =IF('Educacion Fisica'!AG5="","",'Educacion Fisica'!AG5) ->  | AE49: =IF('Educacion Fisica'!AH5="","",'Educacion Fisica'!AH5) ->  | AF49: =IF('Educacion Fisica'!AI5="","",'Educacion Fisica'!AI5) ->  | AG49: =IF('Educacion Fisica'!AJ5="","",'Educacion Fisica'!AJ5) ->  | AH49: =IF('Educacion Fisica'!AK5="","",'Educacion Fisica'!AK5) ->  | AI49: =IF('Educacion Fisica'!AL5="","",'Educacion Fisica'!AL5) ->  | AJ49: =IF('Educacion Fisica'!AM5="","",'Educacion Fisica'!AM5) ->  | AK49: =IF('Educacion Fisica'!AN5="","",'Educacion Fisica'!AN5) ->  | AL49: =IF('Educacion Fisica'!AO5="","",'Educacion Fisica'!AO5) ->  | AM49: =IF('Educacion Fisica'!AP5="","",'Educacion Fisica'!AP5) -> 
D50: Criterio Evaluación 1.3 | E50: =IF('Educacion Fisica'!H6="","",'Educacion Fisica'!H6) ->  | F50: =IF('Educacion Fisica'!I6="","",'Educacion Fisica'!I6) ->  | G50: =IF('Educacion Fisica'!J6="","",'Educacion Fisica'!J6) ->  | H50: =IF('Educacion Fisica'!K6="","",'Educacion Fisica'!K6) ->  | I50: =IF('Educacion Fisica'!L6="","",'Educacion Fisica'!L6) ->  | J50: =IF('Educacion Fisica'!M6="","",'Educacion Fisica'!M6) ->  | K50: =IF('Educacion Fisica'!N6="","",'Educacion Fisica'!N6) ->  | L50: =IF('Educacion Fisica'!O6="","",'Educacion Fisica'!O6) ->  | M50: =IF('Educacion Fisica'!P6="","",'Educacion Fisica'!P6) ->  | N50: =IF('Educacion Fisica'!Q6="","",'Educacion Fisica'!Q6) ->  | O50: =IF('Educacion Fisica'!R6="","",'Educacion Fisica'!R6) ->  | P50: =IF('Educacion Fisica'!S6="","",'Educacion Fisica'!S6) ->  | Q50: =IF('Educacion Fisica'!T6="","",'Educacion Fisica'!T6) ->  | R50: =IF('Educacion Fisica'!U6="","",'Educacion Fisica'!U6) ->  | S50: =IF('Educacion Fisica'!V6="","",'Educacion Fisica'!V6) ->  | T50: =IF('Educacion Fisica'!W6="","",'Educacion Fisica'!W6) ->  | U50: =IF('Educacion Fisica'!X6="","",'Educacion Fisica'!X6) ->  | V50: =IF('Educacion Fisica'!Y6="","",'Educacion Fisica'!Y6) ->  | W50: =IF('Educacion Fisica'!Z6="","",'Educacion Fisica'!Z6) ->  | X50: =IF('Educacion Fisica'!AA6="","",'Educacion Fisica'!AA6) ->  | Y50: =IF('Educacion Fisica'!AB6="","",'Educacion Fisica'!AB6) ->  | Z50: =IF('Educacion Fisica'!AC6="","",'Educacion Fisica'!AC6) ->  | AA50: =IF('Educacion Fisica'!AD6="","",'Educacion Fisica'!AD6) ->  | AB50: =IF('Educacion Fisica'!AE6="","",'Educacion Fisica'!AE6) ->  | AC50: =IF('Educacion Fisica'!AF6="","",'Educacion Fisica'!AF6) ->  | AD50: =IF('Educacion Fisica'!AG6="","",'Educacion Fisica'!AG6) ->  | AE50: =IF('Educacion Fisica'!AH6="","",'Educacion Fisica'!AH6) ->  | AF50: =IF('Educacion Fisica'!AI6="","",'Educacion Fisica'!AI6) ->  | AG50: =IF('Educacion Fisica'!AJ6="","",'Educacion Fisica'!AJ6) ->  | AH50: =IF('Educacion Fisica'!AK6="","",'Educacion Fisica'!AK6) ->  | AI50: =IF('Educacion Fisica'!AL6="","",'Educacion Fisica'!AL6) ->  | AJ50: =IF('Educacion Fisica'!AM6="","",'Educacion Fisica'!AM6) ->  | AK50: =IF('Educacion Fisica'!AN6="","",'Educacion Fisica'!AN6) ->  | AL50: =IF('Educacion Fisica'!AO6="","",'Educacion Fisica'!AO6) ->  | AM50: =IF('Educacion Fisica'!AP6="","",'Educacion Fisica'!AP6) -> 
D51: Criterio Evaluación 1.4 | E51: =IF('Educacion Fisica'!H7="","",'Educacion Fisica'!H7) ->  | F51: =IF('Educacion Fisica'!I7="","",'Educacion Fisica'!I7) ->  | G51: =IF('Educacion Fisica'!J7="","",'Educacion Fisica'!J7) ->  | H51: =IF('Educacion Fisica'!K7="","",'Educacion Fisica'!K7) ->  | I51: =IF('Educacion Fisica'!L7="","",'Educacion Fisica'!L7) ->  | J51: =IF('Educacion Fisica'!M7="","",'Educacion Fisica'!M7) ->  | K51: =IF('Educacion Fisica'!N7="","",'Educacion Fisica'!N7) ->  | L51: =IF('Educacion Fisica'!O7="","",'Educacion Fisica'!O7) ->  | M51: =IF('Educacion Fisica'!P7="","",'Educacion Fisica'!P7) ->  | N51: =IF('Educacion Fisica'!Q7="","",'Educacion Fisica'!Q7) ->  | O51: =IF('Educacion Fisica'!R7="","",'Educacion Fisica'!R7) ->  | P51: =IF('Educacion Fisica'!S7="","",'Educacion Fisica'!S7) ->  | Q51: =IF('Educacion Fisica'!T7="","",'Educacion Fisica'!T7) ->  | R51: =IF('Educacion Fisica'!U7="","",'Educacion Fisica'!U7) ->  | S51: =IF('Educacion Fisica'!V7="","",'Educacion Fisica'!V7) ->  | T51: =IF('Educacion Fisica'!W7="","",'Educacion Fisica'!W7) ->  | U51: =IF('Educacion Fisica'!X7="","",'Educacion Fisica'!X7) ->  | V51: =IF('Educacion Fisica'!Y7="","",'Educacion Fisica'!Y7) ->  | W51: =IF('Educacion Fisica'!Z7="","",'Educacion Fisica'!Z7) ->  | X51: =IF('Educacion Fisica'!AA7="","",'Educacion Fisica'!AA7) ->  | Y51: =IF('Educacion Fisica'!AB7="","",'Educacion Fisica'!AB7) ->  | Z51: =IF('Educacion Fisica'!AC7="","",'Educacion Fisica'!AC7) ->  | AA51: =IF('Educacion Fisica'!AD7="","",'Educacion Fisica'!AD7) ->  | AB51: =IF('Educacion Fisica'!AE7="","",'Educacion Fisica'!AE7) ->  | AC51: =IF('Educacion Fisica'!AF7="","",'Educacion Fisica'!AF7) ->  | AD51: =IF('Educacion Fisica'!AG7="","",'Educacion Fisica'!AG7) ->  | AE51: =IF('Educacion Fisica'!AH7="","",'Educacion Fisica'!AH7) ->  | AF51: =IF('Educacion Fisica'!AI7="","",'Educacion Fisica'!AI7) ->  | AG51: =IF('Educacion Fisica'!AJ7="","",'Educacion Fisica'!AJ7) ->  | AH51: =IF('Educacion Fisica'!AK7="","",'Educacion Fisica'!AK7) ->  | AI51: =IF('Educacion Fisica'!AL7="","",'Educacion Fisica'!AL7) ->  | AJ51: =IF('Educacion Fisica'!AM7="","",'Educacion Fisica'!AM7) ->  | AK51: =IF('Educacion Fisica'!AN7="","",'Educacion Fisica'!AN7) ->  | AL51: =IF('Educacion Fisica'!AO7="","",'Educacion Fisica'!AO7) ->  | AM51: =IF('Educacion Fisica'!AP7="","",'Educacion Fisica'!AP7) -> 
D52: Criterio Evaluación 1.5 | E52: =IF('Educacion Fisica'!H8="","",'Educacion Fisica'!H8) ->  | F52: =IF('Educacion Fisica'!I8="","",'Educacion Fisica'!I8) ->  | G52: =IF('Educacion Fisica'!J8="","",'Educacion Fisica'!J8) ->  | H52: =IF('Educacion Fisica'!K8="","",'Educacion Fisica'!K8) ->  | I52: =IF('Educacion Fisica'!L8="","",'Educacion Fisica'!L8) ->  | J52: =IF('Educacion Fisica'!M8="","",'Educacion Fisica'!M8) ->  | K52: =IF('Educacion Fisica'!N8="","",'Educacion Fisica'!N8) ->  | L52: =IF('Educacion Fisica'!O8="","",'Educacion Fisica'!O8) ->  | M52: =IF('Educacion Fisica'!P8="","",'Educacion Fisica'!P8) ->  | N52: =IF('Educacion Fisica'!Q8="","",'Educacion Fisica'!Q8) ->  | O52: =IF('Educacion Fisica'!R8="","",'Educacion Fisica'!R8) ->  | P52: =IF('Educacion Fisica'!S8="","",'Educacion Fisica'!S8) ->  | Q52: =IF('Educacion Fisica'!T8="","",'Educacion Fisica'!T8) ->  | R52: =IF('Educacion Fisica'!U8="","",'Educacion Fisica'!U8) ->  | S52: =IF('Educacion Fisica'!V8="","",'Educacion Fisica'!V8) ->  | T52: =IF('Educacion Fisica'!W8="","",'Educacion Fisica'!W8) ->  | U52: =IF('Educacion Fisica'!X8="","",'Educacion Fisica'!X8) ->  | V52: =IF('Educacion Fisica'!Y8="","",'Educacion Fisica'!Y8) ->  | W52: =IF('Educacion Fisica'!Z8="","",'Educacion Fisica'!Z8) ->  | X52: =IF('Educacion Fisica'!AA8="","",'Educacion Fisica'!AA8) ->  | Y52: =IF('Educacion Fisica'!AB8="","",'Educacion Fisica'!AB8) ->  | Z52: =IF('Educacion Fisica'!AC8="","",'Educacion Fisica'!AC8) ->  | AA52: =IF('Educacion Fisica'!AD8="","",'Educacion Fisica'!AD8) ->  | AB52: =IF('Educacion Fisica'!AE8="","",'Educacion Fisica'!AE8) ->  | AC52: =IF('Educacion Fisica'!AF8="","",'Educacion Fisica'!AF8) ->  | AD52: =IF('Educacion Fisica'!AG8="","",'Educacion Fisica'!AG8) ->  | AE52: =IF('Educacion Fisica'!AH8="","",'Educacion Fisica'!AH8) ->  | AF52: =IF('Educacion Fisica'!AI8="","",'Educacion Fisica'!AI8) ->  | AG52: =IF('Educacion Fisica'!AJ8="","",'Educacion Fisica'!AJ8) ->  | AH52: =IF('Educacion Fisica'!AK8="","",'Educacion Fisica'!AK8) ->  | AI52: =IF('Educacion Fisica'!AL8="","",'Educacion Fisica'!AL8) ->  | AJ52: =IF('Educacion Fisica'!AM8="","",'Educacion Fisica'!AM8) ->  | AK52: =IF('Educacion Fisica'!AN8="","",'Educacion Fisica'!AN8) ->  | AL52: =IF('Educacion Fisica'!AO8="","",'Educacion Fisica'!AO8) ->  | AM52: =IF('Educacion Fisica'!AP8="","",'Educacion Fisica'!AP8) -> 
D53: Criterio Evaluación 1.6 | E53: =IF('Educacion Fisica'!H9="","",'Educacion Fisica'!H9) ->  | F53: =IF('Educacion Fisica'!I9="","",'Educacion Fisica'!I9) ->  | G53: =IF('Educacion Fisica'!J9="","",'Educacion Fisica'!J9) ->  | H53: =IF('Educacion Fisica'!K9="","",'Educacion Fisica'!K9) ->  | I53: =IF('Educacion Fisica'!L9="","",'Educacion Fisica'!L9) ->  | J53: =IF('Educacion Fisica'!M9="","",'Educacion Fisica'!M9) ->  | K53: =IF('Educacion Fisica'!N9="","",'Educacion Fisica'!N9) ->  | L53: =IF('Educacion Fisica'!O9="","",'Educacion Fisica'!O9) ->  | M53: =IF('Educacion Fisica'!P9="","",'Educacion Fisica'!P9) ->  | N53: =IF('Educacion Fisica'!Q9="","",'Educacion Fisica'!Q9) ->  | O53: =IF('Educacion Fisica'!R9="","",'Educacion Fisica'!R9) ->  | P53: =IF('Educacion Fisica'!S9="","",'Educacion Fisica'!S9) ->  | Q53: =IF('Educacion Fisica'!T9="","",'Educacion Fisica'!T9) ->  | R53: =IF('Educacion Fisica'!U9="","",'Educacion Fisica'!U9) ->  | S53: =IF('Educacion Fisica'!V9="","",'Educacion Fisica'!V9) ->  | T53: =IF('Educacion Fisica'!W9="","",'Educacion Fisica'!W9) ->  | U53: =IF('Educacion Fisica'!X9="","",'Educacion Fisica'!X9) ->  | V53: =IF('Educacion Fisica'!Y9="","",'Educacion Fisica'!Y9) ->  | W53: =IF('Educacion Fisica'!Z9="","",'Educacion Fisica'!Z9) ->  | X53: =IF('Educacion Fisica'!AA9="","",'Educacion Fisica'!AA9) ->  | Y53: =IF('Educacion Fisica'!AB9="","",'Educacion Fisica'!AB9) ->  | Z53: =IF('Educacion Fisica'!AC9="","",'Educacion Fisica'!AC9) ->  | AA53: =IF('Educacion Fisica'!AD9="","",'Educacion Fisica'!AD9) ->  | AB53: =IF('Educacion Fisica'!AE9="","",'Educacion Fisica'!AE9) ->  | AC53: =IF('Educacion Fisica'!AF9="","",'Educacion Fisica'!AF9) ->  | AD53: =IF('Educacion Fisica'!AG9="","",'Educacion Fisica'!AG9) ->  | AE53: =IF('Educacion Fisica'!AH9="","",'Educacion Fisica'!AH9) ->  | AF53: =IF('Educacion Fisica'!AI9="","",'Educacion Fisica'!AI9) ->  | AG53: =IF('Educacion Fisica'!AJ9="","",'Educacion Fisica'!AJ9) ->  | AH53: =IF('Educacion Fisica'!AK9="","",'Educacion Fisica'!AK9) ->  | AI53: =IF('Educacion Fisica'!AL9="","",'Educacion Fisica'!AL9) ->  | AJ53: =IF('Educacion Fisica'!AM9="","",'Educacion Fisica'!AM9) ->  | AK53: =IF('Educacion Fisica'!AN9="","",'Educacion Fisica'!AN9) ->  | AL53: =IF('Educacion Fisica'!AO9="","",'Educacion Fisica'!AO9) ->  | AM53: =IF('Educacion Fisica'!AP9="","",'Educacion Fisica'!AP9) -> 
D54: Criterio Evaluación 1.7 | E54: =IF('Educacion Fisica'!H10="","",'Educacion Fisica'!H10) ->  | F54: =IF('Educacion Fisica'!I10="","",'Educacion Fisica'!I10) ->  | G54: =IF('Educacion Fisica'!J10="","",'Educacion Fisica'!J10) ->  | H54: =IF('Educacion Fisica'!K10="","",'Educacion Fisica'!K10) ->  | I54: =IF('Educacion Fisica'!L10="","",'Educacion Fisica'!L10) ->  | J54: =IF('Educacion Fisica'!M10="","",'Educacion Fisica'!M10) ->  | K54: =IF('Educacion Fisica'!N10="","",'Educacion Fisica'!N10) ->  | L54: =IF('Educacion Fisica'!O10="","",'Educacion Fisica'!O10) ->  | M54: =IF('Educacion Fisica'!P10="","",'Educacion Fisica'!P10) ->  | N54: =IF('Educacion Fisica'!Q10="","",'Educacion Fisica'!Q10) ->  | O54: =IF('Educacion Fisica'!R10="","",'Educacion Fisica'!R10) ->  | P54: =IF('Educacion Fisica'!S10="","",'Educacion Fisica'!S10) ->  | Q54: =IF('Educacion Fisica'!T10="","",'Educacion Fisica'!T10) ->  | R54: =IF('Educacion Fisica'!U10="","",'Educacion Fisica'!U10) ->  | S54: =IF('Educacion Fisica'!V10="","",'Educacion Fisica'!V10) ->  | T54: =IF('Educacion Fisica'!W10="","",'Educacion Fisica'!W10) ->  | U54: =IF('Educacion Fisica'!X10="","",'Educacion Fisica'!X10) ->  | V54: =IF('Educacion Fisica'!Y10="","",'Educacion Fisica'!Y10) ->  | W54: =IF('Educacion Fisica'!Z10="","",'Educacion Fisica'!Z10) ->  | X54: =IF('Educacion Fisica'!AA10="","",'Educacion Fisica'!AA10) ->  | Y54: =IF('Educacion Fisica'!AB10="","",'Educacion Fisica'!AB10) ->  | Z54: =IF('Educacion Fisica'!AC10="","",'Educacion Fisica'!AC10) ->  | AA54: =IF('Educacion Fisica'!AD10="","",'Educacion Fisica'!AD10) ->  | AB54: =IF('Educacion Fisica'!AE10="","",'Educacion Fisica'!AE10) ->  | AC54: =IF('Educacion Fisica'!AF10="","",'Educacion Fisica'!AF10) ->  | AD54: =IF('Educacion Fisica'!AG10="","",'Educacion Fisica'!AG10) ->  | AE54: =IF('Educacion Fisica'!AH10="","",'Educacion Fisica'!AH10) ->  | AF54: =IF('Educacion Fisica'!AI10="","",'Educacion Fisica'!AI10) ->  | AG54: =IF('Educacion Fisica'!AJ10="","",'Educacion Fisica'!AJ10) ->  | AH54: =IF('Educacion Fisica'!AK10="","",'Educacion Fisica'!AK10) ->  | AI54: =IF('Educacion Fisica'!AL10="","",'Educacion Fisica'!AL10) ->  | AJ54: =IF('Educacion Fisica'!AM10="","",'Educacion Fisica'!AM10) ->  | AK54: =IF('Educacion Fisica'!AN10="","",'Educacion Fisica'!AN10) ->  | AL54: =IF('Educacion Fisica'!AO10="","",'Educacion Fisica'!AO10) ->  | AM54: =IF('Educacion Fisica'!AP10="","",'Educacion Fisica'!AP10) -> 
D55: Criterio Evaluación 1.8 | E55: =IF('Educacion Fisica'!H11="","",'Educacion Fisica'!H11) ->  | F55: =IF('Educacion Fisica'!I11="","",'Educacion Fisica'!I11) ->  | G55: =IF('Educacion Fisica'!J11="","",'Educacion Fisica'!J11) ->  | H55: =IF('Educacion Fisica'!K11="","",'Educacion Fisica'!K11) ->  | I55: =IF('Educacion Fisica'!L11="","",'Educacion Fisica'!L11) ->  | J55: =IF('Educacion Fisica'!M11="","",'Educacion Fisica'!M11) ->  | K55: =IF('Educacion Fisica'!N11="","",'Educacion Fisica'!N11) ->  | L55: =IF('Educacion Fisica'!O11="","",'Educacion Fisica'!O11) ->  | M55: =IF('Educacion Fisica'!P11="","",'Educacion Fisica'!P11) ->  | N55: =IF('Educacion Fisica'!Q11="","",'Educacion Fisica'!Q11) ->  | O55: =IF('Educacion Fisica'!R11="","",'Educacion Fisica'!R11) ->  | P55: =IF('Educacion Fisica'!S11="","",'Educacion Fisica'!S11) ->  | Q55: =IF('Educacion Fisica'!T11="","",'Educacion Fisica'!T11) ->  | R55: =IF('Educacion Fisica'!U11="","",'Educacion Fisica'!U11) ->  | S55: =IF('Educacion Fisica'!V11="","",'Educacion Fisica'!V11) ->  | T55: =IF('Educacion Fisica'!W11="","",'Educacion Fisica'!W11) ->  | U55: =IF('Educacion Fisica'!X11="","",'Educacion Fisica'!X11) ->  | V55: =IF('Educacion Fisica'!Y11="","",'Educacion Fisica'!Y11) ->  | W55: =IF('Educacion Fisica'!Z11="","",'Educacion Fisica'!Z11) ->  | X55: =IF('Educacion Fisica'!AA11="","",'Educacion Fisica'!AA11) ->  | Y55: =IF('Educacion Fisica'!AB11="","",'Educacion Fisica'!AB11) ->  | Z55: =IF('Educacion Fisica'!AC11="","",'Educacion Fisica'!AC11) ->  | AA55: =IF('Educacion Fisica'!AD11="","",'Educacion Fisica'!AD11) ->  | AB55: =IF('Educacion Fisica'!AE11="","",'Educacion Fisica'!AE11) ->  | AC55: =IF('Educacion Fisica'!AF11="","",'Educacion Fisica'!AF11) ->  | AD55: =IF('Educacion Fisica'!AG11="","",'Educacion Fisica'!AG11) ->  | AE55: =IF('Educacion Fisica'!AH11="","",'Educacion Fisica'!AH11) ->  | AF55: =IF('Educacion Fisica'!AI11="","",'Educacion Fisica'!AI11) ->  | AG55: =IF('Educacion Fisica'!AJ11="","",'Educacion Fisica'!AJ11) ->  | AH55: =IF('Educacion Fisica'!AK11="","",'Educacion Fisica'!AK11) ->  | AI55: =IF('Educacion Fisica'!AL11="","",'Educacion Fisica'!AL11) ->  | AJ55: =IF('Educacion Fisica'!AM11="","",'Educacion Fisica'!AM11) ->  | AK55: =IF('Educacion Fisica'!AN11="","",'Educacion Fisica'!AN11) ->  | AL55: =IF('Educacion Fisica'!AO11="","",'Educacion Fisica'!AO11) ->  | AM55: =IF('Educacion Fisica'!AP11="","",'Educacion Fisica'!AP11) -> 
D56: Criterio Evaluación 1.9 | E56: =IF('Educacion Fisica'!H12="","",'Educacion Fisica'!H12) ->  | F56: =IF('Educacion Fisica'!I12="","",'Educacion Fisica'!I12) ->  | G56: =IF('Educacion Fisica'!J12="","",'Educacion Fisica'!J12) ->  | H56: =IF('Educacion Fisica'!K12="","",'Educacion Fisica'!K12) ->  | I56: =IF('Educacion Fisica'!L12="","",'Educacion Fisica'!L12) ->  | J56: =IF('Educacion Fisica'!M12="","",'Educacion Fisica'!M12) ->  | K56: =IF('Educacion Fisica'!N12="","",'Educacion Fisica'!N12) ->  | L56: =IF('Educacion Fisica'!O12="","",'Educacion Fisica'!O12) ->  | M56: =IF('Educacion Fisica'!P12="","",'Educacion Fisica'!P12) ->  | N56: =IF('Educacion Fisica'!Q12="","",'Educacion Fisica'!Q12) ->  | O56: =IF('Educacion Fisica'!R12="","",'Educacion Fisica'!R12) ->  | P56: =IF('Educacion Fisica'!S12="","",'Educacion Fisica'!S12) ->  | Q56: =IF('Educacion Fisica'!T12="","",'Educacion Fisica'!T12) ->  | R56: =IF('Educacion Fisica'!U12="","",'Educacion Fisica'!U12) ->  | S56: =IF('Educacion Fisica'!V12="","",'Educacion Fisica'!V12) ->  | T56: =IF('Educacion Fisica'!W12="","",'Educacion Fisica'!W12) ->  | U56: =IF('Educacion Fisica'!X12="","",'Educacion Fisica'!X12) ->  | V56: =IF('Educacion Fisica'!Y12="","",'Educacion Fisica'!Y12) ->  | W56: =IF('Educacion Fisica'!Z12="","",'Educacion Fisica'!Z12) ->  | X56: =IF('Educacion Fisica'!AA12="","",'Educacion Fisica'!AA12) ->  | Y56: =IF('Educacion Fisica'!AB12="","",'Educacion Fisica'!AB12) ->  | Z56: =IF('Educacion Fisica'!AC12="","",'Educacion Fisica'!AC12) ->  | AA56: =IF('Educacion Fisica'!AD12="","",'Educacion Fisica'!AD12) ->  | AB56: =IF('Educacion Fisica'!AE12="","",'Educacion Fisica'!AE12) ->  | AC56: =IF('Educacion Fisica'!AF12="","",'Educacion Fisica'!AF12) ->  | AD56: =IF('Educacion Fisica'!AG12="","",'Educacion Fisica'!AG12) ->  | AE56: =IF('Educacion Fisica'!AH12="","",'Educacion Fisica'!AH12) ->  | AF56: =IF('Educacion Fisica'!AI12="","",'Educacion Fisica'!AI12) ->  | AG56: =IF('Educacion Fisica'!AJ12="","",'Educacion Fisica'!AJ12) ->  | AH56: =IF('Educacion Fisica'!AK12="","",'Educacion Fisica'!AK12) ->  | AI56: =IF('Educacion Fisica'!AL12="","",'Educacion Fisica'!AL12) ->  | AJ56: =IF('Educacion Fisica'!AM12="","",'Educacion Fisica'!AM12) ->  | AK56: =IF('Educacion Fisica'!AN12="","",'Educacion Fisica'!AN12) ->  | AL56: =IF('Educacion Fisica'!AO12="","",'Educacion Fisica'!AO12) ->  | AM56: =IF('Educacion Fisica'!AP12="","",'Educacion Fisica'!AP12) -> 
C57: Comp. Esp. 2 | D57: Criterio Evaluación 2.1 | E57: =IF('Educacion Fisica'!H13="","",'Educacion Fisica'!H13) ->  | F57: =IF('Educacion Fisica'!I13="","",'Educacion Fisica'!I13) ->  | G57: =IF('Educacion Fisica'!J13="","",'Educacion Fisica'!J13) ->  | H57: =IF('Educacion Fisica'!K13="","",'Educacion Fisica'!K13) ->  | I57: =IF('Educacion Fisica'!L13="","",'Educacion Fisica'!L13) ->  | J57: =IF('Educacion Fisica'!M13="","",'Educacion Fisica'!M13) ->  | K57: =IF('Educacion Fisica'!N13="","",'Educacion Fisica'!N13) ->  | L57: =IF('Educacion Fisica'!O13="","",'Educacion Fisica'!O13) ->  | M57: =IF('Educacion Fisica'!P13="","",'Educacion Fisica'!P13) ->  | N57: =IF('Educacion Fisica'!Q13="","",'Educacion Fisica'!Q13) ->  | O57: =IF('Educacion Fisica'!R13="","",'Educacion Fisica'!R13) ->  | P57: =IF('Educacion Fisica'!S13="","",'Educacion Fisica'!S13) ->  | Q57: =IF('Educacion Fisica'!T13="","",'Educacion Fisica'!T13) ->  | R57: =IF('Educacion Fisica'!U13="","",'Educacion Fisica'!U13) ->  | S57: =IF('Educacion Fisica'!V13="","",'Educacion Fisica'!V13) ->  | T57: =IF('Educacion Fisica'!W13="","",'Educacion Fisica'!W13) ->  | U57: =IF('Educacion Fisica'!X13="","",'Educacion Fisica'!X13) ->  | V57: =IF('Educacion Fisica'!Y13="","",'Educacion Fisica'!Y13) ->  | W57: =IF('Educacion Fisica'!Z13="","",'Educacion Fisica'!Z13) ->  | X57: =IF('Educacion Fisica'!AA13="","",'Educacion Fisica'!AA13) ->  | Y57: =IF('Educacion Fisica'!AB13="","",'Educacion Fisica'!AB13) ->  | Z57: =IF('Educacion Fisica'!AC13="","",'Educacion Fisica'!AC13) ->  | AA57: =IF('Educacion Fisica'!AD13="","",'Educacion Fisica'!AD13) ->  | AB57: =IF('Educacion Fisica'!AE13="","",'Educacion Fisica'!AE13) ->  | AC57: =IF('Educacion Fisica'!AF13="","",'Educacion Fisica'!AF13) ->  | AD57: =IF('Educacion Fisica'!AG13="","",'Educacion Fisica'!AG13) ->  | AE57: =IF('Educacion Fisica'!AH13="","",'Educacion Fisica'!AH13) ->  | AF57: =IF('Educacion Fisica'!AI13="","",'Educacion Fisica'!AI13) ->  | AG57: =IF('Educacion Fisica'!AJ13="","",'Educacion Fisica'!AJ13) ->  | AH57: =IF('Educacion Fisica'!AK13="","",'Educacion Fisica'!AK13) ->  | AI57: =IF('Educacion Fisica'!AL13="","",'Educacion Fisica'!AL13) ->  | AJ57: =IF('Educacion Fisica'!AM13="","",'Educacion Fisica'!AM13) ->  | AK57: =IF('Educacion Fisica'!AN13="","",'Educacion Fisica'!AN13) ->  | AL57: =IF('Educacion Fisica'!AO13="","",'Educacion Fisica'!AO13) ->  | AM57: =IF('Educacion Fisica'!AP13="","",'Educacion Fisica'!AP13) -> 
D58: Criterio Evaluación 2.2 | E58: =IF('Educacion Fisica'!H14="","",'Educacion Fisica'!H14) ->  | F58: =IF('Educacion Fisica'!I14="","",'Educacion Fisica'!I14) ->  | G58: =IF('Educacion Fisica'!J14="","",'Educacion Fisica'!J14) ->  | H58: =IF('Educacion Fisica'!K14="","",'Educacion Fisica'!K14) ->  | I58: =IF('Educacion Fisica'!L14="","",'Educacion Fisica'!L14) ->  | J58: =IF('Educacion Fisica'!M14="","",'Educacion Fisica'!M14) ->  | K58: =IF('Educacion Fisica'!N14="","",'Educacion Fisica'!N14) ->  | L58: =IF('Educacion Fisica'!O14="","",'Educacion Fisica'!O14) ->  | M58: =IF('Educacion Fisica'!P14="","",'Educacion Fisica'!P14) ->  | N58: =IF('Educacion Fisica'!Q14="","",'Educacion Fisica'!Q14) ->  | O58: =IF('Educacion Fisica'!R14="","",'Educacion Fisica'!R14) ->  | P58: =IF('Educacion Fisica'!S14="","",'Educacion Fisica'!S14) ->  | Q58: =IF('Educacion Fisica'!T14="","",'Educacion Fisica'!T14) ->  | R58: =IF('Educacion Fisica'!U14="","",'Educacion Fisica'!U14) ->  | S58: =IF('Educacion Fisica'!V14="","",'Educacion Fisica'!V14) ->  | T58: =IF('Educacion Fisica'!W14="","",'Educacion Fisica'!W14) ->  | U58: =IF('Educacion Fisica'!X14="","",'Educacion Fisica'!X14) ->  | V58: =IF('Educacion Fisica'!Y14="","",'Educacion Fisica'!Y14) ->  | W58: =IF('Educacion Fisica'!Z14="","",'Educacion Fisica'!Z14) ->  | X58: =IF('Educacion Fisica'!AA14="","",'Educacion Fisica'!AA14) ->  | Y58: =IF('Educacion Fisica'!AB14="","",'Educacion Fisica'!AB14) ->  | Z58: =IF('Educacion Fisica'!AC14="","",'Educacion Fisica'!AC14) ->  | AA58: =IF('Educacion Fisica'!AD14="","",'Educacion Fisica'!AD14) ->  | AB58: =IF('Educacion Fisica'!AE14="","",'Educacion Fisica'!AE14) ->  | AC58: =IF('Educacion Fisica'!AF14="","",'Educacion Fisica'!AF14) ->  | AD58: =IF('Educacion Fisica'!AG14="","",'Educacion Fisica'!AG14) ->  | AE58: =IF('Educacion Fisica'!AH14="","",'Educacion Fisica'!AH14) ->  | AF58: =IF('Educacion Fisica'!AI14="","",'Educacion Fisica'!AI14) ->  | AG58: =IF('Educacion Fisica'!AJ14="","",'Educacion Fisica'!AJ14) ->  | AH58: =IF('Educacion Fisica'!AK14="","",'Educacion Fisica'!AK14) ->  | AI58: =IF('Educacion Fisica'!AL14="","",'Educacion Fisica'!AL14) ->  | AJ58: =IF('Educacion Fisica'!AM14="","",'Educacion Fisica'!AM14) ->  | AK58: =IF('Educacion Fisica'!AN14="","",'Educacion Fisica'!AN14) ->  | AL58: =IF('Educacion Fisica'!AO14="","",'Educacion Fisica'!AO14) ->  | AM58: =IF('Educacion Fisica'!AP14="","",'Educacion Fisica'!AP14) -> 
D59: Criterio Evaluación 2.3 | E59: =IF('Educacion Fisica'!H15="","",'Educacion Fisica'!H15) ->  | F59: =IF('Educacion Fisica'!I15="","",'Educacion Fisica'!I15) ->  | G59: =IF('Educacion Fisica'!J15="","",'Educacion Fisica'!J15) ->  | H59: =IF('Educacion Fisica'!K15="","",'Educacion Fisica'!K15) ->  | I59: =IF('Educacion Fisica'!L15="","",'Educacion Fisica'!L15) ->  | J59: =IF('Educacion Fisica'!M15="","",'Educacion Fisica'!M15) ->  | K59: =IF('Educacion Fisica'!N15="","",'Educacion Fisica'!N15) ->  | L59: =IF('Educacion Fisica'!O15="","",'Educacion Fisica'!O15) ->  | M59: =IF('Educacion Fisica'!P15="","",'Educacion Fisica'!P15) ->  | N59: =IF('Educacion Fisica'!Q15="","",'Educacion Fisica'!Q15) ->  | O59: =IF('Educacion Fisica'!R15="","",'Educacion Fisica'!R15) ->  | P59: =IF('Educacion Fisica'!S15="","",'Educacion Fisica'!S15) ->  | Q59: =IF('Educacion Fisica'!T15="","",'Educacion Fisica'!T15) ->  | R59: =IF('Educacion Fisica'!U15="","",'Educacion Fisica'!U15) ->  | S59: =IF('Educacion Fisica'!V15="","",'Educacion Fisica'!V15) ->  | T59: =IF('Educacion Fisica'!W15="","",'Educacion Fisica'!W15) ->  | U59: =IF('Educacion Fisica'!X15="","",'Educacion Fisica'!X15) ->  | V59: =IF('Educacion Fisica'!Y15="","",'Educacion Fisica'!Y15) ->  | W59: =IF('Educacion Fisica'!Z15="","",'Educacion Fisica'!Z15) ->  | X59: =IF('Educacion Fisica'!AA15="","",'Educacion Fisica'!AA15) ->  | Y59: =IF('Educacion Fisica'!AB15="","",'Educacion Fisica'!AB15) ->  | Z59: =IF('Educacion Fisica'!AC15="","",'Educacion Fisica'!AC15) ->  | AA59: =IF('Educacion Fisica'!AD15="","",'Educacion Fisica'!AD15) ->  | AB59: =IF('Educacion Fisica'!AE15="","",'Educacion Fisica'!AE15) ->  | AC59: =IF('Educacion Fisica'!AF15="","",'Educacion Fisica'!AF15) ->  | AD59: =IF('Educacion Fisica'!AG15="","",'Educacion Fisica'!AG15) ->  | AE59: =IF('Educacion Fisica'!AH15="","",'Educacion Fisica'!AH15) ->  | AF59: =IF('Educacion Fisica'!AI15="","",'Educacion Fisica'!AI15) ->  | AG59: =IF('Educacion Fisica'!AJ15="","",'Educacion Fisica'!AJ15) ->  | AH59: =IF('Educacion Fisica'!AK15="","",'Educacion Fisica'!AK15) ->  | AI59: =IF('Educacion Fisica'!AL15="","",'Educacion Fisica'!AL15) ->  | AJ59: =IF('Educacion Fisica'!AM15="","",'Educacion Fisica'!AM15) ->  | AK59: =IF('Educacion Fisica'!AN15="","",'Educacion Fisica'!AN15) ->  | AL59: =IF('Educacion Fisica'!AO15="","",'Educacion Fisica'!AO15) ->  | AM59: =IF('Educacion Fisica'!AP15="","",'Educacion Fisica'!AP15) -> 
D60: Criterio Evaluación 2.4 | E60: =IF('Educacion Fisica'!H16="","",'Educacion Fisica'!H16) ->  | F60: =IF('Educacion Fisica'!I16="","",'Educacion Fisica'!I16) ->  | G60: =IF('Educacion Fisica'!J16="","",'Educacion Fisica'!J16) ->  | H60: =IF('Educacion Fisica'!K16="","",'Educacion Fisica'!K16) ->  | I60: =IF('Educacion Fisica'!L16="","",'Educacion Fisica'!L16) ->  | J60: =IF('Educacion Fisica'!M16="","",'Educacion Fisica'!M16) ->  | K60: =IF('Educacion Fisica'!N16="","",'Educacion Fisica'!N16) ->  | L60: =IF('Educacion Fisica'!O16="","",'Educacion Fisica'!O16) ->  | M60: =IF('Educacion Fisica'!P16="","",'Educacion Fisica'!P16) ->  | N60: =IF('Educacion Fisica'!Q16="","",'Educacion Fisica'!Q16) ->  | O60: =IF('Educacion Fisica'!R16="","",'Educacion Fisica'!R16) ->  | P60: =IF('Educacion Fisica'!S16="","",'Educacion Fisica'!S16) ->  | Q60: =IF('Educacion Fisica'!T16="","",'Educacion Fisica'!T16) ->  | R60: =IF('Educacion Fisica'!U16="","",'Educacion Fisica'!U16) ->  | S60: =IF('Educacion Fisica'!V16="","",'Educacion Fisica'!V16) ->  | T60: =IF('Educacion Fisica'!W16="","",'Educacion Fisica'!W16) ->  | U60: =IF('Educacion Fisica'!X16="","",'Educacion Fisica'!X16) ->  | V60: =IF('Educacion Fisica'!Y16="","",'Educacion Fisica'!Y16) ->  | W60: =IF('Educacion Fisica'!Z16="","",'Educacion Fisica'!Z16) ->  | X60: =IF('Educacion Fisica'!AA16="","",'Educacion Fisica'!AA16) ->  | Y60: =IF('Educacion Fisica'!AB16="","",'Educacion Fisica'!AB16) ->  | Z60: =IF('Educacion Fisica'!AC16="","",'Educacion Fisica'!AC16) ->  | AA60: =IF('Educacion Fisica'!AD16="","",'Educacion Fisica'!AD16) ->  | AB60: =IF('Educacion Fisica'!AE16="","",'Educacion Fisica'!AE16) ->  | AC60: =IF('Educacion Fisica'!AF16="","",'Educacion Fisica'!AF16) ->  | AD60: =IF('Educacion Fisica'!AG16="","",'Educacion Fisica'!AG16) ->  | AE60: =IF('Educacion Fisica'!AH16="","",'Educacion Fisica'!AH16) ->  | AF60: =IF('Educacion Fisica'!AI16="","",'Educacion Fisica'!AI16) ->  | AG60: =IF('Educacion Fisica'!AJ16="","",'Educacion Fisica'!AJ16) ->  | AH60: =IF('Educacion Fisica'!AK16="","",'Educacion Fisica'!AK16) ->  | AI60: =IF('Educacion Fisica'!AL16="","",'Educacion Fisica'!AL16) ->  | AJ60: =IF('Educacion Fisica'!AM16="","",'Educacion Fisica'!AM16) ->  | AK60: =IF('Educacion Fisica'!AN16="","",'Educacion Fisica'!AN16) ->  | AL60: =IF('Educacion Fisica'!AO16="","",'Educacion Fisica'!AO16) ->  | AM60: =IF('Educacion Fisica'!AP16="","",'Educacion Fisica'!AP16) -> 
C61: Comp. Esp. 3 | D61: Criterio Evaluación 3.1 | E61: =IF('Educacion Fisica'!H17="","",'Educacion Fisica'!H17) ->  | F61: =IF('Educacion Fisica'!I17="","",'Educacion Fisica'!I17) ->  | G61: =IF('Educacion Fisica'!J17="","",'Educacion Fisica'!J17) ->  | H61: =IF('Educacion Fisica'!K17="","",'Educacion Fisica'!K17) ->  | I61: =IF('Educacion Fisica'!L17="","",'Educacion Fisica'!L17) ->  | J61: =IF('Educacion Fisica'!M17="","",'Educacion Fisica'!M17) ->  | K61: =IF('Educacion Fisica'!N17="","",'Educacion Fisica'!N17) ->  | L61: =IF('Educacion Fisica'!O17="","",'Educacion Fisica'!O17) ->  | M61: =IF('Educacion Fisica'!P17="","",'Educacion Fisica'!P17) ->  | N61: =IF('Educacion Fisica'!Q17="","",'Educacion Fisica'!Q17) ->  | O61: =IF('Educacion Fisica'!R17="","",'Educacion Fisica'!R17) ->  | P61: =IF('Educacion Fisica'!S17="","",'Educacion Fisica'!S17) ->  | Q61: =IF('Educacion Fisica'!T17="","",'Educacion Fisica'!T17) ->  | R61: =IF('Educacion Fisica'!U17="","",'Educacion Fisica'!U17) ->  | S61: =IF('Educacion Fisica'!V17="","",'Educacion Fisica'!V17) ->  | T61: =IF('Educacion Fisica'!W17="","",'Educacion Fisica'!W17) ->  | U61: =IF('Educacion Fisica'!X17="","",'Educacion Fisica'!X17) ->  | V61: =IF('Educacion Fisica'!Y17="","",'Educacion Fisica'!Y17) ->  | W61: =IF('Educacion Fisica'!Z17="","",'Educacion Fisica'!Z17) ->  | X61: =IF('Educacion Fisica'!AA17="","",'Educacion Fisica'!AA17) ->  | Y61: =IF('Educacion Fisica'!AB17="","",'Educacion Fisica'!AB17) ->  | Z61: =IF('Educacion Fisica'!AC17="","",'Educacion Fisica'!AC17) ->  | AA61: =IF('Educacion Fisica'!AD17="","",'Educacion Fisica'!AD17) ->  | AB61: =IF('Educacion Fisica'!AE17="","",'Educacion Fisica'!AE17) ->  | AC61: =IF('Educacion Fisica'!AF17="","",'Educacion Fisica'!AF17) ->  | AD61: =IF('Educacion Fisica'!AG17="","",'Educacion Fisica'!AG17) ->  | AE61: =IF('Educacion Fisica'!AH17="","",'Educacion Fisica'!AH17) ->  | AF61: =IF('Educacion Fisica'!AI17="","",'Educacion Fisica'!AI17) ->  | AG61: =IF('Educacion Fisica'!AJ17="","",'Educacion Fisica'!AJ17) ->  | AH61: =IF('Educacion Fisica'!AK17="","",'Educacion Fisica'!AK17) ->  | AI61: =IF('Educacion Fisica'!AL17="","",'Educacion Fisica'!AL17) ->  | AJ61: =IF('Educacion Fisica'!AM17="","",'Educacion Fisica'!AM17) ->  | AK61: =IF('Educacion Fisica'!AN17="","",'Educacion Fisica'!AN17) ->  | AL61: =IF('Educacion Fisica'!AO17="","",'Educacion Fisica'!AO17) ->  | AM61: =IF('Educacion Fisica'!AP17="","",'Educacion Fisica'!AP17) -> 
D62: Criterio Evaluación 3.2 | E62: =IF('Educacion Fisica'!H18="","",'Educacion Fisica'!H18) ->  | F62: =IF('Educacion Fisica'!I18="","",'Educacion Fisica'!I18) ->  | G62: =IF('Educacion Fisica'!J18="","",'Educacion Fisica'!J18) ->  | H62: =IF('Educacion Fisica'!K18="","",'Educacion Fisica'!K18) ->  | I62: =IF('Educacion Fisica'!L18="","",'Educacion Fisica'!L18) ->  | J62: =IF('Educacion Fisica'!M18="","",'Educacion Fisica'!M18) ->  | K62: =IF('Educacion Fisica'!N18="","",'Educacion Fisica'!N18) ->  | L62: =IF('Educacion Fisica'!O18="","",'Educacion Fisica'!O18) ->  | M62: =IF('Educacion Fisica'!P18="","",'Educacion Fisica'!P18) ->  | N62: =IF('Educacion Fisica'!Q18="","",'Educacion Fisica'!Q18) ->  | O62: =IF('Educacion Fisica'!R18="","",'Educacion Fisica'!R18) ->  | P62: =IF('Educacion Fisica'!S18="","",'Educacion Fisica'!S18) ->  | Q62: =IF('Educacion Fisica'!T18="","",'Educacion Fisica'!T18) ->  | R62: =IF('Educacion Fisica'!U18="","",'Educacion Fisica'!U18) ->  | S62: =IF('Educacion Fisica'!V18="","",'Educacion Fisica'!V18) ->  | T62: =IF('Educacion Fisica'!W18="","",'Educacion Fisica'!W18) ->  | U62: =IF('Educacion Fisica'!X18="","",'Educacion Fisica'!X18) ->  | V62: =IF('Educacion Fisica'!Y18="","",'Educacion Fisica'!Y18) ->  | W62: =IF('Educacion Fisica'!Z18="","",'Educacion Fisica'!Z18) ->  | X62: =IF('Educacion Fisica'!AA18="","",'Educacion Fisica'!AA18) ->  | Y62: =IF('Educacion Fisica'!AB18="","",'Educacion Fisica'!AB18) ->  | Z62: =IF('Educacion Fisica'!AC18="","",'Educacion Fisica'!AC18) ->  | AA62: =IF('Educacion Fisica'!AD18="","",'Educacion Fisica'!AD18) ->  | AB62: =IF('Educacion Fisica'!AE18="","",'Educacion Fisica'!AE18) ->  | AC62: =IF('Educacion Fisica'!AF18="","",'Educacion Fisica'!AF18) ->  | AD62: =IF('Educacion Fisica'!AG18="","",'Educacion Fisica'!AG18) ->  | AE62: =IF('Educacion Fisica'!AH18="","",'Educacion Fisica'!AH18) ->  | AF62: =IF('Educacion Fisica'!AI18="","",'Educacion Fisica'!AI18) ->  | AG62: =IF('Educacion Fisica'!AJ18="","",'Educacion Fisica'!AJ18) ->  | AH62: =IF('Educacion Fisica'!AK18="","",'Educacion Fisica'!AK18) ->  | AI62: =IF('Educacion Fisica'!AL18="","",'Educacion Fisica'!AL18) ->  | AJ62: =IF('Educacion Fisica'!AM18="","",'Educacion Fisica'!AM18) ->  | AK62: =IF('Educacion Fisica'!AN18="","",'Educacion Fisica'!AN18) ->  | AL62: =IF('Educacion Fisica'!AO18="","",'Educacion Fisica'!AO18) ->  | AM62: =IF('Educacion Fisica'!AP18="","",'Educacion Fisica'!AP18) -> 
D63: Criterio Evaluación 3.3 | E63: =IF('Educacion Fisica'!H19="","",'Educacion Fisica'!H19) ->  | F63: =IF('Educacion Fisica'!I19="","",'Educacion Fisica'!I19) ->  | G63: =IF('Educacion Fisica'!J19="","",'Educacion Fisica'!J19) ->  | H63: =IF('Educacion Fisica'!K19="","",'Educacion Fisica'!K19) ->  | I63: =IF('Educacion Fisica'!L19="","",'Educacion Fisica'!L19) ->  | J63: =IF('Educacion Fisica'!M19="","",'Educacion Fisica'!M19) ->  | K63: =IF('Educacion Fisica'!N19="","",'Educacion Fisica'!N19) ->  | L63: =IF('Educacion Fisica'!O19="","",'Educacion Fisica'!O19) ->  | M63: =IF('Educacion Fisica'!P19="","",'Educacion Fisica'!P19) ->  | N63: =IF('Educacion Fisica'!Q19="","",'Educacion Fisica'!Q19) ->  | O63: =IF('Educacion Fisica'!R19="","",'Educacion Fisica'!R19) ->  | P63: =IF('Educacion Fisica'!S19="","",'Educacion Fisica'!S19) ->  | Q63: =IF('Educacion Fisica'!T19="","",'Educacion Fisica'!T19) ->  | R63: =IF('Educacion Fisica'!U19="","",'Educacion Fisica'!U19) ->  | S63: =IF('Educacion Fisica'!V19="","",'Educacion Fisica'!V19) ->  | T63: =IF('Educacion Fisica'!W19="","",'Educacion Fisica'!W19) ->  | U63: =IF('Educacion Fisica'!X19="","",'Educacion Fisica'!X19) ->  | V63: =IF('Educacion Fisica'!Y19="","",'Educacion Fisica'!Y19) ->  | W63: =IF('Educacion Fisica'!Z19="","",'Educacion Fisica'!Z19) ->  | X63: =IF('Educacion Fisica'!AA19="","",'Educacion Fisica'!AA19) ->  | Y63: =IF('Educacion Fisica'!AB19="","",'Educacion Fisica'!AB19) ->  | Z63: =IF('Educacion Fisica'!AC19="","",'Educacion Fisica'!AC19) ->  | AA63: =IF('Educacion Fisica'!AD19="","",'Educacion Fisica'!AD19) ->  | AB63: =IF('Educacion Fisica'!AE19="","",'Educacion Fisica'!AE19) ->  | AC63: =IF('Educacion Fisica'!AF19="","",'Educacion Fisica'!AF19) ->  | AD63: =IF('Educacion Fisica'!AG19="","",'Educacion Fisica'!AG19) ->  | AE63: =IF('Educacion Fisica'!AH19="","",'Educacion Fisica'!AH19) ->  | AF63: =IF('Educacion Fisica'!AI19="","",'Educacion Fisica'!AI19) ->  | AG63: =IF('Educacion Fisica'!AJ19="","",'Educacion Fisica'!AJ19) ->  | AH63: =IF('Educacion Fisica'!AK19="","",'Educacion Fisica'!AK19) ->  | AI63: =IF('Educacion Fisica'!AL19="","",'Educacion Fisica'!AL19) ->  | AJ63: =IF('Educacion Fisica'!AM19="","",'Educacion Fisica'!AM19) ->  | AK63: =IF('Educacion Fisica'!AN19="","",'Educacion Fisica'!AN19) ->  | AL63: =IF('Educacion Fisica'!AO19="","",'Educacion Fisica'!AO19) ->  | AM63: =IF('Educacion Fisica'!AP19="","",'Educacion Fisica'!AP19) -> 
C64: Comp. Esp. 4 | D64: Criterio Evaluación 4.1 | E64: =IF('Educacion Fisica'!H20="","",'Educacion Fisica'!H20) ->  | F64: =IF('Educacion Fisica'!I20="","",'Educacion Fisica'!I20) ->  | G64: =IF('Educacion Fisica'!J20="","",'Educacion Fisica'!J20) ->  | H64: =IF('Educacion Fisica'!K20="","",'Educacion Fisica'!K20) ->  | I64: =IF('Educacion Fisica'!L20="","",'Educacion Fisica'!L20) ->  | J64: =IF('Educacion Fisica'!M20="","",'Educacion Fisica'!M20) ->  | K64: =IF('Educacion Fisica'!N20="","",'Educacion Fisica'!N20) ->  | L64: =IF('Educacion Fisica'!O20="","",'Educacion Fisica'!O20) ->  | M64: =IF('Educacion Fisica'!P20="","",'Educacion Fisica'!P20) ->  | N64: =IF('Educacion Fisica'!Q20="","",'Educacion Fisica'!Q20) ->  | O64: =IF('Educacion Fisica'!R20="","",'Educacion Fisica'!R20) ->  | P64: =IF('Educacion Fisica'!S20="","",'Educacion Fisica'!S20) ->  | Q64: =IF('Educacion Fisica'!T20="","",'Educacion Fisica'!T20) ->  | R64: =IF('Educacion Fisica'!U20="","",'Educacion Fisica'!U20) ->  | S64: =IF('Educacion Fisica'!V20="","",'Educacion Fisica'!V20) ->  | T64: =IF('Educacion Fisica'!W20="","",'Educacion Fisica'!W20) ->  | U64: =IF('Educacion Fisica'!X20="","",'Educacion Fisica'!X20) ->  | V64: =IF('Educacion Fisica'!Y20="","",'Educacion Fisica'!Y20) ->  | W64: =IF('Educacion Fisica'!Z20="","",'Educacion Fisica'!Z20) ->  | X64: =IF('Educacion Fisica'!AA20="","",'Educacion Fisica'!AA20) ->  | Y64: =IF('Educacion Fisica'!AB20="","",'Educacion Fisica'!AB20) ->  | Z64: =IF('Educacion Fisica'!AC20="","",'Educacion Fisica'!AC20) ->  | AA64: =IF('Educacion Fisica'!AD20="","",'Educacion Fisica'!AD20) ->  | AB64: =IF('Educacion Fisica'!AE20="","",'Educacion Fisica'!AE20) ->  | AC64: =IF('Educacion Fisica'!AF20="","",'Educacion Fisica'!AF20) ->  | AD64: =IF('Educacion Fisica'!AG20="","",'Educacion Fisica'!AG20) ->  | AE64: =IF('Educacion Fisica'!AH20="","",'Educacion Fisica'!AH20) ->  | AF64: =IF('Educacion Fisica'!AI20="","",'Educacion Fisica'!AI20) ->  | AG64: =IF('Educacion Fisica'!AJ20="","",'Educacion Fisica'!AJ20) ->  | AH64: =IF('Educacion Fisica'!AK20="","",'Educacion Fisica'!AK20) ->  | AI64: =IF('Educacion Fisica'!AL20="","",'Educacion Fisica'!AL20) ->  | AJ64: =IF('Educacion Fisica'!AM20="","",'Educacion Fisica'!AM20) ->  | AK64: =IF('Educacion Fisica'!AN20="","",'Educacion Fisica'!AN20) ->  | AL64: =IF('Educacion Fisica'!AO20="","",'Educacion Fisica'!AO20) ->  | AM64: =IF('Educacion Fisica'!AP20="","",'Educacion Fisica'!AP20) -> 
D65: Criterio Evaluación 4.2 | E65: =IF('Educacion Fisica'!H21="","",'Educacion Fisica'!H21) ->  | F65: =IF('Educacion Fisica'!I21="","",'Educacion Fisica'!I21) ->  | G65: =IF('Educacion Fisica'!J21="","",'Educacion Fisica'!J21) ->  | H65: =IF('Educacion Fisica'!K21="","",'Educacion Fisica'!K21) ->  | I65: =IF('Educacion Fisica'!L21="","",'Educacion Fisica'!L21) ->  | J65: =IF('Educacion Fisica'!M21="","",'Educacion Fisica'!M21) ->  | K65: =IF('Educacion Fisica'!N21="","",'Educacion Fisica'!N21) ->  | L65: =IF('Educacion Fisica'!O21="","",'Educacion Fisica'!O21) ->  | M65: =IF('Educacion Fisica'!P21="","",'Educacion Fisica'!P21) ->  | N65: =IF('Educacion Fisica'!Q21="","",'Educacion Fisica'!Q21) ->  | O65: =IF('Educacion Fisica'!R21="","",'Educacion Fisica'!R21) ->  | P65: =IF('Educacion Fisica'!S21="","",'Educacion Fisica'!S21) ->  | Q65: =IF('Educacion Fisica'!T21="","",'Educacion Fisica'!T21) ->  | R65: =IF('Educacion Fisica'!U21="","",'Educacion Fisica'!U21) ->  | S65: =IF('Educacion Fisica'!V21="","",'Educacion Fisica'!V21) ->  | T65: =IF('Educacion Fisica'!W21="","",'Educacion Fisica'!W21) ->  | U65: =IF('Educacion Fisica'!X21="","",'Educacion Fisica'!X21) ->  | V65: =IF('Educacion Fisica'!Y21="","",'Educacion Fisica'!Y21) ->  | W65: =IF('Educacion Fisica'!Z21="","",'Educacion Fisica'!Z21) ->  | X65: =IF('Educacion Fisica'!AA21="","",'Educacion Fisica'!AA21) ->  | Y65: =IF('Educacion Fisica'!AB21="","",'Educacion Fisica'!AB21) ->  | Z65: =IF('Educacion Fisica'!AC21="","",'Educacion Fisica'!AC21) ->  | AA65: =IF('Educacion Fisica'!AD21="","",'Educacion Fisica'!AD21) ->  | AB65: =IF('Educacion Fisica'!AE21="","",'Educacion Fisica'!AE21) ->  | AC65: =IF('Educacion Fisica'!AF21="","",'Educacion Fisica'!AF21) ->  | AD65: =IF('Educacion Fisica'!AG21="","",'Educacion Fisica'!AG21) ->  | AE65: =IF('Educacion Fisica'!AH21="","",'Educacion Fisica'!AH21) ->  | AF65: =IF('Educacion Fisica'!AI21="","",'Educacion Fisica'!AI21) ->  | AG65: =IF('Educacion Fisica'!AJ21="","",'Educacion Fisica'!AJ21) ->  | AH65: =IF('Educacion Fisica'!AK21="","",'Educacion Fisica'!AK21) ->  | AI65: =IF('Educacion Fisica'!AL21="","",'Educacion Fisica'!AL21) ->  | AJ65: =IF('Educacion Fisica'!AM21="","",'Educacion Fisica'!AM21) ->  | AK65: =IF('Educacion Fisica'!AN21="","",'Educacion Fisica'!AN21) ->  | AL65: =IF('Educacion Fisica'!AO21="","",'Educacion Fisica'!AO21) ->  | AM65: =IF('Educacion Fisica'!AP21="","",'Educacion Fisica'!AP21) -> 
D66: Criterio Evaluación 4.3 | E66: =IF('Educacion Fisica'!H22="","",'Educacion Fisica'!H22) ->  | F66: =IF('Educacion Fisica'!I22="","",'Educacion Fisica'!I22) ->  | G66: =IF('Educacion Fisica'!J22="","",'Educacion Fisica'!J22) ->  | H66: =IF('Educacion Fisica'!K22="","",'Educacion Fisica'!K22) ->  | I66: =IF('Educacion Fisica'!L22="","",'Educacion Fisica'!L22) ->  | J66: =IF('Educacion Fisica'!M22="","",'Educacion Fisica'!M22) ->  | K66: =IF('Educacion Fisica'!N22="","",'Educacion Fisica'!N22) ->  | L66: =IF('Educacion Fisica'!O22="","",'Educacion Fisica'!O22) ->  | M66: =IF('Educacion Fisica'!P22="","",'Educacion Fisica'!P22) ->  | N66: =IF('Educacion Fisica'!Q22="","",'Educacion Fisica'!Q22) ->  | O66: =IF('Educacion Fisica'!R22="","",'Educacion Fisica'!R22) ->  | P66: =IF('Educacion Fisica'!S22="","",'Educacion Fisica'!S22) ->  | Q66: =IF('Educacion Fisica'!T22="","",'Educacion Fisica'!T22) ->  | R66: =IF('Educacion Fisica'!U22="","",'Educacion Fisica'!U22) ->  | S66: =IF('Educacion Fisica'!V22="","",'Educacion Fisica'!V22) ->  | T66: =IF('Educacion Fisica'!W22="","",'Educacion Fisica'!W22) ->  | U66: =IF('Educacion Fisica'!X22="","",'Educacion Fisica'!X22) ->  | V66: =IF('Educacion Fisica'!Y22="","",'Educacion Fisica'!Y22) ->  | W66: =IF('Educacion Fisica'!Z22="","",'Educacion Fisica'!Z22) ->  | X66: =IF('Educacion Fisica'!AA22="","",'Educacion Fisica'!AA22) ->  | Y66: =IF('Educacion Fisica'!AB22="","",'Educacion Fisica'!AB22) ->  | Z66: =IF('Educacion Fisica'!AC22="","",'Educacion Fisica'!AC22) ->  | AA66: =IF('Educacion Fisica'!AD22="","",'Educacion Fisica'!AD22) ->  | AB66: =IF('Educacion Fisica'!AE22="","",'Educacion Fisica'!AE22) ->  | AC66: =IF('Educacion Fisica'!AF22="","",'Educacion Fisica'!AF22) ->  | AD66: =IF('Educacion Fisica'!AG22="","",'Educacion Fisica'!AG22) ->  | AE66: =IF('Educacion Fisica'!AH22="","",'Educacion Fisica'!AH22) ->  | AF66: =IF('Educacion Fisica'!AI22="","",'Educacion Fisica'!AI22) ->  | AG66: =IF('Educacion Fisica'!AJ22="","",'Educacion Fisica'!AJ22) ->  | AH66: =IF('Educacion Fisica'!AK22="","",'Educacion Fisica'!AK22) ->  | AI66: =IF('Educacion Fisica'!AL22="","",'Educacion Fisica'!AL22) ->  | AJ66: =IF('Educacion Fisica'!AM22="","",'Educacion Fisica'!AM22) ->  | AK66: =IF('Educacion Fisica'!AN22="","",'Educacion Fisica'!AN22) ->  | AL66: =IF('Educacion Fisica'!AO22="","",'Educacion Fisica'!AO22) ->  | AM66: =IF('Educacion Fisica'!AP22="","",'Educacion Fisica'!AP22) -> 
C67: Comp. Esp. 5 | D67: Criterio Evaluación 5.1 | E67: =IF('Educacion Fisica'!H23="","",'Educacion Fisica'!H23) ->  | F67: =IF('Educacion Fisica'!I23="","",'Educacion Fisica'!I23) ->  | G67: =IF('Educacion Fisica'!J23="","",'Educacion Fisica'!J23) ->  | H67: =IF('Educacion Fisica'!K23="","",'Educacion Fisica'!K23) ->  | I67: =IF('Educacion Fisica'!L23="","",'Educacion Fisica'!L23) ->  | J67: =IF('Educacion Fisica'!M23="","",'Educacion Fisica'!M23) ->  | K67: =IF('Educacion Fisica'!N23="","",'Educacion Fisica'!N23) ->  | L67: =IF('Educacion Fisica'!O23="","",'Educacion Fisica'!O23) ->  | M67: =IF('Educacion Fisica'!P23="","",'Educacion Fisica'!P23) ->  | N67: =IF('Educacion Fisica'!Q23="","",'Educacion Fisica'!Q23) ->  | O67: =IF('Educacion Fisica'!R23="","",'Educacion Fisica'!R23) ->  | P67: =IF('Educacion Fisica'!S23="","",'Educacion Fisica'!S23) ->  | Q67: =IF('Educacion Fisica'!T23="","",'Educacion Fisica'!T23) ->  | R67: =IF('Educacion Fisica'!U23="","",'Educacion Fisica'!U23) ->  | S67: =IF('Educacion Fisica'!V23="","",'Educacion Fisica'!V23) ->  | T67: =IF('Educacion Fisica'!W23="","",'Educacion Fisica'!W23) ->  | U67: =IF('Educacion Fisica'!X23="","",'Educacion Fisica'!X23) ->  | V67: =IF('Educacion Fisica'!Y23="","",'Educacion Fisica'!Y23) ->  | W67: =IF('Educacion Fisica'!Z23="","",'Educacion Fisica'!Z23) ->  | X67: =IF('Educacion Fisica'!AA23="","",'Educacion Fisica'!AA23) ->  | Y67: =IF('Educacion Fisica'!AB23="","",'Educacion Fisica'!AB23) ->  | Z67: =IF('Educacion Fisica'!AC23="","",'Educacion Fisica'!AC23) ->  | AA67: =IF('Educacion Fisica'!AD23="","",'Educacion Fisica'!AD23) ->  | AB67: =IF('Educacion Fisica'!AE23="","",'Educacion Fisica'!AE23) ->  | AC67: =IF('Educacion Fisica'!AF23="","",'Educacion Fisica'!AF23) ->  | AD67: =IF('Educacion Fisica'!AG23="","",'Educacion Fisica'!AG23) ->  | AE67: =IF('Educacion Fisica'!AH23="","",'Educacion Fisica'!AH23) ->  | AF67: =IF('Educacion Fisica'!AI23="","",'Educacion Fisica'!AI23) ->  | AG67: =IF('Educacion Fisica'!AJ23="","",'Educacion Fisica'!AJ23) ->  | AH67: =IF('Educacion Fisica'!AK23="","",'Educacion Fisica'!AK23) ->  | AI67: =IF('Educacion Fisica'!AL23="","",'Educacion Fisica'!AL23) ->  | AJ67: =IF('Educacion Fisica'!AM23="","",'Educacion Fisica'!AM23) ->  | AK67: =IF('Educacion Fisica'!AN23="","",'Educacion Fisica'!AN23) ->  | AL67: =IF('Educacion Fisica'!AO23="","",'Educacion Fisica'!AO23) ->  | AM67: =IF('Educacion Fisica'!AP23="","",'Educacion Fisica'!AP23) -> 
D68: Criterio Evaluación 5.2 | E68: =IF('Educacion Fisica'!H24="","",'Educacion Fisica'!H24) ->  | F68: =IF('Educacion Fisica'!I24="","",'Educacion Fisica'!I24) ->  | G68: =IF('Educacion Fisica'!J24="","",'Educacion Fisica'!J24) ->  | H68: =IF('Educacion Fisica'!K24="","",'Educacion Fisica'!K24) ->  | I68: =IF('Educacion Fisica'!L24="","",'Educacion Fisica'!L24) ->  | J68: =IF('Educacion Fisica'!M24="","",'Educacion Fisica'!M24) ->  | K68: =IF('Educacion Fisica'!N24="","",'Educacion Fisica'!N24) ->  | L68: =IF('Educacion Fisica'!O24="","",'Educacion Fisica'!O24) ->  | M68: =IF('Educacion Fisica'!P24="","",'Educacion Fisica'!P24) ->  | N68: =IF('Educacion Fisica'!Q24="","",'Educacion Fisica'!Q24) ->  | O68: =IF('Educacion Fisica'!R24="","",'Educacion Fisica'!R24) ->  | P68: =IF('Educacion Fisica'!S24="","",'Educacion Fisica'!S24) ->  | Q68: =IF('Educacion Fisica'!T24="","",'Educacion Fisica'!T24) ->  | R68: =IF('Educacion Fisica'!U24="","",'Educacion Fisica'!U24) ->  | S68: =IF('Educacion Fisica'!V24="","",'Educacion Fisica'!V24) ->  | T68: =IF('Educacion Fisica'!W24="","",'Educacion Fisica'!W24) ->  | U68: =IF('Educacion Fisica'!X24="","",'Educacion Fisica'!X24) ->  | V68: =IF('Educacion Fisica'!Y24="","",'Educacion Fisica'!Y24) ->  | W68: =IF('Educacion Fisica'!Z24="","",'Educacion Fisica'!Z24) ->  | X68: =IF('Educacion Fisica'!AA24="","",'Educacion Fisica'!AA24) ->  | Y68: =IF('Educacion Fisica'!AB24="","",'Educacion Fisica'!AB24) ->  | Z68: =IF('Educacion Fisica'!AC24="","",'Educacion Fisica'!AC24) ->  | AA68: =IF('Educacion Fisica'!AD24="","",'Educacion Fisica'!AD24) ->  | AB68: =IF('Educacion Fisica'!AE24="","",'Educacion Fisica'!AE24) ->  | AC68: =IF('Educacion Fisica'!AF24="","",'Educacion Fisica'!AF24) ->  | AD68: =IF('Educacion Fisica'!AG24="","",'Educacion Fisica'!AG24) ->  | AE68: =IF('Educacion Fisica'!AH24="","",'Educacion Fisica'!AH24) ->  | AF68: =IF('Educacion Fisica'!AI24="","",'Educacion Fisica'!AI24) ->  | AG68: =IF('Educacion Fisica'!AJ24="","",'Educacion Fisica'!AJ24) ->  | AH68: =IF('Educacion Fisica'!AK24="","",'Educacion Fisica'!AK24) ->  | AI68: =IF('Educacion Fisica'!AL24="","",'Educacion Fisica'!AL24) ->  | AJ68: =IF('Educacion Fisica'!AM24="","",'Educacion Fisica'!AM24) ->  | AK68: =IF('Educacion Fisica'!AN24="","",'Educacion Fisica'!AN24) ->  | AL68: =IF('Educacion Fisica'!AO24="","",'Educacion Fisica'!AO24) ->  | AM68: =IF('Educacion Fisica'!AP24="","",'Educacion Fisica'!AP24) -> 
B69: Física y Química | C69: Comp. Esp. 1 | D69: Criterio Evaluación 1.1 | E69: =IF('Fisica y Quimica'!H4="","",'Fisica y Quimica'!H4) ->  | F69: =IF('Fisica y Quimica'!I4="","",'Fisica y Quimica'!I4) ->  | G69: =IF('Fisica y Quimica'!J4="","",'Fisica y Quimica'!J4) ->  | H69: =IF('Fisica y Quimica'!K4="","",'Fisica y Quimica'!K4) ->  | I69: =IF('Fisica y Quimica'!L4="","",'Fisica y Quimica'!L4) ->  | J69: =IF('Fisica y Quimica'!M4="","",'Fisica y Quimica'!M4) ->  | K69: =IF('Fisica y Quimica'!N4="","",'Fisica y Quimica'!N4) ->  | L69: =IF('Fisica y Quimica'!O4="","",'Fisica y Quimica'!O4) ->  | M69: =IF('Fisica y Quimica'!P4="","",'Fisica y Quimica'!P4) ->  | N69: =IF('Fisica y Quimica'!Q4="","",'Fisica y Quimica'!Q4) ->  | O69: =IF('Fisica y Quimica'!R4="","",'Fisica y Quimica'!R4) ->  | P69: =IF('Fisica y Quimica'!S4="","",'Fisica y Quimica'!S4) ->  | Q69: =IF('Fisica y Quimica'!T4="","",'Fisica y Quimica'!T4) ->  | R69: =IF('Fisica y Quimica'!U4="","",'Fisica y Quimica'!U4) ->  | S69: =IF('Fisica y Quimica'!V4="","",'Fisica y Quimica'!V4) ->  | T69: =IF('Fisica y Quimica'!W4="","",'Fisica y Quimica'!W4) ->  | U69: =IF('Fisica y Quimica'!X4="","",'Fisica y Quimica'!X4) ->  | V69: =IF('Fisica y Quimica'!Y4="","",'Fisica y Quimica'!Y4) ->  | W69: =IF('Fisica y Quimica'!Z4="","",'Fisica y Quimica'!Z4) ->  | X69: =IF('Fisica y Quimica'!AA4="","",'Fisica y Quimica'!AA4) ->  | Y69: =IF('Fisica y Quimica'!AB4="","",'Fisica y Quimica'!AB4) ->  | Z69: =IF('Fisica y Quimica'!AC4="","",'Fisica y Quimica'!AC4) ->  | AA69: =IF('Fisica y Quimica'!AD4="","",'Fisica y Quimica'!AD4) ->  | AB69: =IF('Fisica y Quimica'!AE4="","",'Fisica y Quimica'!AE4) ->  | AC69: =IF('Fisica y Quimica'!AF4="","",'Fisica y Quimica'!AF4) ->  | AD69: =IF('Fisica y Quimica'!AG4="","",'Fisica y Quimica'!AG4) ->  | AE69: =IF('Fisica y Quimica'!AH4="","",'Fisica y Quimica'!AH4) ->  | AF69: =IF('Fisica y Quimica'!AI4="","",'Fisica y Quimica'!AI4) ->  | AG69: =IF('Fisica y Quimica'!AJ4="","",'Fisica y Quimica'!AJ4) ->  | AH69: =IF('Fisica y Quimica'!AK4="","",'Fisica y Quimica'!AK4) ->  | AI69: =IF('Fisica y Quimica'!AL4="","",'Fisica y Quimica'!AL4) ->  | AJ69: =IF('Fisica y Quimica'!AM4="","",'Fisica y Quimica'!AM4) ->  | AK69: =IF('Fisica y Quimica'!AN4="","",'Fisica y Quimica'!AN4) ->  | AL69: =IF('Fisica y Quimica'!AO4="","",'Fisica y Quimica'!AO4) ->  | AM69: =IF('Fisica y Quimica'!AP4="","",'Fisica y Quimica'!AP4) -> 
D70: Criterio Evaluación 1.2 | E70: =IF('Fisica y Quimica'!H5="","",'Fisica y Quimica'!H5) ->  | F70: =IF('Fisica y Quimica'!I5="","",'Fisica y Quimica'!I5) ->  | G70: =IF('Fisica y Quimica'!J5="","",'Fisica y Quimica'!J5) ->  | H70: =IF('Fisica y Quimica'!K5="","",'Fisica y Quimica'!K5) ->  | I70: =IF('Fisica y Quimica'!L5="","",'Fisica y Quimica'!L5) ->  | J70: =IF('Fisica y Quimica'!M5="","",'Fisica y Quimica'!M5) ->  | K70: =IF('Fisica y Quimica'!N5="","",'Fisica y Quimica'!N5) ->  | L70: =IF('Fisica y Quimica'!O5="","",'Fisica y Quimica'!O5) ->  | M70: =IF('Fisica y Quimica'!P5="","",'Fisica y Quimica'!P5) ->  | N70: =IF('Fisica y Quimica'!Q5="","",'Fisica y Quimica'!Q5) ->  | O70: =IF('Fisica y Quimica'!R5="","",'Fisica y Quimica'!R5) ->  | P70: =IF('Fisica y Quimica'!S5="","",'Fisica y Quimica'!S5) ->  | Q70: =IF('Fisica y Quimica'!T5="","",'Fisica y Quimica'!T5) ->  | R70: =IF('Fisica y Quimica'!U5="","",'Fisica y Quimica'!U5) ->  | S70: =IF('Fisica y Quimica'!V5="","",'Fisica y Quimica'!V5) ->  | T70: =IF('Fisica y Quimica'!W5="","",'Fisica y Quimica'!W5) ->  | U70: =IF('Fisica y Quimica'!X5="","",'Fisica y Quimica'!X5) ->  | V70: =IF('Fisica y Quimica'!Y5="","",'Fisica y Quimica'!Y5) ->  | W70: =IF('Fisica y Quimica'!Z5="","",'Fisica y Quimica'!Z5) ->  | X70: =IF('Fisica y Quimica'!AA5="","",'Fisica y Quimica'!AA5) ->  | Y70: =IF('Fisica y Quimica'!AB5="","",'Fisica y Quimica'!AB5) ->  | Z70: =IF('Fisica y Quimica'!AC5="","",'Fisica y Quimica'!AC5) ->  | AA70: =IF('Fisica y Quimica'!AD5="","",'Fisica y Quimica'!AD5) ->  | AB70: =IF('Fisica y Quimica'!AE5="","",'Fisica y Quimica'!AE5) ->  | AC70: =IF('Fisica y Quimica'!AF5="","",'Fisica y Quimica'!AF5) ->  | AD70: =IF('Fisica y Quimica'!AG5="","",'Fisica y Quimica'!AG5) ->  | AE70: =IF('Fisica y Quimica'!AH5="","",'Fisica y Quimica'!AH5) ->  | AF70: =IF('Fisica y Quimica'!AI5="","",'Fisica y Quimica'!AI5) ->  | AG70: =IF('Fisica y Quimica'!AJ5="","",'Fisica y Quimica'!AJ5) ->  | AH70: =IF('Fisica y Quimica'!AK5="","",'Fisica y Quimica'!AK5) ->  | AI70: =IF('Fisica y Quimica'!AL5="","",'Fisica y Quimica'!AL5) ->  | AJ70: =IF('Fisica y Quimica'!AM5="","",'Fisica y Quimica'!AM5) ->  | AK70: =IF('Fisica y Quimica'!AN5="","",'Fisica y Quimica'!AN5) ->  | AL70: =IF('Fisica y Quimica'!AO5="","",'Fisica y Quimica'!AO5) ->  | AM70: =IF('Fisica y Quimica'!AP5="","",'Fisica y Quimica'!AP5) -> 
D71: Criterio Evaluación 1.3 | E71: =IF('Fisica y Quimica'!H6="","",'Fisica y Quimica'!H6) ->  | F71: =IF('Fisica y Quimica'!I6="","",'Fisica y Quimica'!I6) ->  | G71: =IF('Fisica y Quimica'!J6="","",'Fisica y Quimica'!J6) ->  | H71: =IF('Fisica y Quimica'!K6="","",'Fisica y Quimica'!K6) ->  | I71: =IF('Fisica y Quimica'!L6="","",'Fisica y Quimica'!L6) ->  | J71: =IF('Fisica y Quimica'!M6="","",'Fisica y Quimica'!M6) ->  | K71: =IF('Fisica y Quimica'!N6="","",'Fisica y Quimica'!N6) ->  | L71: =IF('Fisica y Quimica'!O6="","",'Fisica y Quimica'!O6) ->  | M71: =IF('Fisica y Quimica'!P6="","",'Fisica y Quimica'!P6) ->  | N71: =IF('Fisica y Quimica'!Q6="","",'Fisica y Quimica'!Q6) ->  | O71: =IF('Fisica y Quimica'!R6="","",'Fisica y Quimica'!R6) ->  | P71: =IF('Fisica y Quimica'!S6="","",'Fisica y Quimica'!S6) ->  | Q71: =IF('Fisica y Quimica'!T6="","",'Fisica y Quimica'!T6) ->  | R71: =IF('Fisica y Quimica'!U6="","",'Fisica y Quimica'!U6) ->  | S71: =IF('Fisica y Quimica'!V6="","",'Fisica y Quimica'!V6) ->  | T71: =IF('Fisica y Quimica'!W6="","",'Fisica y Quimica'!W6) ->  | U71: =IF('Fisica y Quimica'!X6="","",'Fisica y Quimica'!X6) ->  | V71: =IF('Fisica y Quimica'!Y6="","",'Fisica y Quimica'!Y6) ->  | W71: =IF('Fisica y Quimica'!Z6="","",'Fisica y Quimica'!Z6) ->  | X71: =IF('Fisica y Quimica'!AA6="","",'Fisica y Quimica'!AA6) ->  | Y71: =IF('Fisica y Quimica'!AB6="","",'Fisica y Quimica'!AB6) ->  | Z71: =IF('Fisica y Quimica'!AC6="","",'Fisica y Quimica'!AC6) ->  | AA71: =IF('Fisica y Quimica'!AD6="","",'Fisica y Quimica'!AD6) ->  | AB71: =IF('Fisica y Quimica'!AE6="","",'Fisica y Quimica'!AE6) ->  | AC71: =IF('Fisica y Quimica'!AF6="","",'Fisica y Quimica'!AF6) ->  | AD71: =IF('Fisica y Quimica'!AG6="","",'Fisica y Quimica'!AG6) ->  | AE71: =IF('Fisica y Quimica'!AH6="","",'Fisica y Quimica'!AH6) ->  | AF71: =IF('Fisica y Quimica'!AI6="","",'Fisica y Quimica'!AI6) ->  | AG71: =IF('Fisica y Quimica'!AJ6="","",'Fisica y Quimica'!AJ6) ->  | AH71: =IF('Fisica y Quimica'!AK6="","",'Fisica y Quimica'!AK6) ->  | AI71: =IF('Fisica y Quimica'!AL6="","",'Fisica y Quimica'!AL6) ->  | AJ71: =IF('Fisica y Quimica'!AM6="","",'Fisica y Quimica'!AM6) ->  | AK71: =IF('Fisica y Quimica'!AN6="","",'Fisica y Quimica'!AN6) ->  | AL71: =IF('Fisica y Quimica'!AO6="","",'Fisica y Quimica'!AO6) ->  | AM71: =IF('Fisica y Quimica'!AP6="","",'Fisica y Quimica'!AP6) -> 
C72: Comp. Esp. 2 | D72: Criterio Evaluación 2.1 | E72: =IF('Fisica y Quimica'!H7="","",'Fisica y Quimica'!H7) ->  | F72: =IF('Fisica y Quimica'!I7="","",'Fisica y Quimica'!I7) ->  | G72: =IF('Fisica y Quimica'!J7="","",'Fisica y Quimica'!J7) ->  | H72: =IF('Fisica y Quimica'!K7="","",'Fisica y Quimica'!K7) ->  | I72: =IF('Fisica y Quimica'!L7="","",'Fisica y Quimica'!L7) ->  | J72: =IF('Fisica y Quimica'!M7="","",'Fisica y Quimica'!M7) ->  | K72: =IF('Fisica y Quimica'!N7="","",'Fisica y Quimica'!N7) ->  | L72: =IF('Fisica y Quimica'!O7="","",'Fisica y Quimica'!O7) ->  | M72: =IF('Fisica y Quimica'!P7="","",'Fisica y Quimica'!P7) ->  | N72: =IF('Fisica y Quimica'!Q7="","",'Fisica y Quimica'!Q7) ->  | O72: =IF('Fisica y Quimica'!R7="","",'Fisica y Quimica'!R7) ->  | P72: =IF('Fisica y Quimica'!S7="","",'Fisica y Quimica'!S7) ->  | Q72: =IF('Fisica y Quimica'!T7="","",'Fisica y Quimica'!T7) ->  | R72: =IF('Fisica y Quimica'!U7="","",'Fisica y Quimica'!U7) ->  | S72: =IF('Fisica y Quimica'!V7="","",'Fisica y Quimica'!V7) ->  | T72: =IF('Fisica y Quimica'!W7="","",'Fisica y Quimica'!W7) ->  | U72: =IF('Fisica y Quimica'!X7="","",'Fisica y Quimica'!X7) ->  | V72: =IF('Fisica y Quimica'!Y7="","",'Fisica y Quimica'!Y7) ->  | W72: =IF('Fisica y Quimica'!Z7="","",'Fisica y Quimica'!Z7) ->  | X72: =IF('Fisica y Quimica'!AA7="","",'Fisica y Quimica'!AA7) ->  | Y72: =IF('Fisica y Quimica'!AB7="","",'Fisica y Quimica'!AB7) ->  | Z72: =IF('Fisica y Quimica'!AC7="","",'Fisica y Quimica'!AC7) ->  | AA72: =IF('Fisica y Quimica'!AD7="","",'Fisica y Quimica'!AD7) ->  | AB72: =IF('Fisica y Quimica'!AE7="","",'Fisica y Quimica'!AE7) ->  | AC72: =IF('Fisica y Quimica'!AF7="","",'Fisica y Quimica'!AF7) ->  | AD72: =IF('Fisica y Quimica'!AG7="","",'Fisica y Quimica'!AG7) ->  | AE72: =IF('Fisica y Quimica'!AH7="","",'Fisica y Quimica'!AH7) ->  | AF72: =IF('Fisica y Quimica'!AI7="","",'Fisica y Quimica'!AI7) ->  | AG72: =IF('Fisica y Quimica'!AJ7="","",'Fisica y Quimica'!AJ7) ->  | AH72: =IF('Fisica y Quimica'!AK7="","",'Fisica y Quimica'!AK7) ->  | AI72: =IF('Fisica y Quimica'!AL7="","",'Fisica y Quimica'!AL7) ->  | AJ72: =IF('Fisica y Quimica'!AM7="","",'Fisica y Quimica'!AM7) ->  | AK72: =IF('Fisica y Quimica'!AN7="","",'Fisica y Quimica'!AN7) ->  | AL72: =IF('Fisica y Quimica'!AO7="","",'Fisica y Quimica'!AO7) ->  | AM72: =IF('Fisica y Quimica'!AP7="","",'Fisica y Quimica'!AP7) -> 
D73: Criterio Evaluación 2.2 | E73: =IF('Fisica y Quimica'!H8="","",'Fisica y Quimica'!H8) ->  | F73: =IF('Fisica y Quimica'!I8="","",'Fisica y Quimica'!I8) ->  | G73: =IF('Fisica y Quimica'!J8="","",'Fisica y Quimica'!J8) ->  | H73: =IF('Fisica y Quimica'!K8="","",'Fisica y Quimica'!K8) ->  | I73: =IF('Fisica y Quimica'!L8="","",'Fisica y Quimica'!L8) ->  | J73: =IF('Fisica y Quimica'!M8="","",'Fisica y Quimica'!M8) ->  | K73: =IF('Fisica y Quimica'!N8="","",'Fisica y Quimica'!N8) ->  | L73: =IF('Fisica y Quimica'!O8="","",'Fisica y Quimica'!O8) ->  | M73: =IF('Fisica y Quimica'!P8="","",'Fisica y Quimica'!P8) ->  | N73: =IF('Fisica y Quimica'!Q8="","",'Fisica y Quimica'!Q8) ->  | O73: =IF('Fisica y Quimica'!R8="","",'Fisica y Quimica'!R8) ->  | P73: =IF('Fisica y Quimica'!S8="","",'Fisica y Quimica'!S8) ->  | Q73: =IF('Fisica y Quimica'!T8="","",'Fisica y Quimica'!T8) ->  | R73: =IF('Fisica y Quimica'!U8="","",'Fisica y Quimica'!U8) ->  | S73: =IF('Fisica y Quimica'!V8="","",'Fisica y Quimica'!V8) ->  | T73: =IF('Fisica y Quimica'!W8="","",'Fisica y Quimica'!W8) ->  | U73: =IF('Fisica y Quimica'!X8="","",'Fisica y Quimica'!X8) ->  | V73: =IF('Fisica y Quimica'!Y8="","",'Fisica y Quimica'!Y8) ->  | W73: =IF('Fisica y Quimica'!Z8="","",'Fisica y Quimica'!Z8) ->  | X73: =IF('Fisica y Quimica'!AA8="","",'Fisica y Quimica'!AA8) ->  | Y73: =IF('Fisica y Quimica'!AB8="","",'Fisica y Quimica'!AB8) ->  | Z73: =IF('Fisica y Quimica'!AC8="","",'Fisica y Quimica'!AC8) ->  | AA73: =IF('Fisica y Quimica'!AD8="","",'Fisica y Quimica'!AD8) ->  | AB73: =IF('Fisica y Quimica'!AE8="","",'Fisica y Quimica'!AE8) ->  | AC73: =IF('Fisica y Quimica'!AF8="","",'Fisica y Quimica'!AF8) ->  | AD73: =IF('Fisica y Quimica'!AG8="","",'Fisica y Quimica'!AG8) ->  | AE73: =IF('Fisica y Quimica'!AH8="","",'Fisica y Quimica'!AH8) ->  | AF73: =IF('Fisica y Quimica'!AI8="","",'Fisica y Quimica'!AI8) ->  | AG73: =IF('Fisica y Quimica'!AJ8="","",'Fisica y Quimica'!AJ8) ->  | AH73: =IF('Fisica y Quimica'!AK8="","",'Fisica y Quimica'!AK8) ->  | AI73: =IF('Fisica y Quimica'!AL8="","",'Fisica y Quimica'!AL8) ->  | AJ73: =IF('Fisica y Quimica'!AM8="","",'Fisica y Quimica'!AM8) ->  | AK73: =IF('Fisica y Quimica'!AN8="","",'Fisica y Quimica'!AN8) ->  | AL73: =IF('Fisica y Quimica'!AO8="","",'Fisica y Quimica'!AO8) ->  | AM73: =IF('Fisica y Quimica'!AP8="","",'Fisica y Quimica'!AP8) -> 
D74: Criterio Evaluación 2.3 | E74: =IF('Fisica y Quimica'!H9="","",'Fisica y Quimica'!H9) ->  | F74: =IF('Fisica y Quimica'!I9="","",'Fisica y Quimica'!I9) ->  | G74: =IF('Fisica y Quimica'!J9="","",'Fisica y Quimica'!J9) ->  | H74: =IF('Fisica y Quimica'!K9="","",'Fisica y Quimica'!K9) ->  | I74: =IF('Fisica y Quimica'!L9="","",'Fisica y Quimica'!L9) ->  | J74: =IF('Fisica y Quimica'!M9="","",'Fisica y Quimica'!M9) ->  | K74: =IF('Fisica y Quimica'!N9="","",'Fisica y Quimica'!N9) ->  | L74: =IF('Fisica y Quimica'!O9="","",'Fisica y Quimica'!O9) ->  | M74: =IF('Fisica y Quimica'!P9="","",'Fisica y Quimica'!P9) ->  | N74: =IF('Fisica y Quimica'!Q9="","",'Fisica y Quimica'!Q9) ->  | O74: =IF('Fisica y Quimica'!R9="","",'Fisica y Quimica'!R9) ->  | P74: =IF('Fisica y Quimica'!S9="","",'Fisica y Quimica'!S9) ->  | Q74: =IF('Fisica y Quimica'!T9="","",'Fisica y Quimica'!T9) ->  | R74: =IF('Fisica y Quimica'!U9="","",'Fisica y Quimica'!U9) ->  | S74: =IF('Fisica y Quimica'!V9="","",'Fisica y Quimica'!V9) ->  | T74: =IF('Fisica y Quimica'!W9="","",'Fisica y Quimica'!W9) ->  | U74: =IF('Fisica y Quimica'!X9="","",'Fisica y Quimica'!X9) ->  | V74: =IF('Fisica y Quimica'!Y9="","",'Fisica y Quimica'!Y9) ->  | W74: =IF('Fisica y Quimica'!Z9="","",'Fisica y Quimica'!Z9) ->  | X74: =IF('Fisica y Quimica'!AA9="","",'Fisica y Quimica'!AA9) ->  | Y74: =IF('Fisica y Quimica'!AB9="","",'Fisica y Quimica'!AB9) ->  | Z74: =IF('Fisica y Quimica'!AC9="","",'Fisica y Quimica'!AC9) ->  | AA74: =IF('Fisica y Quimica'!AD9="","",'Fisica y Quimica'!AD9) ->  | AB74: =IF('Fisica y Quimica'!AE9="","",'Fisica y Quimica'!AE9) ->  | AC74: =IF('Fisica y Quimica'!AF9="","",'Fisica y Quimica'!AF9) ->  | AD74: =IF('Fisica y Quimica'!AG9="","",'Fisica y Quimica'!AG9) ->  | AE74: =IF('Fisica y Quimica'!AH9="","",'Fisica y Quimica'!AH9) ->  | AF74: =IF('Fisica y Quimica'!AI9="","",'Fisica y Quimica'!AI9) ->  | AG74: =IF('Fisica y Quimica'!AJ9="","",'Fisica y Quimica'!AJ9) ->  | AH74: =IF('Fisica y Quimica'!AK9="","",'Fisica y Quimica'!AK9) ->  | AI74: =IF('Fisica y Quimica'!AL9="","",'Fisica y Quimica'!AL9) ->  | AJ74: =IF('Fisica y Quimica'!AM9="","",'Fisica y Quimica'!AM9) ->  | AK74: =IF('Fisica y Quimica'!AN9="","",'Fisica y Quimica'!AN9) ->  | AL74: =IF('Fisica y Quimica'!AO9="","",'Fisica y Quimica'!AO9) ->  | AM74: =IF('Fisica y Quimica'!AP9="","",'Fisica y Quimica'!AP9) -> 
C75: Comp. Esp. 3 | D75: Criterio Evaluación 3.1 | E75: =IF('Fisica y Quimica'!H10="","",'Fisica y Quimica'!H10) ->  | F75: =IF('Fisica y Quimica'!I10="","",'Fisica y Quimica'!I10) ->  | G75: =IF('Fisica y Quimica'!J10="","",'Fisica y Quimica'!J10) ->  | H75: =IF('Fisica y Quimica'!K10="","",'Fisica y Quimica'!K10) ->  | I75: =IF('Fisica y Quimica'!L10="","",'Fisica y Quimica'!L10) ->  | J75: =IF('Fisica y Quimica'!M10="","",'Fisica y Quimica'!M10) ->  | K75: =IF('Fisica y Quimica'!N10="","",'Fisica y Quimica'!N10) ->  | L75: =IF('Fisica y Quimica'!O10="","",'Fisica y Quimica'!O10) ->  | M75: =IF('Fisica y Quimica'!P10="","",'Fisica y Quimica'!P10) ->  | N75: =IF('Fisica y Quimica'!Q10="","",'Fisica y Quimica'!Q10) ->  | O75: =IF('Fisica y Quimica'!R10="","",'Fisica y Quimica'!R10) ->  | P75: =IF('Fisica y Quimica'!S10="","",'Fisica y Quimica'!S10) ->  | Q75: =IF('Fisica y Quimica'!T10="","",'Fisica y Quimica'!T10) ->  | R75: =IF('Fisica y Quimica'!U10="","",'Fisica y Quimica'!U10) ->  | S75: =IF('Fisica y Quimica'!V10="","",'Fisica y Quimica'!V10) ->  | T75: =IF('Fisica y Quimica'!W10="","",'Fisica y Quimica'!W10) ->  | U75: =IF('Fisica y Quimica'!X10="","",'Fisica y Quimica'!X10) ->  | V75: =IF('Fisica y Quimica'!Y10="","",'Fisica y Quimica'!Y10) ->  | W75: =IF('Fisica y Quimica'!Z10="","",'Fisica y Quimica'!Z10) ->  | X75: =IF('Fisica y Quimica'!AA10="","",'Fisica y Quimica'!AA10) ->  | Y75: =IF('Fisica y Quimica'!AB10="","",'Fisica y Quimica'!AB10) ->  | Z75: =IF('Fisica y Quimica'!AC10="","",'Fisica y Quimica'!AC10) ->  | AA75: =IF('Fisica y Quimica'!AD10="","",'Fisica y Quimica'!AD10) ->  | AB75: =IF('Fisica y Quimica'!AE10="","",'Fisica y Quimica'!AE10) ->  | AC75: =IF('Fisica y Quimica'!AF10="","",'Fisica y Quimica'!AF10) ->  | AD75: =IF('Fisica y Quimica'!AG10="","",'Fisica y Quimica'!AG10) ->  | AE75: =IF('Fisica y Quimica'!AH10="","",'Fisica y Quimica'!AH10) ->  | AF75: =IF('Fisica y Quimica'!AI10="","",'Fisica y Quimica'!AI10) ->  | AG75: =IF('Fisica y Quimica'!AJ10="","",'Fisica y Quimica'!AJ10) ->  | AH75: =IF('Fisica y Quimica'!AK10="","",'Fisica y Quimica'!AK10) ->  | AI75: =IF('Fisica y Quimica'!AL10="","",'Fisica y Quimica'!AL10) ->  | AJ75: =IF('Fisica y Quimica'!AM10="","",'Fisica y Quimica'!AM10) ->  | AK75: =IF('Fisica y Quimica'!AN10="","",'Fisica y Quimica'!AN10) ->  | AL75: =IF('Fisica y Quimica'!AO10="","",'Fisica y Quimica'!AO10) ->  | AM75: =IF('Fisica y Quimica'!AP10="","",'Fisica y Quimica'!AP10) -> 
D76: Criterio Evaluación 3.2 | E76: =IF('Fisica y Quimica'!H11="","",'Fisica y Quimica'!H11) ->  | F76: =IF('Fisica y Quimica'!I11="","",'Fisica y Quimica'!I11) ->  | G76: =IF('Fisica y Quimica'!J11="","",'Fisica y Quimica'!J11) ->  | H76: =IF('Fisica y Quimica'!K11="","",'Fisica y Quimica'!K11) ->  | I76: =IF('Fisica y Quimica'!L11="","",'Fisica y Quimica'!L11) ->  | J76: =IF('Fisica y Quimica'!M11="","",'Fisica y Quimica'!M11) ->  | K76: =IF('Fisica y Quimica'!N11="","",'Fisica y Quimica'!N11) ->  | L76: =IF('Fisica y Quimica'!O11="","",'Fisica y Quimica'!O11) ->  | M76: =IF('Fisica y Quimica'!P11="","",'Fisica y Quimica'!P11) ->  | N76: =IF('Fisica y Quimica'!Q11="","",'Fisica y Quimica'!Q11) ->  | O76: =IF('Fisica y Quimica'!R11="","",'Fisica y Quimica'!R11) ->  | P76: =IF('Fisica y Quimica'!S11="","",'Fisica y Quimica'!S11) ->  | Q76: =IF('Fisica y Quimica'!T11="","",'Fisica y Quimica'!T11) ->  | R76: =IF('Fisica y Quimica'!U11="","",'Fisica y Quimica'!U11) ->  | S76: =IF('Fisica y Quimica'!V11="","",'Fisica y Quimica'!V11) ->  | T76: =IF('Fisica y Quimica'!W11="","",'Fisica y Quimica'!W11) ->  | U76: =IF('Fisica y Quimica'!X11="","",'Fisica y Quimica'!X11) ->  | V76: =IF('Fisica y Quimica'!Y11="","",'Fisica y Quimica'!Y11) ->  | W76: =IF('Fisica y Quimica'!Z11="","",'Fisica y Quimica'!Z11) ->  | X76: =IF('Fisica y Quimica'!AA11="","",'Fisica y Quimica'!AA11) ->  | Y76: =IF('Fisica y Quimica'!AB11="","",'Fisica y Quimica'!AB11) ->  | Z76: =IF('Fisica y Quimica'!AC11="","",'Fisica y Quimica'!AC11) ->  | AA76: =IF('Fisica y Quimica'!AD11="","",'Fisica y Quimica'!AD11) ->  | AB76: =IF('Fisica y Quimica'!AE11="","",'Fisica y Quimica'!AE11) ->  | AC76: =IF('Fisica y Quimica'!AF11="","",'Fisica y Quimica'!AF11) ->  | AD76: =IF('Fisica y Quimica'!AG11="","",'Fisica y Quimica'!AG11) ->  | AE76: =IF('Fisica y Quimica'!AH11="","",'Fisica y Quimica'!AH11) ->  | AF76: =IF('Fisica y Quimica'!AI11="","",'Fisica y Quimica'!AI11) ->  | AG76: =IF('Fisica y Quimica'!AJ11="","",'Fisica y Quimica'!AJ11) ->  | AH76: =IF('Fisica y Quimica'!AK11="","",'Fisica y Quimica'!AK11) ->  | AI76: =IF('Fisica y Quimica'!AL11="","",'Fisica y Quimica'!AL11) ->  | AJ76: =IF('Fisica y Quimica'!AM11="","",'Fisica y Quimica'!AM11) ->  | AK76: =IF('Fisica y Quimica'!AN11="","",'Fisica y Quimica'!AN11) ->  | AL76: =IF('Fisica y Quimica'!AO11="","",'Fisica y Quimica'!AO11) ->  | AM76: =IF('Fisica y Quimica'!AP11="","",'Fisica y Quimica'!AP11) -> 
D77: Criterio Evaluación 3.3 | E77: =IF('Fisica y Quimica'!H12="","",'Fisica y Quimica'!H12) ->  | F77: =IF('Fisica y Quimica'!I12="","",'Fisica y Quimica'!I12) ->  | G77: =IF('Fisica y Quimica'!J12="","",'Fisica y Quimica'!J12) ->  | H77: =IF('Fisica y Quimica'!K12="","",'Fisica y Quimica'!K12) ->  | I77: =IF('Fisica y Quimica'!L12="","",'Fisica y Quimica'!L12) ->  | J77: =IF('Fisica y Quimica'!M12="","",'Fisica y Quimica'!M12) ->  | K77: =IF('Fisica y Quimica'!N12="","",'Fisica y Quimica'!N12) ->  | L77: =IF('Fisica y Quimica'!O12="","",'Fisica y Quimica'!O12) ->  | M77: =IF('Fisica y Quimica'!P12="","",'Fisica y Quimica'!P12) ->  | N77: =IF('Fisica y Quimica'!Q12="","",'Fisica y Quimica'!Q12) ->  | O77: =IF('Fisica y Quimica'!R12="","",'Fisica y Quimica'!R12) ->  | P77: =IF('Fisica y Quimica'!S12="","",'Fisica y Quimica'!S12) ->  | Q77: =IF('Fisica y Quimica'!T12="","",'Fisica y Quimica'!T12) ->  | R77: =IF('Fisica y Quimica'!U12="","",'Fisica y Quimica'!U12) ->  | S77: =IF('Fisica y Quimica'!V12="","",'Fisica y Quimica'!V12) ->  | T77: =IF('Fisica y Quimica'!W12="","",'Fisica y Quimica'!W12) ->  | U77: =IF('Fisica y Quimica'!X12="","",'Fisica y Quimica'!X12) ->  | V77: =IF('Fisica y Quimica'!Y12="","",'Fisica y Quimica'!Y12) ->  | W77: =IF('Fisica y Quimica'!Z12="","",'Fisica y Quimica'!Z12) ->  | X77: =IF('Fisica y Quimica'!AA12="","",'Fisica y Quimica'!AA12) ->  | Y77: =IF('Fisica y Quimica'!AB12="","",'Fisica y Quimica'!AB12) ->  | Z77: =IF('Fisica y Quimica'!AC12="","",'Fisica y Quimica'!AC12) ->  | AA77: =IF('Fisica y Quimica'!AD12="","",'Fisica y Quimica'!AD12) ->  | AB77: =IF('Fisica y Quimica'!AE12="","",'Fisica y Quimica'!AE12) ->  | AC77: =IF('Fisica y Quimica'!AF12="","",'Fisica y Quimica'!AF12) ->  | AD77: =IF('Fisica y Quimica'!AG12="","",'Fisica y Quimica'!AG12) ->  | AE77: =IF('Fisica y Quimica'!AH12="","",'Fisica y Quimica'!AH12) ->  | AF77: =IF('Fisica y Quimica'!AI12="","",'Fisica y Quimica'!AI12) ->  | AG77: =IF('Fisica y Quimica'!AJ12="","",'Fisica y Quimica'!AJ12) ->  | AH77: =IF('Fisica y Quimica'!AK12="","",'Fisica y Quimica'!AK12) ->  | AI77: =IF('Fisica y Quimica'!AL12="","",'Fisica y Quimica'!AL12) ->  | AJ77: =IF('Fisica y Quimica'!AM12="","",'Fisica y Quimica'!AM12) ->  | AK77: =IF('Fisica y Quimica'!AN12="","",'Fisica y Quimica'!AN12) ->  | AL77: =IF('Fisica y Quimica'!AO12="","",'Fisica y Quimica'!AO12) ->  | AM77: =IF('Fisica y Quimica'!AP12="","",'Fisica y Quimica'!AP12) -> 
C78: Comp. Esp. 4 | D78: Criterio Evaluación 4.1 | E78: =IF('Fisica y Quimica'!H13="","",'Fisica y Quimica'!H13) ->  | F78: =IF('Fisica y Quimica'!I13="","",'Fisica y Quimica'!I13) ->  | G78: =IF('Fisica y Quimica'!J13="","",'Fisica y Quimica'!J13) ->  | H78: =IF('Fisica y Quimica'!K13="","",'Fisica y Quimica'!K13) ->  | I78: =IF('Fisica y Quimica'!L13="","",'Fisica y Quimica'!L13) ->  | J78: =IF('Fisica y Quimica'!M13="","",'Fisica y Quimica'!M13) ->  | K78: =IF('Fisica y Quimica'!N13="","",'Fisica y Quimica'!N13) ->  | L78: =IF('Fisica y Quimica'!O13="","",'Fisica y Quimica'!O13) ->  | M78: =IF('Fisica y Quimica'!P13="","",'Fisica y Quimica'!P13) ->  | N78: =IF('Fisica y Quimica'!Q13="","",'Fisica y Quimica'!Q13) ->  | O78: =IF('Fisica y Quimica'!R13="","",'Fisica y Quimica'!R13) ->  | P78: =IF('Fisica y Quimica'!S13="","",'Fisica y Quimica'!S13) ->  | Q78: =IF('Fisica y Quimica'!T13="","",'Fisica y Quimica'!T13) ->  | R78: =IF('Fisica y Quimica'!U13="","",'Fisica y Quimica'!U13) ->  | S78: =IF('Fisica y Quimica'!V13="","",'Fisica y Quimica'!V13) ->  | T78: =IF('Fisica y Quimica'!W13="","",'Fisica y Quimica'!W13) ->  | U78: =IF('Fisica y Quimica'!X13="","",'Fisica y Quimica'!X13) ->  | V78: =IF('Fisica y Quimica'!Y13="","",'Fisica y Quimica'!Y13) ->  | W78: =IF('Fisica y Quimica'!Z13="","",'Fisica y Quimica'!Z13) ->  | X78: =IF('Fisica y Quimica'!AA13="","",'Fisica y Quimica'!AA13) ->  | Y78: =IF('Fisica y Quimica'!AB13="","",'Fisica y Quimica'!AB13) ->  | Z78: =IF('Fisica y Quimica'!AC13="","",'Fisica y Quimica'!AC13) ->  | AA78: =IF('Fisica y Quimica'!AD13="","",'Fisica y Quimica'!AD13) ->  | AB78: =IF('Fisica y Quimica'!AE13="","",'Fisica y Quimica'!AE13) ->  | AC78: =IF('Fisica y Quimica'!AF13="","",'Fisica y Quimica'!AF13) ->  | AD78: =IF('Fisica y Quimica'!AG13="","",'Fisica y Quimica'!AG13) ->  | AE78: =IF('Fisica y Quimica'!AH13="","",'Fisica y Quimica'!AH13) ->  | AF78: =IF('Fisica y Quimica'!AI13="","",'Fisica y Quimica'!AI13) ->  | AG78: =IF('Fisica y Quimica'!AJ13="","",'Fisica y Quimica'!AJ13) ->  | AH78: =IF('Fisica y Quimica'!AK13="","",'Fisica y Quimica'!AK13) ->  | AI78: =IF('Fisica y Quimica'!AL13="","",'Fisica y Quimica'!AL13) ->  | AJ78: =IF('Fisica y Quimica'!AM13="","",'Fisica y Quimica'!AM13) ->  | AK78: =IF('Fisica y Quimica'!AN13="","",'Fisica y Quimica'!AN13) ->  | AL78: =IF('Fisica y Quimica'!AO13="","",'Fisica y Quimica'!AO13) ->  | AM78: =IF('Fisica y Quimica'!AP13="","",'Fisica y Quimica'!AP13) -> 
D79: Criterio Evaluación 4.2 | E79: =IF('Fisica y Quimica'!H14="","",'Fisica y Quimica'!H14) ->  | F79: =IF('Fisica y Quimica'!I14="","",'Fisica y Quimica'!I14) ->  | G79: =IF('Fisica y Quimica'!J14="","",'Fisica y Quimica'!J14) ->  | H79: =IF('Fisica y Quimica'!K14="","",'Fisica y Quimica'!K14) ->  | I79: =IF('Fisica y Quimica'!L14="","",'Fisica y Quimica'!L14) ->  | J79: =IF('Fisica y Quimica'!M14="","",'Fisica y Quimica'!M14) ->  | K79: =IF('Fisica y Quimica'!N14="","",'Fisica y Quimica'!N14) ->  | L79: =IF('Fisica y Quimica'!O14="","",'Fisica y Quimica'!O14) ->  | M79: =IF('Fisica y Quimica'!P14="","",'Fisica y Quimica'!P14) ->  | N79: =IF('Fisica y Quimica'!Q14="","",'Fisica y Quimica'!Q14) ->  | O79: =IF('Fisica y Quimica'!R14="","",'Fisica y Quimica'!R14) ->  | P79: =IF('Fisica y Quimica'!S14="","",'Fisica y Quimica'!S14) ->  | Q79: =IF('Fisica y Quimica'!T14="","",'Fisica y Quimica'!T14) ->  | R79: =IF('Fisica y Quimica'!U14="","",'Fisica y Quimica'!U14) ->  | S79: =IF('Fisica y Quimica'!V14="","",'Fisica y Quimica'!V14) ->  | T79: =IF('Fisica y Quimica'!W14="","",'Fisica y Quimica'!W14) ->  | U79: =IF('Fisica y Quimica'!X14="","",'Fisica y Quimica'!X14) ->  | V79: =IF('Fisica y Quimica'!Y14="","",'Fisica y Quimica'!Y14) ->  | W79: =IF('Fisica y Quimica'!Z14="","",'Fisica y Quimica'!Z14) ->  | X79: =IF('Fisica y Quimica'!AA14="","",'Fisica y Quimica'!AA14) ->  | Y79: =IF('Fisica y Quimica'!AB14="","",'Fisica y Quimica'!AB14) ->  | Z79: =IF('Fisica y Quimica'!AC14="","",'Fisica y Quimica'!AC14) ->  | AA79: =IF('Fisica y Quimica'!AD14="","",'Fisica y Quimica'!AD14) ->  | AB79: =IF('Fisica y Quimica'!AE14="","",'Fisica y Quimica'!AE14) ->  | AC79: =IF('Fisica y Quimica'!AF14="","",'Fisica y Quimica'!AF14) ->  | AD79: =IF('Fisica y Quimica'!AG14="","",'Fisica y Quimica'!AG14) ->  | AE79: =IF('Fisica y Quimica'!AH14="","",'Fisica y Quimica'!AH14) ->  | AF79: =IF('Fisica y Quimica'!AI14="","",'Fisica y Quimica'!AI14) ->  | AG79: =IF('Fisica y Quimica'!AJ14="","",'Fisica y Quimica'!AJ14) ->  | AH79: =IF('Fisica y Quimica'!AK14="","",'Fisica y Quimica'!AK14) ->  | AI79: =IF('Fisica y Quimica'!AL14="","",'Fisica y Quimica'!AL14) ->  | AJ79: =IF('Fisica y Quimica'!AM14="","",'Fisica y Quimica'!AM14) ->  | AK79: =IF('Fisica y Quimica'!AN14="","",'Fisica y Quimica'!AN14) ->  | AL79: =IF('Fisica y Quimica'!AO14="","",'Fisica y Quimica'!AO14) ->  | AM79: =IF('Fisica y Quimica'!AP14="","",'Fisica y Quimica'!AP14) -> 
C80: Comp. Esp. 5 | D80: Criterio Evaluación 5.1 | E80: =IF('Fisica y Quimica'!H15="","",'Fisica y Quimica'!H15) ->  | F80: =IF('Fisica y Quimica'!I15="","",'Fisica y Quimica'!I15) ->  | G80: =IF('Fisica y Quimica'!J15="","",'Fisica y Quimica'!J15) ->  | H80: =IF('Fisica y Quimica'!K15="","",'Fisica y Quimica'!K15) ->  | I80: =IF('Fisica y Quimica'!L15="","",'Fisica y Quimica'!L15) ->  | J80: =IF('Fisica y Quimica'!M15="","",'Fisica y Quimica'!M15) ->  | K80: =IF('Fisica y Quimica'!N15="","",'Fisica y Quimica'!N15) ->  | L80: =IF('Fisica y Quimica'!O15="","",'Fisica y Quimica'!O15) ->  | M80: =IF('Fisica y Quimica'!P15="","",'Fisica y Quimica'!P15) ->  | N80: =IF('Fisica y Quimica'!Q15="","",'Fisica y Quimica'!Q15) ->  | O80: =IF('Fisica y Quimica'!R15="","",'Fisica y Quimica'!R15) ->  | P80: =IF('Fisica y Quimica'!S15="","",'Fisica y Quimica'!S15) ->  | Q80: =IF('Fisica y Quimica'!T15="","",'Fisica y Quimica'!T15) ->  | R80: =IF('Fisica y Quimica'!U15="","",'Fisica y Quimica'!U15) ->  | S80: =IF('Fisica y Quimica'!V15="","",'Fisica y Quimica'!V15) ->  | T80: =IF('Fisica y Quimica'!W15="","",'Fisica y Quimica'!W15) ->  | U80: =IF('Fisica y Quimica'!X15="","",'Fisica y Quimica'!X15) ->  | V80: =IF('Fisica y Quimica'!Y15="","",'Fisica y Quimica'!Y15) ->  | W80: =IF('Fisica y Quimica'!Z15="","",'Fisica y Quimica'!Z15) ->  | X80: =IF('Fisica y Quimica'!AA15="","",'Fisica y Quimica'!AA15) ->  | Y80: =IF('Fisica y Quimica'!AB15="","",'Fisica y Quimica'!AB15) ->  | Z80: =IF('Fisica y Quimica'!AC15="","",'Fisica y Quimica'!AC15) ->  | AA80: =IF('Fisica y Quimica'!AD15="","",'Fisica y Quimica'!AD15) ->  | AB80: =IF('Fisica y Quimica'!AE15="","",'Fisica y Quimica'!AE15) ->  | AC80: =IF('Fisica y Quimica'!AF15="","",'Fisica y Quimica'!AF15) ->  | AD80: =IF('Fisica y Quimica'!AG15="","",'Fisica y Quimica'!AG15) ->  | AE80: =IF('Fisica y Quimica'!AH15="","",'Fisica y Quimica'!AH15) ->  | AF80: =IF('Fisica y Quimica'!AI15="","",'Fisica y Quimica'!AI15) ->  | AG80: =IF('Fisica y Quimica'!AJ15="","",'Fisica y Quimica'!AJ15) ->  | AH80: =IF('Fisica y Quimica'!AK15="","",'Fisica y Quimica'!AK15) ->  | AI80: =IF('Fisica y Quimica'!AL15="","",'Fisica y Quimica'!AL15) ->  | AJ80: =IF('Fisica y Quimica'!AM15="","",'Fisica y Quimica'!AM15) ->  | AK80: =IF('Fisica y Quimica'!AN15="","",'Fisica y Quimica'!AN15) ->  | AL80: =IF('Fisica y Quimica'!AO15="","",'Fisica y Quimica'!AO15) ->  | AM80: =IF('Fisica y Quimica'!AP15="","",'Fisica y Quimica'!AP15) -> 
D81: Criterio Evaluación 5.2 | E81: =IF('Fisica y Quimica'!H16="","",'Fisica y Quimica'!H16) ->  | F81: =IF('Fisica y Quimica'!I16="","",'Fisica y Quimica'!I16) ->  | G81: =IF('Fisica y Quimica'!J16="","",'Fisica y Quimica'!J16) ->  | H81: =IF('Fisica y Quimica'!K16="","",'Fisica y Quimica'!K16) ->  | I81: =IF('Fisica y Quimica'!L16="","",'Fisica y Quimica'!L16) ->  | J81: =IF('Fisica y Quimica'!M16="","",'Fisica y Quimica'!M16) ->  | K81: =IF('Fisica y Quimica'!N16="","",'Fisica y Quimica'!N16) ->  | L81: =IF('Fisica y Quimica'!O16="","",'Fisica y Quimica'!O16) ->  | M81: =IF('Fisica y Quimica'!P16="","",'Fisica y Quimica'!P16) ->  | N81: =IF('Fisica y Quimica'!Q16="","",'Fisica y Quimica'!Q16) ->  | O81: =IF('Fisica y Quimica'!R16="","",'Fisica y Quimica'!R16) ->  | P81: =IF('Fisica y Quimica'!S16="","",'Fisica y Quimica'!S16) ->  | Q81: =IF('Fisica y Quimica'!T16="","",'Fisica y Quimica'!T16) ->  | R81: =IF('Fisica y Quimica'!U16="","",'Fisica y Quimica'!U16) ->  | S81: =IF('Fisica y Quimica'!V16="","",'Fisica y Quimica'!V16) ->  | T81: =IF('Fisica y Quimica'!W16="","",'Fisica y Quimica'!W16) ->  | U81: =IF('Fisica y Quimica'!X16="","",'Fisica y Quimica'!X16) ->  | V81: =IF('Fisica y Quimica'!Y16="","",'Fisica y Quimica'!Y16) ->  | W81: =IF('Fisica y Quimica'!Z16="","",'Fisica y Quimica'!Z16) ->  | X81: =IF('Fisica y Quimica'!AA16="","",'Fisica y Quimica'!AA16) ->  | Y81: =IF('Fisica y Quimica'!AB16="","",'Fisica y Quimica'!AB16) ->  | Z81: =IF('Fisica y Quimica'!AC16="","",'Fisica y Quimica'!AC16) ->  | AA81: =IF('Fisica y Quimica'!AD16="","",'Fisica y Quimica'!AD16) ->  | AB81: =IF('Fisica y Quimica'!AE16="","",'Fisica y Quimica'!AE16) ->  | AC81: =IF('Fisica y Quimica'!AF16="","",'Fisica y Quimica'!AF16) ->  | AD81: =IF('Fisica y Quimica'!AG16="","",'Fisica y Quimica'!AG16) ->  | AE81: =IF('Fisica y Quimica'!AH16="","",'Fisica y Quimica'!AH16) ->  | AF81: =IF('Fisica y Quimica'!AI16="","",'Fisica y Quimica'!AI16) ->  | AG81: =IF('Fisica y Quimica'!AJ16="","",'Fisica y Quimica'!AJ16) ->  | AH81: =IF('Fisica y Quimica'!AK16="","",'Fisica y Quimica'!AK16) ->  | AI81: =IF('Fisica y Quimica'!AL16="","",'Fisica y Quimica'!AL16) ->  | AJ81: =IF('Fisica y Quimica'!AM16="","",'Fisica y Quimica'!AM16) ->  | AK81: =IF('Fisica y Quimica'!AN16="","",'Fisica y Quimica'!AN16) ->  | AL81: =IF('Fisica y Quimica'!AO16="","",'Fisica y Quimica'!AO16) ->  | AM81: =IF('Fisica y Quimica'!AP16="","",'Fisica y Quimica'!AP16) -> 
C82: Comp. Esp. 6 | D82: Criterio Evaluación 6.1 | E82: =IF('Fisica y Quimica'!H17="","",'Fisica y Quimica'!H17) ->  | F82: =IF('Fisica y Quimica'!I17="","",'Fisica y Quimica'!I17) ->  | G82: =IF('Fisica y Quimica'!J17="","",'Fisica y Quimica'!J17) ->  | H82: =IF('Fisica y Quimica'!K17="","",'Fisica y Quimica'!K17) ->  | I82: =IF('Fisica y Quimica'!L17="","",'Fisica y Quimica'!L17) ->  | J82: =IF('Fisica y Quimica'!M17="","",'Fisica y Quimica'!M17) ->  | K82: =IF('Fisica y Quimica'!N17="","",'Fisica y Quimica'!N17) ->  | L82: =IF('Fisica y Quimica'!O17="","",'Fisica y Quimica'!O17) ->  | M82: =IF('Fisica y Quimica'!P17="","",'Fisica y Quimica'!P17) ->  | N82: =IF('Fisica y Quimica'!Q17="","",'Fisica y Quimica'!Q17) ->  | O82: =IF('Fisica y Quimica'!R17="","",'Fisica y Quimica'!R17) ->  | P82: =IF('Fisica y Quimica'!S17="","",'Fisica y Quimica'!S17) ->  | Q82: =IF('Fisica y Quimica'!T17="","",'Fisica y Quimica'!T17) ->  | R82: =IF('Fisica y Quimica'!U17="","",'Fisica y Quimica'!U17) ->  | S82: =IF('Fisica y Quimica'!V17="","",'Fisica y Quimica'!V17) ->  | T82: =IF('Fisica y Quimica'!W17="","",'Fisica y Quimica'!W17) ->  | U82: =IF('Fisica y Quimica'!X17="","",'Fisica y Quimica'!X17) ->  | V82: =IF('Fisica y Quimica'!Y17="","",'Fisica y Quimica'!Y17) ->  | W82: =IF('Fisica y Quimica'!Z17="","",'Fisica y Quimica'!Z17) ->  | X82: =IF('Fisica y Quimica'!AA17="","",'Fisica y Quimica'!AA17) ->  | Y82: =IF('Fisica y Quimica'!AB17="","",'Fisica y Quimica'!AB17) ->  | Z82: =IF('Fisica y Quimica'!AC17="","",'Fisica y Quimica'!AC17) ->  | AA82: =IF('Fisica y Quimica'!AD17="","",'Fisica y Quimica'!AD17) ->  | AB82: =IF('Fisica y Quimica'!AE17="","",'Fisica y Quimica'!AE17) ->  | AC82: =IF('Fisica y Quimica'!AF17="","",'Fisica y Quimica'!AF17) ->  | AD82: =IF('Fisica y Quimica'!AG17="","",'Fisica y Quimica'!AG17) ->  | AE82: =IF('Fisica y Quimica'!AH17="","",'Fisica y Quimica'!AH17) ->  | AF82: =IF('Fisica y Quimica'!AI17="","",'Fisica y Quimica'!AI17) ->  | AG82: =IF('Fisica y Quimica'!AJ17="","",'Fisica y Quimica'!AJ17) ->  | AH82: =IF('Fisica y Quimica'!AK17="","",'Fisica y Quimica'!AK17) ->  | AI82: =IF('Fisica y Quimica'!AL17="","",'Fisica y Quimica'!AL17) ->  | AJ82: =IF('Fisica y Quimica'!AM17="","",'Fisica y Quimica'!AM17) ->  | AK82: =IF('Fisica y Quimica'!AN17="","",'Fisica y Quimica'!AN17) ->  | AL82: =IF('Fisica y Quimica'!AO17="","",'Fisica y Quimica'!AO17) ->  | AM82: =IF('Fisica y Quimica'!AP17="","",'Fisica y Quimica'!AP17) -> 
D83: Criterio Evaluación 6.2 | E83: =IF('Fisica y Quimica'!H18="","",'Fisica y Quimica'!H18) ->  | F83: =IF('Fisica y Quimica'!I18="","",'Fisica y Quimica'!I18) ->  | G83: =IF('Fisica y Quimica'!J18="","",'Fisica y Quimica'!J18) ->  | H83: =IF('Fisica y Quimica'!K18="","",'Fisica y Quimica'!K18) ->  | I83: =IF('Fisica y Quimica'!L18="","",'Fisica y Quimica'!L18) ->  | J83: =IF('Fisica y Quimica'!M18="","",'Fisica y Quimica'!M18) ->  | K83: =IF('Fisica y Quimica'!N18="","",'Fisica y Quimica'!N18) ->  | L83: =IF('Fisica y Quimica'!O18="","",'Fisica y Quimica'!O18) ->  | M83: =IF('Fisica y Quimica'!P18="","",'Fisica y Quimica'!P18) ->  | N83: =IF('Fisica y Quimica'!Q18="","",'Fisica y Quimica'!Q18) ->  | O83: =IF('Fisica y Quimica'!R18="","",'Fisica y Quimica'!R18) ->  | P83: =IF('Fisica y Quimica'!S18="","",'Fisica y Quimica'!S18) ->  | Q83: =IF('Fisica y Quimica'!T18="","",'Fisica y Quimica'!T18) ->  | R83: =IF('Fisica y Quimica'!U18="","",'Fisica y Quimica'!U18) ->  | S83: =IF('Fisica y Quimica'!V18="","",'Fisica y Quimica'!V18) ->  | T83: =IF('Fisica y Quimica'!W18="","",'Fisica y Quimica'!W18) ->  | U83: =IF('Fisica y Quimica'!X18="","",'Fisica y Quimica'!X18) ->  | V83: =IF('Fisica y Quimica'!Y18="","",'Fisica y Quimica'!Y18) ->  | W83: =IF('Fisica y Quimica'!Z18="","",'Fisica y Quimica'!Z18) ->  | X83: =IF('Fisica y Quimica'!AA18="","",'Fisica y Quimica'!AA18) ->  | Y83: =IF('Fisica y Quimica'!AB18="","",'Fisica y Quimica'!AB18) ->  | Z83: =IF('Fisica y Quimica'!AC18="","",'Fisica y Quimica'!AC18) ->  | AA83: =IF('Fisica y Quimica'!AD18="","",'Fisica y Quimica'!AD18) ->  | AB83: =IF('Fisica y Quimica'!AE18="","",'Fisica y Quimica'!AE18) ->  | AC83: =IF('Fisica y Quimica'!AF18="","",'Fisica y Quimica'!AF18) ->  | AD83: =IF('Fisica y Quimica'!AG18="","",'Fisica y Quimica'!AG18) ->  | AE83: =IF('Fisica y Quimica'!AH18="","",'Fisica y Quimica'!AH18) ->  | AF83: =IF('Fisica y Quimica'!AI18="","",'Fisica y Quimica'!AI18) ->  | AG83: =IF('Fisica y Quimica'!AJ18="","",'Fisica y Quimica'!AJ18) ->  | AH83: =IF('Fisica y Quimica'!AK18="","",'Fisica y Quimica'!AK18) ->  | AI83: =IF('Fisica y Quimica'!AL18="","",'Fisica y Quimica'!AL18) ->  | AJ83: =IF('Fisica y Quimica'!AM18="","",'Fisica y Quimica'!AM18) ->  | AK83: =IF('Fisica y Quimica'!AN18="","",'Fisica y Quimica'!AN18) ->  | AL83: =IF('Fisica y Quimica'!AO18="","",'Fisica y Quimica'!AO18) ->  | AM83: =IF('Fisica y Quimica'!AP18="","",'Fisica y Quimica'!AP18) -> 
B84: Geografía e Historia | C84: Comp. Esp. 1 | D84: Criterio Evaluación 1.1 | E84: =IF('Geografia e Historia'!H4="","",'Geografia e Historia'!H4) ->  | F84: =IF('Geografia e Historia'!I4="","",'Geografia e Historia'!I4) ->  | G84: =IF('Geografia e Historia'!J4="","",'Geografia e Historia'!J4) ->  | H84: =IF('Geografia e Historia'!K4="","",'Geografia e Historia'!K4) ->  | I84: =IF('Geografia e Historia'!L4="","",'Geografia e Historia'!L4) ->  | J84: =IF('Geografia e Historia'!M4="","",'Geografia e Historia'!M4) ->  | K84: =IF('Geografia e Historia'!N4="","",'Geografia e Historia'!N4) ->  | L84: =IF('Geografia e Historia'!O4="","",'Geografia e Historia'!O4) ->  | M84: =IF('Geografia e Historia'!P4="","",'Geografia e Historia'!P4) ->  | N84: =IF('Geografia e Historia'!Q4="","",'Geografia e Historia'!Q4) ->  | O84: =IF('Geografia e Historia'!R4="","",'Geografia e Historia'!R4) ->  | P84: =IF('Geografia e Historia'!S4="","",'Geografia e Historia'!S4) ->  | Q84: =IF('Geografia e Historia'!T4="","",'Geografia e Historia'!T4) ->  | R84: =IF('Geografia e Historia'!U4="","",'Geografia e Historia'!U4) ->  | S84: =IF('Geografia e Historia'!V4="","",'Geografia e Historia'!V4) ->  | T84: =IF('Geografia e Historia'!W4="","",'Geografia e Historia'!W4) ->  | U84: =IF('Geografia e Historia'!X4="","",'Geografia e Historia'!X4) ->  | V84: =IF('Geografia e Historia'!Y4="","",'Geografia e Historia'!Y4) ->  | W84: =IF('Geografia e Historia'!Z4="","",'Geografia e Historia'!Z4) ->  | X84: =IF('Geografia e Historia'!AA4="","",'Geografia e Historia'!AA4) ->  | Y84: =IF('Geografia e Historia'!AB4="","",'Geografia e Historia'!AB4) ->  | Z84: =IF('Geografia e Historia'!AC4="","",'Geografia e Historia'!AC4) ->  | AA84: =IF('Geografia e Historia'!AD4="","",'Geografia e Historia'!AD4) ->  | AB84: =IF('Geografia e Historia'!AE4="","",'Geografia e Historia'!AE4) ->  | AC84: =IF('Geografia e Historia'!AF4="","",'Geografia e Historia'!AF4) ->  | AD84: =IF('Geografia e Historia'!AG4="","",'Geografia e Historia'!AG4) ->  | AE84: =IF('Geografia e Historia'!AH4="","",'Geografia e Historia'!AH4) ->  | AF84: =IF('Geografia e Historia'!AI4="","",'Geografia e Historia'!AI4) ->  | AG84: =IF('Geografia e Historia'!AJ4="","",'Geografia e Historia'!AJ4) ->  | AH84: =IF('Geografia e Historia'!AK4="","",'Geografia e Historia'!AK4) ->  | AI84: =IF('Geografia e Historia'!AL4="","",'Geografia e Historia'!AL4) ->  | AJ84: =IF('Geografia e Historia'!AM4="","",'Geografia e Historia'!AM4) ->  | AK84: =IF('Geografia e Historia'!AN4="","",'Geografia e Historia'!AN4) ->  | AL84: =IF('Geografia e Historia'!AO4="","",'Geografia e Historia'!AO4) ->  | AM84: =IF('Geografia e Historia'!AP4="","",'Geografia e Historia'!AP4) -> 
D85: Criterio Evaluación 1.2 | E85: =IF('Geografia e Historia'!H5="","",'Geografia e Historia'!H5) ->  | F85: =IF('Geografia e Historia'!I5="","",'Geografia e Historia'!I5) ->  | G85: =IF('Geografia e Historia'!J5="","",'Geografia e Historia'!J5) ->  | H85: =IF('Geografia e Historia'!K5="","",'Geografia e Historia'!K5) ->  | I85: =IF('Geografia e Historia'!L5="","",'Geografia e Historia'!L5) ->  | J85: =IF('Geografia e Historia'!M5="","",'Geografia e Historia'!M5) ->  | K85: =IF('Geografia e Historia'!N5="","",'Geografia e Historia'!N5) ->  | L85: =IF('Geografia e Historia'!O5="","",'Geografia e Historia'!O5) ->  | M85: =IF('Geografia e Historia'!P5="","",'Geografia e Historia'!P5) ->  | N85: =IF('Geografia e Historia'!Q5="","",'Geografia e Historia'!Q5) ->  | O85: =IF('Geografia e Historia'!R5="","",'Geografia e Historia'!R5) ->  | P85: =IF('Geografia e Historia'!S5="","",'Geografia e Historia'!S5) ->  | Q85: =IF('Geografia e Historia'!T5="","",'Geografia e Historia'!T5) ->  | R85: =IF('Geografia e Historia'!U5="","",'Geografia e Historia'!U5) ->  | S85: =IF('Geografia e Historia'!V5="","",'Geografia e Historia'!V5) ->  | T85: =IF('Geografia e Historia'!W5="","",'Geografia e Historia'!W5) ->  | U85: =IF('Geografia e Historia'!X5="","",'Geografia e Historia'!X5) ->  | V85: =IF('Geografia e Historia'!Y5="","",'Geografia e Historia'!Y5) ->  | W85: =IF('Geografia e Historia'!Z5="","",'Geografia e Historia'!Z5) ->  | X85: =IF('Geografia e Historia'!AA5="","",'Geografia e Historia'!AA5) ->  | Y85: =IF('Geografia e Historia'!AB5="","",'Geografia e Historia'!AB5) ->  | Z85: =IF('Geografia e Historia'!AC5="","",'Geografia e Historia'!AC5) ->  | AA85: =IF('Geografia e Historia'!AD5="","",'Geografia e Historia'!AD5) ->  | AB85: =IF('Geografia e Historia'!AE5="","",'Geografia e Historia'!AE5) ->  | AC85: =IF('Geografia e Historia'!AF5="","",'Geografia e Historia'!AF5) ->  | AD85: =IF('Geografia e Historia'!AG5="","",'Geografia e Historia'!AG5) ->  | AE85: =IF('Geografia e Historia'!AH5="","",'Geografia e Historia'!AH5) ->  | AF85: =IF('Geografia e Historia'!AI5="","",'Geografia e Historia'!AI5) ->  | AG85: =IF('Geografia e Historia'!AJ5="","",'Geografia e Historia'!AJ5) ->  | AH85: =IF('Geografia e Historia'!AK5="","",'Geografia e Historia'!AK5) ->  | AI85: =IF('Geografia e Historia'!AL5="","",'Geografia e Historia'!AL5) ->  | AJ85: =IF('Geografia e Historia'!AM5="","",'Geografia e Historia'!AM5) ->  | AK85: =IF('Geografia e Historia'!AN5="","",'Geografia e Historia'!AN5) ->  | AL85: =IF('Geografia e Historia'!AO5="","",'Geografia e Historia'!AO5) ->  | AM85: =IF('Geografia e Historia'!AP5="","",'Geografia e Historia'!AP5) -> 
C86: Comp. Esp. 2 | D86: Criterio Evaluación 2.1 | E86: =IF('Geografia e Historia'!H6="","",'Geografia e Historia'!H6) ->  | F86: =IF('Geografia e Historia'!I6="","",'Geografia e Historia'!I6) ->  | G86: =IF('Geografia e Historia'!J6="","",'Geografia e Historia'!J6) ->  | H86: =IF('Geografia e Historia'!K6="","",'Geografia e Historia'!K6) ->  | I86: =IF('Geografia e Historia'!L6="","",'Geografia e Historia'!L6) ->  | J86: =IF('Geografia e Historia'!M6="","",'Geografia e Historia'!M6) ->  | K86: =IF('Geografia e Historia'!N6="","",'Geografia e Historia'!N6) ->  | L86: =IF('Geografia e Historia'!O6="","",'Geografia e Historia'!O6) ->  | M86: =IF('Geografia e Historia'!P6="","",'Geografia e Historia'!P6) ->  | N86: =IF('Geografia e Historia'!Q6="","",'Geografia e Historia'!Q6) ->  | O86: =IF('Geografia e Historia'!R6="","",'Geografia e Historia'!R6) ->  | P86: =IF('Geografia e Historia'!S6="","",'Geografia e Historia'!S6) ->  | Q86: =IF('Geografia e Historia'!T6="","",'Geografia e Historia'!T6) ->  | R86: =IF('Geografia e Historia'!U6="","",'Geografia e Historia'!U6) ->  | S86: =IF('Geografia e Historia'!V6="","",'Geografia e Historia'!V6) ->  | T86: =IF('Geografia e Historia'!W6="","",'Geografia e Historia'!W6) ->  | U86: =IF('Geografia e Historia'!X6="","",'Geografia e Historia'!X6) ->  | V86: =IF('Geografia e Historia'!Y6="","",'Geografia e Historia'!Y6) ->  | W86: =IF('Geografia e Historia'!Z6="","",'Geografia e Historia'!Z6) ->  | X86: =IF('Geografia e Historia'!AA6="","",'Geografia e Historia'!AA6) ->  | Y86: =IF('Geografia e Historia'!AB6="","",'Geografia e Historia'!AB6) ->  | Z86: =IF('Geografia e Historia'!AC6="","",'Geografia e Historia'!AC6) ->  | AA86: =IF('Geografia e Historia'!AD6="","",'Geografia e Historia'!AD6) ->  | AB86: =IF('Geografia e Historia'!AE6="","",'Geografia e Historia'!AE6) ->  | AC86: =IF('Geografia e Historia'!AF6="","",'Geografia e Historia'!AF6) ->  | AD86: =IF('Geografia e Historia'!AG6="","",'Geografia e Historia'!AG6) ->  | AE86: =IF('Geografia e Historia'!AH6="","",'Geografia e Historia'!AH6) ->  | AF86: =IF('Geografia e Historia'!AI6="","",'Geografia e Historia'!AI6) ->  | AG86: =IF('Geografia e Historia'!AJ6="","",'Geografia e Historia'!AJ6) ->  | AH86: =IF('Geografia e Historia'!AK6="","",'Geografia e Historia'!AK6) ->  | AI86: =IF('Geografia e Historia'!AL6="","",'Geografia e Historia'!AL6) ->  | AJ86: =IF('Geografia e Historia'!AM6="","",'Geografia e Historia'!AM6) ->  | AK86: =IF('Geografia e Historia'!AN6="","",'Geografia e Historia'!AN6) ->  | AL86: =IF('Geografia e Historia'!AO6="","",'Geografia e Historia'!AO6) ->  | AM86: =IF('Geografia e Historia'!AP6="","",'Geografia e Historia'!AP6) -> 
D87: Criterio Evaluación 2.2 | E87: =IF('Geografia e Historia'!H7="","",'Geografia e Historia'!H7) ->  | F87: =IF('Geografia e Historia'!I7="","",'Geografia e Historia'!I7) ->  | G87: =IF('Geografia e Historia'!J7="","",'Geografia e Historia'!J7) ->  | H87: =IF('Geografia e Historia'!K7="","",'Geografia e Historia'!K7) ->  | I87: =IF('Geografia e Historia'!L7="","",'Geografia e Historia'!L7) ->  | J87: =IF('Geografia e Historia'!M7="","",'Geografia e Historia'!M7) ->  | K87: =IF('Geografia e Historia'!N7="","",'Geografia e Historia'!N7) ->  | L87: =IF('Geografia e Historia'!O7="","",'Geografia e Historia'!O7) ->  | M87: =IF('Geografia e Historia'!P7="","",'Geografia e Historia'!P7) ->  | N87: =IF('Geografia e Historia'!Q7="","",'Geografia e Historia'!Q7) ->  | O87: =IF('Geografia e Historia'!R7="","",'Geografia e Historia'!R7) ->  | P87: =IF('Geografia e Historia'!S7="","",'Geografia e Historia'!S7) ->  | Q87: =IF('Geografia e Historia'!T7="","",'Geografia e Historia'!T7) ->  | R87: =IF('Geografia e Historia'!U7="","",'Geografia e Historia'!U7) ->  | S87: =IF('Geografia e Historia'!V7="","",'Geografia e Historia'!V7) ->  | T87: =IF('Geografia e Historia'!W7="","",'Geografia e Historia'!W7) ->  | U87: =IF('Geografia e Historia'!X7="","",'Geografia e Historia'!X7) ->  | V87: =IF('Geografia e Historia'!Y7="","",'Geografia e Historia'!Y7) ->  | W87: =IF('Geografia e Historia'!Z7="","",'Geografia e Historia'!Z7) ->  | X87: =IF('Geografia e Historia'!AA7="","",'Geografia e Historia'!AA7) ->  | Y87: =IF('Geografia e Historia'!AB7="","",'Geografia e Historia'!AB7) ->  | Z87: =IF('Geografia e Historia'!AC7="","",'Geografia e Historia'!AC7) ->  | AA87: =IF('Geografia e Historia'!AD7="","",'Geografia e Historia'!AD7) ->  | AB87: =IF('Geografia e Historia'!AE7="","",'Geografia e Historia'!AE7) ->  | AC87: =IF('Geografia e Historia'!AF7="","",'Geografia e Historia'!AF7) ->  | AD87: =IF('Geografia e Historia'!AG7="","",'Geografia e Historia'!AG7) ->  | AE87: =IF('Geografia e Historia'!AH7="","",'Geografia e Historia'!AH7) ->  | AF87: =IF('Geografia e Historia'!AI7="","",'Geografia e Historia'!AI7) ->  | AG87: =IF('Geografia e Historia'!AJ7="","",'Geografia e Historia'!AJ7) ->  | AH87: =IF('Geografia e Historia'!AK7="","",'Geografia e Historia'!AK7) ->  | AI87: =IF('Geografia e Historia'!AL7="","",'Geografia e Historia'!AL7) ->  | AJ87: =IF('Geografia e Historia'!AM7="","",'Geografia e Historia'!AM7) ->  | AK87: =IF('Geografia e Historia'!AN7="","",'Geografia e Historia'!AN7) ->  | AL87: =IF('Geografia e Historia'!AO7="","",'Geografia e Historia'!AO7) ->  | AM87: =IF('Geografia e Historia'!AP7="","",'Geografia e Historia'!AP7) -> 
D88: Criterio Evaluación 2.3 | E88: =IF('Geografia e Historia'!H8="","",'Geografia e Historia'!H8) ->  | F88: =IF('Geografia e Historia'!I8="","",'Geografia e Historia'!I8) ->  | G88: =IF('Geografia e Historia'!J8="","",'Geografia e Historia'!J8) ->  | H88: =IF('Geografia e Historia'!K8="","",'Geografia e Historia'!K8) ->  | I88: =IF('Geografia e Historia'!L8="","",'Geografia e Historia'!L8) ->  | J88: =IF('Geografia e Historia'!M8="","",'Geografia e Historia'!M8) ->  | K88: =IF('Geografia e Historia'!N8="","",'Geografia e Historia'!N8) ->  | L88: =IF('Geografia e Historia'!O8="","",'Geografia e Historia'!O8) ->  | M88: =IF('Geografia e Historia'!P8="","",'Geografia e Historia'!P8) ->  | N88: =IF('Geografia e Historia'!Q8="","",'Geografia e Historia'!Q8) ->  | O88: =IF('Geografia e Historia'!R8="","",'Geografia e Historia'!R8) ->  | P88: =IF('Geografia e Historia'!S8="","",'Geografia e Historia'!S8) ->  | Q88: =IF('Geografia e Historia'!T8="","",'Geografia e Historia'!T8) ->  | R88: =IF('Geografia e Historia'!U8="","",'Geografia e Historia'!U8) ->  | S88: =IF('Geografia e Historia'!V8="","",'Geografia e Historia'!V8) ->  | T88: =IF('Geografia e Historia'!W8="","",'Geografia e Historia'!W8) ->  | U88: =IF('Geografia e Historia'!X8="","",'Geografia e Historia'!X8) ->  | V88: =IF('Geografia e Historia'!Y8="","",'Geografia e Historia'!Y8) ->  | W88: =IF('Geografia e Historia'!Z8="","",'Geografia e Historia'!Z8) ->  | X88: =IF('Geografia e Historia'!AA8="","",'Geografia e Historia'!AA8) ->  | Y88: =IF('Geografia e Historia'!AB8="","",'Geografia e Historia'!AB8) ->  | Z88: =IF('Geografia e Historia'!AC8="","",'Geografia e Historia'!AC8) ->  | AA88: =IF('Geografia e Historia'!AD8="","",'Geografia e Historia'!AD8) ->  | AB88: =IF('Geografia e Historia'!AE8="","",'Geografia e Historia'!AE8) ->  | AC88: =IF('Geografia e Historia'!AF8="","",'Geografia e Historia'!AF8) ->  | AD88: =IF('Geografia e Historia'!AG8="","",'Geografia e Historia'!AG8) ->  | AE88: =IF('Geografia e Historia'!AH8="","",'Geografia e Historia'!AH8) ->  | AF88: =IF('Geografia e Historia'!AI8="","",'Geografia e Historia'!AI8) ->  | AG88: =IF('Geografia e Historia'!AJ8="","",'Geografia e Historia'!AJ8) ->  | AH88: =IF('Geografia e Historia'!AK8="","",'Geografia e Historia'!AK8) ->  | AI88: =IF('Geografia e Historia'!AL8="","",'Geografia e Historia'!AL8) ->  | AJ88: =IF('Geografia e Historia'!AM8="","",'Geografia e Historia'!AM8) ->  | AK88: =IF('Geografia e Historia'!AN8="","",'Geografia e Historia'!AN8) ->  | AL88: =IF('Geografia e Historia'!AO8="","",'Geografia e Historia'!AO8) ->  | AM88: =IF('Geografia e Historia'!AP8="","",'Geografia e Historia'!AP8) -> 
C89: Comp. Esp. 3 | D89: Criterio Evaluación 3.1 | E89: =IF('Geografia e Historia'!H9="","",'Geografia e Historia'!H9) ->  | F89: =IF('Geografia e Historia'!I9="","",'Geografia e Historia'!I9) ->  | G89: =IF('Geografia e Historia'!J9="","",'Geografia e Historia'!J9) ->  | H89: =IF('Geografia e Historia'!K9="","",'Geografia e Historia'!K9) ->  | I89: =IF('Geografia e Historia'!L9="","",'Geografia e Historia'!L9) ->  | J89: =IF('Geografia e Historia'!M9="","",'Geografia e Historia'!M9) ->  | K89: =IF('Geografia e Historia'!N9="","",'Geografia e Historia'!N9) ->  | L89: =IF('Geografia e Historia'!O9="","",'Geografia e Historia'!O9) ->  | M89: =IF('Geografia e Historia'!P9="","",'Geografia e Historia'!P9) ->  | N89: =IF('Geografia e Historia'!Q9="","",'Geografia e Historia'!Q9) ->  | O89: =IF('Geografia e Historia'!R9="","",'Geografia e Historia'!R9) ->  | P89: =IF('Geografia e Historia'!S9="","",'Geografia e Historia'!S9) ->  | Q89: =IF('Geografia e Historia'!T9="","",'Geografia e Historia'!T9) ->  | R89: =IF('Geografia e Historia'!U9="","",'Geografia e Historia'!U9) ->  | S89: =IF('Geografia e Historia'!V9="","",'Geografia e Historia'!V9) ->  | T89: =IF('Geografia e Historia'!W9="","",'Geografia e Historia'!W9) ->  | U89: =IF('Geografia e Historia'!X9="","",'Geografia e Historia'!X9) ->  | V89: =IF('Geografia e Historia'!Y9="","",'Geografia e Historia'!Y9) ->  | W89: =IF('Geografia e Historia'!Z9="","",'Geografia e Historia'!Z9) ->  | X89: =IF('Geografia e Historia'!AA9="","",'Geografia e Historia'!AA9) ->  | Y89: =IF('Geografia e Historia'!AB9="","",'Geografia e Historia'!AB9) ->  | Z89: =IF('Geografia e Historia'!AC9="","",'Geografia e Historia'!AC9) ->  | AA89: =IF('Geografia e Historia'!AD9="","",'Geografia e Historia'!AD9) ->  | AB89: =IF('Geografia e Historia'!AE9="","",'Geografia e Historia'!AE9) ->  | AC89: =IF('Geografia e Historia'!AF9="","",'Geografia e Historia'!AF9) ->  | AD89: =IF('Geografia e Historia'!AG9="","",'Geografia e Historia'!AG9) ->  | AE89: =IF('Geografia e Historia'!AH9="","",'Geografia e Historia'!AH9) ->  | AF89: =IF('Geografia e Historia'!AI9="","",'Geografia e Historia'!AI9) ->  | AG89: =IF('Geografia e Historia'!AJ9="","",'Geografia e Historia'!AJ9) ->  | AH89: =IF('Geografia e Historia'!AK9="","",'Geografia e Historia'!AK9) ->  | AI89: =IF('Geografia e Historia'!AL9="","",'Geografia e Historia'!AL9) ->  | AJ89: =IF('Geografia e Historia'!AM9="","",'Geografia e Historia'!AM9) ->  | AK89: =IF('Geografia e Historia'!AN9="","",'Geografia e Historia'!AN9) ->  | AL89: =IF('Geografia e Historia'!AO9="","",'Geografia e Historia'!AO9) ->  | AM89: =IF('Geografia e Historia'!AP9="","",'Geografia e Historia'!AP9) -> 
D90: Criterio Evaluación 3.2 | E90: =IF('Geografia e Historia'!H10="","",'Geografia e Historia'!H10) ->  | F90: =IF('Geografia e Historia'!I10="","",'Geografia e Historia'!I10) ->  | G90: =IF('Geografia e Historia'!J10="","",'Geografia e Historia'!J10) ->  | H90: =IF('Geografia e Historia'!K10="","",'Geografia e Historia'!K10) ->  | I90: =IF('Geografia e Historia'!L10="","",'Geografia e Historia'!L10) ->  | J90: =IF('Geografia e Historia'!M10="","",'Geografia e Historia'!M10) ->  | K90: =IF('Geografia e Historia'!N10="","",'Geografia e Historia'!N10) ->  | L90: =IF('Geografia e Historia'!O10="","",'Geografia e Historia'!O10) ->  | M90: =IF('Geografia e Historia'!P10="","",'Geografia e Historia'!P10) ->  | N90: =IF('Geografia e Historia'!Q10="","",'Geografia e Historia'!Q10) ->  | O90: =IF('Geografia e Historia'!R10="","",'Geografia e Historia'!R10) ->  | P90: =IF('Geografia e Historia'!S10="","",'Geografia e Historia'!S10) ->  | Q90: =IF('Geografia e Historia'!T10="","",'Geografia e Historia'!T10) ->  | R90: =IF('Geografia e Historia'!U10="","",'Geografia e Historia'!U10) ->  | S90: =IF('Geografia e Historia'!V10="","",'Geografia e Historia'!V10) ->  | T90: =IF('Geografia e Historia'!W10="","",'Geografia e Historia'!W10) ->  | U90: =IF('Geografia e Historia'!X10="","",'Geografia e Historia'!X10) ->  | V90: =IF('Geografia e Historia'!Y10="","",'Geografia e Historia'!Y10) ->  | W90: =IF('Geografia e Historia'!Z10="","",'Geografia e Historia'!Z10) ->  | X90: =IF('Geografia e Historia'!AA10="","",'Geografia e Historia'!AA10) ->  | Y90: =IF('Geografia e Historia'!AB10="","",'Geografia e Historia'!AB10) ->  | Z90: =IF('Geografia e Historia'!AC10="","",'Geografia e Historia'!AC10) ->  | AA90: =IF('Geografia e Historia'!AD10="","",'Geografia e Historia'!AD10) ->  | AB90: =IF('Geografia e Historia'!AE10="","",'Geografia e Historia'!AE10) ->  | AC90: =IF('Geografia e Historia'!AF10="","",'Geografia e Historia'!AF10) ->  | AD90: =IF('Geografia e Historia'!AG10="","",'Geografia e Historia'!AG10) ->  | AE90: =IF('Geografia e Historia'!AH10="","",'Geografia e Historia'!AH10) ->  | AF90: =IF('Geografia e Historia'!AI10="","",'Geografia e Historia'!AI10) ->  | AG90: =IF('Geografia e Historia'!AJ10="","",'Geografia e Historia'!AJ10) ->  | AH90: =IF('Geografia e Historia'!AK10="","",'Geografia e Historia'!AK10) ->  | AI90: =IF('Geografia e Historia'!AL10="","",'Geografia e Historia'!AL10) ->  | AJ90: =IF('Geografia e Historia'!AM10="","",'Geografia e Historia'!AM10) ->  | AK90: =IF('Geografia e Historia'!AN10="","",'Geografia e Historia'!AN10) ->  | AL90: =IF('Geografia e Historia'!AO10="","",'Geografia e Historia'!AO10) ->  | AM90: =IF('Geografia e Historia'!AP10="","",'Geografia e Historia'!AP10) -> 
C91: Comp. Esp. 4 | D91: Criterio Evaluación 4.1 | E91: =IF('Geografia e Historia'!H11="","",'Geografia e Historia'!H11) ->  | F91: =IF('Geografia e Historia'!I11="","",'Geografia e Historia'!I11) ->  | G91: =IF('Geografia e Historia'!J11="","",'Geografia e Historia'!J11) ->  | H91: =IF('Geografia e Historia'!K11="","",'Geografia e Historia'!K11) ->  | I91: =IF('Geografia e Historia'!L11="","",'Geografia e Historia'!L11) ->  | J91: =IF('Geografia e Historia'!M11="","",'Geografia e Historia'!M11) ->  | K91: =IF('Geografia e Historia'!N11="","",'Geografia e Historia'!N11) ->  | L91: =IF('Geografia e Historia'!O11="","",'Geografia e Historia'!O11) ->  | M91: =IF('Geografia e Historia'!P11="","",'Geografia e Historia'!P11) ->  | N91: =IF('Geografia e Historia'!Q11="","",'Geografia e Historia'!Q11) ->  | O91: =IF('Geografia e Historia'!R11="","",'Geografia e Historia'!R11) ->  | P91: =IF('Geografia e Historia'!S11="","",'Geografia e Historia'!S11) ->  | Q91: =IF('Geografia e Historia'!T11="","",'Geografia e Historia'!T11) ->  | R91: =IF('Geografia e Historia'!U11="","",'Geografia e Historia'!U11) ->  | S91: =IF('Geografia e Historia'!V11="","",'Geografia e Historia'!V11) ->  | T91: =IF('Geografia e Historia'!W11="","",'Geografia e Historia'!W11) ->  | U91: =IF('Geografia e Historia'!X11="","",'Geografia e Historia'!X11) ->  | V91: =IF('Geografia e Historia'!Y11="","",'Geografia e Historia'!Y11) ->  | W91: =IF('Geografia e Historia'!Z11="","",'Geografia e Historia'!Z11) ->  | X91: =IF('Geografia e Historia'!AA11="","",'Geografia e Historia'!AA11) ->  | Y91: =IF('Geografia e Historia'!AB11="","",'Geografia e Historia'!AB11) ->  | Z91: =IF('Geografia e Historia'!AC11="","",'Geografia e Historia'!AC11) ->  | AA91: =IF('Geografia e Historia'!AD11="","",'Geografia e Historia'!AD11) ->  | AB91: =IF('Geografia e Historia'!AE11="","",'Geografia e Historia'!AE11) ->  | AC91: =IF('Geografia e Historia'!AF11="","",'Geografia e Historia'!AF11) ->  | AD91: =IF('Geografia e Historia'!AG11="","",'Geografia e Historia'!AG11) ->  | AE91: =IF('Geografia e Historia'!AH11="","",'Geografia e Historia'!AH11) ->  | AF91: =IF('Geografia e Historia'!AI11="","",'Geografia e Historia'!AI11) ->  | AG91: =IF('Geografia e Historia'!AJ11="","",'Geografia e Historia'!AJ11) ->  | AH91: =IF('Geografia e Historia'!AK11="","",'Geografia e Historia'!AK11) ->  | AI91: =IF('Geografia e Historia'!AL11="","",'Geografia e Historia'!AL11) ->  | AJ91: =IF('Geografia e Historia'!AM11="","",'Geografia e Historia'!AM11) ->  | AK91: =IF('Geografia e Historia'!AN11="","",'Geografia e Historia'!AN11) ->  | AL91: =IF('Geografia e Historia'!AO11="","",'Geografia e Historia'!AO11) ->  | AM91: =IF('Geografia e Historia'!AP11="","",'Geografia e Historia'!AP11) -> 
D92: Criterio Evaluación 4.2 | E92: =IF('Geografia e Historia'!H12="","",'Geografia e Historia'!H12) ->  | F92: =IF('Geografia e Historia'!I12="","",'Geografia e Historia'!I12) ->  | G92: =IF('Geografia e Historia'!J12="","",'Geografia e Historia'!J12) ->  | H92: =IF('Geografia e Historia'!K12="","",'Geografia e Historia'!K12) ->  | I92: =IF('Geografia e Historia'!L12="","",'Geografia e Historia'!L12) ->  | J92: =IF('Geografia e Historia'!M12="","",'Geografia e Historia'!M12) ->  | K92: =IF('Geografia e Historia'!N12="","",'Geografia e Historia'!N12) ->  | L92: =IF('Geografia e Historia'!O12="","",'Geografia e Historia'!O12) ->  | M92: =IF('Geografia e Historia'!P12="","",'Geografia e Historia'!P12) ->  | N92: =IF('Geografia e Historia'!Q12="","",'Geografia e Historia'!Q12) ->  | O92: =IF('Geografia e Historia'!R12="","",'Geografia e Historia'!R12) ->  | P92: =IF('Geografia e Historia'!S12="","",'Geografia e Historia'!S12) ->  | Q92: =IF('Geografia e Historia'!T12="","",'Geografia e Historia'!T12) ->  | R92: =IF('Geografia e Historia'!U12="","",'Geografia e Historia'!U12) ->  | S92: =IF('Geografia e Historia'!V12="","",'Geografia e Historia'!V12) ->  | T92: =IF('Geografia e Historia'!W12="","",'Geografia e Historia'!W12) ->  | U92: =IF('Geografia e Historia'!X12="","",'Geografia e Historia'!X12) ->  | V92: =IF('Geografia e Historia'!Y12="","",'Geografia e Historia'!Y12) ->  | W92: =IF('Geografia e Historia'!Z12="","",'Geografia e Historia'!Z12) ->  | X92: =IF('Geografia e Historia'!AA12="","",'Geografia e Historia'!AA12) ->  | Y92: =IF('Geografia e Historia'!AB12="","",'Geografia e Historia'!AB12) ->  | Z92: =IF('Geografia e Historia'!AC12="","",'Geografia e Historia'!AC12) ->  | AA92: =IF('Geografia e Historia'!AD12="","",'Geografia e Historia'!AD12) ->  | AB92: =IF('Geografia e Historia'!AE12="","",'Geografia e Historia'!AE12) ->  | AC92: =IF('Geografia e Historia'!AF12="","",'Geografia e Historia'!AF12) ->  | AD92: =IF('Geografia e Historia'!AG12="","",'Geografia e Historia'!AG12) ->  | AE92: =IF('Geografia e Historia'!AH12="","",'Geografia e Historia'!AH12) ->  | AF92: =IF('Geografia e Historia'!AI12="","",'Geografia e Historia'!AI12) ->  | AG92: =IF('Geografia e Historia'!AJ12="","",'Geografia e Historia'!AJ12) ->  | AH92: =IF('Geografia e Historia'!AK12="","",'Geografia e Historia'!AK12) ->  | AI92: =IF('Geografia e Historia'!AL12="","",'Geografia e Historia'!AL12) ->  | AJ92: =IF('Geografia e Historia'!AM12="","",'Geografia e Historia'!AM12) ->  | AK92: =IF('Geografia e Historia'!AN12="","",'Geografia e Historia'!AN12) ->  | AL92: =IF('Geografia e Historia'!AO12="","",'Geografia e Historia'!AO12) ->  | AM92: =IF('Geografia e Historia'!AP12="","",'Geografia e Historia'!AP12) -> 
C93: Comp. Esp. 5 | D93: Criterio Evaluación 5.1 | E93: =IF('Geografia e Historia'!H13="","",'Geografia e Historia'!H13) ->  | F93: =IF('Geografia e Historia'!I13="","",'Geografia e Historia'!I13) ->  | G93: =IF('Geografia e Historia'!J13="","",'Geografia e Historia'!J13) ->  | H93: =IF('Geografia e Historia'!K13="","",'Geografia e Historia'!K13) ->  | I93: =IF('Geografia e Historia'!L13="","",'Geografia e Historia'!L13) ->  | J93: =IF('Geografia e Historia'!M13="","",'Geografia e Historia'!M13) ->  | K93: =IF('Geografia e Historia'!N13="","",'Geografia e Historia'!N13) ->  | L93: =IF('Geografia e Historia'!O13="","",'Geografia e Historia'!O13) ->  | M93: =IF('Geografia e Historia'!P13="","",'Geografia e Historia'!P13) ->  | N93: =IF('Geografia e Historia'!Q13="","",'Geografia e Historia'!Q13) ->  | O93: =IF('Geografia e Historia'!R13="","",'Geografia e Historia'!R13) ->  | P93: =IF('Geografia e Historia'!S13="","",'Geografia e Historia'!S13) ->  | Q93: =IF('Geografia e Historia'!T13="","",'Geografia e Historia'!T13) ->  | R93: =IF('Geografia e Historia'!U13="","",'Geografia e Historia'!U13) ->  | S93: =IF('Geografia e Historia'!V13="","",'Geografia e Historia'!V13) ->  | T93: =IF('Geografia e Historia'!W13="","",'Geografia e Historia'!W13) ->  | U93: =IF('Geografia e Historia'!X13="","",'Geografia e Historia'!X13) ->  | V93: =IF('Geografia e Historia'!Y13="","",'Geografia e Historia'!Y13) ->  | W93: =IF('Geografia e Historia'!Z13="","",'Geografia e Historia'!Z13) ->  | X93: =IF('Geografia e Historia'!AA13="","",'Geografia e Historia'!AA13) ->  | Y93: =IF('Geografia e Historia'!AB13="","",'Geografia e Historia'!AB13) ->  | Z93: =IF('Geografia e Historia'!AC13="","",'Geografia e Historia'!AC13) ->  | AA93: =IF('Geografia e Historia'!AD13="","",'Geografia e Historia'!AD13) ->  | AB93: =IF('Geografia e Historia'!AE13="","",'Geografia e Historia'!AE13) ->  | AC93: =IF('Geografia e Historia'!AF13="","",'Geografia e Historia'!AF13) ->  | AD93: =IF('Geografia e Historia'!AG13="","",'Geografia e Historia'!AG13) ->  | AE93: =IF('Geografia e Historia'!AH13="","",'Geografia e Historia'!AH13) ->  | AF93: =IF('Geografia e Historia'!AI13="","",'Geografia e Historia'!AI13) ->  | AG93: =IF('Geografia e Historia'!AJ13="","",'Geografia e Historia'!AJ13) ->  | AH93: =IF('Geografia e Historia'!AK13="","",'Geografia e Historia'!AK13) ->  | AI93: =IF('Geografia e Historia'!AL13="","",'Geografia e Historia'!AL13) ->  | AJ93: =IF('Geografia e Historia'!AM13="","",'Geografia e Historia'!AM13) ->  | AK93: =IF('Geografia e Historia'!AN13="","",'Geografia e Historia'!AN13) ->  | AL93: =IF('Geografia e Historia'!AO13="","",'Geografia e Historia'!AO13) ->  | AM93: =IF('Geografia e Historia'!AP13="","",'Geografia e Historia'!AP13) -> 
C94: Comp. Esp. 6 | D94: Criterio Evaluación 6.1 | E94: =IF('Geografia e Historia'!H14="","",'Geografia e Historia'!H14) ->  | F94: =IF('Geografia e Historia'!I14="","",'Geografia e Historia'!I14) ->  | G94: =IF('Geografia e Historia'!J14="","",'Geografia e Historia'!J14) ->  | H94: =IF('Geografia e Historia'!K14="","",'Geografia e Historia'!K14) ->  | I94: =IF('Geografia e Historia'!L14="","",'Geografia e Historia'!L14) ->  | J94: =IF('Geografia e Historia'!M14="","",'Geografia e Historia'!M14) ->  | K94: =IF('Geografia e Historia'!N14="","",'Geografia e Historia'!N14) ->  | L94: =IF('Geografia e Historia'!O14="","",'Geografia e Historia'!O14) ->  | M94: =IF('Geografia e Historia'!P14="","",'Geografia e Historia'!P14) ->  | N94: =IF('Geografia e Historia'!Q14="","",'Geografia e Historia'!Q14) ->  | O94: =IF('Geografia e Historia'!R14="","",'Geografia e Historia'!R14) ->  | P94: =IF('Geografia e Historia'!S14="","",'Geografia e Historia'!S14) ->  | Q94: =IF('Geografia e Historia'!T14="","",'Geografia e Historia'!T14) ->  | R94: =IF('Geografia e Historia'!U14="","",'Geografia e Historia'!U14) ->  | S94: =IF('Geografia e Historia'!V14="","",'Geografia e Historia'!V14) ->  | T94: =IF('Geografia e Historia'!W14="","",'Geografia e Historia'!W14) ->  | U94: =IF('Geografia e Historia'!X14="","",'Geografia e Historia'!X14) ->  | V94: =IF('Geografia e Historia'!Y14="","",'Geografia e Historia'!Y14) ->  | W94: =IF('Geografia e Historia'!Z14="","",'Geografia e Historia'!Z14) ->  | X94: =IF('Geografia e Historia'!AA14="","",'Geografia e Historia'!AA14) ->  | Y94: =IF('Geografia e Historia'!AB14="","",'Geografia e Historia'!AB14) ->  | Z94: =IF('Geografia e Historia'!AC14="","",'Geografia e Historia'!AC14) ->  | AA94: =IF('Geografia e Historia'!AD14="","",'Geografia e Historia'!AD14) ->  | AB94: =IF('Geografia e Historia'!AE14="","",'Geografia e Historia'!AE14) ->  | AC94: =IF('Geografia e Historia'!AF14="","",'Geografia e Historia'!AF14) ->  | AD94: =IF('Geografia e Historia'!AG14="","",'Geografia e Historia'!AG14) ->  | AE94: =IF('Geografia e Historia'!AH14="","",'Geografia e Historia'!AH14) ->  | AF94: =IF('Geografia e Historia'!AI14="","",'Geografia e Historia'!AI14) ->  | AG94: =IF('Geografia e Historia'!AJ14="","",'Geografia e Historia'!AJ14) ->  | AH94: =IF('Geografia e Historia'!AK14="","",'Geografia e Historia'!AK14) ->  | AI94: =IF('Geografia e Historia'!AL14="","",'Geografia e Historia'!AL14) ->  | AJ94: =IF('Geografia e Historia'!AM14="","",'Geografia e Historia'!AM14) ->  | AK94: =IF('Geografia e Historia'!AN14="","",'Geografia e Historia'!AN14) ->  | AL94: =IF('Geografia e Historia'!AO14="","",'Geografia e Historia'!AO14) ->  | AM94: =IF('Geografia e Historia'!AP14="","",'Geografia e Historia'!AP14) -> 
D95: Criterio Evaluación 6.2 | E95: =IF('Geografia e Historia'!H15="","",'Geografia e Historia'!H15) ->  | F95: =IF('Geografia e Historia'!I15="","",'Geografia e Historia'!I15) ->  | G95: =IF('Geografia e Historia'!J15="","",'Geografia e Historia'!J15) ->  | H95: =IF('Geografia e Historia'!K15="","",'Geografia e Historia'!K15) ->  | I95: =IF('Geografia e Historia'!L15="","",'Geografia e Historia'!L15) ->  | J95: =IF('Geografia e Historia'!M15="","",'Geografia e Historia'!M15) ->  | K95: =IF('Geografia e Historia'!N15="","",'Geografia e Historia'!N15) ->  | L95: =IF('Geografia e Historia'!O15="","",'Geografia e Historia'!O15) ->  | M95: =IF('Geografia e Historia'!P15="","",'Geografia e Historia'!P15) ->  | N95: =IF('Geografia e Historia'!Q15="","",'Geografia e Historia'!Q15) ->  | O95: =IF('Geografia e Historia'!R15="","",'Geografia e Historia'!R15) ->  | P95: =IF('Geografia e Historia'!S15="","",'Geografia e Historia'!S15) ->  | Q95: =IF('Geografia e Historia'!T15="","",'Geografia e Historia'!T15) ->  | R95: =IF('Geografia e Historia'!U15="","",'Geografia e Historia'!U15) ->  | S95: =IF('Geografia e Historia'!V15="","",'Geografia e Historia'!V15) ->  | T95: =IF('Geografia e Historia'!W15="","",'Geografia e Historia'!W15) ->  | U95: =IF('Geografia e Historia'!X15="","",'Geografia e Historia'!X15) ->  | V95: =IF('Geografia e Historia'!Y15="","",'Geografia e Historia'!Y15) ->  | W95: =IF('Geografia e Historia'!Z15="","",'Geografia e Historia'!Z15) ->  | X95: =IF('Geografia e Historia'!AA15="","",'Geografia e Historia'!AA15) ->  | Y95: =IF('Geografia e Historia'!AB15="","",'Geografia e Historia'!AB15) ->  | Z95: =IF('Geografia e Historia'!AC15="","",'Geografia e Historia'!AC15) ->  | AA95: =IF('Geografia e Historia'!AD15="","",'Geografia e Historia'!AD15) ->  | AB95: =IF('Geografia e Historia'!AE15="","",'Geografia e Historia'!AE15) ->  | AC95: =IF('Geografia e Historia'!AF15="","",'Geografia e Historia'!AF15) ->  | AD95: =IF('Geografia e Historia'!AG15="","",'Geografia e Historia'!AG15) ->  | AE95: =IF('Geografia e Historia'!AH15="","",'Geografia e Historia'!AH15) ->  | AF95: =IF('Geografia e Historia'!AI15="","",'Geografia e Historia'!AI15) ->  | AG95: =IF('Geografia e Historia'!AJ15="","",'Geografia e Historia'!AJ15) ->  | AH95: =IF('Geografia e Historia'!AK15="","",'Geografia e Historia'!AK15) ->  | AI95: =IF('Geografia e Historia'!AL15="","",'Geografia e Historia'!AL15) ->  | AJ95: =IF('Geografia e Historia'!AM15="","",'Geografia e Historia'!AM15) ->  | AK95: =IF('Geografia e Historia'!AN15="","",'Geografia e Historia'!AN15) ->  | AL95: =IF('Geografia e Historia'!AO15="","",'Geografia e Historia'!AO15) ->  | AM95: =IF('Geografia e Historia'!AP15="","",'Geografia e Historia'!AP15) -> 
C96: Comp. Esp. 7 | D96: Criterio Evaluación 7.1 | E96: =IF('Geografia e Historia'!H16="","",'Geografia e Historia'!H16) ->  | F96: =IF('Geografia e Historia'!I16="","",'Geografia e Historia'!I16) ->  | G96: =IF('Geografia e Historia'!J16="","",'Geografia e Historia'!J16) ->  | H96: =IF('Geografia e Historia'!K16="","",'Geografia e Historia'!K16) ->  | I96: =IF('Geografia e Historia'!L16="","",'Geografia e Historia'!L16) ->  | J96: =IF('Geografia e Historia'!M16="","",'Geografia e Historia'!M16) ->  | K96: =IF('Geografia e Historia'!N16="","",'Geografia e Historia'!N16) ->  | L96: =IF('Geografia e Historia'!O16="","",'Geografia e Historia'!O16) ->  | M96: =IF('Geografia e Historia'!P16="","",'Geografia e Historia'!P16) ->  | N96: =IF('Geografia e Historia'!Q16="","",'Geografia e Historia'!Q16) ->  | O96: =IF('Geografia e Historia'!R16="","",'Geografia e Historia'!R16) ->  | P96: =IF('Geografia e Historia'!S16="","",'Geografia e Historia'!S16) ->  | Q96: =IF('Geografia e Historia'!T16="","",'Geografia e Historia'!T16) ->  | R96: =IF('Geografia e Historia'!U16="","",'Geografia e Historia'!U16) ->  | S96: =IF('Geografia e Historia'!V16="","",'Geografia e Historia'!V16) ->  | T96: =IF('Geografia e Historia'!W16="","",'Geografia e Historia'!W16) ->  | U96: =IF('Geografia e Historia'!X16="","",'Geografia e Historia'!X16) ->  | V96: =IF('Geografia e Historia'!Y16="","",'Geografia e Historia'!Y16) ->  | W96: =IF('Geografia e Historia'!Z16="","",'Geografia e Historia'!Z16) ->  | X96: =IF('Geografia e Historia'!AA16="","",'Geografia e Historia'!AA16) ->  | Y96: =IF('Geografia e Historia'!AB16="","",'Geografia e Historia'!AB16) ->  | Z96: =IF('Geografia e Historia'!AC16="","",'Geografia e Historia'!AC16) ->  | AA96: =IF('Geografia e Historia'!AD16="","",'Geografia e Historia'!AD16) ->  | AB96: =IF('Geografia e Historia'!AE16="","",'Geografia e Historia'!AE16) ->  | AC96: =IF('Geografia e Historia'!AF16="","",'Geografia e Historia'!AF16) ->  | AD96: =IF('Geografia e Historia'!AG16="","",'Geografia e Historia'!AG16) ->  | AE96: =IF('Geografia e Historia'!AH16="","",'Geografia e Historia'!AH16) ->  | AF96: =IF('Geografia e Historia'!AI16="","",'Geografia e Historia'!AI16) ->  | AG96: =IF('Geografia e Historia'!AJ16="","",'Geografia e Historia'!AJ16) ->  | AH96: =IF('Geografia e Historia'!AK16="","",'Geografia e Historia'!AK16) ->  | AI96: =IF('Geografia e Historia'!AL16="","",'Geografia e Historia'!AL16) ->  | AJ96: =IF('Geografia e Historia'!AM16="","",'Geografia e Historia'!AM16) ->  | AK96: =IF('Geografia e Historia'!AN16="","",'Geografia e Historia'!AN16) ->  | AL96: =IF('Geografia e Historia'!AO16="","",'Geografia e Historia'!AO16) ->  | AM96: =IF('Geografia e Historia'!AP16="","",'Geografia e Historia'!AP16) -> 
D97: Criterio Evaluación 7.2 | E97: =IF('Geografia e Historia'!H17="","",'Geografia e Historia'!H17) ->  | F97: =IF('Geografia e Historia'!I17="","",'Geografia e Historia'!I17) ->  | G97: =IF('Geografia e Historia'!J17="","",'Geografia e Historia'!J17) ->  | H97: =IF('Geografia e Historia'!K17="","",'Geografia e Historia'!K17) ->  | I97: =IF('Geografia e Historia'!L17="","",'Geografia e Historia'!L17) ->  | J97: =IF('Geografia e Historia'!M17="","",'Geografia e Historia'!M17) ->  | K97: =IF('Geografia e Historia'!N17="","",'Geografia e Historia'!N17) ->  | L97: =IF('Geografia e Historia'!O17="","",'Geografia e Historia'!O17) ->  | M97: =IF('Geografia e Historia'!P17="","",'Geografia e Historia'!P17) ->  | N97: =IF('Geografia e Historia'!Q17="","",'Geografia e Historia'!Q17) ->  | O97: =IF('Geografia e Historia'!R17="","",'Geografia e Historia'!R17) ->  | P97: =IF('Geografia e Historia'!S17="","",'Geografia e Historia'!S17) ->  | Q97: =IF('Geografia e Historia'!T17="","",'Geografia e Historia'!T17) ->  | R97: =IF('Geografia e Historia'!U17="","",'Geografia e Historia'!U17) ->  | S97: =IF('Geografia e Historia'!V17="","",'Geografia e Historia'!V17) ->  | T97: =IF('Geografia e Historia'!W17="","",'Geografia e Historia'!W17) ->  | U97: =IF('Geografia e Historia'!X17="","",'Geografia e Historia'!X17) ->  | V97: =IF('Geografia e Historia'!Y17="","",'Geografia e Historia'!Y17) ->  | W97: =IF('Geografia e Historia'!Z17="","",'Geografia e Historia'!Z17) ->  | X97: =IF('Geografia e Historia'!AA17="","",'Geografia e Historia'!AA17) ->  | Y97: =IF('Geografia e Historia'!AB17="","",'Geografia e Historia'!AB17) ->  | Z97: =IF('Geografia e Historia'!AC17="","",'Geografia e Historia'!AC17) ->  | AA97: =IF('Geografia e Historia'!AD17="","",'Geografia e Historia'!AD17) ->  | AB97: =IF('Geografia e Historia'!AE17="","",'Geografia e Historia'!AE17) ->  | AC97: =IF('Geografia e Historia'!AF17="","",'Geografia e Historia'!AF17) ->  | AD97: =IF('Geografia e Historia'!AG17="","",'Geografia e Historia'!AG17) ->  | AE97: =IF('Geografia e Historia'!AH17="","",'Geografia e Historia'!AH17) ->  | AF97: =IF('Geografia e Historia'!AI17="","",'Geografia e Historia'!AI17) ->  | AG97: =IF('Geografia e Historia'!AJ17="","",'Geografia e Historia'!AJ17) ->  | AH97: =IF('Geografia e Historia'!AK17="","",'Geografia e Historia'!AK17) ->  | AI97: =IF('Geografia e Historia'!AL17="","",'Geografia e Historia'!AL17) ->  | AJ97: =IF('Geografia e Historia'!AM17="","",'Geografia e Historia'!AM17) ->  | AK97: =IF('Geografia e Historia'!AN17="","",'Geografia e Historia'!AN17) ->  | AL97: =IF('Geografia e Historia'!AO17="","",'Geografia e Historia'!AO17) ->  | AM97: =IF('Geografia e Historia'!AP17="","",'Geografia e Historia'!AP17) -> 
D98: Criterio Evaluación 7.3 | E98: =IF('Geografia e Historia'!H18="","",'Geografia e Historia'!H18) ->  | F98: =IF('Geografia e Historia'!I18="","",'Geografia e Historia'!I18) ->  | G98: =IF('Geografia e Historia'!J18="","",'Geografia e Historia'!J18) ->  | H98: =IF('Geografia e Historia'!K18="","",'Geografia e Historia'!K18) ->  | I98: =IF('Geografia e Historia'!L18="","",'Geografia e Historia'!L18) ->  | J98: =IF('Geografia e Historia'!M18="","",'Geografia e Historia'!M18) ->  | K98: =IF('Geografia e Historia'!N18="","",'Geografia e Historia'!N18) ->  | L98: =IF('Geografia e Historia'!O18="","",'Geografia e Historia'!O18) ->  | M98: =IF('Geografia e Historia'!P18="","",'Geografia e Historia'!P18) ->  | N98: =IF('Geografia e Historia'!Q18="","",'Geografia e Historia'!Q18) ->  | O98: =IF('Geografia e Historia'!R18="","",'Geografia e Historia'!R18) ->  | P98: =IF('Geografia e Historia'!S18="","",'Geografia e Historia'!S18) ->  | Q98: =IF('Geografia e Historia'!T18="","",'Geografia e Historia'!T18) ->  | R98: =IF('Geografia e Historia'!U18="","",'Geografia e Historia'!U18) ->  | S98: =IF('Geografia e Historia'!V18="","",'Geografia e Historia'!V18) ->  | T98: =IF('Geografia e Historia'!W18="","",'Geografia e Historia'!W18) ->  | U98: =IF('Geografia e Historia'!X18="","",'Geografia e Historia'!X18) ->  | V98: =IF('Geografia e Historia'!Y18="","",'Geografia e Historia'!Y18) ->  | W98: =IF('Geografia e Historia'!Z18="","",'Geografia e Historia'!Z18) ->  | X98: =IF('Geografia e Historia'!AA18="","",'Geografia e Historia'!AA18) ->  | Y98: =IF('Geografia e Historia'!AB18="","",'Geografia e Historia'!AB18) ->  | Z98: =IF('Geografia e Historia'!AC18="","",'Geografia e Historia'!AC18) ->  | AA98: =IF('Geografia e Historia'!AD18="","",'Geografia e Historia'!AD18) ->  | AB98: =IF('Geografia e Historia'!AE18="","",'Geografia e Historia'!AE18) ->  | AC98: =IF('Geografia e Historia'!AF18="","",'Geografia e Historia'!AF18) ->  | AD98: =IF('Geografia e Historia'!AG18="","",'Geografia e Historia'!AG18) ->  | AE98: =IF('Geografia e Historia'!AH18="","",'Geografia e Historia'!AH18) ->  | AF98: =IF('Geografia e Historia'!AI18="","",'Geografia e Historia'!AI18) ->  | AG98: =IF('Geografia e Historia'!AJ18="","",'Geografia e Historia'!AJ18) ->  | AH98: =IF('Geografia e Historia'!AK18="","",'Geografia e Historia'!AK18) ->  | AI98: =IF('Geografia e Historia'!AL18="","",'Geografia e Historia'!AL18) ->  | AJ98: =IF('Geografia e Historia'!AM18="","",'Geografia e Historia'!AM18) ->  | AK98: =IF('Geografia e Historia'!AN18="","",'Geografia e Historia'!AN18) ->  | AL98: =IF('Geografia e Historia'!AO18="","",'Geografia e Historia'!AO18) ->  | AM98: =IF('Geografia e Historia'!AP18="","",'Geografia e Historia'!AP18) -> 
C99: Comp. Esp. 8 | D99: Criterio Evaluación 8.1 | E99: =IF('Geografia e Historia'!H19="","",'Geografia e Historia'!H19) ->  | F99: =IF('Geografia e Historia'!I19="","",'Geografia e Historia'!I19) ->  | G99: =IF('Geografia e Historia'!J19="","",'Geografia e Historia'!J19) ->  | H99: =IF('Geografia e Historia'!K19="","",'Geografia e Historia'!K19) ->  | I99: =IF('Geografia e Historia'!L19="","",'Geografia e Historia'!L19) ->  | J99: =IF('Geografia e Historia'!M19="","",'Geografia e Historia'!M19) ->  | K99: =IF('Geografia e Historia'!N19="","",'Geografia e Historia'!N19) ->  | L99: =IF('Geografia e Historia'!O19="","",'Geografia e Historia'!O19) ->  | M99: =IF('Geografia e Historia'!P19="","",'Geografia e Historia'!P19) ->  | N99: =IF('Geografia e Historia'!Q19="","",'Geografia e Historia'!Q19) ->  | O99: =IF('Geografia e Historia'!R19="","",'Geografia e Historia'!R19) ->  | P99: =IF('Geografia e Historia'!S19="","",'Geografia e Historia'!S19) ->  | Q99: =IF('Geografia e Historia'!T19="","",'Geografia e Historia'!T19) ->  | R99: =IF('Geografia e Historia'!U19="","",'Geografia e Historia'!U19) ->  | S99: =IF('Geografia e Historia'!V19="","",'Geografia e Historia'!V19) ->  | T99: =IF('Geografia e Historia'!W19="","",'Geografia e Historia'!W19) ->  | U99: =IF('Geografia e Historia'!X19="","",'Geografia e Historia'!X19) ->  | V99: =IF('Geografia e Historia'!Y19="","",'Geografia e Historia'!Y19) ->  | W99: =IF('Geografia e Historia'!Z19="","",'Geografia e Historia'!Z19) ->  | X99: =IF('Geografia e Historia'!AA19="","",'Geografia e Historia'!AA19) ->  | Y99: =IF('Geografia e Historia'!AB19="","",'Geografia e Historia'!AB19) ->  | Z99: =IF('Geografia e Historia'!AC19="","",'Geografia e Historia'!AC19) ->  | AA99: =IF('Geografia e Historia'!AD19="","",'Geografia e Historia'!AD19) ->  | AB99: =IF('Geografia e Historia'!AE19="","",'Geografia e Historia'!AE19) ->  | AC99: =IF('Geografia e Historia'!AF19="","",'Geografia e Historia'!AF19) ->  | AD99: =IF('Geografia e Historia'!AG19="","",'Geografia e Historia'!AG19) ->  | AE99: =IF('Geografia e Historia'!AH19="","",'Geografia e Historia'!AH19) ->  | AF99: =IF('Geografia e Historia'!AI19="","",'Geografia e Historia'!AI19) ->  | AG99: =IF('Geografia e Historia'!AJ19="","",'Geografia e Historia'!AJ19) ->  | AH99: =IF('Geografia e Historia'!AK19="","",'Geografia e Historia'!AK19) ->  | AI99: =IF('Geografia e Historia'!AL19="","",'Geografia e Historia'!AL19) ->  | AJ99: =IF('Geografia e Historia'!AM19="","",'Geografia e Historia'!AM19) ->  | AK99: =IF('Geografia e Historia'!AN19="","",'Geografia e Historia'!AN19) ->  | AL99: =IF('Geografia e Historia'!AO19="","",'Geografia e Historia'!AO19) ->  | AM99: =IF('Geografia e Historia'!AP19="","",'Geografia e Historia'!AP19) -> 
C100: Comp. Esp. 9 | D100: Criterio Evaluación 9.1 | E100: =IF('Geografia e Historia'!H20="","",'Geografia e Historia'!H20) ->  | F100: =IF('Geografia e Historia'!I20="","",'Geografia e Historia'!I20) ->  | G100: =IF('Geografia e Historia'!J20="","",'Geografia e Historia'!J20) ->  | H100: =IF('Geografia e Historia'!K20="","",'Geografia e Historia'!K20) ->  | I100: =IF('Geografia e Historia'!L20="","",'Geografia e Historia'!L20) ->  | J100: =IF('Geografia e Historia'!M20="","",'Geografia e Historia'!M20) ->  | K100: =IF('Geografia e Historia'!N20="","",'Geografia e Historia'!N20) ->  | L100: =IF('Geografia e Historia'!O20="","",'Geografia e Historia'!O20) ->  | M100: =IF('Geografia e Historia'!P20="","",'Geografia e Historia'!P20) ->  | N100: =IF('Geografia e Historia'!Q20="","",'Geografia e Historia'!Q20) ->  | O100: =IF('Geografia e Historia'!R20="","",'Geografia e Historia'!R20) ->  | P100: =IF('Geografia e Historia'!S20="","",'Geografia e Historia'!S20) ->  | Q100: =IF('Geografia e Historia'!T20="","",'Geografia e Historia'!T20) ->  | R100: =IF('Geografia e Historia'!U20="","",'Geografia e Historia'!U20) ->  | S100: =IF('Geografia e Historia'!V20="","",'Geografia e Historia'!V20) ->  | T100: =IF('Geografia e Historia'!W20="","",'Geografia e Historia'!W20) ->  | U100: =IF('Geografia e Historia'!X20="","",'Geografia e Historia'!X20) ->  | V100: =IF('Geografia e Historia'!Y20="","",'Geografia e Historia'!Y20) ->  | W100: =IF('Geografia e Historia'!Z20="","",'Geografia e Historia'!Z20) ->  | X100: =IF('Geografia e Historia'!AA20="","",'Geografia e Historia'!AA20) ->  | Y100: =IF('Geografia e Historia'!AB20="","",'Geografia e Historia'!AB20) ->  | Z100: =IF('Geografia e Historia'!AC20="","",'Geografia e Historia'!AC20) ->  | AA100: =IF('Geografia e Historia'!AD20="","",'Geografia e Historia'!AD20) ->  | AB100: =IF('Geografia e Historia'!AE20="","",'Geografia e Historia'!AE20) ->  | AC100: =IF('Geografia e Historia'!AF20="","",'Geografia e Historia'!AF20) ->  | AD100: =IF('Geografia e Historia'!AG20="","",'Geografia e Historia'!AG20) ->  | AE100: =IF('Geografia e Historia'!AH20="","",'Geografia e Historia'!AH20) ->  | AF100: =IF('Geografia e Historia'!AI20="","",'Geografia e Historia'!AI20) ->  | AG100: =IF('Geografia e Historia'!AJ20="","",'Geografia e Historia'!AJ20) ->  | AH100: =IF('Geografia e Historia'!AK20="","",'Geografia e Historia'!AK20) ->  | AI100: =IF('Geografia e Historia'!AL20="","",'Geografia e Historia'!AL20) ->  | AJ100: =IF('Geografia e Historia'!AM20="","",'Geografia e Historia'!AM20) ->  | AK100: =IF('Geografia e Historia'!AN20="","",'Geografia e Historia'!AN20) ->  | AL100: =IF('Geografia e Historia'!AO20="","",'Geografia e Historia'!AO20) ->  | AM100: =IF('Geografia e Historia'!AP20="","",'Geografia e Historia'!AP20) -> 
